Workbook

Sheet CycleTime
L1: ↓ L～AR 「表示しない」列 ↓ ↓ L～AR 「表示しない」列 ↓ ↓ L～AR 「表示しない」列 ↓ ↓ L～AR 「表示しない」列 ↓ ↓ L～AR 「表示しない」列 ↓ ↓ L～AR 「表示しない」列 ↓ ↓ L～AR 「表示しない」列 ↓ ↓ L～AR 「表示しない」列 ↓ ↓ L～AR 「表示しない」列 ↓ ↓ L～AR 「表示しない」列 | AT1: 残す列 | AV1: 残す列
L2: 参考表示
L3: Vmax[㎜/s] | N3: =SQRT(D14*(2*N4*N5)/(N4+N5)) -> 442.8690551 | AB3: feedforward | AE3: 物理計算用変換係数
A4: <a> | B4: シリーズ | C4: ISB | L4: =IF(AE33=0,"加速度[㎜/s^2]","加速度[deg/s^2]") -> 加速度[㎜/s^2] | N4: =D20*AH5*1000 -> 1961.33 | AB4: =AF45/100 -> 0 | AE4: ﾓｰﾀ軸角速度及び角加速度 | AH4: Ｇ
L5: =IF(AE33=0,"減速度[㎜/s^2]","減速度[deg/s^2]") -> 減速度[㎜/s^2] | N5: =D22*AH5*1000 -> 1961.33 | AB5: Kf | AC5: =IF( AB4=1,1,1-EXP(-((N11/(1-AB4))-N11)*N8) ) -> 0 | AE5: =IF(AE33=0,1000,360/(2*PI())) -> 1000 | AH5: =LeadData!$A$1 -> 9.80665
A6: <b> | B6: 型式 | C6: ISB-SXM-60 | L6: 最高速度[㎜/s] | N6: =IF(D18<N3,D18,N3) -> 240 | AO6: (Tkp+2Kf) | AP6: =($N$8*$N$11+2*$AB$4) -> 0.008179554055
L7: 分割数 | N7: =ROUND(3200/(AP18+AP20*10)*AP18,0) -> 1977 | AO7: (Tkp-2Kf) | AP7: =($N$8*$N$11-2*$AB$4) -> 0.008179554055
A8: <c> | B8: =IF(AE33=0,"リード","減速比") -> リード | C8: 4 | D8: =IF(AE33=0,"㎜","：1") -> ㎜ | L8: ⊿ｔ[s] | N8: =AT32-AT31 -> 0.0002726518018 | AO8: (2+TKp) | AP8: =(2+$N$8*$N$11) -> 2.008179554
L9: 最終時刻[s] | N9: =AT3231 -> 0.8724857659 | AO9: (2-TKp) | AP9: =(2-$N$8*$N$11) -> 1.991820446
A10: <d> | B10: ストローク | C10: 100 | D10: =IF(AE33=0,"㎜","deg") -> ㎜ | L10: 最終位置[㎜] | N10: =AV3231 -> 99.99990393 | AO10: 減速時間 | AP10: =N6/N5 -> 0.1223659456 | AQ10: s
L11: 位置ｹﾞｲﾝ | N11: =AE45 -> 30 | AO11: 減速距離 | AP11: =N5*AP10*AP10/2 -> 14.68391347 | AQ11: ㎜
A12: <e> | B12: 設置姿勢 | C12: 水平 | L12: 速度制御帯域 | N12: =AG45 -> 120 | AO12: 加速時間 | AP12: =N6/N4 -> 0.1223659456 | AQ12: s
AO13: 加速距離 | AP13: =N4*AP12*AP12/2 -> 14.68391347 | AQ13: ㎜
A14: <1> | B14: =IF(AE33=0,"移動距離[㎜]","移動距離[deg]") -> 移動距離[㎜] | D14: 100 | L14: 移動可能距離[㎜] | N14: =X45+Y45 -> 100 | AO14: 等速時間 | AP14: =IF(D18<N3,(D14-AP13-AP11)/D18,0) -> 0.2943007211 | AQ14: s
AO15: 等速距離 | AP15: =AP14*N6 -> 70.63217307 | AQ15: ㎜
A16: <2> | B16: =IF(AE33=0,"搬送質量[kg]","搬送ｲﾅｰｼｬ[kgm^2]") -> 搬送質量[kg] | D16: 55 | AO16: 減速時刻 | AP16: =AP12+AP14 -> 0.4166666667 | AQ16: s
L17: 型式 | M17: リード | N17: ストローク | O17: 最高速度 | P17: 加速度 | T17: 搬送負荷 | V17: サーボゲイン | AO17: 減速位置 | AP17: =AP13+AP15 -> 85.31608653 | AQ17: ㎜
A18: <3> | B18: =IF(AE33=0,"速度[㎜/s]","速度[deg/s]") -> 速度[㎜/s] | D18: 240 | G18: ●計算結果 | P18: 定格(水平) | Q18: 定格(垂直) | R18: 最大(水平) | S18: 最大(垂直) | T18: 可搬(水平) | U18: 可搬(垂直) | V18: 位置ゲイン | W18: FFゲイン | X18: 速度制御帯域 | AO18: TotalTime | AP18: =AP14+AP12+AP10 -> 0.5390326122 | AQ18: s
L19: =X32 -> ISB-SXM-60 | M19: =X39 -> 4 | N19: =X45 -> 100 | O19: =AD45 -> 240 | P19: =Z39/9.80665 -> 0.2 | Q19: =AA39/9.80665 -> 0.2 | R19: =AB39/9.80665 -> 0.5 | S19: =AC39/9.80665 -> 0.4 | T19: =AB45 -> 55 | U19: =AC45 -> 14 | V19: =AE45 -> 30 | W19: =AF45 -> 0 | X19: =AG45 -> 120 | AE19: 運転姿勢 | AF19: ←初期値 | AO19: Spdτ | AP19: =1/N12 -> 0.008333333333 | AQ19: s
A20: <4> | B20: 加速度[G] | D20: 0.2 | E20: ="(1G=9806" & IF(AE33=0,"mm","deg") & "/s^2)" -> (1G=9806mm/s^2) | G20: 位置決め時間 [s] | I20: =LOOKUP((D14-D24),AV31:AV3231,AT31:AT3231) -> 0.6407317343 | AE20: 水平 | AF20: 水平 | AO20: Posτ | AP20: =1/N11 -> 0.03333333333 | AQ20: s
AE21: 垂直 | AO21: 収束時間 | AP21: =I20-AP18 -> 0.1016991221 | AQ21: s
A22: <5> | B22: 減速度[G] | D22: 0.2
A24: <6> | B24: =IF(AE33=0,"位置決め幅 [㎜]","位置決め幅 [deg]") -> 位置決め幅 [㎜] | D24: 0.1 | F24: =IF(N9<=I20,"位置決め時間を正しく計算できていません","※位置決め幅に到達するまでの時間を表します。") -> ※位置決め幅に到達するまでの時間を表します。
F25: =IF(N10<=I21,"","※計算結果は参考値です。 負荷状況により実際の位置決め時間とは異なる場合があります。 ※ゲイン調整により計算結果より早く位置決めできる場合があります。 詳しくは使用するコントローラーの取扱説明書をご確認ください。") -> ※計算結果は参考値です。 負荷状況により実際の位置決め時間とは異なる場合があります。 ※ゲイン調整により計算結果より早く位置決めできる場合があります。 詳しくは使用するコントローラーの取扱説明書をご確認ください。
A28: 1 | B28: =A28+1 -> 2 | C28: 3 | D28: 4 | E28: 5 | F28: 6 | G28: 7 | H28: 8 | I28: 9 | J28: 10 | K28: 11 | L28: 12 | M28: 13 | N28: 14 | O28: 15 | P28: =O28+1 -> 16 | Q28: =P28+1 -> 17 | R28: =Q28+1 -> 18 | S28: =R28+1 -> 19 | T28: =S28+1 -> 20 | U28: 21 | V28: 22 | W28: 23 | X28: 24 | Y28: 25 | Z28: 26 | AA28: 27 | AB28: 28 | AC28: 29 | AD28: 30 | AE28: 31 | AF28: 32 | AG28: 33 | AH28: 34 | AI28: 35 | AJ28: 36 | AK28: 37 | AL28: 38 | AM28: 39 | AN28: 40 | AO28: 41 | AP28: 42 | AQ28: 43 | AR28: 44 | AS28: 45 | AT28: 46 | AU28: 47 | AV28: 48
O29: ↓↓↓↓↓↓↓↓ フォント色を白にする列 O29～U193 ↓↓↓↓↓↓↓↓ | AS29: ↓↓↓↓↓↓↓↓↓↓↓↓↓↓↓ フォント色を白に、数式は非表示に、する列 AS29～BB3231 ↓↓↓↓↓↓↓↓↓↓↓↓↓↓↓
B30: 可搬質量 | C30: 加減速度 | D30: 最高速度 | E30: 実加速度 | F30: 到達速度 | G30: 運転時間 | H30: 三角速度 | O30: № | P30: メカ型式リスト | Q30: 絞込み | R30: ﾀｲﾌﾟﾘｽﾄ | S30: ﾘｰﾄﾞﾘｽﾄ | T30: ｽﾄﾛｰｸﾘｽﾄ | U30: 型式総数 | W30: =DataSerch!B1 -> メカ機種データレコード | AS30: № | AT30: 時刻 | AU30: 位置計画 | AV30: 位置
A31: =A30+1 -> 1 | B31: 30 | C31: 0.5 | D31: 240 | E31: 4903.325 | F31: 240 | G31: 0.4656130449 | H31: 700.2374597 | O31: 1 | P31: ISB-SXM-60 | Q31: ISB-SXM-60 | R31: ISB | S31: 4 | T31: 100 | U31: 229 | W31: ﾚｺｰﾄﾞ№ | X31: =DataSerch!$C$2 -> ｱｸﾁｭｴｰﾀ型式 | Z31: =DataSerch!$E$2 -> 0 | AA31: =DataSerch!$F$2 -> 0 | AB31: =DataSerch!$G$2 -> 0 | AC31: =DataSerch!$H$2 -> 最小ｽﾄﾛｰｸ | AD31: =DataSerch!$I$2 -> 最大ｽﾄﾛｰｸ | AE31: =DataSerch!$J$2 -> 動作種別 | AF31: =DataSerch!$K$2 -> 0 | AS31: 0 | AT31: =$AP$18/$N$7*AS31 -> 0 | AU31: 0 | AV31: 0
A32: 2 | B32: 38 | C32: 0.4 | D32: 240 | E32: 3922.66 | F32: 240 | G32: 0.4778496394 | H32: 626.3114241 | O32: =O31+1 -> 2 | P32: ISB-MXM-100 | Q32: ISB-MXM-100 | R32: ISPB | S32: 8 | T32: 150 | U32: 絞込み数 | W32: =DataSerch!$B$3 -> 1 | X32: =DataSerch!$C$3 -> ISB-SXM-60 | Z32: =DataSerch!$E$4 -> [kg] | AA32: =DataSerch!$F$4 -> [mm] | AB32: =DataSerch!$G$4 -> [mm] | AC32: =DataSerch!$H$4 -> [mm] | AD32: =DataSerch!$I$4 -> [mm] | AE32: =DataSerch!$J$4 -> 0/1 | AF32: =DataSerch!$K$4 -> [K] | AS32: =AS31+1 -> 1 | AT32: 0.0002726518018 | AU32: =IF(($N$4*AT32^2/2)<=$AP$13,($N$4*AT32^2/2), IF(($AP$13+$N$6*(AT32-$AP$12))<=$AP$17, ($AP$13+$N$6*(AT32-$AP$12)), IF(AU31<$D$14, ($AP$17+($N$6-$N$5*(AT32-$AP$16)/2)*(AT32-$AP$16)), $D$14))) -> 7.290166038e-05 | AV32: =( $AP$6*AU32 + $AP$7*AU31 + $AP$9*AV31 )/$AP$8 -> 2.969371292e-07
A33: 3 | B33: 50 | C33: 0.3 | D33: 240 | E33: 2941.995 | F33: 240 | G33: 0.4982439637 | H33: 542.401604 | O33: 3 | P33: ISB-MXM-200 | Q33: ISB-MXM-200 | R33: ISDB | S33: 16 | T33: 200 | U33: 24 | AC33: =DataSerch!$H$5 -> 100 | AD33: =DataSerch!$I$5 -> 900 | AE33: =DataSerch!$J$5 -> 0 | AS33: =AS32+1 -> 2 | AT33: 0.0005453036037 | AU33: 0.0002916066415 | AV33: =( $AP$6*AU33 + $AP$7*AU32 + $AP$9*AV32 )/$AP$8 -> 1.779203855e-06
A34: 4 | B34: 55 | C34: 0.2 | D34: 240 | E34: 1961.33 | F34: 240 | G34: 0.5390326122 | H34: 442.8690551 | O34: 4 | P34: ISB-LXM-200 | Q34: ISB-LXM-200 | R34: SSP | S34: - - - | T34: 250 | AS34: 3 | AT34: 0.0008179554055 | AU34: 0.0006561149434 | AV34: 5.624892717e-06
A35: 5 | B35: -1 | C35: -1 | D35: -1 | E35: -1 | F35: -1 | G35: -1 | H35: -1 | O35: 5 | P35: ISB-LXM-400 | Q35: ISB-LXM-400 | R35: RCS3 | S35: - - - | T35: 300 | U35: ﾘｰﾄﾞ総数 | W35: リードデータレコード | AS35: 4 | AT35: 0.001090607207 | AU35: 0.001166426566 | AV35: 1.300249924e-05
A36: 6 | B36: -1 | C36: -1 | D36: -1 | E36: -1 | F36: -1 | G36: -1 | H36: -1 | O36: 6 | P36: ISB-SXL-60 | Q36: ISB-SXL-60 | R36: RCS2 | S36: - - - | T36: 350 | U36: 3 | W36: リスト№ | X36: =DataSerch!$F$24 -> ﾘｰﾄﾞ長 | Y36: =DataSerch!$G$24 -> 0 | Z36: =DataSerch!$H$24 -> 水平定格加速度 | AA36: =DataSerch!$I$24 -> 垂直定格加速度 | AB36: =DataSerch!$J$24 -> 水平最大加速度 | AC36: =DataSerch!$K$24 -> 垂直最大加速度 | AD36: =DataSerch!$L$24 -> 0 | AE36: =DataSerch!$M$24 -> 0 | AF36: =DataSerch!$N$24 -> 0 | AG36: =DataSerch!$O$24 -> ｷﾞｱ比分子 | AH36: =DataSerch!$P$24 -> ｷﾞｱ比分母 | AI36: =DataSerch!$Q$24 -> 0 | AJ36: =DataSerch!$R$24 -> ｽﾄﾛｰｸ刻み | AK36: =DataSerch!$S$24 -> 位置決め幅 初期値 | AS36: 5 | AT36: 0.001363259009 | AU36: 0.00182254151 | AV36: 2.507100008e-05
A37: 7 | B37: -1 | C37: -1 | D37: -1 | E37: -1 | F37: -1 | G37: -1 | H37: -1 | O37: 7 | P37: ISB-MXL-100 | Q37: ISB-MXL-100 | R37: RCS4 | S37: - - - | T37: 400 | AS37: 6 | AT37: 0.001635910811 | AU37: 0.002624459774 | AV37: 4.297993064e-05
A38: 8 | B38: -1 | C38: -1 | D38: -1 | E38: -1 | F38: -1 | G38: -1 | H38: -1 | O38: 8 | P38: ISB-MXL-200 | Q38: ISB-MXL-200 | R38: EC | S38: - - - | T38: 450 | U38: ｽﾄﾛｰｸ総数 | W38: =DataSerch!$D$35 -> 1 | X38: =DataSerch!$F$25 -> [mm] | Y38: =DataSerch!$G$25 -> [kgm^2] | Z38: =DataSerch!$H$25 -> [m/s^2] | AA38: =DataSerch!$I$25 -> [m/s^2] | AB38: =DataSerch!$J$25 -> [m/s^2] | AC38: =DataSerch!$K$25 -> [m/s^2] | AD38: =DataSerch!$L$25 -> [Nm] | AE38: =DataSerch!$M$25 -> [Nms] | AF38: =DataSerch!$N$25 -> [Nm] | AG38: =DataSerch!$O$25 -> 0 | AH38: =DataSerch!$P$25 -> 0 | AI38: =DataSerch!$Q$25 -> 0 | AJ38: =DataSerch!$R$25 -> [mm] | AK38: =DataSerch!$S$25 -> [mm] | AS38: 7 | AT38: 0.001908562613 | AU38: 0.003572181359 | AV38: 6.786946189e-05
A39: 9 | B39: -1 | C39: -1 | D39: -1 | E39: -1 | F39: -1 | G39: -1 | H39: -1 | O39: 9 | P39: ISB-LXL-200 | Q39: ISB-LXL-200 | R39: IFA | T39: 500 | U39: 17 | X39: =LOOKUP(W38,DataSerch!$B$26:$B$33,DataSerch!$F$26:$F$33) -> 4 | Z39: =LOOKUP(W38,DataSerch!$B$26:$B$33,DataSerch!$H$26:$H$33) -> 1.96133 | AA39: =LOOKUP(W38,DataSerch!$B$26:$B$33,DataSerch!$I$26:$I$33) -> 1.96133 | AB39: =LOOKUP(W38,DataSerch!$B$26:$B$33,DataSerch!$J$26:$J$33) -> 4.903325 | AC39: =LOOKUP(W38,DataSerch!$B$26:$B$33,DataSerch!$K$26:$K$33) -> 3.92266 | AG39: =LOOKUP(W38,DataSerch!$B$26:$B$33,DataSerch!$O$26:$O$33) -> 1 | AH39: =LOOKUP(W38,DataSerch!$B$26:$B$33,DataSerch!$P$26:$P$33) -> 1 | AJ39: =LOOKUP(W38,DataSerch!$B$26:$B$33,DataSerch!$R$26:$R$33) -> 50 | AK39: =LOOKUP(W38,DataSerch!$B$26:$B$33,DataSerch!$S$26:$S$33) -> 0.1 | AS39: 8 | AT39: 0.002181214415 | AU39: 0.004665706264 | AV39: 0.0001008704767
A40: 10 | B40: -1 | C40: -1 | D40: -1 | E40: -1 | F40: -1 | G40: -1 | H40: -1 | O40: 10 | P40: ISB-LXL-400 | Q40: ISB-LXL-400 | T40: 550 | AS40: 9 | AT40: 0.002453866216 | AU40: 0.005905034491 | AV40: 0.0001431046456
A41: 11 | B41: -1 | C41: -1 | D41: -1 | E41: -1 | F41: -1 | G41: -1 | H41: -1 | O41: 11 | P41: ISDB-S-60 | Q41: ISB-MXMX-200 | T41: 600 | W41: ストロークデータレコード | AS41: 10 | AT41: 0.002726518018 | AU41: 0.007290166038 | AV41: 0.0001956845015
A42: 12 | B42: -1 | C42: -1 | D42: -1 | E42: -1 | F42: -1 | G42: -1 | H42: -1 | O42: 12 | P42: ISDB-M-100 | Q42: ISB-LXMX-200 | T42: 650 | W42: リスト№ | X42: =DataSerch!$E$58 -> ｽﾄﾛｰｸ長 | Y42: =DataSerch!$G$58 -> 有効ｽﾄﾛｰｸ補正 | Z42: =DataSerch!$H$58 -> 0 | AA42: =DataSerch!$I$58 -> 基準ｹﾞｲﾝ用搬送質量 | AB42: =DataSerch!$J$58 -> 水平可搬質量 | AC42: =DataSerch!$K$58 -> 垂直可搬質量 | AD42: =DataSerch!$L$58 -> 最大速度 | AE42: =DataSerch!$M$58 -> 位置ｹﾞｲﾝ | AF42: =DataSerch!$N$58 -> FFｹﾞｲﾝ | AG42: =DataSerch!$O$58 -> 速度制御帯域 | AH42: =DataSerch!$P$58 -> 0 | AI42: =DataSerch!$Q$58 -> 0 | AJ42: =DataSerch!$R$58 -> 0 | AK42: =DataSerch!$S$58 -> 0 | AL42: =DataSerch!$T$58 -> 0 | AS42: 11 | AT42: 0.00299916982 | AU42: 0.008821100906 | AV42: 0.0002597135146
A43: 13 | B43: -1 | C43: -1 | D43: -1 | E43: -1 | F43: -1 | G43: -1 | H43: -1 | O43: 13 | P43: ISDB-M-200 | Q43: ISB-LXMX-400 | T43: 700 | AS43: 12 | AT43: 0.003271821622 | AU43: 0.01049783909 | AV43: 0.0003362861658
A44: 14 | B44: -1 | C44: -1 | D44: -1 | E44: -1 | F44: -1 | G44: -1 | H44: -1 | O44: 14 | P44: ISDB-L-200 | Q44: ISB-LXUWX-200 | T44: 750 | W44: =MATCH(C10,DataSerch!$E$60:$E$109,0) -> 1 | X44: =DataSerch!$E$59 -> [mm] | Y44: =DataSerch!$G$59 -> [mm] | Z44: =DataSerch!$H$59 -> [kg/mm] | AA44: =DataSerch!$I$59 -> [kg] | AB44: =DataSerch!$J$59 -> [kg] | AC44: =DataSerch!$K$59 -> [kg] | AD44: =DataSerch!$L$59 -> [mm/s] | AE44: =DataSerch!$M$59 -> [1/s] | AF44: =DataSerch!$N$59 -> [%] | AG44: =DataSerch!$O$59 -> [rad/s] | AH44: =DataSerch!$P$59 -> 0 | AI44: =DataSerch!$Q$59 -> [s] | AJ44: =DataSerch!$R$59 -> 0 | AK44: =DataSerch!$S$59 -> 0 | AL44: =DataSerch!$T$59 -> [Nm/rad] | AS44: 13 | AT44: 0.003544473424 | AU44: 0.0123203806 | AV44: 0.0004264880202
A45: 15 | B45: -1 | C45: -1 | D45: -1 | E45: -1 | F45: -1 | G45: -1 | H45: -1 | O45: 15 | P45: ISDB-L-400 | Q45: ISB-LXUWX-400 | T45: 800 | X45: =LOOKUP(W44,DataSerch!$D$60:$D$109,DataSerch!$E$60:$E$109) -> 100 | Y45: =LOOKUP(W44,DataSerch!$D$60:$D$109,DataSerch!$G$60:$G$109) -> 0 | AA45: =LOOKUP(W44,DataSerch!$D$60:$D$109,DataSerch!$I$60:$I$109) -> 55 | AB45: =LOOKUP(W44,DataSerch!$D$60:$D$109,DataSerch!$J$60:$J$109) -> 55 | AC45: =LOOKUP(W44,DataSerch!$D$60:$D$109,DataSerch!$K$60:$K$109) -> 14 | AD45: =LOOKUP(W44,DataSerch!$D$60:$D$109,DataSerch!$L$60:$L$109) -> 240 | AE45: =LOOKUP(W44,DataSerch!$D$60:$D$109,DataSerch!$M$60:$M$109) -> 30 | AF45: =LOOKUP(W44,DataSerch!$D$60:$D$109,DataSerch!$N$60:$N$109) -> 0 | AG45: =LOOKUP(W44,DataSerch!$D$60:$D$109,DataSerch!$O$60:$O$109) -> 120 | AS45: 14 | AT45: 0.003817125226 | AU45: 0.01428872543 | AV45: 0.0005313957995
A46: 16 | B46: -1 | C46: -1 | D46: -1 | E46: -1 | F46: -1 | G46: -1 | H46: -1 | O46: 16 | P46: ISDBCR-S-60 | Q46: ISB-SXM-100 | T46: 850 | AS46: 15 | AT46: 0.004089777027 | AU46: 0.01640287359 | AV46: 0.0006520774544
A47: 17 | B47: -1 | C47: -1 | D47: -1 | E47: -1 | F47: -1 | G47: -1 | H47: -1 | O47: 17 | P47: ISDBCR-M-100 | Q47: ISB-MXM-400 | T47: 900 | AS47: 16 | AT47: 0.004362428829 | AU47: 0.01866282506 | AV47: 0.0007895922356
A48: 18 | B48: -1 | C48: -1 | D48: -1 | E48: -1 | F48: -1 | G48: -1 | H48: -1 | O48: 18 | P48: ISDBCR-M-200 | Q48: ISB-SXL-100 | T48: - - - | AS48: 17 | AT48: 0.004635080631 | AU48: 0.02106857985 | AV48: 0.000944990765
A49: 19 | B49: -1 | C49: -1 | D49: -1 | E49: -1 | F49: -1 | G49: -1 | H49: -1 | O49: 19 | P49: ISDBCR-L-200 | Q49: ISB-MXL-400 | T49: - - - | AS49: 18 | AT49: 0.004907732433 | AU49: 0.02362013796 | AV49: 0.001119315106
A50: 20 | B50: -1 | C50: -1 | D50: -1 | E50: -1 | F50: -1 | G50: -1 | H50: -1 | O50: 20 | P50: ISDBCR-L-400 | Q50: ISB-MXMX-400 | T50: - - - | U50: リンクリスト総数 | AS50: 19 | AT50: 0.005180384235 | AU50: 0.0263174994 | AV50: 0.001313598832
A51: 21 | B51: -1 | C51: -1 | D51: -1 | E51: -1 | F51: -1 | G51: -1 | H51: -1 | O51: 21 | P51: SSPA-SXM-200 | Q51: ISB-WXM-750 | T51: - - - | U51: 4 | AS51: 20 | AT51: 0.005453036037 | AU51: 0.02916066415 | AV51: 0.001528867099
A52: 22 | B52: -1 | C52: -1 | D52: -1 | E52: -1 | F52: -1 | G52: -1 | H52: -1 | O52: 22 | P52: SSPA-MXM-400 | Q52: ISB-WXMX-750 | T52: - - - | AS52: 21 | AT52: 0.005725687838 | AU52: 0.03214963223 | AV52: 0.00176613671
A53: 23 | B53: -1 | C53: -1 | D53: -1 | E53: -1 | F53: -1 | G53: -1 | H53: -1 | O53: 23 | P53: SSPA-LXM-750 | Q53: ISB-WXM-750-W | T53: - - - | AS53: 22 | AT53: 0.00599833964 | AU53: 0.03528440362 | AV53: 0.002026416185
A54: 24 | B54: -1 | C54: -1 | D54: -1 | E54: -1 | F54: -1 | G54: -1 | H54: -1 | O54: 24 | P54: SSPDACR-S-200 | Q54: ISB-WXMX-750-W | T54: - - - | AS54: 23 | AT54: 0.006270991442 | AU54: 0.03856497834 | AV54: 0.002310705829
A55: 25 | B55: -1 | C55: -1 | D55: -1 | E55: -1 | F55: -1 | G55: -1 | H55: -1 | O55: 25 | P55: SSPDACR-M-400 | Q55: - - - | T55: - - - | AS55: 24 | AT55: 0.006543643244 | AU55: 0.04199135638 | AV55: 0.002619997798
A56: 26 | B56: -1 | C56: -1 | D56: -1 | E56: -1 | F56: -1 | G56: -1 | H56: -1 | O56: 26 | P56: SSPDACR-L-750 | Q56: - - - | T56: - - - | AS56: 25 | AT56: 0.006816295046 | AU56: 0.04556353774 | AV56: 0.002955276165
A57: 27 | B57: -1 | C57: -1 | D57: -1 | E57: -1 | F57: -1 | G57: -1 | H57: -1 | O57: 27 | P57: RCS3-SA8C-100 | Q57: - - - | T57: - - - | AS57: 26 | AT57: 0.007088946848 | AU57: 0.04928152242 | AV57: 0.003317516988
A58: 28 | B58: -1 | C58: -1 | D58: -1 | E58: -1 | F58: -1 | G58: -1 | H58: -1 | O58: 28 | P58: RCS3-SA8C-150 | Q58: - - - | T58: - - - | AS58: 27 | AT58: 0.007361598649 | AU58: 0.05314531042 | AV58: 0.003707688372
A59: 29 | B59: -1 | C59: -1 | D59: -1 | E59: -1 | F59: -1 | G59: -1 | H59: -1 | O59: 29 | P59: RCS3-SS8C-100 | Q59: - - - | T59: - - - | AS59: 28 | AT59: 0.007634250451 | AU59: 0.05715490174 | AV59: 0.004126750538
A60: 30 | B60: -1 | C60: -1 | D60: -1 | E60: -1 | F60: -1 | G60: -1 | H60: -1 | O60: 30 | P60: RCS3-SS8C-150 | Q60: - - - | T60: - - - | AS60: 29 | AT60: 0.007906902253 | AU60: 0.06131029638 | AV60: 0.004575655882
A61: 31 | B61: -1 | C61: -1 | D61: -1 | E61: -1 | F61: -1 | G61: -1 | H61: -1 | O61: 31 | P61: RCS3CR-SA8C-100 | Q61: - - - | T61: - - - | AS61: 30 | AT61: 0.008179554055 | AU61: 0.06561149434 | AV61: 0.005055349043
A62: 32 | B62: -1 | C62: -1 | D62: -1 | E62: -1 | F62: -1 | G62: -1 | H62: -1 | O62: 32 | P62: RCS3CR-SA8C-150 | Q62: - - - | T62: - - - | AS62: 31 | AT62: 0.008452205857 | AU62: 0.07005849563 | AV62: 0.005566766965
A63: 33 | B63: -1 | C63: -1 | D63: -1 | E63: -1 | F63: -1 | G63: -1 | H63: -1 | O63: 33 | P63: RCS3CR-SS8C-100 | Q63: - - - | T63: - - - | AS63: 32 | AT63: 0.008724857659 | AU63: 0.07465130023 | AV63: 0.006110838959
A64: 34 | B64: -1 | C64: -1 | D64: -1 | E64: -1 | F64: -1 | G64: -1 | H64: -1 | O64: 34 | P64: RCS3CR-SS8C-150 | Q64: - - - | T64: - - - | AS64: 33 | AT64: 0.00899750946 | AU64: 0.07938990815 | AV64: 0.006688486767
A65: 35 | B65: -1 | C65: -1 | D65: -1 | E65: -1 | F65: -1 | G65: -1 | H65: -1 | O65: 35 | P65: RCS3-SA8R-100 | Q65: - - - | T65: - - - | AS65: 34 | AT65: 0.009270161262 | AU65: 0.0842743194 | AV65: 0.007300624618
A66: 36 | B66: -1 | C66: -1 | D66: -1 | E66: -1 | F66: -1 | G66: -1 | H66: -1 | O66: 36 | P66: RCS3-SA8R-150 | Q66: - - - | T66: - - - | AS66: 35 | AT66: 0.009542813064 | AU66: 0.08930453397 | AV66: 0.007948159299
A67: 37 | B67: -1 | C67: -1 | D67: -1 | E67: -1 | F67: -1 | G67: -1 | H67: -1 | O67: 37 | P67: RCS3-SS8R-100 | Q67: - - - | T67: - - - | AS67: 36 | AT67: 0.009815464866 | AU67: 0.09448055185 | AV67: 0.008631990206
A68: 38 | B68: -1 | C68: -1 | D68: -1 | E68: -1 | F68: -1 | G68: -1 | H68: -1 | O68: 38 | P68: RCS3-SS8R-150 | Q68: - - - | T68: - - - | AS68: 37 | AT68: 0.01008811667 | AU68: 0.09980237306 | AV68: 0.009353009411
A69: 39 | B69: -1 | C69: -1 | D69: -1 | E69: -1 | F69: -1 | G69: -1 | H69: -1 | O69: 39 | P69: RCS2-SA4C-20 | Q69: - - - | T69: - - - | AS69: 38 | AT69: 0.01036076847 | AU69: 0.1052699976 | AV69: 0.01011210172
A70: 40 | B70: -1 | C70: -1 | D70: -1 | E70: -1 | F70: -1 | G70: -1 | H70: -1 | O70: 40 | P70: RCS2-SA5C-20 | Q70: - - - | T70: - - - | AS70: 39 | AT70: 0.01063342027 | AU70: 0.1108834254 | AV70: 0.01091014472
A71: 41 | B71: -1 | C71: -1 | D71: -1 | E71: -1 | F71: -1 | G71: -1 | H71: -1 | O71: 41 | P71: RCS2-SA6C-30 | Q71: - - - | T71: - - - | AS71: 40 | AT71: 0.01090607207 | AU71: 0.1166426566 | AV71: 0.01174800887
A72: 42 | B72: -1 | C72: -1 | D72: -1 | E72: -1 | F72: -1 | G72: -1 | H72: -1 | O72: 42 | P72: RCS2-SA7C-60 | Q72: - - - | T72: - - - | AS72: 41 | AT72: 0.01117872388 | AU72: 0.1225476911 | AV72: 0.01262655752
A73: 43 | B73: -1 | C73: -1 | D73: -1 | E73: -1 | F73: -1 | G73: -1 | H73: -1 | O73: 43 | P73: RCS2-SS7C-60 | Q73: - - - | T73: - - - | AS73: 42 | AT73: 0.01145137568 | AU73: 0.1285985289 | AV73: 0.01354664699
A74: 44 | B74: -1 | C74: -1 | D74: -1 | E74: -1 | F74: -1 | G74: -1 | H74: -1 | O74: 44 | P74: RCS2CR-SA4C-20 | Q74: - - - | T74: - - - | AS74: 43 | AT74: 0.01172402748 | AU74: 0.13479517 | AV74: 0.01450912663
A75: 45 | B75: -1 | C75: -1 | D75: -1 | E75: -1 | F75: -1 | G75: -1 | H75: -1 | O75: 45 | P75: RCS2CR-SA5C-20 | Q75: - - - | T75: - - - | AS75: 44 | AT75: 0.01199667928 | AU75: 0.1411376145 | AV75: 0.01551483887
A76: 46 | B76: -1 | C76: -1 | D76: -1 | E76: -1 | F76: -1 | G76: -1 | H76: -1 | O76: 46 | P76: RCS2CR-SA6C-30 | Q76: - - - | T76: - - - | AS76: 45 | AT76: 0.01226933108 | AU76: 0.1476258623 | AV76: 0.01656461927
A77: 47 | B77: -1 | C77: -1 | D77: -1 | E77: -1 | F77: -1 | G77: -1 | H77: -1 | O77: 47 | P77: RCS2CR-SA7C-60 | Q77: - - - | T77: - - - | AS77: 46 | AT77: 0.01254198288 | AU77: 0.1542599134 | AV77: 0.01765929659
A78: 48 | B78: -1 | C78: -1 | D78: -1 | E78: -1 | F78: -1 | G78: -1 | H78: -1 | O78: 48 | P78: RCS2CR-SS7C-60 | Q78: - - - | T78: - - - | AS78: 47 | AT78: 0.01281463469 | AU78: 0.1610397678 | AV78: 0.01879969285
A79: 49 | B79: -1 | C79: -1 | D79: -1 | E79: -1 | F79: -1 | G79: -1 | H79: -1 | O79: 49 | P79: RCS2-SA4D-20 | Q79: - - - | T79: - - - | AS79: 48 | AT79: 0.01308728649 | AU79: 0.1679654255 | AV79: 0.01998662335
A80: 50 | B80: -1 | C80: -1 | D80: -1 | E80: -1 | F80: -1 | G80: -1 | H80: -1 | O80: 50 | P80: RCS2-SA5D-20 | Q80: - - - | T80: - - - | AS80: 49 | AT80: 0.01335993829 | AU80: 0.1750368866 | AV80: 0.02122089675
A81: 51 | B81: -1 | C81: -1 | D81: -1 | E81: -1 | F81: -1 | G81: -1 | H81: -1 | O81: 51 | P81: RCS2-SA6D-30 | Q81: - - - | AS81: 50 | AT81: 0.01363259009 | AU81: 0.182254151 | AV81: 0.02250331515
A82: 52 | B82: -1 | C82: -1 | D82: -1 | E82: -1 | F82: -1 | G82: -1 | H82: -1 | O82: 52 | P82: RCS2CR-SA5D-20 | Q82: - - - | AS82: 51 | AT82: 0.01390524189 | AU82: 0.1896172186 | AV82: 0.02383467409
A83: 53 | B83: -1 | C83: -1 | D83: -1 | E83: -1 | F83: -1 | G83: -1 | H83: -1 | O83: 53 | P83: RCS2CR-SA6D-30 | Q83: - - - | AS83: 52 | AT83: 0.0141778937 | AU83: 0.1971260897 | AV83: 0.02521576264
A84: 54 | B84: -1 | C84: -1 | D84: -1 | E84: -1 | F84: -1 | G84: -1 | H84: -1 | O84: 54 | P84: RCS2-SA4R-20 | Q84: - - - | AS84: 53 | AT84: 0.0144505455 | AU84: 0.204780764 | AV84: 0.02664736344
A85: 55 | B85: -1 | C85: -1 | D85: -1 | E85: -1 | F85: -1 | G85: -1 | H85: -1 | O85: 55 | P85: RCS2-SA5R-20 | Q85: - - - | AS85: 54 | AT85: 0.0147231973 | AU85: 0.2125812417 | AV85: 0.02813025274
A86: 56 | B86: -1 | C86: -1 | D86: -1 | E86: -1 | F86: -1 | G86: -1 | H86: -1 | O86: 56 | P86: RCS2-SA6R-30 | Q86: - - - | AS86: 55 | AT86: 0.0149958491 | AU86: 0.2205275227 | AV86: 0.0296652005
A87: 57 | B87: -1 | C87: -1 | D87: -1 | E87: -1 | F87: -1 | G87: -1 | H87: -1 | O87: 57 | P87: RCS2-SA7R-60 | Q87: - - - | AS87: 56 | AT87: 0.0152685009 | AU87: 0.228619607 | AV87: 0.03125297038
A88: 58 | B88: -1 | C88: -1 | D88: -1 | E88: -1 | F88: -1 | G88: -1 | H88: -1 | O88: 58 | P88: RCS2-SS7R-60 | Q88: - - - | AS88: 57 | AT88: 0.0155411527 | AU88: 0.2368574946 | AV88: 0.03289431982
A89: 59 | B89: -1 | C89: -1 | D89: -1 | E89: -1 | F89: -1 | G89: -1 | H89: -1 | O89: 59 | P89: RCS2-RA4C-20 | Q89: - - - | AS89: 58 | AT89: 0.01581380451 | AU89: 0.2452411855 | AV89: 0.03459000011
A90: 60 | B90: -1 | C90: -1 | D90: -1 | E90: -1 | F90: -1 | G90: -1 | H90: -1 | O90: 60 | P90: RCS2-RA4C-30 | Q90: - - - | AS90: 59 | AT90: 0.01608645631 | AU90: 0.2537706798 | AV90: 0.03634075639
A91: 61 | B91: -1 | C91: -1 | D91: -1 | E91: -1 | F91: -1 | G91: -1 | H91: -1 | O91: 61 | P91: RCS2-RA5C-60 | Q91: - - - | AS91: 60 | AT91: 0.01635910811 | AU91: 0.2624459774 | AV91: 0.03814732776
A92: 62 | B92: -1 | C92: -1 | D92: -1 | E92: -1 | F92: -1 | G92: -1 | H92: -1 | O92: 62 | P92: RCS2-RA5C-100 | Q92: - - - | AS92: 61 | AT92: 0.01663175991 | AU92: 0.2712670783 | AV92: 0.04001044728
A93: 63 | B93: -1 | C93: -1 | D93: -1 | E93: -1 | F93: -1 | G93: -1 | H93: -1 | O93: 63 | P93: ISB-MXMX-200 | Q93: - - - | AS93: 62 | AT93: 0.01690441171 | AU93: 0.2802339825 | AV93: 0.04193084205
A94: 64 | B94: -1 | C94: -1 | D94: -1 | E94: -1 | F94: -1 | G94: -1 | H94: -1 | O94: 64 | P94: ISB-LXMX-200 | Q94: - - - | AS94: 63 | AT94: 0.01717706352 | AU94: 0.28934669 | AV94: 0.04390923323
A95: =A94+1 -> 65 | B95: -1 | C95: -1 | D95: -1 | E95: -1 | F95: -1 | G95: -1 | H95: -1 | O95: 65 | P95: ISB-LXMX-400 | Q95: - - - | AS95: 64 | AT95: =$AP$18/$N$7*AS95 -> 0.01744971532 | AU95: 0.2986052009 | AV95: 0.04594633613
A96: 66 | B96: -1 | C96: -1 | D96: -1 | E96: -1 | F96: -1 | G96: -1 | H96: -1 | O96: =O95+1 -> 66 | P96: ISB-LXUWX-200 | Q96: - - - | AS96: 65 | AT96: 0.01772236712 | AU96: =IF(($N$4*AT96^2/2)<=$AP$13,($N$4*AT96^2/2), IF(($AP$13+$N$6*(AT96-$AP$12))<=$AP$17, ($AP$13+$N$6*(AT96-$AP$12)), IF(AU95<$D$14, ($AP$17+($N$6-$N$5*(AT96-$AP$16)/2)*(AT96-$AP$16)), $D$14))) -> 0.3080095151 | AV96: 0.0480428602
A97: 67 | B97: -1 | C97: -1 | D97: -1 | E97: -1 | F97: -1 | G97: -1 | H97: -1 | O97: 67 | P97: ISB-LXUWX-400 | Q97: - - - | AS97: =AS96+1 -> 66 | AT97: 0.01799501892 | AU97: 0.3175596326 | AV97: =( $AP$6*AU97 + $AP$7*AU96 + $AP$9*AV96 )/$AP$8 -> 0.05019950914
A98: 68 | B98: -1 | C98: -1 | D98: -1 | E98: -1 | F98: -1 | G98: -1 | H98: -1 | O98: 68 | P98: ISDB-MX-200 | Q98: - - - | AS98: 67 | AT98: 0.01826767072 | AU98: 0.3272555534 | AV98: 0.05241698092
A99: 69 | B99: -1 | C99: -1 | D99: -1 | E99: -1 | F99: -1 | G99: -1 | H99: -1 | O99: 69 | P99: ISDB-LX-200 | Q99: - - - | AS99: 68 | AT99: 0.01854032252 | AU99: 0.3370972776 | AV99: 0.05469596779
A100: 70 | B100: -1 | C100: -1 | D100: -1 | E100: -1 | F100: -1 | G100: -1 | H100: -1 | O100: 70 | P100: ISDB-LX-400 | Q100: - - - | AS100: 69 | AT100: 0.01881297433 | AU100: 0.3470848051 | AV100: 0.05703715638
A101: 71 | B101: -1 | C101: -1 | D101: -1 | E101: -1 | F101: -1 | G101: -1 | H101: -1 | O101: 71 | P101: ISDBCR-MX-200 | Q101: - - - | AS101: 70 | AT101: 0.01908562613 | AU101: 0.3572181359 | AV101: 0.05944122775
A102: 72 | B102: -1 | C102: -1 | D102: -1 | E102: -1 | F102: -1 | G102: -1 | H102: -1 | O102: 72 | P102: ISDBCR-LX-200 | Q102: - - - | AS102: 71 | AT102: 0.01935827793 | AU102: 0.36749727 | AV102: 0.06190885738
A103: 73 | B103: -1 | C103: -1 | D103: -1 | E103: -1 | F103: -1 | G103: -1 | H103: -1 | O103: 73 | P103: ISDBCR-LX-400 | Q103: - - - | AS103: 72 | AT103: 0.01963092973 | AU103: 0.3779222074 | AV103: 0.06444071526
A104: 74 | B104: -1 | C104: -1 | D104: -1 | E104: -1 | F104: -1 | G104: -1 | H104: -1 | O104: 74 | P104: ISB-SXM-100 | Q104: - - - | AS104: 73 | AT104: 0.01990358153 | AU104: 0.3884929482 | AV104: 0.06703746591
A105: 75 | B105: -1 | C105: -1 | D105: -1 | E105: -1 | F105: -1 | G105: -1 | H105: -1 | O105: 75 | P105: ISB-MXM-400 | Q105: - - - | AS105: 74 | AT105: 0.02017623334 | AU105: 0.3992094922 | AV105: 0.06969976845
A106: 76 | B106: -1 | C106: -1 | D106: -1 | E106: -1 | F106: -1 | G106: -1 | H106: -1 | O106: 76 | P106: ISB-SXL-100 | Q106: - - - | AS106: 75 | AT106: 0.02044888514 | AU106: 0.4100718396 | AV106: 0.07242827664
A107: 77 | B107: -1 | C107: -1 | D107: -1 | E107: -1 | F107: -1 | G107: -1 | H107: -1 | O107: 77 | P107: ISB-MXL-400 | Q107: - - - | AS107: 76 | AT107: 0.02072153694 | AU107: 0.4210799904 | AV107: 0.07522363889
A108: 78 | B108: -1 | C108: -1 | D108: -1 | E108: -1 | F108: -1 | G108: -1 | H108: -1 | O108: 78 | P108: ISDB-S-100 | Q108: - - - | AS108: 77 | AT108: 0.02099418874 | AU108: 0.4322339444 | AV108: 0.07808649834
A109: 79 | B109: -1 | C109: -1 | D109: -1 | E109: -1 | F109: -1 | G109: -1 | H109: -1 | O109: 79 | P109: ISDB-M-400 | Q109: - - - | AS109: 78 | AT109: 0.02126684054 | AU109: 0.4435337018 | AV109: 0.08101749289
A110: 80 | B110: -1 | C110: -1 | D110: -1 | E110: -1 | F110: -1 | G110: -1 | H110: -1 | O110: 80 | P110: ISB-MXMX-400 | Q110: - - - | AS110: 79 | AT110: 0.02153949234 | AU110: 0.4549792624 | AV110: 0.08401725525
A111: 81 | B111: -1 | C111: -1 | D111: -1 | E111: -1 | F111: -1 | G111: -1 | H111: -1 | O111: 81 | P111: ISDB-MX-400 | Q111: - - - | AS111: 80 | AT111: 0.02181214415 | AU111: 0.4665706264 | AV111: 0.08708641296
A112: 82 | B112: -1 | C112: -1 | D112: -1 | E112: -1 | F112: -1 | G112: -1 | H112: -1 | O112: 82 | P112: RCS4-RA4C-60 | Q112: - - - | AS112: 81 | AT112: 0.02208479595 | AU112: 0.4783077938 | AV112: 0.09022558847
A113: 83 | B113: -1 | C113: -1 | D113: -1 | E113: -1 | F113: -1 | G113: -1 | H113: -1 | O113: 83 | P113: RCS4-RA6C-100 | Q113: - - - | AS113: 82 | AT113: 0.02235744775 | AU113: 0.4901907644 | AV113: 0.09343539914
A114: 84 | B114: -1 | C114: -1 | D114: -1 | E114: -1 | F114: -1 | G114: -1 | H114: -1 | O114: 84 | P114: RCS4-RA7C-200 | Q114: - - - | AS114: 83 | AT114: 0.02263009955 | AU114: 0.5022195384 | AV114: 0.0967164573
A115: 85 | B115: -1 | C115: -1 | D115: -1 | E115: -1 | F115: -1 | G115: -1 | H115: -1 | O115: 85 | P115: RCS4-RA8C-400 | Q115: - - - | AS115: 84 | AT115: 0.02290275135 | AU115: 0.5143941156 | AV115: 0.1000693703
A116: 86 | B116: -1 | C116: -1 | D116: -1 | E116: -1 | F116: -1 | G116: -1 | H116: -1 | O116: 86 | P116: RCS4-SA4C-60 | Q116: - - - | AS116: 85 | AT116: 0.02317540316 | AU116: 0.5267144962 | AV116: 0.1034947406
A117: 87 | B117: -1 | C117: -1 | D117: -1 | E117: -1 | F117: -1 | G117: -1 | H117: -1 | O117: 87 | P117: RCS4-SA6C-100 | Q117: - - - | AS117: 86 | AT117: 0.02344805496 | AU117: 0.5391806802 | AV117: 0.1069931656
A118: 88 | B118: -1 | C118: -1 | D118: -1 | E118: -1 | F118: -1 | G118: -1 | H118: -1 | O118: 88 | P118: RCS4-SA7C-200 | Q118: - - - | AS118: 87 | AT118: 0.02372070676 | AU118: 0.5517926674 | AV118: 0.1105652379
A119: 89 | B119: -1 | C119: -1 | D119: -1 | E119: -1 | F119: -1 | G119: -1 | H119: -1 | O119: 89 | P119: RCS4-SA8C-400 | Q119: - - - | AS119: 88 | AT119: 0.02399335856 | AU119: 0.564550458 | AV119: 0.1142115455
A120: 90 | B120: -1 | C120: -1 | D120: -1 | E120: -1 | F120: -1 | G120: -1 | H120: -1 | O120: 90 | P120: RCS4-WSA10C-60 | Q120: - - - | AS120: 89 | AT120: 0.02426601036 | AU120: 0.5774540519 | AV120: 0.1179326712
A121: 91 | B121: -1 | C121: -1 | D121: -1 | E121: -1 | F121: -1 | G121: -1 | H121: -1 | O121: 91 | P121: RCS4-WSA12C-100 | Q121: - - - | AS121: 90 | AT121: 0.02453866216 | AU121: 0.5905034491 | AV121: 0.1217291934
A122: 92 | B122: -1 | C122: -1 | D122: -1 | E122: -1 | F122: -1 | G122: -1 | H122: -1 | O122: 92 | P122: RCS4-WSA14C-200 | Q122: - - - | AS122: 91 | AT122: 0.02481131397 | AU122: 0.6036986496 | AV122: 0.1256016855
A123: 93 | B123: -1 | C123: -1 | D123: -1 | E123: -1 | F123: -1 | G123: -1 | H123: -1 | O123: 93 | P123: RCS4-WSA16C-400 | Q123: - - - | AS123: 92 | AT123: 0.02508396577 | AU123: 0.6170396535 | AV123: 0.1295507166
A124: 94 | B124: -1 | C124: -1 | D124: -1 | E124: -1 | F124: -1 | G124: -1 | H124: -1 | O124: 94 | P124: RCS4-TA4C(SB)-60 | Q124: - - - | AS124: 93 | AT124: 0.02535661757 | AU124: 0.6305264606 | AV124: 0.1335768507
A125: 95 | B125: -1 | C125: -1 | D125: -1 | E125: -1 | F125: -1 | G125: -1 | H125: -1 | O125: 95 | P125: RCS4-TA6C(SB)-100 | Q125: - - - | AS125: 94 | AT125: 0.02562926937 | AU125: 0.6441590711 | AV125: 0.1376806477
A126: 96 | B126: -1 | C126: -1 | D126: -1 | E126: -1 | F126: -1 | G126: -1 | H126: -1 | O126: 96 | P126: RCS4-TA7C(SB)-200 | Q126: - - - | AS126: 95 | AT126: 0.02590192117 | AU126: 0.6579374849 | AV126: 0.1418626624
A127: 97 | B127: -1 | C127: -1 | D127: -1 | E127: -1 | F127: -1 | G127: -1 | H127: -1 | O127: 97 | P127: RCS4-TA4C(DB)-60 | Q127: - - - | AS127: 96 | AT127: 0.02617457298 | AU127: 0.6718617021 | AV127: 0.1461234456
A128: 98 | B128: -1 | C128: -1 | D128: -1 | E128: -1 | F128: -1 | G128: -1 | H128: -1 | O128: 98 | P128: RCS4-TA6C(DB)-100 | Q128: - - - | AS128: 97 | AT128: 0.02644722478 | AU128: 0.6859317225 | AV128: 0.1504635433
A129: 99 | B129: -1 | C129: -1 | D129: -1 | E129: -1 | F129: -1 | G129: -1 | H129: -1 | O129: 99 | P129: RCS4-TA7C(DB)-200 | Q129: - - - | AS129: 98 | AT129: 0.02671987658 | AU129: 0.7001475463 | AV129: 0.1548834972
A130: 100 | B130: -1 | C130: -1 | D130: -1 | E130: -1 | F130: -1 | G130: -1 | H130: -1 | O130: 100 | P130: RCS4-RRA4C-60 | Q130: - - - | AS130: 99 | AT130: 0.02699252838 | AU130: 0.7145091734 | AV130: 0.1593838444
A131: 101 | B131: -1 | C131: -1 | D131: -1 | E131: -1 | F131: -1 | G131: -1 | H131: -1 | O131: 101 | P131: RCS4-RRA6C-100 | Q131: - - - | AS131: 100 | AT131: 0.02726518018 | AU131: 0.7290166038 | AV131: 0.1639651178
A132: 102 | B132: -1 | C132: -1 | D132: -1 | E132: -1 | F132: -1 | G132: -1 | H132: -1 | O132: 102 | P132: RCS4-RRA7C-200 | Q132: - - - | AS132: =AS131+1 -> 101 | AT132: 0.02753783199 | AU132: 0.7436698375 | AV132: 0.1686278459
A133: 103 | B133: -1 | C133: -1 | D133: -1 | E133: -1 | F133: -1 | G133: -1 | H133: -1 | O133: 103 | P133: RCS4-RRA8C-400 | Q133: - - - | AS133: 102 | AT133: 0.02781048379 | AU133: 0.7584688746 | AV133: 0.1733725529
A134: 104 | B134: -1 | C134: -1 | D134: -1 | E134: -1 | F134: -1 | G134: -1 | H134: -1 | O134: 104 | P134: RCS4-WRA10C-60 | Q134: - - - | AS134: 103 | AT134: 0.02808313559 | AU134: 0.773413715 | AV134: 0.1781997588
A135: 105 | B135: -1 | C135: -1 | D135: -1 | E135: -1 | F135: -1 | G135: -1 | H135: -1 | O135: 105 | P135: RCS4-WRA12C-100 | Q135: - - - | AS135: 104 | AT135: 0.02835578739 | AU135: 0.7885043587 | AV135: 0.1831099792
A136: 106 | B136: -1 | C136: -1 | D136: -1 | E136: -1 | F136: -1 | G136: -1 | H136: -1 | O136: 106 | P136: RCS4-WRA14C-200 | Q136: - - - | AS136: 105 | AT136: 0.02862843919 | AU136: 0.8037408057 | AV136: 0.1881037256
A137: 107 | B137: -1 | C137: -1 | D137: -1 | E137: -1 | F137: -1 | G137: -1 | H137: -1 | O137: 107 | P137: RCS4-WRA16C-400 | Q137: - - - | AS137: 106 | AT137: 0.02890109099 | AU137: 0.819123056 | AV137: 0.1931815053
A138: 108 | B138: -1 | C138: -1 | D138: -1 | E138: -1 | F138: -1 | G138: -1 | H138: -1 | O138: 108 | P138: RCS4-RA4R-60 | Q138: - - - | AS138: 107 | AT138: 0.0291737428 | AU138: 0.8346511097 | AV138: 0.1983438216
A139: 109 | B139: -1 | C139: -1 | D139: -1 | E139: -1 | F139: -1 | G139: -1 | H139: -1 | O139: 109 | P139: RCS4-RA6R-100 | Q139: - - - | AS139: 108 | AT139: 0.0294463946 | AU139: 0.8503249667 | AV139: 0.2035911736
A140: 110 | B140: -1 | C140: -1 | D140: -1 | E140: -1 | F140: -1 | G140: -1 | H140: -1 | O140: 110 | P140: RCS4-RA7R-200 | Q140: - - - | AS140: 109 | AT140: 0.0297190464 | AU140: 0.866144627 | AV140: 0.2089240562
A141: 111 | B141: -1 | C141: -1 | D141: -1 | E141: -1 | F141: -1 | G141: -1 | H141: -1 | O141: 111 | P141: RCS4-RA8R-400 | Q141: - - - | AS141: 110 | AT141: 0.0299916982 | AU141: 0.8821100906 | AV141: 0.2143429604
A142: 112 | B142: -1 | C142: -1 | D142: -1 | E142: -1 | F142: -1 | G142: -1 | H142: -1 | O142: 112 | P142: RCS4-SA4R-60 | Q142: - - - | AS142: 111 | AT142: 0.03026435 | AU142: 0.8982213575 | AV142: 0.2198483734
A143: 113 | B143: -1 | C143: -1 | D143: -1 | E143: -1 | F143: -1 | G143: -1 | H143: -1 | O143: 113 | P143: RCS4-SA6R-100 | Q143: - - - | AS143: 112 | AT143: 0.03053700181 | AU143: 0.9144784278 | AV143: 0.225440778
A144: 114 | B144: -1 | C144: -1 | D144: -1 | E144: -1 | F144: -1 | G144: -1 | H144: -1 | O144: 114 | P144: RCS4-SA7R-200 | Q144: - - - | AS144: 113 | AT144: 0.03080965361 | AU144: 0.9308813014 | AV144: 0.2311206533
A145: 115 | B145: -1 | C145: -1 | D145: -1 | E145: -1 | F145: -1 | G145: -1 | H145: -1 | O145: 115 | P145: RCS4-SA8R-400 | Q145: - - - | AS145: 114 | AT145: 0.03108230541 | AU145: 0.9474299783 | AV145: 0.2368884747
A146: 116 | B146: -1 | C146: -1 | D146: -1 | E146: -1 | F146: -1 | G146: -1 | H146: -1 | O146: 116 | P146: RCS4-WSA10R-60 | Q146: - - - | AS146: 115 | AT146: 0.03135495721 | AU146: 0.9641244585 | AV146: 0.2427447133
A147: 117 | B147: -1 | C147: -1 | D147: -1 | E147: -1 | F147: -1 | G147: -1 | H147: -1 | O147: 117 | P147: RCS4-WSA12R-100 | Q147: - - - | AS147: 116 | AT147: 0.03162760901 | AU147: 0.9809647421 | AV147: 0.2486898367
A148: 118 | B148: -1 | C148: -1 | D148: -1 | E148: -1 | F148: -1 | G148: -1 | H148: -1 | O148: 118 | P148: RCS4-WSA14R-200 | Q148: - - - | AS148: 117 | AT148: 0.03190026081 | AU148: 0.9979508289 | AV148: 0.2547243085
A149: 119 | B149: -1 | C149: -1 | D149: -1 | E149: -1 | F149: -1 | G149: -1 | H149: -1 | O149: 119 | P149: RCS4-WSA16R-400 | Q149: - - - | AS149: 118 | AT149: 0.03217291262 | AU149: 1.015082719 | AV149: 0.2608485887
A150: 120 | B150: -1 | C150: -1 | D150: -1 | E150: -1 | F150: -1 | G150: -1 | H150: -1 | O150: 120 | P150: RCS4-TA4R(SB)-60 | Q150: - - - | AS150: 119 | AT150: 0.03244556442 | AU150: 1.032360413 | AV150: 0.2670631334
A151: 121 | B151: -1 | C151: -1 | D151: -1 | E151: -1 | F151: -1 | G151: -1 | H151: -1 | O151: 121 | P151: RCS4-TA6R(SB)-100 | Q151: - - - | AS151: 120 | AT151: 0.03271821622 | AU151: 1.049783909 | AV151: 0.2733683949
A152: 122 | B152: -1 | C152: -1 | D152: -1 | E152: -1 | F152: -1 | G152: -1 | H152: -1 | O152: 122 | P152: RCS4-TA7R(SB)-200 | Q152: - - - | AS152: 121 | AT152: 0.03299086802 | AU152: 1.06735321 | AV152: 0.2797648222
A153: 123 | B153: -1 | C153: -1 | D153: -1 | E153: -1 | F153: -1 | G153: -1 | H153: -1 | O153: 123 | P153: RCS4-TA4R(DB)-60 | Q153: - - - | AS153: 122 | AT153: 0.03326351982 | AU153: 1.085068313 | AV153: 0.2862528601
A154: 124 | B154: -1 | C154: -1 | D154: -1 | E154: -1 | F154: -1 | G154: -1 | H154: -1 | O154: 124 | P154: RCS4-TA6R(DB)-100 | Q154: - - - | AS154: 123 | AT154: 0.03353617163 | AU154: 1.10292922 | AV154: 0.2928329503
A155: 125 | B155: -1 | C155: -1 | D155: -1 | E155: -1 | F155: -1 | G155: -1 | H155: -1 | O155: 125 | P155: RCS4-TA7R(DB)-200 | Q155: - - - | AS155: 124 | AT155: 0.03380882343 | AU155: 1.12093593 | AV155: 0.2995055306
A156: 126 | B156: -1 | C156: -1 | D156: -1 | E156: -1 | F156: -1 | G156: -1 | H156: -1 | O156: 126 | P156: RCS4-RRA4R-60 | Q156: - - - | AS156: 125 | AT156: 0.03408147523 | AU156: 1.139088443 | AV156: 0.3062710353
A157: 127 | B157: -1 | C157: -1 | D157: -1 | E157: -1 | F157: -1 | G157: -1 | H157: -1 | O157: 127 | P157: RCS4-RRA6R-100 | Q157: - - - | AS157: 126 | AT157: 0.03435412703 | AU157: 1.15738676 | AV157: 0.3131298951
A158: 128 | B158: -1 | C158: -1 | D158: -1 | E158: -1 | F158: -1 | G158: -1 | H158: -1 | O158: 128 | P158: RCS4-RRA7R-200 | Q158: - - - | AS158: 127 | AT158: 0.03462677883 | AU158: 1.17583088 | AV158: 0.3200825374
A159: =A158+1 -> 129 | B159: -1 | C159: -1 | D159: -1 | E159: -1 | F159: -1 | G159: -1 | H159: -1 | O159: 129 | P159: RCS4-RRA8R-400 | Q159: - - - | AS159: 128 | AT159: =$AP$18/$N$7*AS159 -> 0.03489943063 | AU159: 1.194420804 | AV159: 0.3271293858
A160: 130 | B160: -1 | C160: -1 | D160: -1 | E160: -1 | F160: -1 | G160: -1 | H160: -1 | O160: =O159+1 -> 130 | P160: RCS4-WRA10R-60 | Q160: - - - | AS160: 129 | AT160: 0.03517208244 | AU160: =IF(($N$4*AT160^2/2)<=$AP$13,($N$4*AT160^2/2), IF(($AP$13+$N$6*(AT160-$AP$12))<=$AP$17, ($AP$13+$N$6*(AT160-$AP$12)), IF(AU159<$D$14, ($AP$17+($N$6-$N$5*(AT160-$AP$16)/2)*(AT160-$AP$16)), $D$14))) -> 1.21315653 | AV160: 0.3342708608
A161: 131 | B161: -1 | C161: -1 | D161: -1 | E161: -1 | F161: -1 | G161: -1 | H161: -1 | O161: 131 | P161: RCS4-WRA12R-100 | Q161: - - - | AS161: 130 | AT161: 0.03544473424 | AU161: 1.23203806 | AV161: =( $AP$6*AU161 + $AP$7*AU160 + $AP$9*AV160 )/$AP$8 -> 0.3415073791
A162: 132 | B162: -1 | C162: -1 | D162: -1 | E162: -1 | F162: -1 | G162: -1 | H162: -1 | O162: 132 | P162: RCS4-WRA14R-200 | Q162: - - - | AS162: 131 | AT162: 0.03571738604 | AU162: 1.251065394 | AV162: 0.3488393544
A163: 133 | B163: -1 | C163: -1 | D163: -1 | E163: -1 | F163: -1 | G163: -1 | H163: -1 | O163: 133 | P163: RCS4-WRA16R-400 | Q163: - - - | AS163: 132 | AT163: 0.03599003784 | AU163: 1.27023853 | AV163: 0.3562671967
A164: 134 | B164: -1 | C164: -1 | D164: -1 | E164: -1 | F164: -1 | G164: -1 | H164: -1 | O164: 134 | P164: ISB-WXM-750 | Q164: - - - | AS164: 133 | AT164: 0.03626268964 | AU164: 1.28955747 | AV164: 0.3637913128
A165: 135 | B165: -1 | C165: -1 | D165: -1 | E165: -1 | F165: -1 | G165: -1 | H165: -1 | O165: 135 | P165: ISPB-WXM-750-HLA | Q165: - - - | AS165: 134 | AT165: 0.03653534145 | AU165: 1.309022214 | AV165: 0.3714121062
A166: 136 | B166: -1 | C166: -1 | D166: -1 | E166: -1 | F166: -1 | G166: -1 | H166: -1 | O166: 136 | P166: ISB-WXMX-750 | Q166: - - - | AS166: 135 | AT166: 0.03680799325 | AU166: 1.32863276 | AV166: 0.3791299772
A167: 137 | B167: -1 | C167: -1 | D167: -1 | E167: -1 | F167: -1 | G167: -1 | H167: -1 | O167: 137 | P167: ISB-WXM-750-W | Q167: - - - | AS167: 136 | AT167: 0.03708064505 | AU167: 1.34838911 | AV167: 0.3869453226
A168: 138 | B168: -1 | C168: -1 | D168: -1 | E168: -1 | F168: -1 | G168: -1 | H168: -1 | O168: 138 | P168: ISPB-WXM-750-HLA-W | Q168: - - - | AS168: 137 | AT168: 0.03735329685 | AU168: 1.368291264 | AV168: 0.3948585361
A169: 139 | B169: -1 | C169: -1 | D169: -1 | E169: -1 | F169: -1 | G169: -1 | H169: -1 | O169: 139 | P169: ISB-WXMX-750-W | Q169: - - - | AS169: 138 | AT169: 0.03762594865 | AU169: 1.38833922 | AV169: 0.4028700082
A170: 140 | B170: -1 | C170: -1 | D170: -1 | E170: -1 | F170: -1 | G170: -1 | H170: -1 | O170: 140 | P170: EC-S10L | Q170: - - - | AS170: 139 | AT170: 0.03789860045 | AU170: 1.40853298 | AV170: 0.4109801263
A171: 141 | B171: -1 | C171: -1 | D171: -1 | E171: -1 | F171: -1 | G171: -1 | H171: -1 | O171: 141 | P171: EC-S10M | Q171: - - - | AS171: 140 | AT171: 0.03817125226 | AU171: 1.428872543 | AV171: 0.4191892745
A172: 142 | B172: -1 | C172: -1 | D172: -1 | E172: -1 | F172: -1 | G172: -1 | H172: -1 | O172: 142 | P172: EC-S10H | Q172: - - - | AS172: 141 | AT172: 0.03844390406 | AU172: 1.44935791 | AV172: 0.4274978338
A173: 143 | B173: -1 | C173: -1 | D173: -1 | E173: -1 | F173: -1 | G173: -1 | H173: -1 | O173: 143 | P173: EC-S10S | Q173: - - - | AS173: 142 | AT173: 0.03871655586 | AU173: 1.46998908 | AV173: 0.4359061822
A174: 144 | B174: -1 | C174: -1 | D174: -1 | E174: -1 | F174: -1 | G174: -1 | H174: -1 | O174: 144 | P174: EC-S10XL | Q174: - - - | AS174: 143 | AT174: 0.03898920766 | AU174: 1.490766053 | AV174: 0.4444146944
A175: 145 | B175: -1 | C175: -1 | D175: -1 | E175: -1 | F175: -1 | G175: -1 | H175: -1 | O175: 145 | P175: EC-S10XM | Q175: - - - | AS175: 144 | AT175: 0.03926185946 | AU175: 1.51168883 | AV175: 0.4530237423
A176: 146 | B176: -1 | C176: -1 | D176: -1 | E176: -1 | F176: -1 | G176: -1 | H176: -1 | O176: 146 | P176: EC-S10XH | Q176: - - - | AS176: 145 | AT176: 0.03953451127 | AU176: 1.532757409 | AV176: 0.4617336946
A177: 147 | B177: -1 | C177: -1 | D177: -1 | E177: -1 | F177: -1 | G177: -1 | H177: -1 | O177: 147 | P177: EC-S10XS | Q177: - - - | AS177: 146 | AT177: 0.03980716307 | AU177: 1.553971793 | AV177: 0.4705449172
A178: 148 | B178: -1 | C178: -1 | D178: -1 | E178: -1 | F178: -1 | G178: -1 | H178: -1 | O178: 148 | P178: EC-S13L | Q178: - - - | AS178: 147 | AT178: 0.04007981487 | AU178: 1.575331979 | AV178: 0.4794577727
A179: 149 | B179: -1 | C179: -1 | D179: -1 | E179: -1 | F179: -1 | G179: -1 | H179: -1 | O179: 149 | P179: EC-S13M | Q179: - - - | AS179: 148 | AT179: 0.04035246667 | AU179: 1.596837969 | AV179: 0.488472621
A180: 150 | B180: -1 | C180: -1 | D180: -1 | E180: -1 | F180: -1 | G180: -1 | H180: -1 | O180: 150 | P180: EC-S13H | Q180: - - - | AS180: 149 | AT180: 0.04062511847 | AU180: 1.618489762 | AV180: 0.4975898189
A181: 151 | B181: -1 | C181: -1 | D181: -1 | E181: -1 | F181: -1 | G181: -1 | H181: -1 | O181: 151 | P181: EC-S13S | Q181: - - - | AS181: 150 | AT181: 0.04089777027 | AU181: 1.640287359 | AV181: 0.5068097206
A182: 152 | B182: -1 | C182: -1 | D182: -1 | E182: -1 | F182: -1 | G182: -1 | H182: -1 | O182: 152 | P182: EC-S13XL | Q182: - - - | AS182: 151 | AT182: 0.04117042208 | AU182: 1.662230758 | AV182: 0.516132677
A183: 153 | B183: -1 | C183: -1 | D183: -1 | E183: -1 | F183: -1 | G183: -1 | H183: -1 | O183: 153 | P183: EC-S13XM | Q183: - - - | AS183: =AS182+1 -> 152 | AT183: 0.04144307388 | AU183: 1.684319961 | AV183: 0.5255590364
A184: 154 | B184: -1 | C184: -1 | D184: -1 | E184: -1 | F184: -1 | G184: -1 | H184: -1 | O184: 154 | P184: EC-S13XH | Q184: - - - | AS184: 153 | AT184: 0.04171572568 | AU184: 1.706554968 | AV184: 0.5350891442
A185: 155 | B185: -1 | C185: -1 | D185: -1 | E185: -1 | F185: -1 | G185: -1 | H185: -1 | O185: 155 | P185: EC-S13XS | Q185: - - - | AS185: 154 | AT185: 0.04198837748 | AU185: 1.728935778 | AV185: 0.544723343
A186: 156 | B186: -1 | C186: -1 | D186: -1 | E186: -1 | F186: -1 | G186: -1 | H186: -1 | O186: 156 | P186: EC-S15L | Q186: - - - | AS186: 155 | AT186: 0.04226102928 | AU186: 1.751462391 | AV186: 0.5544619727
A187: 157 | B187: -1 | C187: -1 | D187: -1 | E187: -1 | F187: -1 | G187: -1 | H187: -1 | O187: 157 | P187: EC-S15M | Q187: - - - | AS187: 156 | AT187: 0.04253368109 | AU187: 1.774134807 | AV187: 0.5643053701
A188: 158 | B188: -1 | C188: -1 | D188: -1 | E188: -1 | F188: -1 | G188: -1 | H188: -1 | O188: 158 | P188: EC-S15H | Q188: - - - | AS188: 157 | AT188: 0.04280633289 | AU188: 1.796953027 | AV188: 0.5742538697
A189: 159 | B189: -1 | C189: -1 | D189: -1 | E189: -1 | F189: -1 | G189: -1 | H189: -1 | O189: 159 | P189: EC-S15XL | Q189: - - - | AS189: 158 | AT189: 0.04307898469 | AU189: 1.81991705 | AV189: 0.5843078029
A190: 160 | B190: -1 | C190: -1 | D190: -1 | E190: -1 | F190: -1 | G190: -1 | H190: -1 | O190: 160 | P190: EC-S15XM | Q190: - - - | AS190: 159 | AT190: 0.04335163649 | AU190: 1.843026876 | AV190: 0.5944674987
A191: 161 | B191: -1 | C191: -1 | D191: -1 | E191: -1 | F191: -1 | G191: -1 | H191: -1 | O191: 161 | P191: EC-S15XH | Q191: - - - | AS191: 160 | AT191: 0.04362428829 | AU191: 1.866282506 | AV191: 0.6047332832
A192: 162 | B192: -1 | C192: -1 | D192: -1 | E192: -1 | F192: -1 | G192: -1 | H192: -1 | O192: 162 | P192: EC-S10L-W | Q192: - - - | AS192: 161 | AT192: 0.0438969401 | AU192: 1.889683939 | AV192: 0.6151054799
A193: 163 | B193: -1 | C193: -1 | D193: -1 | E193: -1 | F193: -1 | G193: -1 | H193: -1 | O193: 163 | P193: EC-S10M-W | Q193: - - - | AS193: 162 | AT193: 0.0441695919 | AU193: 1.913231175 | AV193: 0.6255844098
A194: 164 | B194: -1 | C194: -1 | D194: -1 | E194: -1 | F194: -1 | G194: -1 | H194: -1 | O194: 164 | P194: EC-S10H-W | Q194: - - - | AS194: 163 | AT194: 0.0444422437 | AU194: 1.936924215 | AV194: 0.636170391
A195: 165 | B195: -1 | C195: -1 | D195: -1 | E195: -1 | F195: -1 | G195: -1 | H195: -1 | O195: 165 | P195: EC-S10S-W | Q195: - - - | AS195: 164 | AT195: 0.0447148955 | AU195: 1.960763058 | AV195: 0.6468637394
A196: 166 | B196: -1 | C196: -1 | D196: -1 | E196: -1 | F196: -1 | G196: -1 | H196: -1 | O196: 166 | P196: EC-S10XL-W | Q196: - - - | AS196: 165 | AT196: 0.0449875473 | AU196: 1.984747704 | AV196: 0.6576647679
A197: 167 | B197: -1 | C197: -1 | D197: -1 | E197: -1 | F197: -1 | G197: -1 | H197: -1 | O197: 167 | P197: EC-S10XM-W | Q197: - - - | AS197: 166 | AT197: 0.0452601991 | AU197: 2.008878153 | AV197: 0.6685737873
A198: 168 | B198: -1 | C198: -1 | D198: -1 | E198: -1 | F198: -1 | G198: -1 | H198: -1 | O198: 168 | P198: EC-S10XH-W | Q198: - - - | AS198: 167 | AT198: 0.04553285091 | AU198: 2.033154406 | AV198: 0.6795911054
A199: 169 | B199: -1 | C199: -1 | D199: -1 | E199: -1 | F199: -1 | G199: -1 | H199: -1 | O199: 169 | P199: EC-S10XS-W | Q199: - - - | AS199: 168 | AT199: 0.04580550271 | AU199: 2.057576463 | AV199: 0.6907170278
A200: 170 | B200: -1 | C200: -1 | D200: -1 | E200: -1 | F200: -1 | G200: -1 | H200: -1 | O200: 170 | P200: EC-S13L-W | Q200: - - - | AS200: 169 | AT200: 0.04607815451 | AU200: 2.082144322 | AV200: 0.7019518575
A201: 171 | B201: -1 | C201: -1 | D201: -1 | E201: -1 | F201: -1 | G201: -1 | H201: -1 | O201: 171 | P201: EC-S13M-W | Q201: - - - | AS201: 170 | AT201: 0.04635080631 | AU201: 2.106857985 | AV201: 0.7132958952
A202: 172 | B202: -1 | C202: -1 | D202: -1 | E202: -1 | F202: -1 | G202: -1 | H202: -1 | O202: 172 | P202: EC-S13H-W | Q202: - - - | AS202: 171 | AT202: 0.04662345811 | AU202: 2.131717451 | AV202: 0.7247494388
A203: 173 | B203: -1 | C203: -1 | D203: -1 | E203: -1 | F203: -1 | G203: -1 | H203: -1 | O203: 173 | P203: EC-S13S-W | Q203: - - - | AS203: 172 | AT203: 0.04689610992 | AU203: 2.156722721 | AV203: 0.7363127842
... 922 more rows

Sheet DataSerch (hidden)
A1: 選択型式 | B1: メカ機種データレコード | M1: $232 | N1: ：「メカ機種データ」範囲検索 | R1: $232 | S1: ➡➡➡ | T1: $232
A2: =CycleTime!C6 -> ISB-SXM-60 | B2: № | C2: =ModelData!$B$2 -> ｱｸﾁｭｴｰﾀ型式 | H2: =ModelData!$C$2 -> 最小ｽﾄﾛｰｸ | I2: =ModelData!$D$2 -> 最大ｽﾄﾛｰｸ | J2: =ModelData!$E$2 -> 動作種別 | N2: ：「モータ機種データ」範囲検索 | S2: ➡➡➡
B3: =MATCH(A2,ModelData!$B$4:$B$232,0) -> 1 | C3: =LOOKUP(B3,ModelData!$A$4:$A$232,ModelData!$B$4:$B$232) -> ISB-SXM-60 | H3: =LOOKUP(B3,ModelData!$A$4:$A$232,ModelData!$C$4:$C$232) -> 100 | I3: =LOOKUP(B3,ModelData!$A$4:$A$232,ModelData!$D$4:$D$232) -> 900 | J3: =LOOKUP(B3,ModelData!$A$4:$A$232,ModelData!$E$4:$E$232) -> 0 | M3: $558 | N3: ：「リードデータ」範囲検索 | R3: $558 | S3: ➡➡➡ | T3: $558
A4: リード | E4: [kg] | F4: [mm] | G4: [mm] | H4: [mm] | I4: [mm] | J4: 0/1 | K4: [K] | M4: $3798 | N4: ：「ストロークデータ」範囲検索 | R4: $3798 | S4: ➡➡➡ | T4: $3798
A5: =CycleTime!C8 -> 4 | H5: =H3 -> 100 | I5: =I3 -> 900 | J5: =J3 -> 0 | M5: $3649 | N5: ：「搬送負荷データ」範囲検索 | R5: $3649 | S5: ➡➡➡ | T5: $3649
M6: $3751 | N6: ：「加減速・速度データ」範囲検索 | R6: $3751 | S6: ➡➡➡ | T6: $3751
A7: ストローク | B7: モータ機種レコード
A8: =CycleTime!C10 -> 100
A10: 設置姿勢 | D10: [Nm/A] | E10: [A] | F10: [kgm^2] | G10: [Nm] | H10: [Nm] | I10: [rad/s] | J10: [rad/s] | K10: [rad/s] | L10: [Nm/(rad/s)] | M10: [K] | N10: [K] | O10: [s]
A11: =IF(CycleTime!C12=CycleTime!AE20,0,1) -> 0
A13: 搬送負荷質量 | B13: リレーション | F13: リードデータレコード | I13: =LOOKUP(C15,LeadData!$A$4:$A$558,LeadData!$J$4:$J$558) -> 0.1
A14: =CycleTime!B31 -> 30 | C14: ﾘｰﾄﾞ№ | D14: ｽﾄﾛｰｸ№ | E14: 負荷№ | F14: =LeadData!$B$2 -> ﾘｰﾄﾞ長 | H14: =LeadData!$C$2 -> 水平定格加速度 | I14: =LeadData!$D$2 -> 垂直定格加速度 | J14: =LeadData!$E$2 -> 水平最大加速度 | K14: =LeadData!$F$2 -> 垂直最大加速度 | O14: =LeadData!$G$2 -> ｷﾞｱ比分子 | P14: =LeadData!$H$2 -> ｷﾞｱ比分母 | R14: =LeadData!$I$2 -> ｽﾄﾛｰｸ刻み | S14: =LeadData!$J$2 -> 位置決め幅 初期値
B15: =ModelData!$F$2 -> リンク[0] | C15: =LOOKUP(B3,ModelData!$A$4:$A$232,ModelData!$F$4:$F$232) -> 1 | D15: =LOOKUP(B3,ModelData!$A$4:$A$232,ModelData!$G$4:$G$232) -> 1 | E15: =LOOKUP(B3,ModelData!$A$4:$A$232,ModelData!$H$4:$H$232) -> 1 | F15: =LOOKUP(C15,LeadData!$A$4:$A$558,LeadData!$B$4:$B$558) -> 4000 | H15: =LOOKUP(C15,LeadData!$A$4:$A$558,LeadData!$C$4:$C$558) -> 1961330 | I15: =LOOKUP(C15,LeadData!$A$4:$A$558,LeadData!$D$4:$D$558) -> 1961330 | J15: =LOOKUP(C15,LeadData!$A$4:$A$558,LeadData!$E$4:$E$558) -> 4903325 | K15: =LOOKUP(C15,LeadData!$A$4:$A$558,LeadData!$F$4:$F$558) -> 3922660 | O15: =LOOKUP(C15,LeadData!$A$4:$A$558,LeadData!$G$4:$G$558) -> 1 | P15: =LOOKUP(C15,LeadData!$A$4:$A$558,LeadData!$H$4:$H$558) -> 1 | R15: =LOOKUP(C15,LeadData!$A$4:$A$558,LeadData!$I$4:$I$558) -> 50 | S15: =LOOKUP(C15,LeadData!$A$4:$A$558,LeadData!$J$4:$J$558) -> 0.1
B16: =ModelData!$I$2 -> リンク[1] | C16: =LOOKUP(B3,ModelData!$A$4:$A$232,ModelData!$I$4:$I$232) -> 2 | D16: =LOOKUP(B3,ModelData!$A$4:$A$232,ModelData!$J$4:$J$232) -> 5 | E16: =LOOKUP(B3,ModelData!$A$4:$A$232,ModelData!$K$4:$K$232) -> 8 | F16: =LOOKUP(C16,LeadData!$A$4:$A$558,LeadData!$B$4:$B$558) -> 8000 | H16: =LOOKUP(C16,LeadData!$A$4:$A$558,LeadData!$C$4:$C$558) -> 3922660 | I16: =LOOKUP(C16,LeadData!$A$4:$A$558,LeadData!$D$4:$D$558) -> 3922660 | J16: =LOOKUP(C16,LeadData!$A$4:$A$558,LeadData!$E$4:$E$558) -> 6864655 | K16: =LOOKUP(C16,LeadData!$A$4:$A$558,LeadData!$F$4:$F$558) -> 5883990 | O16: =LOOKUP(C16,LeadData!$A$4:$A$558,LeadData!$G$4:$G$558) -> 1 | P16: =LOOKUP(C16,LeadData!$A$4:$A$558,LeadData!$H$4:$H$558) -> 1 | R16: =LOOKUP(C16,LeadData!$A$4:$A$558,LeadData!$I$4:$I$558) -> 50 | S16: =LOOKUP(C16,LeadData!$A$4:$A$558,LeadData!$J$4:$J$558) -> 0.1
B17: =ModelData!$L$2 -> リンク[2] | C17: =LOOKUP(B3,ModelData!$A$4:$A$232,ModelData!$L$4:$L$232) -> 3 | D17: =LOOKUP(B3,ModelData!$A$4:$A$232,ModelData!$M$4:$M$232) -> 9 | E17: =LOOKUP(B3,ModelData!$A$4:$A$232,ModelData!$N$4:$N$232) -> 15 | F17: =LOOKUP(C17,LeadData!$A$4:$A$558,LeadData!$B$4:$B$558) -> 16000 | H17: =LOOKUP(C17,LeadData!$A$4:$A$558,LeadData!$C$4:$C$558) -> 3922660 | I17: =LOOKUP(C17,LeadData!$A$4:$A$558,LeadData!$D$4:$D$558) -> 3922660 | J17: =LOOKUP(C17,LeadData!$A$4:$A$558,LeadData!$E$4:$E$558) -> 11767980 | K17: =LOOKUP(C17,LeadData!$A$4:$A$558,LeadData!$F$4:$F$558) -> 7845320 | O17: =LOOKUP(C17,LeadData!$A$4:$A$558,LeadData!$G$4:$G$558) -> 1 | P17: =LOOKUP(C17,LeadData!$A$4:$A$558,LeadData!$H$4:$H$558) -> 1 | R17: =LOOKUP(C17,LeadData!$A$4:$A$558,LeadData!$I$4:$I$558) -> 50 | S17: =LOOKUP(C17,LeadData!$A$4:$A$558,LeadData!$J$4:$J$558) -> 0.1
B18: =ModelData!$O$2 -> リンク[3] | C18: =LOOKUP(B3,ModelData!$A$4:$A$232,ModelData!$O$4:$O$232) -> -1 | D18: =LOOKUP(B3,ModelData!$A$4:$A$232,ModelData!$P$4:$P$232) -> -1 | E18: =LOOKUP(B3,ModelData!$A$4:$A$232,ModelData!$Q$4:$Q$232) -> -1 | F18: =LOOKUP(C18,LeadData!$A$4:$A$558,LeadData!$B$4:$B$558) ->  | H18: =LOOKUP(C18,LeadData!$A$4:$A$558,LeadData!$C$4:$C$558) ->  | I18: =LOOKUP(C18,LeadData!$A$4:$A$558,LeadData!$D$4:$D$558) ->  | J18: =LOOKUP(C18,LeadData!$A$4:$A$558,LeadData!$E$4:$E$558) ->  | K18: =LOOKUP(C18,LeadData!$A$4:$A$558,LeadData!$F$4:$F$558) ->  | O18: =LOOKUP(C18,LeadData!$A$4:$A$558,LeadData!$G$4:$G$558) ->  | P18: =LOOKUP(C18,LeadData!$A$4:$A$558,LeadData!$H$4:$H$558) ->  | R18: =LOOKUP(C18,LeadData!$A$4:$A$558,LeadData!$I$4:$I$558) ->  | S18: =LOOKUP(C18,LeadData!$A$4:$A$558,LeadData!$J$4:$J$558) -> 
B19: =ModelData!$R$2 -> リンク[4] | C19: =LOOKUP(B3,ModelData!$A$4:$A$232,ModelData!$R$4:$R$232) -> -1 | D19: =LOOKUP(B3,ModelData!$A$4:$A$232,ModelData!$S$4:$S$232) -> -1 | E19: =LOOKUP(B3,ModelData!$A$4:$A$232,ModelData!$T$4:$T$232) -> -1 | F19: =LOOKUP(C19,LeadData!$A$4:$A$558,LeadData!$B$4:$B$558) ->  | H19: =LOOKUP(C19,LeadData!$A$4:$A$558,LeadData!$C$4:$C$558) ->  | I19: =LOOKUP(C19,LeadData!$A$4:$A$558,LeadData!$D$4:$D$558) ->  | J19: =LOOKUP(C19,LeadData!$A$4:$A$558,LeadData!$E$4:$E$558) ->  | K19: =LOOKUP(C19,LeadData!$A$4:$A$558,LeadData!$F$4:$F$558) ->  | O19: =LOOKUP(C19,LeadData!$A$4:$A$558,LeadData!$G$4:$G$558) ->  | P19: =LOOKUP(C19,LeadData!$A$4:$A$558,LeadData!$H$4:$H$558) ->  | R19: =LOOKUP(C19,LeadData!$A$4:$A$558,LeadData!$I$4:$I$558) ->  | S19: =LOOKUP(C19,LeadData!$A$4:$A$558,LeadData!$J$4:$J$558) -> 
B20: =ModelData!$U$2 -> リンク[5] | C20: =LOOKUP(B3,ModelData!$A$4:$A$232,ModelData!$U$4:$U$232) -> -1 | D20: =LOOKUP(B3,ModelData!$A$4:$A$232,ModelData!$V$4:$V$232) -> -1 | E20: =LOOKUP(B3,ModelData!$A$4:$A$232,ModelData!$W$4:$W$232) -> -1 | F20: =LOOKUP(C20,LeadData!$A$4:$A$558,LeadData!$B$4:$B$558) ->  | H20: =LOOKUP(C20,LeadData!$A$4:$A$558,LeadData!$C$4:$C$558) ->  | I20: =LOOKUP(C20,LeadData!$A$4:$A$558,LeadData!$D$4:$D$558) ->  | J20: =LOOKUP(C20,LeadData!$A$4:$A$558,LeadData!$E$4:$E$558) ->  | K20: =LOOKUP(C20,LeadData!$A$4:$A$558,LeadData!$F$4:$F$558) ->  | O20: =LOOKUP(C20,LeadData!$A$4:$A$558,LeadData!$G$4:$G$558) ->  | P20: =LOOKUP(C20,LeadData!$A$4:$A$558,LeadData!$H$4:$H$558) ->  | R20: =LOOKUP(C20,LeadData!$A$4:$A$558,LeadData!$I$4:$I$558) ->  | S20: =LOOKUP(C20,LeadData!$A$4:$A$558,LeadData!$J$4:$J$558) -> 
B21: =ModelData!$X$2 -> リンク[6] | C21: =LOOKUP(B3,ModelData!$A$4:$A$232,ModelData!$X$4:$X$232) -> -1 | D21: =LOOKUP(B3,ModelData!$A$4:$A$232,ModelData!$Y$4:$Y$232) -> -1 | E21: =LOOKUP(B3,ModelData!$A$4:$A$232,ModelData!$Z$4:$Z$232) -> -1 | F21: =LOOKUP(C21,LeadData!$A$4:$A$558,LeadData!$B$4:$B$558) ->  | H21: =LOOKUP(C21,LeadData!$A$4:$A$558,LeadData!$C$4:$C$558) ->  | I21: =LOOKUP(C21,LeadData!$A$4:$A$558,LeadData!$D$4:$D$558) ->  | J21: =LOOKUP(C21,LeadData!$A$4:$A$558,LeadData!$E$4:$E$558) ->  | K21: =LOOKUP(C21,LeadData!$A$4:$A$558,LeadData!$F$4:$F$558) ->  | O21: =LOOKUP(C21,LeadData!$A$4:$A$558,LeadData!$G$4:$G$558) ->  | P21: =LOOKUP(C21,LeadData!$A$4:$A$558,LeadData!$H$4:$H$558) ->  | R21: =LOOKUP(C21,LeadData!$A$4:$A$558,LeadData!$I$4:$I$558) ->  | S21: =LOOKUP(C21,LeadData!$A$4:$A$558,LeadData!$J$4:$J$558) -> 
B22: =ModelData!$AA$2 -> リンク[7] | C22: =LOOKUP(B3,ModelData!$A$4:$A$232,ModelData!$AA$4:$AA$232) -> -1 | D22: =LOOKUP(B3,ModelData!$A$4:$A$232,ModelData!$AB$4:$AB$232) -> -1 | E22: =LOOKUP(B3,ModelData!$A$4:$A$232,ModelData!$AC$4:$AC$232) -> -1 | F22: =LOOKUP(C22,LeadData!$A$4:$A$558,LeadData!$B$4:$B$558) ->  | H22: =LOOKUP(C22,LeadData!$A$4:$A$558,LeadData!$C$4:$C$558) ->  | I22: =LOOKUP(C22,LeadData!$A$4:$A$558,LeadData!$D$4:$D$558) ->  | J22: =LOOKUP(C22,LeadData!$A$4:$A$558,LeadData!$E$4:$E$558) ->  | K22: =LOOKUP(C22,LeadData!$A$4:$A$558,LeadData!$F$4:$F$558) ->  | O22: =LOOKUP(C22,LeadData!$A$4:$A$558,LeadData!$G$4:$G$558) ->  | P22: =LOOKUP(C22,LeadData!$A$4:$A$558,LeadData!$H$4:$H$558) ->  | R22: =LOOKUP(C22,LeadData!$A$4:$A$558,LeadData!$I$4:$I$558) ->  | S22: =LOOKUP(C22,LeadData!$A$4:$A$558,LeadData!$J$4:$J$558) -> 
B23: リードリストとリレーション | F23: リードデータレコードの物理量変換
B24: ﾘｰﾄﾞﾘｽﾄ | D24: リンク | F24: =LeadData!$B$2 -> ﾘｰﾄﾞ長 | H24: =LeadData!$C$2 -> 水平定格加速度 | I24: =LeadData!$D$2 -> 垂直定格加速度 | J24: =LeadData!$E$2 -> 水平最大加速度 | K24: =LeadData!$F$2 -> 垂直最大加速度 | O24: =LeadData!$G$2 -> ｷﾞｱ比分子 | P24: =LeadData!$H$2 -> ｷﾞｱ比分母 | R24: =LeadData!$I$2 -> ｽﾄﾛｰｸ刻み | S24: =LeadData!$J$2 -> 位置決め幅 初期値
B25: № | C25: ﾃﾞｰﾀ | D25: =D14 -> ｽﾄﾛｰｸ№ | E25: =E14 -> 負荷№ | F25: [mm] | G25: [kgm^2] | H25: [m/s^2] | I25: [m/s^2] | J25: [m/s^2] | K25: [m/s^2] | L25: [Nm] | M25: [Nms] | N25: [Nm] | R25: [mm] | S25: [mm]
B26: 1 | C26: =IF(C15=-1,"- - -",IF(F26<=0,P26/O26,F26)) -> 4 | D26: =D15 -> 1 | E26: 1 | F26: =F15/1000 -> 4 | H26: =H15*0.000001 -> 1.96133 | I26: 1.96133 | J26: 4.903325 | K26: 3.92266 | O26: =O15 -> 1 | P26: =P15 -> 1 | R26: =R15 -> 50 | S26: =S15 -> 0.1
B27: =B26+1 -> 2 | C27: 8 | D27: 5 | E27: 8 | F27: 8 | H27: 3.92266 | I27: 3.92266 | J27: 6.864655 | K27: 5.88399 | O27: =O16 -> 1 | P27: 1 | R27: =R16 -> 50 | S27: 0.1
B28: =B27+1 -> 3 | C28: 16 | D28: 9 | E28: 15 | F28: 16 | H28: 3.92266 | I28: 3.92266 | J28: 11.76798 | K28: 7.84532 | O28: 1 | P28: 1 | R28: 50 | S28: 0.1
B29: 4 | C29: - - - | D29: -1 | E29: -1
B30: 5 | C30: - - - | D30: -1 | E30: -1
B31: 6 | C31: - - - | D31: -1 | E31: -1
B32: 7 | C32: - - - | D32: -1 | E32: -1
B33: 8 | C33: =IF(C22=-1,"- - -",IF(F33<=0,P33/O33,F33)) -> - - - | D33: -1 | E33: -1
B35: リードリスト選択№ | D35: =MATCH(A5,C26:C33,0) -> 1 | E35: ストロークデータレコード | H35: =LOOKUP(C37,StrokeData!$A$4:$A$3798,StrokeData!$M$4:$M$3798) -> ISB-SXM-60-4
B36: № | C36: stﾚｺｰﾄﾞ№ | D36: =StrokeData!$B$2 -> ｽﾄﾛｰｸ長 | E36: =StrokeData!$C$2 -> 有効ｽﾄﾛｰｸ補正 | G36: =StrokeData!$D$2 -> 基準ｹﾞｲﾝ用搬送質量 | H36: =StrokeData!$E$2 -> 水平可搬質量 | I36: =StrokeData!$F$2 -> 垂直可搬質量 | J36: =StrokeData!$G$2 -> 最大速度 | K36: =StrokeData!$H$2 -> 位置ｹﾞｲﾝ | L36: =StrokeData!$I$2 -> FFｹﾞｲﾝ | M36: =StrokeData!$J$2 -> 速度制御帯域 | S36: =StrokeData!$K$2 -> 前ﾃﾞｰﾀ№ | T36: =StrokeData!$L$2 -> 次ﾃﾞｰﾀ№
B37: 1 | C37: =LOOKUP(D35,B26:B33,D26:D33) -> 1 | D37: =LOOKUP(C37,StrokeData!$A$4:$A$3798,StrokeData!$B$4:$B$3798) -> 600 | E37: =LOOKUP(C37,StrokeData!$A$4:$A$3798,StrokeData!$C$4:$C$3798) -> 0 | G37: =LOOKUP(C37,StrokeData!$A$4:$A$3798,StrokeData!$D$4:$D$3798) -> 55000 | H37: =LOOKUP(C37,StrokeData!$A$4:$A$3798,StrokeData!$E$4:$E$3798) -> 55000 | I37: =LOOKUP(C37,StrokeData!$A$4:$A$3798,StrokeData!$F$4:$F$3798) -> 14000 | J37: =LOOKUP(C37,StrokeData!$A$4:$A$3798,StrokeData!$G$4:$G$3798) -> 240 | K37: =LOOKUP(C37,StrokeData!$A$4:$A$3798,StrokeData!$H$4:$H$3798) -> 30 | L37: =LOOKUP(C37,StrokeData!$A$4:$A$3798,StrokeData!$I$4:$I$3798) -> 0 | M37: =LOOKUP(C37,StrokeData!$A$4:$A$3798,StrokeData!$J$4:$J$3798) -> 120 | S37: =LOOKUP(C37,StrokeData!$A$4:$A$3798,StrokeData!$K$4:$K$3798) -> -1 | T37: =LOOKUP(C37,StrokeData!$A$4:$A$3798,StrokeData!$L$4:$L$3798) -> 2
B38: =B37+1 -> 2 | C38: =IF(C37=-1,-1,LOOKUP(C37,StrokeData!$A$4:$A$3798,StrokeData!$L$4:$L$3798)) -> 2 | D38: =LOOKUP(C38,StrokeData!$A$4:$A$3798,StrokeData!$B$4:$B$3798) -> 700 | E38: =LOOKUP(C38,StrokeData!$A$4:$A$3798,StrokeData!$C$4:$C$3798) -> 0 | G38: =LOOKUP(C38,StrokeData!$A$4:$A$3798,StrokeData!$D$4:$D$3798) -> 55000 | H38: =LOOKUP(C38,StrokeData!$A$4:$A$3798,StrokeData!$E$4:$E$3798) -> 55000 | I38: =LOOKUP(C38,StrokeData!$A$4:$A$3798,StrokeData!$F$4:$F$3798) -> 14000 | J38: =LOOKUP(C38,StrokeData!$A$4:$A$3798,StrokeData!$G$4:$G$3798) -> 165 | K38: =LOOKUP(C38,StrokeData!$A$4:$A$3798,StrokeData!$H$4:$H$3798) -> 30 | L38: =LOOKUP(C38,StrokeData!$A$4:$A$3798,StrokeData!$I$4:$I$3798) -> 0 | M38: =LOOKUP(C38,StrokeData!$A$4:$A$3798,StrokeData!$J$4:$J$3798) -> 120 | S38: =LOOKUP(C38,StrokeData!$A$4:$A$3798,StrokeData!$K$4:$K$3798) -> 1 | T38: =LOOKUP(C38,StrokeData!$A$4:$A$3798,StrokeData!$L$4:$L$3798) -> 3
B39: =B38+1 -> 3 | C39: =IF(C38=-1,-1,LOOKUP(C38,StrokeData!$A$4:$A$3798,StrokeData!$L$4:$L$3798)) -> 3 | D39: =LOOKUP(C39,StrokeData!$A$4:$A$3798,StrokeData!$B$4:$B$3798) -> 800 | E39: =LOOKUP(C39,StrokeData!$A$4:$A$3798,StrokeData!$C$4:$C$3798) -> 0 | G39: =LOOKUP(C39,StrokeData!$A$4:$A$3798,StrokeData!$D$4:$D$3798) -> 55000 | H39: =LOOKUP(C39,StrokeData!$A$4:$A$3798,StrokeData!$E$4:$E$3798) -> 55000 | I39: =LOOKUP(C39,StrokeData!$A$4:$A$3798,StrokeData!$F$4:$F$3798) -> 14000 | J39: =LOOKUP(C39,StrokeData!$A$4:$A$3798,StrokeData!$G$4:$G$3798) -> 130 | K39: =LOOKUP(C39,StrokeData!$A$4:$A$3798,StrokeData!$H$4:$H$3798) -> 30 | L39: =LOOKUP(C39,StrokeData!$A$4:$A$3798,StrokeData!$I$4:$I$3798) -> 0 | M39: =LOOKUP(C39,StrokeData!$A$4:$A$3798,StrokeData!$J$4:$J$3798) -> 120 | S39: =LOOKUP(C39,StrokeData!$A$4:$A$3798,StrokeData!$K$4:$K$3798) -> 2 | T39: =LOOKUP(C39,StrokeData!$A$4:$A$3798,StrokeData!$L$4:$L$3798) -> 4
B40: 4 | C40: =IF(C39=-1,-1,LOOKUP(C39,StrokeData!$A$4:$A$3798,StrokeData!$L$4:$L$3798)) -> 4 | D40: =LOOKUP(C40,StrokeData!$A$4:$A$3798,StrokeData!$B$4:$B$3798) -> 900 | E40: =LOOKUP(C40,StrokeData!$A$4:$A$3798,StrokeData!$C$4:$C$3798) -> 0 | G40: =LOOKUP(C40,StrokeData!$A$4:$A$3798,StrokeData!$D$4:$D$3798) -> 55000 | H40: =LOOKUP(C40,StrokeData!$A$4:$A$3798,StrokeData!$E$4:$E$3798) -> 55000 | I40: =LOOKUP(C40,StrokeData!$A$4:$A$3798,StrokeData!$F$4:$F$3798) -> 14000 | J40: =LOOKUP(C40,StrokeData!$A$4:$A$3798,StrokeData!$G$4:$G$3798) -> 100 | K40: =LOOKUP(C40,StrokeData!$A$4:$A$3798,StrokeData!$H$4:$H$3798) -> 30 | L40: =LOOKUP(C40,StrokeData!$A$4:$A$3798,StrokeData!$I$4:$I$3798) -> 0 | M40: =LOOKUP(C40,StrokeData!$A$4:$A$3798,StrokeData!$J$4:$J$3798) -> 120 | S40: =LOOKUP(C40,StrokeData!$A$4:$A$3798,StrokeData!$K$4:$K$3798) -> 3 | T40: =LOOKUP(C40,StrokeData!$A$4:$A$3798,StrokeData!$L$4:$L$3798) -> -1
B41: 5 | C41: =IF(C40=-1,-1,LOOKUP(C40,StrokeData!$A$4:$A$3798,StrokeData!$L$4:$L$3798)) -> -1 | D41: =LOOKUP(C41,StrokeData!$A$4:$A$3798,StrokeData!$B$4:$B$3798) ->  | E41: =LOOKUP(C41,StrokeData!$A$4:$A$3798,StrokeData!$C$4:$C$3798) ->  | G41: =LOOKUP(C41,StrokeData!$A$4:$A$3798,StrokeData!$D$4:$D$3798) ->  | H41: =LOOKUP(C41,StrokeData!$A$4:$A$3798,StrokeData!$E$4:$E$3798) ->  | I41: =LOOKUP(C41,StrokeData!$A$4:$A$3798,StrokeData!$F$4:$F$3798) ->  | J41: =LOOKUP(C41,StrokeData!$A$4:$A$3798,StrokeData!$G$4:$G$3798) ->  | K41: =LOOKUP(C41,StrokeData!$A$4:$A$3798,StrokeData!$H$4:$H$3798) ->  | L41: =LOOKUP(C41,StrokeData!$A$4:$A$3798,StrokeData!$I$4:$I$3798) ->  | M41: =LOOKUP(C41,StrokeData!$A$4:$A$3798,StrokeData!$J$4:$J$3798) ->  | S41: =LOOKUP(C41,StrokeData!$A$4:$A$3798,StrokeData!$K$4:$K$3798) ->  | T41: =LOOKUP(C41,StrokeData!$A$4:$A$3798,StrokeData!$L$4:$L$3798) -> 
B42: 6 | C42: =IF(C41=-1,-1,LOOKUP(C41,StrokeData!$A$4:$A$3798,StrokeData!$L$4:$L$3798)) -> -1 | D42: =LOOKUP(C42,StrokeData!$A$4:$A$3798,StrokeData!$B$4:$B$3798) ->  | E42: =LOOKUP(C42,StrokeData!$A$4:$A$3798,StrokeData!$C$4:$C$3798) ->  | G42: =LOOKUP(C42,StrokeData!$A$4:$A$3798,StrokeData!$D$4:$D$3798) ->  | H42: =LOOKUP(C42,StrokeData!$A$4:$A$3798,StrokeData!$E$4:$E$3798) ->  | I42: =LOOKUP(C42,StrokeData!$A$4:$A$3798,StrokeData!$F$4:$F$3798) ->  | J42: =LOOKUP(C42,StrokeData!$A$4:$A$3798,StrokeData!$G$4:$G$3798) ->  | K42: =LOOKUP(C42,StrokeData!$A$4:$A$3798,StrokeData!$H$4:$H$3798) ->  | L42: =LOOKUP(C42,StrokeData!$A$4:$A$3798,StrokeData!$I$4:$I$3798) ->  | M42: =LOOKUP(C42,StrokeData!$A$4:$A$3798,StrokeData!$J$4:$J$3798) ->  | S42: =LOOKUP(C42,StrokeData!$A$4:$A$3798,StrokeData!$K$4:$K$3798) ->  | T42: =LOOKUP(C42,StrokeData!$A$4:$A$3798,StrokeData!$L$4:$L$3798) -> 
B43: 7 | C43: =IF(C42=-1,-1,LOOKUP(C42,StrokeData!$A$4:$A$3798,StrokeData!$L$4:$L$3798)) -> -1 | D43: =LOOKUP(C43,StrokeData!$A$4:$A$3798,StrokeData!$B$4:$B$3798) ->  | E43: =LOOKUP(C43,StrokeData!$A$4:$A$3798,StrokeData!$C$4:$C$3798) ->  | G43: =LOOKUP(C43,StrokeData!$A$4:$A$3798,StrokeData!$D$4:$D$3798) ->  | H43: =LOOKUP(C43,StrokeData!$A$4:$A$3798,StrokeData!$E$4:$E$3798) ->  | I43: =LOOKUP(C43,StrokeData!$A$4:$A$3798,StrokeData!$F$4:$F$3798) ->  | J43: =LOOKUP(C43,StrokeData!$A$4:$A$3798,StrokeData!$G$4:$G$3798) ->  | K43: =LOOKUP(C43,StrokeData!$A$4:$A$3798,StrokeData!$H$4:$H$3798) ->  | L43: =LOOKUP(C43,StrokeData!$A$4:$A$3798,StrokeData!$I$4:$I$3798) ->  | M43: =LOOKUP(C43,StrokeData!$A$4:$A$3798,StrokeData!$J$4:$J$3798) ->  | S43: =LOOKUP(C43,StrokeData!$A$4:$A$3798,StrokeData!$K$4:$K$3798) ->  | T43: =LOOKUP(C43,StrokeData!$A$4:$A$3798,StrokeData!$L$4:$L$3798) -> 
B44: 8 | C44: =IF(C43=-1,-1,LOOKUP(C43,StrokeData!$A$4:$A$3798,StrokeData!$L$4:$L$3798)) -> -1 | D44: =LOOKUP(C44,StrokeData!$A$4:$A$3798,StrokeData!$B$4:$B$3798) ->  | E44: =LOOKUP(C44,StrokeData!$A$4:$A$3798,StrokeData!$C$4:$C$3798) ->  | G44: =LOOKUP(C44,StrokeData!$A$4:$A$3798,StrokeData!$D$4:$D$3798) ->  | H44: =LOOKUP(C44,StrokeData!$A$4:$A$3798,StrokeData!$E$4:$E$3798) ->  | I44: =LOOKUP(C44,StrokeData!$A$4:$A$3798,StrokeData!$F$4:$F$3798) ->  | J44: =LOOKUP(C44,StrokeData!$A$4:$A$3798,StrokeData!$G$4:$G$3798) ->  | K44: =LOOKUP(C44,StrokeData!$A$4:$A$3798,StrokeData!$H$4:$H$3798) ->  | L44: =LOOKUP(C44,StrokeData!$A$4:$A$3798,StrokeData!$I$4:$I$3798) ->  | M44: =LOOKUP(C44,StrokeData!$A$4:$A$3798,StrokeData!$J$4:$J$3798) ->  | S44: =LOOKUP(C44,StrokeData!$A$4:$A$3798,StrokeData!$K$4:$K$3798) ->  | T44: =LOOKUP(C44,StrokeData!$A$4:$A$3798,StrokeData!$L$4:$L$3798) -> 
B45: 9 | C45: =IF(C44=-1,-1,LOOKUP(C44,StrokeData!$A$4:$A$3798,StrokeData!$L$4:$L$3798)) -> -1 | D45: =LOOKUP(C45,StrokeData!$A$4:$A$3798,StrokeData!$B$4:$B$3798) ->  | E45: =LOOKUP(C45,StrokeData!$A$4:$A$3798,StrokeData!$C$4:$C$3798) ->  | G45: =LOOKUP(C45,StrokeData!$A$4:$A$3798,StrokeData!$D$4:$D$3798) ->  | H45: =LOOKUP(C45,StrokeData!$A$4:$A$3798,StrokeData!$E$4:$E$3798) ->  | I45: =LOOKUP(C45,StrokeData!$A$4:$A$3798,StrokeData!$F$4:$F$3798) ->  | J45: =LOOKUP(C45,StrokeData!$A$4:$A$3798,StrokeData!$G$4:$G$3798) ->  | K45: =LOOKUP(C45,StrokeData!$A$4:$A$3798,StrokeData!$H$4:$H$3798) ->  | L45: =LOOKUP(C45,StrokeData!$A$4:$A$3798,StrokeData!$I$4:$I$3798) ->  | M45: =LOOKUP(C45,StrokeData!$A$4:$A$3798,StrokeData!$J$4:$J$3798) ->  | S45: =LOOKUP(C45,StrokeData!$A$4:$A$3798,StrokeData!$K$4:$K$3798) ->  | T45: =LOOKUP(C45,StrokeData!$A$4:$A$3798,StrokeData!$L$4:$L$3798) -> 
B46: 10 | C46: =IF(C45=-1,-1,LOOKUP(C45,StrokeData!$A$4:$A$3798,StrokeData!$L$4:$L$3798)) -> -1 | D46: =LOOKUP(C46,StrokeData!$A$4:$A$3798,StrokeData!$B$4:$B$3798) ->  | E46: =LOOKUP(C46,StrokeData!$A$4:$A$3798,StrokeData!$C$4:$C$3798) ->  | G46: =LOOKUP(C46,StrokeData!$A$4:$A$3798,StrokeData!$D$4:$D$3798) ->  | H46: =LOOKUP(C46,StrokeData!$A$4:$A$3798,StrokeData!$E$4:$E$3798) ->  | I46: =LOOKUP(C46,StrokeData!$A$4:$A$3798,StrokeData!$F$4:$F$3798) ->  | J46: =LOOKUP(C46,StrokeData!$A$4:$A$3798,StrokeData!$G$4:$G$3798) ->  | K46: =LOOKUP(C46,StrokeData!$A$4:$A$3798,StrokeData!$H$4:$H$3798) ->  | L46: =LOOKUP(C46,StrokeData!$A$4:$A$3798,StrokeData!$I$4:$I$3798) ->  | M46: =LOOKUP(C46,StrokeData!$A$4:$A$3798,StrokeData!$J$4:$J$3798) ->  | S46: =LOOKUP(C46,StrokeData!$A$4:$A$3798,StrokeData!$K$4:$K$3798) ->  | T46: =LOOKUP(C46,StrokeData!$A$4:$A$3798,StrokeData!$L$4:$L$3798) -> 
B47: 11 | C47: =IF(C46=-1,-1,LOOKUP(C46,StrokeData!$A$4:$A$3798,StrokeData!$L$4:$L$3798)) -> -1 | D47: =LOOKUP(C47,StrokeData!$A$4:$A$3798,StrokeData!$B$4:$B$3798) ->  | E47: =LOOKUP(C47,StrokeData!$A$4:$A$3798,StrokeData!$C$4:$C$3798) ->  | G47: =LOOKUP(C47,StrokeData!$A$4:$A$3798,StrokeData!$D$4:$D$3798) ->  | H47: =LOOKUP(C47,StrokeData!$A$4:$A$3798,StrokeData!$E$4:$E$3798) ->  | I47: =LOOKUP(C47,StrokeData!$A$4:$A$3798,StrokeData!$F$4:$F$3798) ->  | J47: =LOOKUP(C47,StrokeData!$A$4:$A$3798,StrokeData!$G$4:$G$3798) ->  | K47: =LOOKUP(C47,StrokeData!$A$4:$A$3798,StrokeData!$H$4:$H$3798) ->  | L47: =LOOKUP(C47,StrokeData!$A$4:$A$3798,StrokeData!$I$4:$I$3798) ->  | M47: =LOOKUP(C47,StrokeData!$A$4:$A$3798,StrokeData!$J$4:$J$3798) ->  | S47: =LOOKUP(C47,StrokeData!$A$4:$A$3798,StrokeData!$K$4:$K$3798) ->  | T47: =LOOKUP(C47,StrokeData!$A$4:$A$3798,StrokeData!$L$4:$L$3798) -> 
B48: 12 | C48: =IF(C47=-1,-1,LOOKUP(C47,StrokeData!$A$4:$A$3798,StrokeData!$L$4:$L$3798)) -> -1 | D48: =LOOKUP(C48,StrokeData!$A$4:$A$3798,StrokeData!$B$4:$B$3798) ->  | E48: =LOOKUP(C48,StrokeData!$A$4:$A$3798,StrokeData!$C$4:$C$3798) ->  | G48: =LOOKUP(C48,StrokeData!$A$4:$A$3798,StrokeData!$D$4:$D$3798) ->  | H48: =LOOKUP(C48,StrokeData!$A$4:$A$3798,StrokeData!$E$4:$E$3798) ->  | I48: =LOOKUP(C48,StrokeData!$A$4:$A$3798,StrokeData!$F$4:$F$3798) ->  | J48: =LOOKUP(C48,StrokeData!$A$4:$A$3798,StrokeData!$G$4:$G$3798) ->  | K48: =LOOKUP(C48,StrokeData!$A$4:$A$3798,StrokeData!$H$4:$H$3798) ->  | L48: =LOOKUP(C48,StrokeData!$A$4:$A$3798,StrokeData!$I$4:$I$3798) ->  | M48: =LOOKUP(C48,StrokeData!$A$4:$A$3798,StrokeData!$J$4:$J$3798) ->  | S48: =LOOKUP(C48,StrokeData!$A$4:$A$3798,StrokeData!$K$4:$K$3798) ->  | T48: =LOOKUP(C48,StrokeData!$A$4:$A$3798,StrokeData!$L$4:$L$3798) -> 
B49: 13 | C49: =IF(C48=-1,-1,LOOKUP(C48,StrokeData!$A$4:$A$3798,StrokeData!$L$4:$L$3798)) -> -1 | D49: =LOOKUP(C49,StrokeData!$A$4:$A$3798,StrokeData!$B$4:$B$3798) ->  | E49: =LOOKUP(C49,StrokeData!$A$4:$A$3798,StrokeData!$C$4:$C$3798) ->  | G49: =LOOKUP(C49,StrokeData!$A$4:$A$3798,StrokeData!$D$4:$D$3798) ->  | H49: =LOOKUP(C49,StrokeData!$A$4:$A$3798,StrokeData!$E$4:$E$3798) ->  | I49: =LOOKUP(C49,StrokeData!$A$4:$A$3798,StrokeData!$F$4:$F$3798) ->  | J49: =LOOKUP(C49,StrokeData!$A$4:$A$3798,StrokeData!$G$4:$G$3798) ->  | K49: =LOOKUP(C49,StrokeData!$A$4:$A$3798,StrokeData!$H$4:$H$3798) ->  | L49: =LOOKUP(C49,StrokeData!$A$4:$A$3798,StrokeData!$I$4:$I$3798) ->  | M49: =LOOKUP(C49,StrokeData!$A$4:$A$3798,StrokeData!$J$4:$J$3798) ->  | S49: =LOOKUP(C49,StrokeData!$A$4:$A$3798,StrokeData!$K$4:$K$3798) ->  | T49: =LOOKUP(C49,StrokeData!$A$4:$A$3798,StrokeData!$L$4:$L$3798) -> 
B50: 14 | C50: =IF(C49=-1,-1,LOOKUP(C49,StrokeData!$A$4:$A$3798,StrokeData!$L$4:$L$3798)) -> -1 | D50: =LOOKUP(C50,StrokeData!$A$4:$A$3798,StrokeData!$B$4:$B$3798) ->  | E50: =LOOKUP(C50,StrokeData!$A$4:$A$3798,StrokeData!$C$4:$C$3798) ->  | G50: =LOOKUP(C50,StrokeData!$A$4:$A$3798,StrokeData!$D$4:$D$3798) ->  | H50: =LOOKUP(C50,StrokeData!$A$4:$A$3798,StrokeData!$E$4:$E$3798) ->  | I50: =LOOKUP(C50,StrokeData!$A$4:$A$3798,StrokeData!$F$4:$F$3798) ->  | J50: =LOOKUP(C50,StrokeData!$A$4:$A$3798,StrokeData!$G$4:$G$3798) ->  | K50: =LOOKUP(C50,StrokeData!$A$4:$A$3798,StrokeData!$H$4:$H$3798) ->  | L50: =LOOKUP(C50,StrokeData!$A$4:$A$3798,StrokeData!$I$4:$I$3798) ->  | M50: =LOOKUP(C50,StrokeData!$A$4:$A$3798,StrokeData!$J$4:$J$3798) ->  | S50: =LOOKUP(C50,StrokeData!$A$4:$A$3798,StrokeData!$K$4:$K$3798) ->  | T50: =LOOKUP(C50,StrokeData!$A$4:$A$3798,StrokeData!$L$4:$L$3798) -> 
B51: 15 | C51: =IF(C50=-1,-1,LOOKUP(C50,StrokeData!$A$4:$A$3798,StrokeData!$L$4:$L$3798)) -> -1 | D51: =LOOKUP(C51,StrokeData!$A$4:$A$3798,StrokeData!$B$4:$B$3798) ->  | E51: =LOOKUP(C51,StrokeData!$A$4:$A$3798,StrokeData!$C$4:$C$3798) ->  | G51: =LOOKUP(C51,StrokeData!$A$4:$A$3798,StrokeData!$D$4:$D$3798) ->  | H51: =LOOKUP(C51,StrokeData!$A$4:$A$3798,StrokeData!$E$4:$E$3798) ->  | I51: =LOOKUP(C51,StrokeData!$A$4:$A$3798,StrokeData!$F$4:$F$3798) ->  | J51: =LOOKUP(C51,StrokeData!$A$4:$A$3798,StrokeData!$G$4:$G$3798) ->  | K51: =LOOKUP(C51,StrokeData!$A$4:$A$3798,StrokeData!$H$4:$H$3798) ->  | L51: =LOOKUP(C51,StrokeData!$A$4:$A$3798,StrokeData!$I$4:$I$3798) ->  | M51: =LOOKUP(C51,StrokeData!$A$4:$A$3798,StrokeData!$J$4:$J$3798) ->  | S51: =LOOKUP(C51,StrokeData!$A$4:$A$3798,StrokeData!$K$4:$K$3798) ->  | T51: =LOOKUP(C51,StrokeData!$A$4:$A$3798,StrokeData!$L$4:$L$3798) -> 
B52: 16 | C52: =IF(C51=-1,-1,LOOKUP(C51,StrokeData!$A$4:$A$3798,StrokeData!$L$4:$L$3798)) -> -1 | D52: =LOOKUP(C52,StrokeData!$A$4:$A$3798,StrokeData!$B$4:$B$3798) ->  | E52: =LOOKUP(C52,StrokeData!$A$4:$A$3798,StrokeData!$C$4:$C$3798) ->  | G52: =LOOKUP(C52,StrokeData!$A$4:$A$3798,StrokeData!$D$4:$D$3798) ->  | H52: =LOOKUP(C52,StrokeData!$A$4:$A$3798,StrokeData!$E$4:$E$3798) ->  | I52: =LOOKUP(C52,StrokeData!$A$4:$A$3798,StrokeData!$F$4:$F$3798) ->  | J52: =LOOKUP(C52,StrokeData!$A$4:$A$3798,StrokeData!$G$4:$G$3798) ->  | K52: =LOOKUP(C52,StrokeData!$A$4:$A$3798,StrokeData!$H$4:$H$3798) ->  | L52: =LOOKUP(C52,StrokeData!$A$4:$A$3798,StrokeData!$I$4:$I$3798) ->  | M52: =LOOKUP(C52,StrokeData!$A$4:$A$3798,StrokeData!$J$4:$J$3798) ->  | S52: =LOOKUP(C52,StrokeData!$A$4:$A$3798,StrokeData!$K$4:$K$3798) ->  | T52: =LOOKUP(C52,StrokeData!$A$4:$A$3798,StrokeData!$L$4:$L$3798) -> 
B53: 17 | C53: =IF(C52=-1,-1,LOOKUP(C52,StrokeData!$A$4:$A$3798,StrokeData!$L$4:$L$3798)) -> -1 | D53: =LOOKUP(C53,StrokeData!$A$4:$A$3798,StrokeData!$B$4:$B$3798) ->  | E53: =LOOKUP(C53,StrokeData!$A$4:$A$3798,StrokeData!$C$4:$C$3798) ->  | G53: =LOOKUP(C53,StrokeData!$A$4:$A$3798,StrokeData!$D$4:$D$3798) ->  | H53: =LOOKUP(C53,StrokeData!$A$4:$A$3798,StrokeData!$E$4:$E$3798) ->  | I53: =LOOKUP(C53,StrokeData!$A$4:$A$3798,StrokeData!$F$4:$F$3798) ->  | J53: =LOOKUP(C53,StrokeData!$A$4:$A$3798,StrokeData!$G$4:$G$3798) ->  | K53: =LOOKUP(C53,StrokeData!$A$4:$A$3798,StrokeData!$H$4:$H$3798) ->  | L53: =LOOKUP(C53,StrokeData!$A$4:$A$3798,StrokeData!$I$4:$I$3798) ->  | M53: =LOOKUP(C53,StrokeData!$A$4:$A$3798,StrokeData!$J$4:$J$3798) ->  | S53: =LOOKUP(C53,StrokeData!$A$4:$A$3798,StrokeData!$K$4:$K$3798) ->  | T53: =LOOKUP(C53,StrokeData!$A$4:$A$3798,StrokeData!$L$4:$L$3798) -> 
B54: 18 | C54: =IF(C53=-1,-1,LOOKUP(C53,StrokeData!$A$4:$A$3798,StrokeData!$L$4:$L$3798)) -> -1 | D54: =LOOKUP(C54,StrokeData!$A$4:$A$3798,StrokeData!$B$4:$B$3798) ->  | E54: =LOOKUP(C54,StrokeData!$A$4:$A$3798,StrokeData!$C$4:$C$3798) ->  | G54: =LOOKUP(C54,StrokeData!$A$4:$A$3798,StrokeData!$D$4:$D$3798) ->  | H54: =LOOKUP(C54,StrokeData!$A$4:$A$3798,StrokeData!$E$4:$E$3798) ->  | I54: =LOOKUP(C54,StrokeData!$A$4:$A$3798,StrokeData!$F$4:$F$3798) ->  | J54: =LOOKUP(C54,StrokeData!$A$4:$A$3798,StrokeData!$G$4:$G$3798) ->  | K54: =LOOKUP(C54,StrokeData!$A$4:$A$3798,StrokeData!$H$4:$H$3798) ->  | L54: =LOOKUP(C54,StrokeData!$A$4:$A$3798,StrokeData!$I$4:$I$3798) ->  | M54: =LOOKUP(C54,StrokeData!$A$4:$A$3798,StrokeData!$J$4:$J$3798) ->  | S54: =LOOKUP(C54,StrokeData!$A$4:$A$3798,StrokeData!$K$4:$K$3798) ->  | T54: =LOOKUP(C54,StrokeData!$A$4:$A$3798,StrokeData!$L$4:$L$3798) -> 
B55: 19 | C55: =IF(C54=-1,-1,LOOKUP(C54,StrokeData!$A$4:$A$3798,StrokeData!$L$4:$L$3798)) -> -1 | D55: =LOOKUP(C55,StrokeData!$A$4:$A$3798,StrokeData!$B$4:$B$3798) ->  | E55: =LOOKUP(C55,StrokeData!$A$4:$A$3798,StrokeData!$C$4:$C$3798) ->  | G55: =LOOKUP(C55,StrokeData!$A$4:$A$3798,StrokeData!$D$4:$D$3798) ->  | H55: =LOOKUP(C55,StrokeData!$A$4:$A$3798,StrokeData!$E$4:$E$3798) ->  | I55: =LOOKUP(C55,StrokeData!$A$4:$A$3798,StrokeData!$F$4:$F$3798) ->  | J55: =LOOKUP(C55,StrokeData!$A$4:$A$3798,StrokeData!$G$4:$G$3798) ->  | K55: =LOOKUP(C55,StrokeData!$A$4:$A$3798,StrokeData!$H$4:$H$3798) ->  | L55: =LOOKUP(C55,StrokeData!$A$4:$A$3798,StrokeData!$I$4:$I$3798) ->  | M55: =LOOKUP(C55,StrokeData!$A$4:$A$3798,StrokeData!$J$4:$J$3798) ->  | S55: =LOOKUP(C55,StrokeData!$A$4:$A$3798,StrokeData!$K$4:$K$3798) ->  | T55: =LOOKUP(C55,StrokeData!$A$4:$A$3798,StrokeData!$L$4:$L$3798) -> 
B56: 20 | C56: =IF(C55=-1,-1,LOOKUP(C55,StrokeData!$A$4:$A$3798,StrokeData!$L$4:$L$3798)) -> -1 | D56: =LOOKUP(C56,StrokeData!$A$4:$A$3798,StrokeData!$B$4:$B$3798) ->  | E56: =LOOKUP(C56,StrokeData!$A$4:$A$3798,StrokeData!$C$4:$C$3798) ->  | G56: =LOOKUP(C56,StrokeData!$A$4:$A$3798,StrokeData!$D$4:$D$3798) ->  | H56: =LOOKUP(C56,StrokeData!$A$4:$A$3798,StrokeData!$E$4:$E$3798) ->  | I56: =LOOKUP(C56,StrokeData!$A$4:$A$3798,StrokeData!$F$4:$F$3798) ->  | J56: =LOOKUP(C56,StrokeData!$A$4:$A$3798,StrokeData!$G$4:$G$3798) ->  | K56: =LOOKUP(C56,StrokeData!$A$4:$A$3798,StrokeData!$H$4:$H$3798) ->  | L56: =LOOKUP(C56,StrokeData!$A$4:$A$3798,StrokeData!$I$4:$I$3798) ->  | M56: =LOOKUP(C56,StrokeData!$A$4:$A$3798,StrokeData!$J$4:$J$3798) ->  | S56: =LOOKUP(C56,StrokeData!$A$4:$A$3798,StrokeData!$K$4:$K$3798) ->  | T56: =LOOKUP(C56,StrokeData!$A$4:$A$3798,StrokeData!$L$4:$L$3798) -> 
D57: ストローク | E57: =H5 -> 100 | F57: mm | G57: ～ | H57: =I5 -> 900 | I57: mm | K57: 刻み | L57: =LOOKUP(D35,B26:B33,R26:R33) -> 50 | M57: mm | O57: 慣性係数 | P57: =IF($J$5=1,0.000001,0.001) -> 0.001 | Q57: 有効桁数 | R57: =IF($J$5=1,6,3) -> 3
B58: stﾘｽﾄ検索用(降順) | D58: № | E58: =StrokeData!$B$2 -> ｽﾄﾛｰｸ長 | F58: stﾘｽﾄ№ | G58: =StrokeData!$C$2 -> 有効ｽﾄﾛｰｸ補正 | I58: =StrokeData!$D$2 -> 基準ｹﾞｲﾝ用搬送質量 | J58: =StrokeData!$E$2 -> 水平可搬質量 | K58: =StrokeData!$F$2 -> 垂直可搬質量 | L58: =StrokeData!$G$2 -> 最大速度 | M58: =StrokeData!$H$2 -> 位置ｹﾞｲﾝ | N58: =StrokeData!$I$2 -> FFｹﾞｲﾝ | O58: =StrokeData!$J$2 -> 速度制御帯域
B59: =B36 -> № | C59: =D36 -> ｽﾄﾛｰｸ長 | D59: 0 | E59: =H4 -> [mm] | G59: [mm] | H59: [kg/mm] | I59: =IF(J5=1,"[kgm^2]","[kg]") -> [kg] | J59: =IF(J5=1,"[kgm^2]","[kg]") -> [kg] | K59: =IF(J5=1,"[kgm^2]","[kg]") -> [kg] | L59: [mm/s] | M59: [1/s] | N59: [%] | O59: [rad/s] | Q59: [s] | T59: [Nm/rad]
B60: =B56 -> 20 | C60: =D56 ->  | D60: 1 | E60: =IF( (E57+L57*D59)<=H57,(E57+L57*D59),"- - -") -> 100 | F60: =(B60+1)-MATCH(E60,C60:C79,-1) -> 1 | G60: =LOOKUP(F60,B37:B56,E37:E56) -> 0 | I60: =LOOKUP(F60,B37:B56,G37:G56)*$P$57 -> 55 | J60: =LOOKUP(F60,B37:B56,H37:H56)*$P$57 -> 55 | K60: =LOOKUP(F60,B37:B56,I37:I56)*$P$57 -> 14 | L60: =LOOKUP(F60,B37:B56,J37:J56) -> 240 | M60: =LOOKUP(F60,B37:B56,K37:K56) -> 30 | N60: =LOOKUP(F60,B37:B56,L37:L56) -> 0 | O60: =LOOKUP(F60,B37:B56,M37:M56) -> 120
B61: =B55 -> 19 | C61: =D55 ->  | D61: =D60+1 -> 2 | E61: =IF( (E57+L57*D60)<=H57,(E57+L57*D60),"- - -") -> 150 | F61: =(B60+1)-MATCH(E61,C60:C79,-1) -> 1 | G61: =LOOKUP(F61,B37:B56,E37:E56) -> 0 | I61: =LOOKUP(F61,B37:B56,G37:G56)*$P$57 -> 55 | J61: =LOOKUP(F61,B37:B56,H37:H56)*$P$57 -> 55 | K61: =LOOKUP(F61,B37:B56,I37:I56)*$P$57 -> 14 | L61: =LOOKUP(F61,B37:B56,J37:J56) -> 240 | M61: =LOOKUP(F61,B37:B56,K37:K56) -> 30 | N61: =LOOKUP(F61,B37:B56,L37:L56) -> 0 | O61: =LOOKUP(F61,B37:B56,M37:M56) -> 120
B62: =B54 -> 18 | C62: =D54 ->  | D62: =D61+1 -> 3 | E62: =IF( (E57+L57*D61)<=H57,(E57+L57*D61),"- - -") -> 200 | F62: =(B60+1)-MATCH(E62,C60:C79,-1) -> 1 | G62: =LOOKUP(F62,B37:B56,E37:E56) -> 0 | I62: =LOOKUP(F62,B37:B56,G37:G56)*$P$57 -> 55 | J62: =LOOKUP(F62,B37:B56,H37:H56)*$P$57 -> 55 | K62: =LOOKUP(F62,B37:B56,I37:I56)*$P$57 -> 14 | L62: =LOOKUP(F62,B37:B56,J37:J56) -> 240 | M62: =LOOKUP(F62,B37:B56,K37:K56) -> 30 | N62: =LOOKUP(F62,B37:B56,L37:L56) -> 0 | O62: =LOOKUP(F62,B37:B56,M37:M56) -> 120
B63: =B53 -> 17 | C63: =D53 ->  | D63: 4 | E63: =IF( (E57+L57*D62)<=H57,(E57+L57*D62),"- - -") -> 250 | F63: =(B60+1)-MATCH(E63,C60:C79,-1) -> 1 | G63: =LOOKUP(F63,B37:B56,E37:E56) -> 0 | I63: =LOOKUP(F63,B37:B56,G37:G56)*$P$57 -> 55 | J63: =LOOKUP(F63,B37:B56,H37:H56)*$P$57 -> 55 | K63: =LOOKUP(F63,B37:B56,I37:I56)*$P$57 -> 14 | L63: =LOOKUP(F63,B37:B56,J37:J56) -> 240 | M63: =LOOKUP(F63,B37:B56,K37:K56) -> 30 | N63: =LOOKUP(F63,B37:B56,L37:L56) -> 0 | O63: =LOOKUP(F63,B37:B56,M37:M56) -> 120
B64: =B52 -> 16 | C64: =D52 ->  | D64: 5 | E64: =IF( (E57+L57*D63)<=H57,(E57+L57*D63),"- - -") -> 300 | F64: =(B60+1)-MATCH(E64,C60:C79,-1) -> 1 | G64: =LOOKUP(F64,B37:B56,E37:E56) -> 0 | I64: =LOOKUP(F64,B37:B56,G37:G56)*$P$57 -> 55 | J64: =LOOKUP(F64,B37:B56,H37:H56)*$P$57 -> 55 | K64: =LOOKUP(F64,B37:B56,I37:I56)*$P$57 -> 14 | L64: =LOOKUP(F64,B37:B56,J37:J56) -> 240 | M64: =LOOKUP(F64,B37:B56,K37:K56) -> 30 | N64: =LOOKUP(F64,B37:B56,L37:L56) -> 0 | O64: =LOOKUP(F64,B37:B56,M37:M56) -> 120
B65: =B51 -> 15 | C65: =D51 ->  | D65: 6 | E65: =IF( (E57+L57*D64)<=H57,(E57+L57*D64),"- - -") -> 350 | F65: =(B60+1)-MATCH(E65,C60:C79,-1) -> 1 | G65: =LOOKUP(F65,B37:B56,E37:E56) -> 0 | I65: =LOOKUP(F65,B37:B56,G37:G56)*$P$57 -> 55 | J65: =LOOKUP(F65,B37:B56,H37:H56)*$P$57 -> 55 | K65: =LOOKUP(F65,B37:B56,I37:I56)*$P$57 -> 14 | L65: =LOOKUP(F65,B37:B56,J37:J56) -> 240 | M65: =LOOKUP(F65,B37:B56,K37:K56) -> 30 | N65: =LOOKUP(F65,B37:B56,L37:L56) -> 0 | O65: =LOOKUP(F65,B37:B56,M37:M56) -> 120
B66: =B50 -> 14 | C66: =D50 ->  | D66: 7 | E66: =IF( (E57+L57*D65)<=H57,(E57+L57*D65),"- - -") -> 400 | F66: =(B60+1)-MATCH(E66,C60:C79,-1) -> 1 | G66: =LOOKUP(F66,B37:B56,E37:E56) -> 0 | I66: =LOOKUP(F66,B37:B56,G37:G56)*$P$57 -> 55 | J66: =LOOKUP(F66,B37:B56,H37:H56)*$P$57 -> 55 | K66: =LOOKUP(F66,B37:B56,I37:I56)*$P$57 -> 14 | L66: =LOOKUP(F66,B37:B56,J37:J56) -> 240 | M66: =LOOKUP(F66,B37:B56,K37:K56) -> 30 | N66: =LOOKUP(F66,B37:B56,L37:L56) -> 0 | O66: =LOOKUP(F66,B37:B56,M37:M56) -> 120
B67: =B49 -> 13 | C67: =D49 ->  | D67: 8 | E67: =IF( (E57+L57*D66)<=H57,(E57+L57*D66),"- - -") -> 450 | F67: =(B60+1)-MATCH(E67,C60:C79,-1) -> 1 | G67: =LOOKUP(F67,B37:B56,E37:E56) -> 0 | I67: =LOOKUP(F67,B37:B56,G37:G56)*$P$57 -> 55 | J67: =LOOKUP(F67,B37:B56,H37:H56)*$P$57 -> 55 | K67: =LOOKUP(F67,B37:B56,I37:I56)*$P$57 -> 14 | L67: =LOOKUP(F67,B37:B56,J37:J56) -> 240 | M67: =LOOKUP(F67,B37:B56,K37:K56) -> 30 | N67: =LOOKUP(F67,B37:B56,L37:L56) -> 0 | O67: =LOOKUP(F67,B37:B56,M37:M56) -> 120
B68: =B48 -> 12 | C68: =D48 ->  | D68: 9 | E68: =IF( (E57+L57*D67)<=H57,(E57+L57*D67),"- - -") -> 500 | F68: =(B60+1)-MATCH(E68,C60:C79,-1) -> 1 | G68: =LOOKUP(F68,B37:B56,E37:E56) -> 0 | I68: =LOOKUP(F68,B37:B56,G37:G56)*$P$57 -> 55 | J68: =LOOKUP(F68,B37:B56,H37:H56)*$P$57 -> 55 | K68: =LOOKUP(F68,B37:B56,I37:I56)*$P$57 -> 14 | L68: =LOOKUP(F68,B37:B56,J37:J56) -> 240 | M68: =LOOKUP(F68,B37:B56,K37:K56) -> 30 | N68: =LOOKUP(F68,B37:B56,L37:L56) -> 0 | O68: =LOOKUP(F68,B37:B56,M37:M56) -> 120
B69: =B47 -> 11 | C69: =D47 ->  | D69: 10 | E69: =IF( (E57+L57*D68)<=H57,(E57+L57*D68),"- - -") -> 550 | F69: =(B60+1)-MATCH(E69,C60:C79,-1) -> 1 | G69: =LOOKUP(F69,B37:B56,E37:E56) -> 0 | I69: =LOOKUP(F69,B37:B56,G37:G56)*$P$57 -> 55 | J69: =LOOKUP(F69,B37:B56,H37:H56)*$P$57 -> 55 | K69: =LOOKUP(F69,B37:B56,I37:I56)*$P$57 -> 14 | L69: =LOOKUP(F69,B37:B56,J37:J56) -> 240 | M69: =LOOKUP(F69,B37:B56,K37:K56) -> 30 | N69: =LOOKUP(F69,B37:B56,L37:L56) -> 0 | O69: =LOOKUP(F69,B37:B56,M37:M56) -> 120
B70: =B46 -> 10 | C70: =D46 ->  | D70: 11 | E70: =IF( (E57+L57*D69)<=H57,(E57+L57*D69),"- - -") -> 600 | F70: =(B60+1)-MATCH(E70,C60:C79,-1) -> 1 | G70: =LOOKUP(F70,B37:B56,E37:E56) -> 0 | I70: =LOOKUP(F70,B37:B56,G37:G56)*$P$57 -> 55 | J70: =LOOKUP(F70,B37:B56,H37:H56)*$P$57 -> 55 | K70: =LOOKUP(F70,B37:B56,I37:I56)*$P$57 -> 14 | L70: =LOOKUP(F70,B37:B56,J37:J56) -> 240 | M70: =LOOKUP(F70,B37:B56,K37:K56) -> 30 | N70: =LOOKUP(F70,B37:B56,L37:L56) -> 0 | O70: =LOOKUP(F70,B37:B56,M37:M56) -> 120
B71: =B45 -> 9 | C71: =D45 ->  | D71: 12 | E71: =IF( (E57+L57*D70)<=H57,(E57+L57*D70),"- - -") -> 650 | F71: =(B60+1)-MATCH(E71,C60:C79,-1) -> 2 | G71: =LOOKUP(F71,B37:B56,E37:E56) -> 0 | I71: =LOOKUP(F71,B37:B56,G37:G56)*$P$57 -> 55 | J71: =LOOKUP(F71,B37:B56,H37:H56)*$P$57 -> 55 | K71: =LOOKUP(F71,B37:B56,I37:I56)*$P$57 -> 14 | L71: =LOOKUP(F71,B37:B56,J37:J56) -> 165 | M71: =LOOKUP(F71,B37:B56,K37:K56) -> 30 | N71: =LOOKUP(F71,B37:B56,L37:L56) -> 0 | O71: =LOOKUP(F71,B37:B56,M37:M56) -> 120
B72: =B44 -> 8 | C72: =D44 ->  | D72: 13 | E72: =IF( (E57+L57*D71)<=H57,(E57+L57*D71),"- - -") -> 700 | F72: =(B60+1)-MATCH(E72,C60:C79,-1) -> 2 | G72: =LOOKUP(F72,B37:B56,E37:E56) -> 0 | I72: =LOOKUP(F72,B37:B56,G37:G56)*$P$57 -> 55 | J72: =LOOKUP(F72,B37:B56,H37:H56)*$P$57 -> 55 | K72: =LOOKUP(F72,B37:B56,I37:I56)*$P$57 -> 14 | L72: =LOOKUP(F72,B37:B56,J37:J56) -> 165 | M72: =LOOKUP(F72,B37:B56,K37:K56) -> 30 | N72: =LOOKUP(F72,B37:B56,L37:L56) -> 0 | O72: =LOOKUP(F72,B37:B56,M37:M56) -> 120
B73: =B43 -> 7 | C73: =D43 ->  | D73: 14 | E73: =IF( (E57+L57*D72)<=H57,(E57+L57*D72),"- - -") -> 750 | F73: =(B60+1)-MATCH(E73,C60:C79,-1) -> 3 | G73: =LOOKUP(F73,B37:B56,E37:E56) -> 0 | I73: =LOOKUP(F73,B37:B56,G37:G56)*$P$57 -> 55 | J73: =LOOKUP(F73,B37:B56,H37:H56)*$P$57 -> 55 | K73: =LOOKUP(F73,B37:B56,I37:I56)*$P$57 -> 14 | L73: =LOOKUP(F73,B37:B56,J37:J56) -> 130 | M73: =LOOKUP(F73,B37:B56,K37:K56) -> 30 | N73: =LOOKUP(F73,B37:B56,L37:L56) -> 0 | O73: =LOOKUP(F73,B37:B56,M37:M56) -> 120
B74: =B42 -> 6 | C74: =D42 ->  | D74: 15 | E74: =IF( (E57+L57*D73)<=H57,(E57+L57*D73),"- - -") -> 800 | F74: =(B60+1)-MATCH(E74,C60:C79,-1) -> 3 | G74: =LOOKUP(F74,B37:B56,E37:E56) -> 0 | I74: =LOOKUP(F74,B37:B56,G37:G56)*$P$57 -> 55 | J74: =LOOKUP(F74,B37:B56,H37:H56)*$P$57 -> 55 | K74: =LOOKUP(F74,B37:B56,I37:I56)*$P$57 -> 14 | L74: =LOOKUP(F74,B37:B56,J37:J56) -> 130 | M74: =LOOKUP(F74,B37:B56,K37:K56) -> 30 | N74: =LOOKUP(F74,B37:B56,L37:L56) -> 0 | O74: =LOOKUP(F74,B37:B56,M37:M56) -> 120
B75: =B41 -> 5 | C75: =D41 ->  | D75: 16 | E75: =IF( (E57+L57*D74)<=H57,(E57+L57*D74),"- - -") -> 850 | F75: =(B60+1)-MATCH(E75,C60:C79,-1) -> 4 | G75: =LOOKUP(F75,B37:B56,E37:E56) -> 0 | I75: =LOOKUP(F75,B37:B56,G37:G56)*$P$57 -> 55 | J75: =LOOKUP(F75,B37:B56,H37:H56)*$P$57 -> 55 | K75: =LOOKUP(F75,B37:B56,I37:I56)*$P$57 -> 14 | L75: =LOOKUP(F75,B37:B56,J37:J56) -> 100 | M75: =LOOKUP(F75,B37:B56,K37:K56) -> 30 | N75: =LOOKUP(F75,B37:B56,L37:L56) -> 0 | O75: =LOOKUP(F75,B37:B56,M37:M56) -> 120
B76: =B40 -> 4 | C76: =D40 -> 900 | D76: 17 | E76: =IF( (E57+L57*D75)<=H57,(E57+L57*D75),"- - -") -> 900 | F76: =(B60+1)-MATCH(E76,C60:C79,-1) -> 4 | G76: =LOOKUP(F76,B37:B56,E37:E56) -> 0 | I76: =LOOKUP(F76,B37:B56,G37:G56)*$P$57 -> 55 | J76: =LOOKUP(F76,B37:B56,H37:H56)*$P$57 -> 55 | K76: =LOOKUP(F76,B37:B56,I37:I56)*$P$57 -> 14 | L76: =LOOKUP(F76,B37:B56,J37:J56) -> 100 | M76: =LOOKUP(F76,B37:B56,K37:K56) -> 30 | N76: =LOOKUP(F76,B37:B56,L37:L56) -> 0 | O76: =LOOKUP(F76,B37:B56,M37:M56) -> 120
B77: =B39 -> 3 | C77: =D39 -> 800 | D77: 18 | E77: =IF( (E57+L57*D76)<=H57,(E57+L57*D76),"- - -") -> - - - | F77: =(B60+1)-MATCH(E77,C60:C79,-1) ->  | G77: =LOOKUP(F77,B37:B56,E37:E56) ->  | I77: =LOOKUP(F77,B37:B56,G37:G56)*$P$57 ->  | J77: =LOOKUP(F77,B37:B56,H37:H56)*$P$57 ->  | K77: =LOOKUP(F77,B37:B56,I37:I56)*$P$57 ->  | L77: =LOOKUP(F77,B37:B56,J37:J56) ->  | M77: =LOOKUP(F77,B37:B56,K37:K56) ->  | N77: =LOOKUP(F77,B37:B56,L37:L56) ->  | O77: =LOOKUP(F77,B37:B56,M37:M56) -> 
B78: =B38 -> 2 | C78: =D38 -> 700 | D78: 19 | E78: =IF( (E57+L57*D77)<=H57,(E57+L57*D77),"- - -") -> - - - | F78: =(B60+1)-MATCH(E78,C60:C79,-1) ->  | G78: =LOOKUP(F78,B37:B56,E37:E56) ->  | I78: =LOOKUP(F78,B37:B56,G37:G56)*$P$57 ->  | J78: =LOOKUP(F78,B37:B56,H37:H56)*$P$57 ->  | K78: =LOOKUP(F78,B37:B56,I37:I56)*$P$57 ->  | L78: =LOOKUP(F78,B37:B56,J37:J56) ->  | M78: =LOOKUP(F78,B37:B56,K37:K56) ->  | N78: =LOOKUP(F78,B37:B56,L37:L56) ->  | O78: =LOOKUP(F78,B37:B56,M37:M56) -> 
B79: =B37 -> 1 | C79: =D37 -> 600 | D79: 20 | E79: =IF( (E57+L57*D78)<=H57,(E57+L57*D78),"- - -") -> - - - | F79: =(B60+1)-MATCH(E79,C60:C79,-1) ->  | G79: =LOOKUP(F79,B37:B56,E37:E56) ->  | I79: =LOOKUP(F79,B37:B56,G37:G56)*$P$57 ->  | J79: =LOOKUP(F79,B37:B56,H37:H56)*$P$57 ->  | K79: =LOOKUP(F79,B37:B56,I37:I56)*$P$57 ->  | L79: =LOOKUP(F79,B37:B56,J37:J56) ->  | M79: =LOOKUP(F79,B37:B56,K37:K56) ->  | N79: =LOOKUP(F79,B37:B56,L37:L56) ->  | O79: =LOOKUP(F79,B37:B56,M37:M56) -> 
D80: 21 | E80: =IF( (E57+L57*D79)<=H57,(E57+L57*D79),"- - -") -> - - - | F80: =(B60+1)-MATCH(E80,C60:C79,-1) ->  | G80: =LOOKUP(F80,B37:B56,E37:E56) ->  | I80: =LOOKUP(F80,B37:B56,G37:G56)*$P$57 ->  | J80: =LOOKUP(F80,B37:B56,H37:H56)*$P$57 ->  | K80: =LOOKUP(F80,B37:B56,I37:I56)*$P$57 ->  | L80: =LOOKUP(F80,B37:B56,J37:J56) ->  | M80: =LOOKUP(F80,B37:B56,K37:K56) ->  | N80: =LOOKUP(F80,B37:B56,L37:L56) ->  | O80: =LOOKUP(F80,B37:B56,M37:M56) -> 
D81: 22 | E81: =IF( (E57+L57*D80)<=H57,(E57+L57*D80),"- - -") -> - - - | F81: =(B60+1)-MATCH(E81,C60:C79,-1) ->  | G81: =LOOKUP(F81,B37:B56,E37:E56) ->  | I81: =LOOKUP(F81,B37:B56,G37:G56)*$P$57 ->  | J81: =LOOKUP(F81,B37:B56,H37:H56)*$P$57 ->  | K81: =LOOKUP(F81,B37:B56,I37:I56)*$P$57 ->  | L81: =LOOKUP(F81,B37:B56,J37:J56) ->  | M81: =LOOKUP(F81,B37:B56,K37:K56) ->  | N81: =LOOKUP(F81,B37:B56,L37:L56) ->  | O81: =LOOKUP(F81,B37:B56,M37:M56) -> 
D82: 23 | E82: =IF( (E57+L57*D81)<=H57,(E57+L57*D81),"- - -") -> - - - | F82: =(B60+1)-MATCH(E82,C60:C79,-1) ->  | G82: =LOOKUP(F82,B37:B56,E37:E56) ->  | I82: =LOOKUP(F82,B37:B56,G37:G56)*$P$57 ->  | J82: =LOOKUP(F82,B37:B56,H37:H56)*$P$57 ->  | K82: =LOOKUP(F82,B37:B56,I37:I56)*$P$57 ->  | L82: =LOOKUP(F82,B37:B56,J37:J56) ->  | M82: =LOOKUP(F82,B37:B56,K37:K56) ->  | N82: =LOOKUP(F82,B37:B56,L37:L56) ->  | O82: =LOOKUP(F82,B37:B56,M37:M56) -> 
D83: 24 | E83: =IF( (E57+L57*D82)<=H57,(E57+L57*D82),"- - -") -> - - - | F83: =(B60+1)-MATCH(E83,C60:C79,-1) ->  | G83: =LOOKUP(F83,B37:B56,E37:E56) ->  | I83: =LOOKUP(F83,B37:B56,G37:G56)*$P$57 ->  | J83: =LOOKUP(F83,B37:B56,H37:H56)*$P$57 ->  | K83: =LOOKUP(F83,B37:B56,I37:I56)*$P$57 ->  | L83: =LOOKUP(F83,B37:B56,J37:J56) ->  | M83: =LOOKUP(F83,B37:B56,K37:K56) ->  | N83: =LOOKUP(F83,B37:B56,L37:L56) ->  | O83: =LOOKUP(F83,B37:B56,M37:M56) -> 
D84: 25 | E84: =IF( (E57+L57*D83)<=H57,(E57+L57*D83),"- - -") -> - - - | F84: =(B60+1)-MATCH(E84,C60:C79,-1) ->  | G84: =LOOKUP(F84,B37:B56,E37:E56) ->  | I84: =LOOKUP(F84,B37:B56,G37:G56)*$P$57 ->  | J84: =LOOKUP(F84,B37:B56,H37:H56)*$P$57 ->  | K84: =LOOKUP(F84,B37:B56,I37:I56)*$P$57 ->  | L84: =LOOKUP(F84,B37:B56,J37:J56) ->  | M84: =LOOKUP(F84,B37:B56,K37:K56) ->  | N84: =LOOKUP(F84,B37:B56,L37:L56) ->  | O84: =LOOKUP(F84,B37:B56,M37:M56) -> 
D85: 26 | E85: =IF( (E57+L57*D84)<=H57,(E57+L57*D84),"- - -") -> - - - | F85: =(B60+1)-MATCH(E85,C60:C79,-1) ->  | G85: =LOOKUP(F85,B37:B56,E37:E56) ->  | I85: =LOOKUP(F85,B37:B56,G37:G56)*$P$57 ->  | J85: =LOOKUP(F85,B37:B56,H37:H56)*$P$57 ->  | K85: =LOOKUP(F85,B37:B56,I37:I56)*$P$57 ->  | L85: =LOOKUP(F85,B37:B56,J37:J56) ->  | M85: =LOOKUP(F85,B37:B56,K37:K56) ->  | N85: =LOOKUP(F85,B37:B56,L37:L56) ->  | O85: =LOOKUP(F85,B37:B56,M37:M56) -> 
D86: 27 | E86: =IF( (E57+L57*D85)<=H57,(E57+L57*D85),"- - -") -> - - - | F86: =(B60+1)-MATCH(E86,C60:C79,-1) ->  | G86: =LOOKUP(F86,B37:B56,E37:E56) ->  | I86: =LOOKUP(F86,B37:B56,G37:G56)*$P$57 ->  | J86: =LOOKUP(F86,B37:B56,H37:H56)*$P$57 ->  | K86: =LOOKUP(F86,B37:B56,I37:I56)*$P$57 ->  | L86: =LOOKUP(F86,B37:B56,J37:J56) ->  | M86: =LOOKUP(F86,B37:B56,K37:K56) ->  | N86: =LOOKUP(F86,B37:B56,L37:L56) ->  | O86: =LOOKUP(F86,B37:B56,M37:M56) -> 
D87: 28 | E87: =IF( (E57+L57*D86)<=H57,(E57+L57*D86),"- - -") -> - - - | F87: =(B60+1)-MATCH(E87,C60:C79,-1) ->  | G87: =LOOKUP(F87,B37:B56,E37:E56) ->  | I87: =LOOKUP(F87,B37:B56,G37:G56)*$P$57 ->  | J87: =LOOKUP(F87,B37:B56,H37:H56)*$P$57 ->  | K87: =LOOKUP(F87,B37:B56,I37:I56)*$P$57 ->  | L87: =LOOKUP(F87,B37:B56,J37:J56) ->  | M87: =LOOKUP(F87,B37:B56,K37:K56) ->  | N87: =LOOKUP(F87,B37:B56,L37:L56) ->  | O87: =LOOKUP(F87,B37:B56,M37:M56) -> 
D88: 29 | E88: =IF( (E57+L57*D87)<=H57,(E57+L57*D87),"- - -") -> - - - | F88: =(B60+1)-MATCH(E88,C60:C79,-1) ->  | G88: =LOOKUP(F88,B37:B56,E37:E56) ->  | I88: =LOOKUP(F88,B37:B56,G37:G56)*$P$57 ->  | J88: =LOOKUP(F88,B37:B56,H37:H56)*$P$57 ->  | K88: =LOOKUP(F88,B37:B56,I37:I56)*$P$57 ->  | L88: =LOOKUP(F88,B37:B56,J37:J56) ->  | M88: =LOOKUP(F88,B37:B56,K37:K56) ->  | N88: =LOOKUP(F88,B37:B56,L37:L56) ->  | O88: =LOOKUP(F88,B37:B56,M37:M56) -> 
D89: 30 | E89: =IF( (E57+L57*D88)<=H57,(E57+L57*D88),"- - -") -> - - - | F89: =(B60+1)-MATCH(E89,C60:C79,-1) ->  | G89: =LOOKUP(F89,B37:B56,E37:E56) ->  | I89: =LOOKUP(F89,B37:B56,G37:G56)*$P$57 ->  | J89: =LOOKUP(F89,B37:B56,H37:H56)*$P$57 ->  | K89: =LOOKUP(F89,B37:B56,I37:I56)*$P$57 ->  | L89: =LOOKUP(F89,B37:B56,J37:J56) ->  | M89: =LOOKUP(F89,B37:B56,K37:K56) ->  | N89: =LOOKUP(F89,B37:B56,L37:L56) ->  | O89: =LOOKUP(F89,B37:B56,M37:M56) -> 
D90: =D89+1 -> 31 | E90: =IF( (E57+L57*D89)<=H57,(E57+L57*D89),"- - -") -> - - - | F90: =(B60+1)-MATCH(E90,C60:C79,-1) ->  | G90: =LOOKUP(F90,B37:B56,E37:E56) ->  | I90: =LOOKUP(F90,B37:B56,G37:G56)*$P$57 ->  | J90: =LOOKUP(F90,B37:B56,H37:H56)*$P$57 ->  | K90: =LOOKUP(F90,B37:B56,I37:I56)*$P$57 ->  | L90: =LOOKUP(F90,B37:B56,J37:J56) ->  | M90: =LOOKUP(F90,B37:B56,K37:K56) ->  | N90: =LOOKUP(F90,B37:B56,L37:L56) ->  | O90: =LOOKUP(F90,B37:B56,M37:M56) -> 
D91: 32 | E91: =IF( (E57+L57*D90)<=H57,(E57+L57*D90),"- - -") -> - - - | F91: =(B60+1)-MATCH(E91,C60:C79,-1) ->  | G91: =LOOKUP(F91,B37:B56,E37:E56) ->  | I91: =LOOKUP(F91,B37:B56,G37:G56)*$P$57 ->  | J91: =LOOKUP(F91,B37:B56,H37:H56)*$P$57 ->  | K91: =LOOKUP(F91,B37:B56,I37:I56)*$P$57 ->  | L91: =LOOKUP(F91,B37:B56,J37:J56) ->  | M91: =LOOKUP(F91,B37:B56,K37:K56) ->  | N91: =LOOKUP(F91,B37:B56,L37:L56) ->  | O91: =LOOKUP(F91,B37:B56,M37:M56) -> 
D92: 33 | E92: =IF( (E57+L57*D91)<=H57,(E57+L57*D91),"- - -") -> - - - | F92: =(B60+1)-MATCH(E92,C60:C79,-1) ->  | G92: =LOOKUP(F92,B37:B56,E37:E56) ->  | I92: =LOOKUP(F92,B37:B56,G37:G56)*$P$57 ->  | J92: =LOOKUP(F92,B37:B56,H37:H56)*$P$57 ->  | K92: =LOOKUP(F92,B37:B56,I37:I56)*$P$57 ->  | L92: =LOOKUP(F92,B37:B56,J37:J56) ->  | M92: =LOOKUP(F92,B37:B56,K37:K56) ->  | N92: =LOOKUP(F92,B37:B56,L37:L56) ->  | O92: =LOOKUP(F92,B37:B56,M37:M56) -> 
D93: 34 | E93: =IF( (E57+L57*D92)<=H57,(E57+L57*D92),"- - -") -> - - - | F93: =(B60+1)-MATCH(E93,C60:C79,-1) ->  | G93: =LOOKUP(F93,B37:B56,E37:E56) ->  | I93: =LOOKUP(F93,B37:B56,G37:G56)*$P$57 ->  | J93: =LOOKUP(F93,B37:B56,H37:H56)*$P$57 ->  | K93: =LOOKUP(F93,B37:B56,I37:I56)*$P$57 ->  | L93: =LOOKUP(F93,B37:B56,J37:J56) ->  | M93: =LOOKUP(F93,B37:B56,K37:K56) ->  | N93: =LOOKUP(F93,B37:B56,L37:L56) ->  | O93: =LOOKUP(F93,B37:B56,M37:M56) -> 
D94: 35 | E94: =IF( (E57+L57*D93)<=H57,(E57+L57*D93),"- - -") -> - - - | F94: =(B60+1)-MATCH(E94,C60:C79,-1) ->  | G94: =LOOKUP(F94,B37:B56,E37:E56) ->  | I94: =LOOKUP(F94,B37:B56,G37:G56)*$P$57 ->  | J94: =LOOKUP(F94,B37:B56,H37:H56)*$P$57 ->  | K94: =LOOKUP(F94,B37:B56,I37:I56)*$P$57 ->  | L94: =LOOKUP(F94,B37:B56,J37:J56) ->  | M94: =LOOKUP(F94,B37:B56,K37:K56) ->  | N94: =LOOKUP(F94,B37:B56,L37:L56) ->  | O94: =LOOKUP(F94,B37:B56,M37:M56) -> 
D95: 36 | E95: =IF( (E57+L57*D94)<=H57,(E57+L57*D94),"- - -") -> - - - | F95: =(B60+1)-MATCH(E95,C60:C79,-1) ->  | G95: =LOOKUP(F95,B37:B56,E37:E56) ->  | I95: =LOOKUP(F95,B37:B56,G37:G56)*$P$57 ->  | J95: =LOOKUP(F95,B37:B56,H37:H56)*$P$57 ->  | K95: =LOOKUP(F95,B37:B56,I37:I56)*$P$57 ->  | L95: =LOOKUP(F95,B37:B56,J37:J56) ->  | M95: =LOOKUP(F95,B37:B56,K37:K56) ->  | N95: =LOOKUP(F95,B37:B56,L37:L56) ->  | O95: =LOOKUP(F95,B37:B56,M37:M56) -> 
D96: 37 | E96: =IF( (E57+L57*D95)<=H57,(E57+L57*D95),"- - -") -> - - - | F96: =(B60+1)-MATCH(E96,C60:C79,-1) ->  | G96: =LOOKUP(F96,B37:B56,E37:E56) ->  | I96: =LOOKUP(F96,B37:B56,G37:G56)*$P$57 ->  | J96: =LOOKUP(F96,B37:B56,H37:H56)*$P$57 ->  | K96: =LOOKUP(F96,B37:B56,I37:I56)*$P$57 ->  | L96: =LOOKUP(F96,B37:B56,J37:J56) ->  | M96: =LOOKUP(F96,B37:B56,K37:K56) ->  | N96: =LOOKUP(F96,B37:B56,L37:L56) ->  | O96: =LOOKUP(F96,B37:B56,M37:M56) -> 
D97: 38 | E97: =IF( (E57+L57*D96)<=H57,(E57+L57*D96),"- - -") -> - - - | F97: =(B60+1)-MATCH(E97,C60:C79,-1) ->  | G97: =LOOKUP(F97,B37:B56,E37:E56) ->  | I97: =LOOKUP(F97,B37:B56,G37:G56)*$P$57 ->  | J97: =LOOKUP(F97,B37:B56,H37:H56)*$P$57 ->  | K97: =LOOKUP(F97,B37:B56,I37:I56)*$P$57 ->  | L97: =LOOKUP(F97,B37:B56,J37:J56) ->  | M97: =LOOKUP(F97,B37:B56,K37:K56) ->  | N97: =LOOKUP(F97,B37:B56,L37:L56) ->  | O97: =LOOKUP(F97,B37:B56,M37:M56) -> 
D98: 39 | E98: =IF( (E57+L57*D97)<=H57,(E57+L57*D97),"- - -") -> - - - | F98: =(B60+1)-MATCH(E98,C60:C79,-1) ->  | G98: =LOOKUP(F98,B37:B56,E37:E56) ->  | I98: =LOOKUP(F98,B37:B56,G37:G56)*$P$57 ->  | J98: =LOOKUP(F98,B37:B56,H37:H56)*$P$57 ->  | K98: =LOOKUP(F98,B37:B56,I37:I56)*$P$57 ->  | L98: =LOOKUP(F98,B37:B56,J37:J56) ->  | M98: =LOOKUP(F98,B37:B56,K37:K56) ->  | N98: =LOOKUP(F98,B37:B56,L37:L56) ->  | O98: =LOOKUP(F98,B37:B56,M37:M56) -> 
D99: 40 | E99: =IF( (E57+L57*D98)<=H57,(E57+L57*D98),"- - -") -> - - - | F99: =(B60+1)-MATCH(E99,C60:C79,-1) ->  | G99: =LOOKUP(F99,B37:B56,E37:E56) ->  | I99: =LOOKUP(F99,B37:B56,G37:G56)*$P$57 ->  | J99: =LOOKUP(F99,B37:B56,H37:H56)*$P$57 ->  | K99: =LOOKUP(F99,B37:B56,I37:I56)*$P$57 ->  | L99: =LOOKUP(F99,B37:B56,J37:J56) ->  | M99: =LOOKUP(F99,B37:B56,K37:K56) ->  | N99: =LOOKUP(F99,B37:B56,L37:L56) ->  | O99: =LOOKUP(F99,B37:B56,M37:M56) -> 
D100: 41 | E100: =IF( (E57+L57*D99)<=H57,(E57+L57*D99),"- - -") -> - - - | F100: =(B60+1)-MATCH(E100,C60:C79,-1) ->  | G100: =LOOKUP(F100,B37:B56,E37:E56) ->  | I100: =LOOKUP(F100,B37:B56,G37:G56)*$P$57 ->  | J100: =LOOKUP(F100,B37:B56,H37:H56)*$P$57 ->  | K100: =LOOKUP(F100,B37:B56,I37:I56)*$P$57 ->  | L100: =LOOKUP(F100,B37:B56,J37:J56) ->  | M100: =LOOKUP(F100,B37:B56,K37:K56) ->  | N100: =LOOKUP(F100,B37:B56,L37:L56) ->  | O100: =LOOKUP(F100,B37:B56,M37:M56) -> 
D101: 42 | E101: =IF( (E57+L57*D100)<=H57,(E57+L57*D100),"- - -") -> - - - | F101: =(B60+1)-MATCH(E101,C60:C79,-1) ->  | G101: =LOOKUP(F101,B37:B56,E37:E56) ->  | I101: =LOOKUP(F101,B37:B56,G37:G56)*$P$57 ->  | J101: =LOOKUP(F101,B37:B56,H37:H56)*$P$57 ->  | K101: =LOOKUP(F101,B37:B56,I37:I56)*$P$57 ->  | L101: =LOOKUP(F101,B37:B56,J37:J56) ->  | M101: =LOOKUP(F101,B37:B56,K37:K56) ->  | N101: =LOOKUP(F101,B37:B56,L37:L56) ->  | O101: =LOOKUP(F101,B37:B56,M37:M56) -> 
D102: 43 | E102: =IF( (E57+L57*D101)<=H57,(E57+L57*D101),"- - -") -> - - - | F102: =(B60+1)-MATCH(E102,C60:C79,-1) ->  | G102: =LOOKUP(F102,B37:B56,E37:E56) ->  | I102: =LOOKUP(F102,B37:B56,G37:G56)*$P$57 ->  | J102: =LOOKUP(F102,B37:B56,H37:H56)*$P$57 ->  | K102: =LOOKUP(F102,B37:B56,I37:I56)*$P$57 ->  | L102: =LOOKUP(F102,B37:B56,J37:J56) ->  | M102: =LOOKUP(F102,B37:B56,K37:K56) ->  | N102: =LOOKUP(F102,B37:B56,L37:L56) ->  | O102: =LOOKUP(F102,B37:B56,M37:M56) -> 
D103: 44 | E103: =IF( (E57+L57*D102)<=H57,(E57+L57*D102),"- - -") -> - - - | F103: =(B60+1)-MATCH(E103,C60:C79,-1) ->  | G103: =LOOKUP(F103,B37:B56,E37:E56) ->  | I103: =LOOKUP(F103,B37:B56,G37:G56)*$P$57 ->  | J103: =LOOKUP(F103,B37:B56,H37:H56)*$P$57 ->  | K103: =LOOKUP(F103,B37:B56,I37:I56)*$P$57 ->  | L103: =LOOKUP(F103,B37:B56,J37:J56) ->  | M103: =LOOKUP(F103,B37:B56,K37:K56) ->  | N103: =LOOKUP(F103,B37:B56,L37:L56) ->  | O103: =LOOKUP(F103,B37:B56,M37:M56) -> 
D104: 45 | E104: =IF( (E57+L57*D103)<=H57,(E57+L57*D103),"- - -") -> - - - | F104: =(B60+1)-MATCH(E104,C60:C79,-1) ->  | G104: =LOOKUP(F104,B37:B56,E37:E56) ->  | I104: =LOOKUP(F104,B37:B56,G37:G56)*$P$57 ->  | J104: =LOOKUP(F104,B37:B56,H37:H56)*$P$57 ->  | K104: =LOOKUP(F104,B37:B56,I37:I56)*$P$57 ->  | L104: =LOOKUP(F104,B37:B56,J37:J56) ->  | M104: =LOOKUP(F104,B37:B56,K37:K56) ->  | N104: =LOOKUP(F104,B37:B56,L37:L56) ->  | O104: =LOOKUP(F104,B37:B56,M37:M56) -> 
D105: 46 | E105: =IF( (E57+L57*D104)<=H57,(E57+L57*D104),"- - -") -> - - - | F105: =(B60+1)-MATCH(E105,C60:C79,-1) ->  | G105: =LOOKUP(F105,B37:B56,E37:E56) ->  | I105: =LOOKUP(F105,B37:B56,G37:G56)*$P$57 ->  | J105: =LOOKUP(F105,B37:B56,H37:H56)*$P$57 ->  | K105: =LOOKUP(F105,B37:B56,I37:I56)*$P$57 ->  | L105: =LOOKUP(F105,B37:B56,J37:J56) ->  | M105: =LOOKUP(F105,B37:B56,K37:K56) ->  | N105: =LOOKUP(F105,B37:B56,L37:L56) ->  | O105: =LOOKUP(F105,B37:B56,M37:M56) -> 
D106: 47 | E106: =IF( (E57+L57*D105)<=H57,(E57+L57*D105),"- - -") -> - - - | F106: =(B60+1)-MATCH(E106,C60:C79,-1) ->  | G106: =LOOKUP(F106,B37:B56,E37:E56) ->  | I106: =LOOKUP(F106,B37:B56,G37:G56)*$P$57 ->  | J106: =LOOKUP(F106,B37:B56,H37:H56)*$P$57 ->  | K106: =LOOKUP(F106,B37:B56,I37:I56)*$P$57 ->  | L106: =LOOKUP(F106,B37:B56,J37:J56) ->  | M106: =LOOKUP(F106,B37:B56,K37:K56) ->  | N106: =LOOKUP(F106,B37:B56,L37:L56) ->  | O106: =LOOKUP(F106,B37:B56,M37:M56) -> 
D107: 48 | E107: =IF( (E57+L57*D106)<=H57,(E57+L57*D106),"- - -") -> - - - | F107: =(B60+1)-MATCH(E107,C60:C79,-1) ->  | G107: =LOOKUP(F107,B37:B56,E37:E56) ->  | I107: =LOOKUP(F107,B37:B56,G37:G56)*$P$57 ->  | J107: =LOOKUP(F107,B37:B56,H37:H56)*$P$57 ->  | K107: =LOOKUP(F107,B37:B56,I37:I56)*$P$57 ->  | L107: =LOOKUP(F107,B37:B56,J37:J56) ->  | M107: =LOOKUP(F107,B37:B56,K37:K56) ->  | N107: =LOOKUP(F107,B37:B56,L37:L56) ->  | O107: =LOOKUP(F107,B37:B56,M37:M56) -> 
D108: 49 | E108: =IF( (E57+L57*D107)<=H57,(E57+L57*D107),"- - -") -> - - - | F108: =(B60+1)-MATCH(E108,C60:C79,-1) ->  | G108: =LOOKUP(F108,B37:B56,E37:E56) ->  | I108: =LOOKUP(F108,B37:B56,G37:G56)*$P$57 ->  | J108: =LOOKUP(F108,B37:B56,H37:H56)*$P$57 ->  | K108: =LOOKUP(F108,B37:B56,I37:I56)*$P$57 ->  | L108: =LOOKUP(F108,B37:B56,J37:J56) ->  | M108: =LOOKUP(F108,B37:B56,K37:K56) ->  | N108: =LOOKUP(F108,B37:B56,L37:L56) ->  | O108: =LOOKUP(F108,B37:B56,M37:M56) -> 
D109: 50 | E109: =IF( (E57+L57*D108)<=H57,(E57+L57*D108),"- - -") -> - - - | F109: =(B60+1)-MATCH(E109,C60:C79,-1) ->  | G109: =LOOKUP(F109,B37:B56,E37:E56) ->  | I109: =LOOKUP(F109,B37:B56,G37:G56)*$P$57 ->  | J109: =LOOKUP(F109,B37:B56,H37:H56)*$P$57 ->  | K109: =LOOKUP(F109,B37:B56,I37:I56)*$P$57 ->  | L109: =LOOKUP(F109,B37:B56,J37:J56) ->  | M109: =LOOKUP(F109,B37:B56,K37:K56) ->  | N109: =LOOKUP(F109,B37:B56,L37:L56) ->  | O109: =LOOKUP(F109,B37:B56,M37:M56) -> 
B112: 搬送負荷データレコード | E112: =LOOKUP(C114,MassDataLink!$A$4:$A$3649,MassDataLink!$G$4:$G$3649) -> ISB-SXM-60-4-水平 | J112: 設置姿勢で絞込み | L112: - - - | N112: 加減速・速度データレコード
B113: № | C113: Ldﾚｺｰﾄﾞ№ | D113: =MassDataLink!B2 -> ｱｸﾁｭｴｰﾀ姿勢 | E113: =MassDataLink!C2 -> 搬送負荷質量 | F113: =MassDataLink!D2 -> 加減速・速度ﾃﾞｰﾀ | G113: =MassDataLink!E2 -> 前ﾃﾞｰﾀ№ | H113: =MassDataLink!F2 -> 次ﾃﾞｰﾀ№ | J113: № | K113: 搬送負荷質量 | L113: avﾚｺｰﾄﾞ№ | N113: 備考 | O113: =LOOKUP(O115,AccVelDataLink!$A$4:$A$3751,AccVelDataLink!$F$4:$F$3751) -> ISB-SXM-60-4-水平
B114: 1 | C114: =LOOKUP(D35,B26:B33,E26:E33) -> 1 | D114: =LOOKUP(C114,MassDataLink!$A$4:$A$3649,MassDataLink!$B$4:$B$3649) -> 0 | E114: =LOOKUP(C114,MassDataLink!$A$4:$A$3649,MassDataLink!$C$4:$C$3649) -> 30000 | F114: =LOOKUP(C114,MassDataLink!$A$4:$A$3649,MassDataLink!$D$4:$D$3649) -> 1 | G114: =LOOKUP(C114,MassDataLink!$A$4:$A$3649,MassDataLink!$E$4:$E$3649) -> -1 | H114: =LOOKUP(C114,MassDataLink!$A$4:$A$3649,MassDataLink!$F$4:$F$3649) -> 2 | J114: 1 | K114: =IF(C114=-1,$L$112,IF($A$11=D114,ROUND((E114*$P$57),$R$57),$L$112)) -> 30 | L114: =IF(K114=$L$112,$L$112,F114) -> 1 | N114: № | O114: avﾚｺｰﾄﾞ№ | P114: 加速度 | Q114: 速度 | R114: 前ﾃﾞｰﾀ | S114: 次ﾃﾞｰﾀ
B115: =B114+1 -> 2 | C115: =IF(C114=-1,-1,H114) -> 2 | D115: =LOOKUP(C115,MassDataLink!$A$4:$A$3649,MassDataLink!$B$4:$B$3649) -> 0 | E115: =LOOKUP(C115,MassDataLink!$A$4:$A$3649,MassDataLink!$C$4:$C$3649) -> 38000 | F115: =LOOKUP(C115,MassDataLink!$A$4:$A$3649,MassDataLink!$D$4:$D$3649) -> 2 | G115: =LOOKUP(C115,MassDataLink!$A$4:$A$3649,MassDataLink!$E$4:$E$3649) -> 1 | H115: =LOOKUP(C115,MassDataLink!$A$4:$A$3649,MassDataLink!$F$4:$F$3649) -> 3 | J115: =J114+1 -> 2 | K115: =IF(C115=-1,$L$112,IF($A$11=D115,ROUND((E115*$P$57),$R$57),$L$112)) -> 38 | L115: =IF(K115=$L$112,$L$112,F115) -> 2 | N115: 1 | O115: =LOOKUP(A14,K114:K163,L114:L163) -> 1 | P115: =LOOKUP(O115,AccVelDataLink!$A$4:$A$3751,AccVelDataLink!$B$4:$B$3751) -> 4903325 | Q115: =LOOKUP(O115,AccVelDataLink!$A$4:$A$3751,AccVelDataLink!$C$4:$C$3751) -> 240 | R115: =LOOKUP(O115,AccVelDataLink!$A$4:$A$3751,AccVelDataLink!$D$4:$D$3751) -> -1 | S115: =LOOKUP(O115,AccVelDataLink!$A$4:$A$3751,AccVelDataLink!$E$4:$E$3751) -> -1
B116: =B115+1 -> 3 | C116: =IF(C115=-1,-1,H115) -> 3 | D116: =LOOKUP(C116,MassDataLink!$A$4:$A$3649,MassDataLink!$B$4:$B$3649) -> 0 | E116: =LOOKUP(C116,MassDataLink!$A$4:$A$3649,MassDataLink!$C$4:$C$3649) -> 50000 | F116: =LOOKUP(C116,MassDataLink!$A$4:$A$3649,MassDataLink!$D$4:$D$3649) -> 3 | G116: =LOOKUP(C116,MassDataLink!$A$4:$A$3649,MassDataLink!$E$4:$E$3649) -> 2 | H116: =LOOKUP(C116,MassDataLink!$A$4:$A$3649,MassDataLink!$F$4:$F$3649) -> 4 | J116: =J115+1 -> 3 | K116: 50 | L116: 3 | N116: =N115+1 -> 2 | O116: =IF(O115=-1,-1,S115) -> -1 | P116: =LOOKUP(O116,AccVelDataLink!$A$4:$A$3751,AccVelDataLink!$B$4:$B$3751) ->  | Q116: =LOOKUP(O116,AccVelDataLink!$A$4:$A$3751,AccVelDataLink!$C$4:$C$3751) ->  | R116: =LOOKUP(O116,AccVelDataLink!$A$4:$A$3751,AccVelDataLink!$D$4:$D$3751) ->  | S116: =LOOKUP(O116,AccVelDataLink!$A$4:$A$3751,AccVelDataLink!$E$4:$E$3751) -> 
B117: =B116+1 -> 4 | C117: =IF(C116=-1,-1,H116) -> 4 | D117: =LOOKUP(C117,MassDataLink!$A$4:$A$3649,MassDataLink!$B$4:$B$3649) -> 0 | E117: =LOOKUP(C117,MassDataLink!$A$4:$A$3649,MassDataLink!$C$4:$C$3649) -> 55000 | F117: =LOOKUP(C117,MassDataLink!$A$4:$A$3649,MassDataLink!$D$4:$D$3649) -> 4 | G117: =LOOKUP(C117,MassDataLink!$A$4:$A$3649,MassDataLink!$E$4:$E$3649) -> 3 | H117: =LOOKUP(C117,MassDataLink!$A$4:$A$3649,MassDataLink!$F$4:$F$3649) -> 5 | J117: =J116+1 -> 4 | K117: 55 | L117: 4 | N117: 3 | O117: =IF(O116=-1,-1,S116) -> -1 | P117: =LOOKUP(O117,AccVelDataLink!$A$4:$A$3751,AccVelDataLink!$B$4:$B$3751) ->  | Q117: =LOOKUP(O117,AccVelDataLink!$A$4:$A$3751,AccVelDataLink!$C$4:$C$3751) ->  | R117: =LOOKUP(O117,AccVelDataLink!$A$4:$A$3751,AccVelDataLink!$D$4:$D$3751) ->  | S117: =LOOKUP(O117,AccVelDataLink!$A$4:$A$3751,AccVelDataLink!$E$4:$E$3751) -> 
B118: =B117+1 -> 5 | C118: =IF(C117=-1,-1,H117) -> 5 | D118: =LOOKUP(C118,MassDataLink!$A$4:$A$3649,MassDataLink!$B$4:$B$3649) -> 1 | E118: =LOOKUP(C118,MassDataLink!$A$4:$A$3649,MassDataLink!$C$4:$C$3649) -> 12000 | F118: =LOOKUP(C118,MassDataLink!$A$4:$A$3649,MassDataLink!$D$4:$D$3649) -> 5 | G118: =LOOKUP(C118,MassDataLink!$A$4:$A$3649,MassDataLink!$E$4:$E$3649) -> 4 | H118: =LOOKUP(C118,MassDataLink!$A$4:$A$3649,MassDataLink!$F$4:$F$3649) -> 6 | J118: =J117+1 -> 5 | K118: - - - | L118: - - - | N118: 4 | O118: -1 | P118: =LOOKUP(O118,AccVelDataLink!$A$4:$A$3751,AccVelDataLink!$B$4:$B$3751) ->  | Q118: =LOOKUP(O118,AccVelDataLink!$A$4:$A$3751,AccVelDataLink!$C$4:$C$3751) ->  | R118: =LOOKUP(O118,AccVelDataLink!$A$4:$A$3751,AccVelDataLink!$D$4:$D$3751) ->  | S118: =LOOKUP(O118,AccVelDataLink!$A$4:$A$3751,AccVelDataLink!$E$4:$E$3751) -> 
B119: =B118+1 -> 6 | C119: =IF(C118=-1,-1,H118) -> 6 | D119: =LOOKUP(C119,MassDataLink!$A$4:$A$3649,MassDataLink!$B$4:$B$3649) -> 1 | E119: =LOOKUP(C119,MassDataLink!$A$4:$A$3649,MassDataLink!$C$4:$C$3649) -> 13000 | F119: =LOOKUP(C119,MassDataLink!$A$4:$A$3649,MassDataLink!$D$4:$D$3649) -> 6 | G119: =LOOKUP(C119,MassDataLink!$A$4:$A$3649,MassDataLink!$E$4:$E$3649) -> 5 | H119: =LOOKUP(C119,MassDataLink!$A$4:$A$3649,MassDataLink!$F$4:$F$3649) -> 7 | J119: =J118+1 -> 6 | K119: - - - | L119: - - - | N119: 5 | O119: -1 | P119: =LOOKUP(O119,AccVelDataLink!$A$4:$A$3751,AccVelDataLink!$B$4:$B$3751) ->  | Q119: =LOOKUP(O119,AccVelDataLink!$A$4:$A$3751,AccVelDataLink!$C$4:$C$3751) ->  | R119: =LOOKUP(O119,AccVelDataLink!$A$4:$A$3751,AccVelDataLink!$D$4:$D$3751) ->  | S119: =LOOKUP(O119,AccVelDataLink!$A$4:$A$3751,AccVelDataLink!$E$4:$E$3751) -> 
B120: 7 | C120: 7 | D120: =LOOKUP(C120,MassDataLink!$A$4:$A$3649,MassDataLink!$B$4:$B$3649) -> 1 | E120: =LOOKUP(C120,MassDataLink!$A$4:$A$3649,MassDataLink!$C$4:$C$3649) -> 14000 | F120: =LOOKUP(C120,MassDataLink!$A$4:$A$3649,MassDataLink!$D$4:$D$3649) -> 7 | G120: =LOOKUP(C120,MassDataLink!$A$4:$A$3649,MassDataLink!$E$4:$E$3649) -> 6 | H120: =LOOKUP(C120,MassDataLink!$A$4:$A$3649,MassDataLink!$F$4:$F$3649) -> -1 | J120: 7 | K120: - - - | L120: - - - | N120: 6 | O120: -1 | P120: =LOOKUP(O120,AccVelDataLink!$A$4:$A$3751,AccVelDataLink!$B$4:$B$3751) ->  | Q120: =LOOKUP(O120,AccVelDataLink!$A$4:$A$3751,AccVelDataLink!$C$4:$C$3751) ->  | R120: =LOOKUP(O120,AccVelDataLink!$A$4:$A$3751,AccVelDataLink!$D$4:$D$3751) ->  | S120: =LOOKUP(O120,AccVelDataLink!$A$4:$A$3751,AccVelDataLink!$E$4:$E$3751) -> 
B121: 8 | C121: -1 | D121: =LOOKUP(C121,MassDataLink!$A$4:$A$3649,MassDataLink!$B$4:$B$3649) ->  | E121: =LOOKUP(C121,MassDataLink!$A$4:$A$3649,MassDataLink!$C$4:$C$3649) ->  | F121: =LOOKUP(C121,MassDataLink!$A$4:$A$3649,MassDataLink!$D$4:$D$3649) ->  | G121: =LOOKUP(C121,MassDataLink!$A$4:$A$3649,MassDataLink!$E$4:$E$3649) ->  | H121: =LOOKUP(C121,MassDataLink!$A$4:$A$3649,MassDataLink!$F$4:$F$3649) ->  | J121: 8 | K121: - - - | L121: - - - | N121: 7 | O121: -1 | P121: =LOOKUP(O121,AccVelDataLink!$A$4:$A$3751,AccVelDataLink!$B$4:$B$3751) ->  | Q121: =LOOKUP(O121,AccVelDataLink!$A$4:$A$3751,AccVelDataLink!$C$4:$C$3751) ->  | R121: =LOOKUP(O121,AccVelDataLink!$A$4:$A$3751,AccVelDataLink!$D$4:$D$3751) ->  | S121: =LOOKUP(O121,AccVelDataLink!$A$4:$A$3751,AccVelDataLink!$E$4:$E$3751) -> 
B122: 9 | C122: -1 | D122: =LOOKUP(C122,MassDataLink!$A$4:$A$3649,MassDataLink!$B$4:$B$3649) ->  | E122: =LOOKUP(C122,MassDataLink!$A$4:$A$3649,MassDataLink!$C$4:$C$3649) ->  | F122: =LOOKUP(C122,MassDataLink!$A$4:$A$3649,MassDataLink!$D$4:$D$3649) ->  | G122: =LOOKUP(C122,MassDataLink!$A$4:$A$3649,MassDataLink!$E$4:$E$3649) ->  | H122: =LOOKUP(C122,MassDataLink!$A$4:$A$3649,MassDataLink!$F$4:$F$3649) ->  | J122: 9 | K122: - - - | L122: - - - | N122: 8 | O122: -1 | P122: =LOOKUP(O122,AccVelDataLink!$A$4:$A$3751,AccVelDataLink!$B$4:$B$3751) ->  | Q122: =LOOKUP(O122,AccVelDataLink!$A$4:$A$3751,AccVelDataLink!$C$4:$C$3751) ->  | R122: =LOOKUP(O122,AccVelDataLink!$A$4:$A$3751,AccVelDataLink!$D$4:$D$3751) ->  | S122: =LOOKUP(O122,AccVelDataLink!$A$4:$A$3751,AccVelDataLink!$E$4:$E$3751) -> 
B123: 10 | C123: -1 | D123: =LOOKUP(C123,MassDataLink!$A$4:$A$3649,MassDataLink!$B$4:$B$3649) ->  | E123: =LOOKUP(C123,MassDataLink!$A$4:$A$3649,MassDataLink!$C$4:$C$3649) ->  | F123: =LOOKUP(C123,MassDataLink!$A$4:$A$3649,MassDataLink!$D$4:$D$3649) ->  | G123: =LOOKUP(C123,MassDataLink!$A$4:$A$3649,MassDataLink!$E$4:$E$3649) ->  | H123: =LOOKUP(C123,MassDataLink!$A$4:$A$3649,MassDataLink!$F$4:$F$3649) ->  | J123: 10 | K123: - - - | L123: - - - | N123: 9 | O123: -1 | P123: =LOOKUP(O123,AccVelDataLink!$A$4:$A$3751,AccVelDataLink!$B$4:$B$3751) ->  | Q123: =LOOKUP(O123,AccVelDataLink!$A$4:$A$3751,AccVelDataLink!$C$4:$C$3751) ->  | R123: =LOOKUP(O123,AccVelDataLink!$A$4:$A$3751,AccVelDataLink!$D$4:$D$3751) ->  | S123: =LOOKUP(O123,AccVelDataLink!$A$4:$A$3751,AccVelDataLink!$E$4:$E$3751) -> 
B124: 11 | C124: -1 | D124: =LOOKUP(C124,MassDataLink!$A$4:$A$3649,MassDataLink!$B$4:$B$3649) ->  | E124: =LOOKUP(C124,MassDataLink!$A$4:$A$3649,MassDataLink!$C$4:$C$3649) ->  | F124: =LOOKUP(C124,MassDataLink!$A$4:$A$3649,MassDataLink!$D$4:$D$3649) ->  | G124: =LOOKUP(C124,MassDataLink!$A$4:$A$3649,MassDataLink!$E$4:$E$3649) ->  | H124: =LOOKUP(C124,MassDataLink!$A$4:$A$3649,MassDataLink!$F$4:$F$3649) ->  | J124: 11 | K124: - - - | L124: - - - | N124: 10 | O124: -1 | P124: =LOOKUP(O124,AccVelDataLink!$A$4:$A$3751,AccVelDataLink!$B$4:$B$3751) ->  | Q124: =LOOKUP(O124,AccVelDataLink!$A$4:$A$3751,AccVelDataLink!$C$4:$C$3751) ->  | R124: =LOOKUP(O124,AccVelDataLink!$A$4:$A$3751,AccVelDataLink!$D$4:$D$3751) ->  | S124: =LOOKUP(O124,AccVelDataLink!$A$4:$A$3751,AccVelDataLink!$E$4:$E$3751) -> 
B125: 12 | C125: -1 | D125: =LOOKUP(C125,MassDataLink!$A$4:$A$3649,MassDataLink!$B$4:$B$3649) ->  | E125: =LOOKUP(C125,MassDataLink!$A$4:$A$3649,MassDataLink!$C$4:$C$3649) ->  | F125: =LOOKUP(C125,MassDataLink!$A$4:$A$3649,MassDataLink!$D$4:$D$3649) ->  | G125: =LOOKUP(C125,MassDataLink!$A$4:$A$3649,MassDataLink!$E$4:$E$3649) ->  | H125: =LOOKUP(C125,MassDataLink!$A$4:$A$3649,MassDataLink!$F$4:$F$3649) ->  | J125: 12 | K125: - - - | L125: - - - | O125: 加速度系数 | P125: 1e-06
B126: 13 | C126: -1 | D126: =LOOKUP(C126,MassDataLink!$A$4:$A$3649,MassDataLink!$B$4:$B$3649) ->  | E126: =LOOKUP(C126,MassDataLink!$A$4:$A$3649,MassDataLink!$C$4:$C$3649) ->  | F126: =LOOKUP(C126,MassDataLink!$A$4:$A$3649,MassDataLink!$D$4:$D$3649) ->  | G126: =LOOKUP(C126,MassDataLink!$A$4:$A$3649,MassDataLink!$E$4:$E$3649) ->  | H126: =LOOKUP(C126,MassDataLink!$A$4:$A$3649,MassDataLink!$F$4:$F$3649) ->  | J126: 13 | K126: - - - | L126: - - - | N126: G | O126: № | P126: 加速度 | Q126: 速度
B127: 14 | C127: -1 | D127: =LOOKUP(C127,MassDataLink!$A$4:$A$3649,MassDataLink!$B$4:$B$3649) ->  | E127: =LOOKUP(C127,MassDataLink!$A$4:$A$3649,MassDataLink!$C$4:$C$3649) ->  | F127: =LOOKUP(C127,MassDataLink!$A$4:$A$3649,MassDataLink!$D$4:$D$3649) ->  | G127: =LOOKUP(C127,MassDataLink!$A$4:$A$3649,MassDataLink!$E$4:$E$3649) ->  | H127: =LOOKUP(C127,MassDataLink!$A$4:$A$3649,MassDataLink!$F$4:$F$3649) ->  | J127: 14 | K127: - - - | L127: - - - | N127: =LeadData!A1 -> 9.80665 | O127: 1 | P127: =IF(O115=-1,$L$112,(P115/$N$127)*$P$125) -> 0.5 | Q127: =IF(O115=-1,$L$112,Q115) -> 240
B128: 15 | C128: -1 | D128: =LOOKUP(C128,MassDataLink!$A$4:$A$3649,MassDataLink!$B$4:$B$3649) ->  | E128: =LOOKUP(C128,MassDataLink!$A$4:$A$3649,MassDataLink!$C$4:$C$3649) ->  | F128: =LOOKUP(C128,MassDataLink!$A$4:$A$3649,MassDataLink!$D$4:$D$3649) ->  | G128: =LOOKUP(C128,MassDataLink!$A$4:$A$3649,MassDataLink!$E$4:$E$3649) ->  | H128: =LOOKUP(C128,MassDataLink!$A$4:$A$3649,MassDataLink!$F$4:$F$3649) ->  | J128: 15 | K128: - - - | L128: - - - | O128: =O127+1 -> 2 | P128: =IF(O116=-1,$L$112,(P116/$N$127)*$P$125) -> - - - | Q128: =IF(O116=-1,$L$112,Q116) -> - - -
B129: 16 | C129: -1 | D129: =LOOKUP(C129,MassDataLink!$A$4:$A$3649,MassDataLink!$B$4:$B$3649) ->  | E129: =LOOKUP(C129,MassDataLink!$A$4:$A$3649,MassDataLink!$C$4:$C$3649) ->  | F129: =LOOKUP(C129,MassDataLink!$A$4:$A$3649,MassDataLink!$D$4:$D$3649) ->  | G129: =LOOKUP(C129,MassDataLink!$A$4:$A$3649,MassDataLink!$E$4:$E$3649) ->  | H129: =LOOKUP(C129,MassDataLink!$A$4:$A$3649,MassDataLink!$F$4:$F$3649) ->  | J129: 16 | K129: - - - | L129: - - - | O129: 3 | P129: - - - | Q129: - - -
B130: 17 | C130: -1 | D130: =LOOKUP(C130,MassDataLink!$A$4:$A$3649,MassDataLink!$B$4:$B$3649) ->  | E130: =LOOKUP(C130,MassDataLink!$A$4:$A$3649,MassDataLink!$C$4:$C$3649) ->  | F130: =LOOKUP(C130,MassDataLink!$A$4:$A$3649,MassDataLink!$D$4:$D$3649) ->  | G130: =LOOKUP(C130,MassDataLink!$A$4:$A$3649,MassDataLink!$E$4:$E$3649) ->  | H130: =LOOKUP(C130,MassDataLink!$A$4:$A$3649,MassDataLink!$F$4:$F$3649) ->  | J130: 17 | K130: - - - | L130: - - - | O130: 4 | P130: - - - | Q130: - - -
B131: 18 | C131: -1 | D131: =LOOKUP(C131,MassDataLink!$A$4:$A$3649,MassDataLink!$B$4:$B$3649) ->  | E131: =LOOKUP(C131,MassDataLink!$A$4:$A$3649,MassDataLink!$C$4:$C$3649) ->  | F131: =LOOKUP(C131,MassDataLink!$A$4:$A$3649,MassDataLink!$D$4:$D$3649) ->  | G131: =LOOKUP(C131,MassDataLink!$A$4:$A$3649,MassDataLink!$E$4:$E$3649) ->  | H131: =LOOKUP(C131,MassDataLink!$A$4:$A$3649,MassDataLink!$F$4:$F$3649) ->  | J131: 18 | K131: - - - | L131: - - - | O131: 5 | P131: - - - | Q131: - - -
B132: 19 | C132: -1 | D132: =LOOKUP(C132,MassDataLink!$A$4:$A$3649,MassDataLink!$B$4:$B$3649) ->  | E132: =LOOKUP(C132,MassDataLink!$A$4:$A$3649,MassDataLink!$C$4:$C$3649) ->  | F132: =LOOKUP(C132,MassDataLink!$A$4:$A$3649,MassDataLink!$D$4:$D$3649) ->  | G132: =LOOKUP(C132,MassDataLink!$A$4:$A$3649,MassDataLink!$E$4:$E$3649) ->  | H132: =LOOKUP(C132,MassDataLink!$A$4:$A$3649,MassDataLink!$F$4:$F$3649) ->  | J132: 19 | K132: - - - | L132: - - - | O132: 6 | P132: - - - | Q132: - - -
B133: 20 | C133: -1 | D133: =LOOKUP(C133,MassDataLink!$A$4:$A$3649,MassDataLink!$B$4:$B$3649) ->  | E133: =LOOKUP(C133,MassDataLink!$A$4:$A$3649,MassDataLink!$C$4:$C$3649) ->  | F133: =LOOKUP(C133,MassDataLink!$A$4:$A$3649,MassDataLink!$D$4:$D$3649) ->  | G133: =LOOKUP(C133,MassDataLink!$A$4:$A$3649,MassDataLink!$E$4:$E$3649) ->  | H133: =LOOKUP(C133,MassDataLink!$A$4:$A$3649,MassDataLink!$F$4:$F$3649) ->  | J133: 20 | K133: - - - | L133: - - - | O133: 7 | P133: - - - | Q133: - - -
B134: 21 | C134: -1 | D134: =LOOKUP(C134,MassDataLink!$A$4:$A$3649,MassDataLink!$B$4:$B$3649) ->  | E134: =LOOKUP(C134,MassDataLink!$A$4:$A$3649,MassDataLink!$C$4:$C$3649) ->  | F134: =LOOKUP(C134,MassDataLink!$A$4:$A$3649,MassDataLink!$D$4:$D$3649) ->  | G134: =LOOKUP(C134,MassDataLink!$A$4:$A$3649,MassDataLink!$E$4:$E$3649) ->  | H134: =LOOKUP(C134,MassDataLink!$A$4:$A$3649,MassDataLink!$F$4:$F$3649) ->  | J134: 21 | K134: - - - | L134: - - - | O134: 8 | P134: - - - | Q134: - - -
B135: 22 | C135: -1 | D135: =LOOKUP(C135,MassDataLink!$A$4:$A$3649,MassDataLink!$B$4:$B$3649) ->  | E135: =LOOKUP(C135,MassDataLink!$A$4:$A$3649,MassDataLink!$C$4:$C$3649) ->  | F135: =LOOKUP(C135,MassDataLink!$A$4:$A$3649,MassDataLink!$D$4:$D$3649) ->  | G135: =LOOKUP(C135,MassDataLink!$A$4:$A$3649,MassDataLink!$E$4:$E$3649) ->  | H135: =LOOKUP(C135,MassDataLink!$A$4:$A$3649,MassDataLink!$F$4:$F$3649) ->  | J135: 22 | K135: - - - | L135: - - - | O135: 9 | P135: - - - | Q135: - - -
B136: 23 | C136: -1 | D136: =LOOKUP(C136,MassDataLink!$A$4:$A$3649,MassDataLink!$B$4:$B$3649) ->  | E136: =LOOKUP(C136,MassDataLink!$A$4:$A$3649,MassDataLink!$C$4:$C$3649) ->  | F136: =LOOKUP(C136,MassDataLink!$A$4:$A$3649,MassDataLink!$D$4:$D$3649) ->  | G136: =LOOKUP(C136,MassDataLink!$A$4:$A$3649,MassDataLink!$E$4:$E$3649) ->  | H136: =LOOKUP(C136,MassDataLink!$A$4:$A$3649,MassDataLink!$F$4:$F$3649) ->  | J136: 23 | K136: - - - | L136: - - - | O136: 10 | P136: - - - | Q136: - - -
B137: =B136+1 -> 24 | C137: =IF(C136=-1,-1,H136) -> -1 | D137: =LOOKUP(C137,MassDataLink!$A$4:$A$3649,MassDataLink!$B$4:$B$3649) ->  | E137: =LOOKUP(C137,MassDataLink!$A$4:$A$3649,MassDataLink!$C$4:$C$3649) ->  | F137: =LOOKUP(C137,MassDataLink!$A$4:$A$3649,MassDataLink!$D$4:$D$3649) ->  | G137: =LOOKUP(C137,MassDataLink!$A$4:$A$3649,MassDataLink!$E$4:$E$3649) ->  | H137: =LOOKUP(C137,MassDataLink!$A$4:$A$3649,MassDataLink!$F$4:$F$3649) ->  | J137: 24 | K137: - - - | L137: - - -
B138: 25 | C138: -1 | D138: =LOOKUP(C138,MassDataLink!$A$4:$A$3649,MassDataLink!$B$4:$B$3649) ->  | E138: =LOOKUP(C138,MassDataLink!$A$4:$A$3649,MassDataLink!$C$4:$C$3649) ->  | F138: =LOOKUP(C138,MassDataLink!$A$4:$A$3649,MassDataLink!$D$4:$D$3649) ->  | G138: =LOOKUP(C138,MassDataLink!$A$4:$A$3649,MassDataLink!$E$4:$E$3649) ->  | H138: =LOOKUP(C138,MassDataLink!$A$4:$A$3649,MassDataLink!$F$4:$F$3649) ->  | J138: 25 | K138: - - - | L138: - - -
B139: 26 | C139: -1 | D139: =LOOKUP(C139,MassDataLink!$A$4:$A$3649,MassDataLink!$B$4:$B$3649) ->  | E139: =LOOKUP(C139,MassDataLink!$A$4:$A$3649,MassDataLink!$C$4:$C$3649) ->  | F139: =LOOKUP(C139,MassDataLink!$A$4:$A$3649,MassDataLink!$D$4:$D$3649) ->  | G139: =LOOKUP(C139,MassDataLink!$A$4:$A$3649,MassDataLink!$E$4:$E$3649) ->  | H139: =LOOKUP(C139,MassDataLink!$A$4:$A$3649,MassDataLink!$F$4:$F$3649) ->  | J139: 26 | K139: - - - | L139: - - -
B140: 27 | C140: -1 | D140: =LOOKUP(C140,MassDataLink!$A$4:$A$3649,MassDataLink!$B$4:$B$3649) ->  | E140: =LOOKUP(C140,MassDataLink!$A$4:$A$3649,MassDataLink!$C$4:$C$3649) ->  | F140: =LOOKUP(C140,MassDataLink!$A$4:$A$3649,MassDataLink!$D$4:$D$3649) ->  | G140: =LOOKUP(C140,MassDataLink!$A$4:$A$3649,MassDataLink!$E$4:$E$3649) ->  | H140: =LOOKUP(C140,MassDataLink!$A$4:$A$3649,MassDataLink!$F$4:$F$3649) ->  | J140: 27 | K140: - - - | L140: - - -
B141: 28 | C141: -1 | D141: =LOOKUP(C141,MassDataLink!$A$4:$A$3649,MassDataLink!$B$4:$B$3649) ->  | E141: =LOOKUP(C141,MassDataLink!$A$4:$A$3649,MassDataLink!$C$4:$C$3649) ->  | F141: =LOOKUP(C141,MassDataLink!$A$4:$A$3649,MassDataLink!$D$4:$D$3649) ->  | G141: =LOOKUP(C141,MassDataLink!$A$4:$A$3649,MassDataLink!$E$4:$E$3649) ->  | H141: =LOOKUP(C141,MassDataLink!$A$4:$A$3649,MassDataLink!$F$4:$F$3649) ->  | J141: 28 | K141: - - - | L141: - - -
B142: 29 | C142: -1 | D142: =LOOKUP(C142,MassDataLink!$A$4:$A$3649,MassDataLink!$B$4:$B$3649) ->  | E142: =LOOKUP(C142,MassDataLink!$A$4:$A$3649,MassDataLink!$C$4:$C$3649) ->  | F142: =LOOKUP(C142,MassDataLink!$A$4:$A$3649,MassDataLink!$D$4:$D$3649) ->  | G142: =LOOKUP(C142,MassDataLink!$A$4:$A$3649,MassDataLink!$E$4:$E$3649) ->  | H142: =LOOKUP(C142,MassDataLink!$A$4:$A$3649,MassDataLink!$F$4:$F$3649) ->  | J142: 29 | K142: - - - | L142: - - -
B143: 30 | C143: -1 | D143: =LOOKUP(C143,MassDataLink!$A$4:$A$3649,MassDataLink!$B$4:$B$3649) ->  | E143: =LOOKUP(C143,MassDataLink!$A$4:$A$3649,MassDataLink!$C$4:$C$3649) ->  | F143: =LOOKUP(C143,MassDataLink!$A$4:$A$3649,MassDataLink!$D$4:$D$3649) ->  | G143: =LOOKUP(C143,MassDataLink!$A$4:$A$3649,MassDataLink!$E$4:$E$3649) ->  | H143: =LOOKUP(C143,MassDataLink!$A$4:$A$3649,MassDataLink!$F$4:$F$3649) ->  | J143: 30 | K143: - - - | L143: - - -
B144: =B143+1 -> 31 | C144: =IF(C143=-1,-1,H143) -> -1 | D144: =LOOKUP(C144,MassDataLink!$A$4:$A$3649,MassDataLink!$B$4:$B$3649) ->  | E144: =LOOKUP(C144,MassDataLink!$A$4:$A$3649,MassDataLink!$C$4:$C$3649) ->  | F144: =LOOKUP(C144,MassDataLink!$A$4:$A$3649,MassDataLink!$D$4:$D$3649) ->  | G144: =LOOKUP(C144,MassDataLink!$A$4:$A$3649,MassDataLink!$E$4:$E$3649) ->  | H144: =LOOKUP(C144,MassDataLink!$A$4:$A$3649,MassDataLink!$F$4:$F$3649) ->  | J144: 31 | K144: - - - | L144: - - -
B145: 32 | C145: -1 | D145: =LOOKUP(C145,MassDataLink!$A$4:$A$3649,MassDataLink!$B$4:$B$3649) ->  | E145: =LOOKUP(C145,MassDataLink!$A$4:$A$3649,MassDataLink!$C$4:$C$3649) ->  | F145: =LOOKUP(C145,MassDataLink!$A$4:$A$3649,MassDataLink!$D$4:$D$3649) ->  | G145: =LOOKUP(C145,MassDataLink!$A$4:$A$3649,MassDataLink!$E$4:$E$3649) ->  | H145: =LOOKUP(C145,MassDataLink!$A$4:$A$3649,MassDataLink!$F$4:$F$3649) ->  | J145: 32 | K145: - - - | L145: - - -
B146: 33 | C146: -1 | D146: =LOOKUP(C146,MassDataLink!$A$4:$A$3649,MassDataLink!$B$4:$B$3649) ->  | E146: =LOOKUP(C146,MassDataLink!$A$4:$A$3649,MassDataLink!$C$4:$C$3649) ->  | F146: =LOOKUP(C146,MassDataLink!$A$4:$A$3649,MassDataLink!$D$4:$D$3649) ->  | G146: =LOOKUP(C146,MassDataLink!$A$4:$A$3649,MassDataLink!$E$4:$E$3649) ->  | H146: =LOOKUP(C146,MassDataLink!$A$4:$A$3649,MassDataLink!$F$4:$F$3649) ->  | J146: 33 | K146: - - - | L146: - - -
B147: 34 | C147: -1 | D147: =LOOKUP(C147,MassDataLink!$A$4:$A$3649,MassDataLink!$B$4:$B$3649) ->  | E147: =LOOKUP(C147,MassDataLink!$A$4:$A$3649,MassDataLink!$C$4:$C$3649) ->  | F147: =LOOKUP(C147,MassDataLink!$A$4:$A$3649,MassDataLink!$D$4:$D$3649) ->  | G147: =LOOKUP(C147,MassDataLink!$A$4:$A$3649,MassDataLink!$E$4:$E$3649) ->  | H147: =LOOKUP(C147,MassDataLink!$A$4:$A$3649,MassDataLink!$F$4:$F$3649) ->  | J147: 34 | K147: - - - | L147: - - -
B148: 35 | C148: -1 | D148: =LOOKUP(C148,MassDataLink!$A$4:$A$3649,MassDataLink!$B$4:$B$3649) ->  | E148: =LOOKUP(C148,MassDataLink!$A$4:$A$3649,MassDataLink!$C$4:$C$3649) ->  | F148: =LOOKUP(C148,MassDataLink!$A$4:$A$3649,MassDataLink!$D$4:$D$3649) ->  | G148: =LOOKUP(C148,MassDataLink!$A$4:$A$3649,MassDataLink!$E$4:$E$3649) ->  | H148: =LOOKUP(C148,MassDataLink!$A$4:$A$3649,MassDataLink!$F$4:$F$3649) ->  | J148: 35 | K148: - - - | L148: - - -
B149: 36 | C149: -1 | D149: =LOOKUP(C149,MassDataLink!$A$4:$A$3649,MassDataLink!$B$4:$B$3649) ->  | E149: =LOOKUP(C149,MassDataLink!$A$4:$A$3649,MassDataLink!$C$4:$C$3649) ->  | F149: =LOOKUP(C149,MassDataLink!$A$4:$A$3649,MassDataLink!$D$4:$D$3649) ->  | G149: =LOOKUP(C149,MassDataLink!$A$4:$A$3649,MassDataLink!$E$4:$E$3649) ->  | H149: =LOOKUP(C149,MassDataLink!$A$4:$A$3649,MassDataLink!$F$4:$F$3649) ->  | J149: 36 | K149: - - - | L149: - - -
B150: 37 | C150: -1 | D150: =LOOKUP(C150,MassDataLink!$A$4:$A$3649,MassDataLink!$B$4:$B$3649) ->  | E150: =LOOKUP(C150,MassDataLink!$A$4:$A$3649,MassDataLink!$C$4:$C$3649) ->  | F150: =LOOKUP(C150,MassDataLink!$A$4:$A$3649,MassDataLink!$D$4:$D$3649) ->  | G150: =LOOKUP(C150,MassDataLink!$A$4:$A$3649,MassDataLink!$E$4:$E$3649) ->  | H150: =LOOKUP(C150,MassDataLink!$A$4:$A$3649,MassDataLink!$F$4:$F$3649) ->  | J150: 37 | K150: - - - | L150: - - -
B151: 38 | C151: -1 | D151: =LOOKUP(C151,MassDataLink!$A$4:$A$3649,MassDataLink!$B$4:$B$3649) ->  | E151: =LOOKUP(C151,MassDataLink!$A$4:$A$3649,MassDataLink!$C$4:$C$3649) ->  | F151: =LOOKUP(C151,MassDataLink!$A$4:$A$3649,MassDataLink!$D$4:$D$3649) ->  | G151: =LOOKUP(C151,MassDataLink!$A$4:$A$3649,MassDataLink!$E$4:$E$3649) ->  | H151: =LOOKUP(C151,MassDataLink!$A$4:$A$3649,MassDataLink!$F$4:$F$3649) ->  | J151: 38 | K151: - - - | L151: - - -
B152: 39 | C152: -1 | D152: =LOOKUP(C152,MassDataLink!$A$4:$A$3649,MassDataLink!$B$4:$B$3649) ->  | E152: =LOOKUP(C152,MassDataLink!$A$4:$A$3649,MassDataLink!$C$4:$C$3649) ->  | F152: =LOOKUP(C152,MassDataLink!$A$4:$A$3649,MassDataLink!$D$4:$D$3649) ->  | G152: =LOOKUP(C152,MassDataLink!$A$4:$A$3649,MassDataLink!$E$4:$E$3649) ->  | H152: =LOOKUP(C152,MassDataLink!$A$4:$A$3649,MassDataLink!$F$4:$F$3649) ->  | J152: 39 | K152: - - - | L152: - - -
B153: 40 | C153: -1 | D153: =LOOKUP(C153,MassDataLink!$A$4:$A$3649,MassDataLink!$B$4:$B$3649) ->  | E153: =LOOKUP(C153,MassDataLink!$A$4:$A$3649,MassDataLink!$C$4:$C$3649) ->  | F153: =LOOKUP(C153,MassDataLink!$A$4:$A$3649,MassDataLink!$D$4:$D$3649) ->  | G153: =LOOKUP(C153,MassDataLink!$A$4:$A$3649,MassDataLink!$E$4:$E$3649) ->  | H153: =LOOKUP(C153,MassDataLink!$A$4:$A$3649,MassDataLink!$F$4:$F$3649) ->  | J153: 40 | K153: - - - | L153: - - -
B154: 41 | C154: -1 | D154: =LOOKUP(C154,MassDataLink!$A$4:$A$3649,MassDataLink!$B$4:$B$3649) ->  | E154: =LOOKUP(C154,MassDataLink!$A$4:$A$3649,MassDataLink!$C$4:$C$3649) ->  | F154: =LOOKUP(C154,MassDataLink!$A$4:$A$3649,MassDataLink!$D$4:$D$3649) ->  | G154: =LOOKUP(C154,MassDataLink!$A$4:$A$3649,MassDataLink!$E$4:$E$3649) ->  | H154: =LOOKUP(C154,MassDataLink!$A$4:$A$3649,MassDataLink!$F$4:$F$3649) ->  | J154: 41 | K154: - - - | L154: - - -
B155: 42 | C155: -1 | D155: =LOOKUP(C155,MassDataLink!$A$4:$A$3649,MassDataLink!$B$4:$B$3649) ->  | E155: =LOOKUP(C155,MassDataLink!$A$4:$A$3649,MassDataLink!$C$4:$C$3649) ->  | F155: =LOOKUP(C155,MassDataLink!$A$4:$A$3649,MassDataLink!$D$4:$D$3649) ->  | G155: =LOOKUP(C155,MassDataLink!$A$4:$A$3649,MassDataLink!$E$4:$E$3649) ->  | H155: =LOOKUP(C155,MassDataLink!$A$4:$A$3649,MassDataLink!$F$4:$F$3649) ->  | J155: 42 | K155: - - - | L155: - - -
B156: 43 | C156: -1 | D156: =LOOKUP(C156,MassDataLink!$A$4:$A$3649,MassDataLink!$B$4:$B$3649) ->  | E156: =LOOKUP(C156,MassDataLink!$A$4:$A$3649,MassDataLink!$C$4:$C$3649) ->  | F156: =LOOKUP(C156,MassDataLink!$A$4:$A$3649,MassDataLink!$D$4:$D$3649) ->  | G156: =LOOKUP(C156,MassDataLink!$A$4:$A$3649,MassDataLink!$E$4:$E$3649) ->  | H156: =LOOKUP(C156,MassDataLink!$A$4:$A$3649,MassDataLink!$F$4:$F$3649) ->  | J156: 43 | K156: - - - | L156: - - -
B157: 44 | C157: -1 | D157: =LOOKUP(C157,MassDataLink!$A$4:$A$3649,MassDataLink!$B$4:$B$3649) ->  | E157: =LOOKUP(C157,MassDataLink!$A$4:$A$3649,MassDataLink!$C$4:$C$3649) ->  | F157: =LOOKUP(C157,MassDataLink!$A$4:$A$3649,MassDataLink!$D$4:$D$3649) ->  | G157: =LOOKUP(C157,MassDataLink!$A$4:$A$3649,MassDataLink!$E$4:$E$3649) ->  | H157: =LOOKUP(C157,MassDataLink!$A$4:$A$3649,MassDataLink!$F$4:$F$3649) ->  | J157: 44 | K157: - - - | L157: - - -
B158: 45 | C158: -1 | D158: =LOOKUP(C158,MassDataLink!$A$4:$A$3649,MassDataLink!$B$4:$B$3649) ->  | E158: =LOOKUP(C158,MassDataLink!$A$4:$A$3649,MassDataLink!$C$4:$C$3649) ->  | F158: =LOOKUP(C158,MassDataLink!$A$4:$A$3649,MassDataLink!$D$4:$D$3649) ->  | G158: =LOOKUP(C158,MassDataLink!$A$4:$A$3649,MassDataLink!$E$4:$E$3649) ->  | H158: =LOOKUP(C158,MassDataLink!$A$4:$A$3649,MassDataLink!$F$4:$F$3649) ->  | J158: 45 | K158: - - - | L158: - - -
B159: 46 | C159: -1 | D159: =LOOKUP(C159,MassDataLink!$A$4:$A$3649,MassDataLink!$B$4:$B$3649) ->  | E159: =LOOKUP(C159,MassDataLink!$A$4:$A$3649,MassDataLink!$C$4:$C$3649) ->  | F159: =LOOKUP(C159,MassDataLink!$A$4:$A$3649,MassDataLink!$D$4:$D$3649) ->  | G159: =LOOKUP(C159,MassDataLink!$A$4:$A$3649,MassDataLink!$E$4:$E$3649) ->  | H159: =LOOKUP(C159,MassDataLink!$A$4:$A$3649,MassDataLink!$F$4:$F$3649) ->  | J159: 46 | K159: - - - | L159: - - -
B160: 47 | C160: -1 | D160: =LOOKUP(C160,MassDataLink!$A$4:$A$3649,MassDataLink!$B$4:$B$3649) ->  | E160: =LOOKUP(C160,MassDataLink!$A$4:$A$3649,MassDataLink!$C$4:$C$3649) ->  | F160: =LOOKUP(C160,MassDataLink!$A$4:$A$3649,MassDataLink!$D$4:$D$3649) ->  | G160: =LOOKUP(C160,MassDataLink!$A$4:$A$3649,MassDataLink!$E$4:$E$3649) ->  | H160: =LOOKUP(C160,MassDataLink!$A$4:$A$3649,MassDataLink!$F$4:$F$3649) ->  | J160: 47 | K160: - - - | L160: - - -
B161: 48 | C161: -1 | D161: =LOOKUP(C161,MassDataLink!$A$4:$A$3649,MassDataLink!$B$4:$B$3649) ->  | E161: =LOOKUP(C161,MassDataLink!$A$4:$A$3649,MassDataLink!$C$4:$C$3649) ->  | F161: =LOOKUP(C161,MassDataLink!$A$4:$A$3649,MassDataLink!$D$4:$D$3649) ->  | G161: =LOOKUP(C161,MassDataLink!$A$4:$A$3649,MassDataLink!$E$4:$E$3649) ->  | H161: =LOOKUP(C161,MassDataLink!$A$4:$A$3649,MassDataLink!$F$4:$F$3649) ->  | J161: 48 | K161: - - - | L161: - - -
B162: 49 | C162: -1 | D162: =LOOKUP(C162,MassDataLink!$A$4:$A$3649,MassDataLink!$B$4:$B$3649) ->  | E162: =LOOKUP(C162,MassDataLink!$A$4:$A$3649,MassDataLink!$C$4:$C$3649) ->  | F162: =LOOKUP(C162,MassDataLink!$A$4:$A$3649,MassDataLink!$D$4:$D$3649) ->  | G162: =LOOKUP(C162,MassDataLink!$A$4:$A$3649,MassDataLink!$E$4:$E$3649) ->  | H162: =LOOKUP(C162,MassDataLink!$A$4:$A$3649,MassDataLink!$F$4:$F$3649) ->  | J162: 49 | K162: - - - | L162: - - -
B163: 50 | C163: -1 | D163: =LOOKUP(C163,MassDataLink!$A$4:$A$3649,MassDataLink!$B$4:$B$3649) ->  | E163: =LOOKUP(C163,MassDataLink!$A$4:$A$3649,MassDataLink!$C$4:$C$3649) ->  | F163: =LOOKUP(C163,MassDataLink!$A$4:$A$3649,MassDataLink!$D$4:$D$3649) ->  | G163: =LOOKUP(C163,MassDataLink!$A$4:$A$3649,MassDataLink!$E$4:$E$3649) ->  | H163: =LOOKUP(C163,MassDataLink!$A$4:$A$3649,MassDataLink!$F$4:$F$3649) ->  | J163: 50 | K163: - - - | L163: - - -
B164: =B163+1 -> 51 | C164: =IF(C163=-1,-1,H163) -> -1 | D164: =LOOKUP(C164,MassDataLink!$A$4:$A$3649,MassDataLink!$B$4:$B$3649) ->  | E164: =LOOKUP(C164,MassDataLink!$A$4:$A$3649,MassDataLink!$C$4:$C$3649) ->  | F164: =LOOKUP(C164,MassDataLink!$A$4:$A$3649,MassDataLink!$D$4:$D$3649) ->  | G164: =LOOKUP(C164,MassDataLink!$A$4:$A$3649,MassDataLink!$E$4:$E$3649) ->  | H164: =LOOKUP(C164,MassDataLink!$A$4:$A$3649,MassDataLink!$F$4:$F$3649) ->  | J164: =J163+1 -> 51 | K164: =IF(C164=-1,$L$112,IF($A$11=D164,ROUND((E164*$P$57),$R$57),$L$112)) -> - - - | L164: =IF(K164=$L$112,$L$112,F164) -> - - -
B165: 52 | C165: -1 | D165: =LOOKUP(C165,MassDataLink!$A$4:$A$3649,MassDataLink!$B$4:$B$3649) ->  | E165: =LOOKUP(C165,MassDataLink!$A$4:$A$3649,MassDataLink!$C$4:$C$3649) ->  | F165: =LOOKUP(C165,MassDataLink!$A$4:$A$3649,MassDataLink!$D$4:$D$3649) ->  | G165: =LOOKUP(C165,MassDataLink!$A$4:$A$3649,MassDataLink!$E$4:$E$3649) ->  | H165: =LOOKUP(C165,MassDataLink!$A$4:$A$3649,MassDataLink!$F$4:$F$3649) ->  | J165: 52 | K165: - - - | L165: - - -
B166: 53 | C166: -1 | D166: =LOOKUP(C166,MassDataLink!$A$4:$A$3649,MassDataLink!$B$4:$B$3649) ->  | E166: =LOOKUP(C166,MassDataLink!$A$4:$A$3649,MassDataLink!$C$4:$C$3649) ->  | F166: =LOOKUP(C166,MassDataLink!$A$4:$A$3649,MassDataLink!$D$4:$D$3649) ->  | G166: =LOOKUP(C166,MassDataLink!$A$4:$A$3649,MassDataLink!$E$4:$E$3649) ->  | H166: =LOOKUP(C166,MassDataLink!$A$4:$A$3649,MassDataLink!$F$4:$F$3649) ->  | J166: 53 | K166: - - - | L166: - - -
B167: 54 | C167: -1 | D167: =LOOKUP(C167,MassDataLink!$A$4:$A$3649,MassDataLink!$B$4:$B$3649) ->  | E167: =LOOKUP(C167,MassDataLink!$A$4:$A$3649,MassDataLink!$C$4:$C$3649) ->  | F167: =LOOKUP(C167,MassDataLink!$A$4:$A$3649,MassDataLink!$D$4:$D$3649) ->  | G167: =LOOKUP(C167,MassDataLink!$A$4:$A$3649,MassDataLink!$E$4:$E$3649) ->  | H167: =LOOKUP(C167,MassDataLink!$A$4:$A$3649,MassDataLink!$F$4:$F$3649) ->  | J167: 54 | K167: - - - | L167: - - -
B168: 55 | C168: -1 | D168: =LOOKUP(C168,MassDataLink!$A$4:$A$3649,MassDataLink!$B$4:$B$3649) ->  | E168: =LOOKUP(C168,MassDataLink!$A$4:$A$3649,MassDataLink!$C$4:$C$3649) ->  | F168: =LOOKUP(C168,MassDataLink!$A$4:$A$3649,MassDataLink!$D$4:$D$3649) ->  | G168: =LOOKUP(C168,MassDataLink!$A$4:$A$3649,MassDataLink!$E$4:$E$3649) ->  | H168: =LOOKUP(C168,MassDataLink!$A$4:$A$3649,MassDataLink!$F$4:$F$3649) ->  | J168: 55 | K168: - - - | L168: - - -
B169: 56 | C169: -1 | D169: =LOOKUP(C169,MassDataLink!$A$4:$A$3649,MassDataLink!$B$4:$B$3649) ->  | E169: =LOOKUP(C169,MassDataLink!$A$4:$A$3649,MassDataLink!$C$4:$C$3649) ->  | F169: =LOOKUP(C169,MassDataLink!$A$4:$A$3649,MassDataLink!$D$4:$D$3649) ->  | G169: =LOOKUP(C169,MassDataLink!$A$4:$A$3649,MassDataLink!$E$4:$E$3649) ->  | H169: =LOOKUP(C169,MassDataLink!$A$4:$A$3649,MassDataLink!$F$4:$F$3649) ->  | J169: 56 | K169: - - - | L169: - - -
B170: 57 | C170: -1 | D170: =LOOKUP(C170,MassDataLink!$A$4:$A$3649,MassDataLink!$B$4:$B$3649) ->  | E170: =LOOKUP(C170,MassDataLink!$A$4:$A$3649,MassDataLink!$C$4:$C$3649) ->  | F170: =LOOKUP(C170,MassDataLink!$A$4:$A$3649,MassDataLink!$D$4:$D$3649) ->  | G170: =LOOKUP(C170,MassDataLink!$A$4:$A$3649,MassDataLink!$E$4:$E$3649) ->  | H170: =LOOKUP(C170,MassDataLink!$A$4:$A$3649,MassDataLink!$F$4:$F$3649) ->  | J170: 57 | K170: - - - | L170: - - -
B171: 58 | C171: -1 | D171: =LOOKUP(C171,MassDataLink!$A$4:$A$3649,MassDataLink!$B$4:$B$3649) ->  | E171: =LOOKUP(C171,MassDataLink!$A$4:$A$3649,MassDataLink!$C$4:$C$3649) ->  | F171: =LOOKUP(C171,MassDataLink!$A$4:$A$3649,MassDataLink!$D$4:$D$3649) ->  | G171: =LOOKUP(C171,MassDataLink!$A$4:$A$3649,MassDataLink!$E$4:$E$3649) ->  | H171: =LOOKUP(C171,MassDataLink!$A$4:$A$3649,MassDataLink!$F$4:$F$3649) ->  | J171: 58 | K171: - - - | L171: - - -
B172: 59 | C172: -1 | D172: =LOOKUP(C172,MassDataLink!$A$4:$A$3649,MassDataLink!$B$4:$B$3649) ->  | E172: =LOOKUP(C172,MassDataLink!$A$4:$A$3649,MassDataLink!$C$4:$C$3649) ->  | F172: =LOOKUP(C172,MassDataLink!$A$4:$A$3649,MassDataLink!$D$4:$D$3649) ->  | G172: =LOOKUP(C172,MassDataLink!$A$4:$A$3649,MassDataLink!$E$4:$E$3649) ->  | H172: =LOOKUP(C172,MassDataLink!$A$4:$A$3649,MassDataLink!$F$4:$F$3649) ->  | J172: 59 | K172: - - - | L172: - - -
B173: 60 | C173: -1 | D173: =LOOKUP(C173,MassDataLink!$A$4:$A$3649,MassDataLink!$B$4:$B$3649) ->  | E173: =LOOKUP(C173,MassDataLink!$A$4:$A$3649,MassDataLink!$C$4:$C$3649) ->  | F173: =LOOKUP(C173,MassDataLink!$A$4:$A$3649,MassDataLink!$D$4:$D$3649) ->  | G173: =LOOKUP(C173,MassDataLink!$A$4:$A$3649,MassDataLink!$E$4:$E$3649) ->  | H173: =LOOKUP(C173,MassDataLink!$A$4:$A$3649,MassDataLink!$F$4:$F$3649) ->  | J173: 60 | K173: - - - | L173: - - -
B174: 61 | C174: -1 | D174: =LOOKUP(C174,MassDataLink!$A$4:$A$3649,MassDataLink!$B$4:$B$3649) ->  | E174: =LOOKUP(C174,MassDataLink!$A$4:$A$3649,MassDataLink!$C$4:$C$3649) ->  | F174: =LOOKUP(C174,MassDataLink!$A$4:$A$3649,MassDataLink!$D$4:$D$3649) ->  | G174: =LOOKUP(C174,MassDataLink!$A$4:$A$3649,MassDataLink!$E$4:$E$3649) ->  | H174: =LOOKUP(C174,MassDataLink!$A$4:$A$3649,MassDataLink!$F$4:$F$3649) ->  | J174: 61 | K174: - - - | L174: - - -
B175: 62 | C175: -1 | D175: =LOOKUP(C175,MassDataLink!$A$4:$A$3649,MassDataLink!$B$4:$B$3649) ->  | E175: =LOOKUP(C175,MassDataLink!$A$4:$A$3649,MassDataLink!$C$4:$C$3649) ->  | F175: =LOOKUP(C175,MassDataLink!$A$4:$A$3649,MassDataLink!$D$4:$D$3649) ->  | G175: =LOOKUP(C175,MassDataLink!$A$4:$A$3649,MassDataLink!$E$4:$E$3649) ->  | H175: =LOOKUP(C175,MassDataLink!$A$4:$A$3649,MassDataLink!$F$4:$F$3649) ->  | J175: 62 | K175: - - - | L175: - - -
B176: 63 | C176: -1 | D176: =LOOKUP(C176,MassDataLink!$A$4:$A$3649,MassDataLink!$B$4:$B$3649) ->  | E176: =LOOKUP(C176,MassDataLink!$A$4:$A$3649,MassDataLink!$C$4:$C$3649) ->  | F176: =LOOKUP(C176,MassDataLink!$A$4:$A$3649,MassDataLink!$D$4:$D$3649) ->  | G176: =LOOKUP(C176,MassDataLink!$A$4:$A$3649,MassDataLink!$E$4:$E$3649) ->  | H176: =LOOKUP(C176,MassDataLink!$A$4:$A$3649,MassDataLink!$F$4:$F$3649) ->  | J176: 63 | K176: - - - | L176: - - -
B177: 64 | C177: -1 | D177: =LOOKUP(C177,MassDataLink!$A$4:$A$3649,MassDataLink!$B$4:$B$3649) ->  | E177: =LOOKUP(C177,MassDataLink!$A$4:$A$3649,MassDataLink!$C$4:$C$3649) ->  | F177: =LOOKUP(C177,MassDataLink!$A$4:$A$3649,MassDataLink!$D$4:$D$3649) ->  | G177: =LOOKUP(C177,MassDataLink!$A$4:$A$3649,MassDataLink!$E$4:$E$3649) ->  | H177: =LOOKUP(C177,MassDataLink!$A$4:$A$3649,MassDataLink!$F$4:$F$3649) ->  | J177: 64 | K177: - - - | L177: - - -
B178: 65 | C178: -1 | D178: =LOOKUP(C178,MassDataLink!$A$4:$A$3649,MassDataLink!$B$4:$B$3649) ->  | E178: =LOOKUP(C178,MassDataLink!$A$4:$A$3649,MassDataLink!$C$4:$C$3649) ->  | F178: =LOOKUP(C178,MassDataLink!$A$4:$A$3649,MassDataLink!$D$4:$D$3649) ->  | G178: =LOOKUP(C178,MassDataLink!$A$4:$A$3649,MassDataLink!$E$4:$E$3649) ->  | H178: =LOOKUP(C178,MassDataLink!$A$4:$A$3649,MassDataLink!$F$4:$F$3649) ->  | J178: 65 | K178: - - - | L178: - - -
B179: 66 | C179: -1 | D179: =LOOKUP(C179,MassDataLink!$A$4:$A$3649,MassDataLink!$B$4:$B$3649) ->  | E179: =LOOKUP(C179,MassDataLink!$A$4:$A$3649,MassDataLink!$C$4:$C$3649) ->  | F179: =LOOKUP(C179,MassDataLink!$A$4:$A$3649,MassDataLink!$D$4:$D$3649) ->  | G179: =LOOKUP(C179,MassDataLink!$A$4:$A$3649,MassDataLink!$E$4:$E$3649) ->  | H179: =LOOKUP(C179,MassDataLink!$A$4:$A$3649,MassDataLink!$F$4:$F$3649) ->  | J179: 66 | K179: - - - | L179: - - -
B180: 67 | C180: -1 | D180: =LOOKUP(C180,MassDataLink!$A$4:$A$3649,MassDataLink!$B$4:$B$3649) ->  | E180: =LOOKUP(C180,MassDataLink!$A$4:$A$3649,MassDataLink!$C$4:$C$3649) ->  | F180: =LOOKUP(C180,MassDataLink!$A$4:$A$3649,MassDataLink!$D$4:$D$3649) ->  | G180: =LOOKUP(C180,MassDataLink!$A$4:$A$3649,MassDataLink!$E$4:$E$3649) ->  | H180: =LOOKUP(C180,MassDataLink!$A$4:$A$3649,MassDataLink!$F$4:$F$3649) ->  | J180: 67 | K180: - - - | L180: - - -
B181: 68 | C181: -1 | D181: =LOOKUP(C181,MassDataLink!$A$4:$A$3649,MassDataLink!$B$4:$B$3649) ->  | E181: =LOOKUP(C181,MassDataLink!$A$4:$A$3649,MassDataLink!$C$4:$C$3649) ->  | F181: =LOOKUP(C181,MassDataLink!$A$4:$A$3649,MassDataLink!$D$4:$D$3649) ->  | G181: =LOOKUP(C181,MassDataLink!$A$4:$A$3649,MassDataLink!$E$4:$E$3649) ->  | H181: =LOOKUP(C181,MassDataLink!$A$4:$A$3649,MassDataLink!$F$4:$F$3649) ->  | J181: 68 | K181: - - - | L181: - - -
B182: 69 | C182: -1 | D182: =LOOKUP(C182,MassDataLink!$A$4:$A$3649,MassDataLink!$B$4:$B$3649) ->  | E182: =LOOKUP(C182,MassDataLink!$A$4:$A$3649,MassDataLink!$C$4:$C$3649) ->  | F182: =LOOKUP(C182,MassDataLink!$A$4:$A$3649,MassDataLink!$D$4:$D$3649) ->  | G182: =LOOKUP(C182,MassDataLink!$A$4:$A$3649,MassDataLink!$E$4:$E$3649) ->  | H182: =LOOKUP(C182,MassDataLink!$A$4:$A$3649,MassDataLink!$F$4:$F$3649) ->  | J182: 69 | K182: - - - | L182: - - -
B183: 70 | C183: -1 | D183: =LOOKUP(C183,MassDataLink!$A$4:$A$3649,MassDataLink!$B$4:$B$3649) ->  | E183: =LOOKUP(C183,MassDataLink!$A$4:$A$3649,MassDataLink!$C$4:$C$3649) ->  | F183: =LOOKUP(C183,MassDataLink!$A$4:$A$3649,MassDataLink!$D$4:$D$3649) ->  | G183: =LOOKUP(C183,MassDataLink!$A$4:$A$3649,MassDataLink!$E$4:$E$3649) ->  | H183: =LOOKUP(C183,MassDataLink!$A$4:$A$3649,MassDataLink!$F$4:$F$3649) ->  | J183: 70 | K183: - - - | L183: - - -
B184: 71 | C184: -1 | D184: =LOOKUP(C184,MassDataLink!$A$4:$A$3649,MassDataLink!$B$4:$B$3649) ->  | E184: =LOOKUP(C184,MassDataLink!$A$4:$A$3649,MassDataLink!$C$4:$C$3649) ->  | F184: =LOOKUP(C184,MassDataLink!$A$4:$A$3649,MassDataLink!$D$4:$D$3649) ->  | G184: =LOOKUP(C184,MassDataLink!$A$4:$A$3649,MassDataLink!$E$4:$E$3649) ->  | H184: =LOOKUP(C184,MassDataLink!$A$4:$A$3649,MassDataLink!$F$4:$F$3649) ->  | J184: 71 | K184: - - - | L184: - - -
B185: 72 | C185: -1 | D185: =LOOKUP(C185,MassDataLink!$A$4:$A$3649,MassDataLink!$B$4:$B$3649) ->  | E185: =LOOKUP(C185,MassDataLink!$A$4:$A$3649,MassDataLink!$C$4:$C$3649) ->  | F185: =LOOKUP(C185,MassDataLink!$A$4:$A$3649,MassDataLink!$D$4:$D$3649) ->  | G185: =LOOKUP(C185,MassDataLink!$A$4:$A$3649,MassDataLink!$E$4:$E$3649) ->  | H185: =LOOKUP(C185,MassDataLink!$A$4:$A$3649,MassDataLink!$F$4:$F$3649) ->  | J185: 72 | K185: - - - | L185: - - -
B186: 73 | C186: -1 | D186: =LOOKUP(C186,MassDataLink!$A$4:$A$3649,MassDataLink!$B$4:$B$3649) ->  | E186: =LOOKUP(C186,MassDataLink!$A$4:$A$3649,MassDataLink!$C$4:$C$3649) ->  | F186: =LOOKUP(C186,MassDataLink!$A$4:$A$3649,MassDataLink!$D$4:$D$3649) ->  | G186: =LOOKUP(C186,MassDataLink!$A$4:$A$3649,MassDataLink!$E$4:$E$3649) ->  | H186: =LOOKUP(C186,MassDataLink!$A$4:$A$3649,MassDataLink!$F$4:$F$3649) ->  | J186: 73 | K186: - - - | L186: - - -
B187: 74 | C187: -1 | D187: =LOOKUP(C187,MassDataLink!$A$4:$A$3649,MassDataLink!$B$4:$B$3649) ->  | E187: =LOOKUP(C187,MassDataLink!$A$4:$A$3649,MassDataLink!$C$4:$C$3649) ->  | F187: =LOOKUP(C187,MassDataLink!$A$4:$A$3649,MassDataLink!$D$4:$D$3649) ->  | G187: =LOOKUP(C187,MassDataLink!$A$4:$A$3649,MassDataLink!$E$4:$E$3649) ->  | H187: =LOOKUP(C187,MassDataLink!$A$4:$A$3649,MassDataLink!$F$4:$F$3649) ->  | J187: 74 | K187: - - - | L187: - - -
B188: 75 | C188: -1 | D188: =LOOKUP(C188,MassDataLink!$A$4:$A$3649,MassDataLink!$B$4:$B$3649) ->  | E188: =LOOKUP(C188,MassDataLink!$A$4:$A$3649,MassDataLink!$C$4:$C$3649) ->  | F188: =LOOKUP(C188,MassDataLink!$A$4:$A$3649,MassDataLink!$D$4:$D$3649) ->  | G188: =LOOKUP(C188,MassDataLink!$A$4:$A$3649,MassDataLink!$E$4:$E$3649) ->  | H188: =LOOKUP(C188,MassDataLink!$A$4:$A$3649,MassDataLink!$F$4:$F$3649) ->  | J188: 75 | K188: - - - | L188: - - -
B189: 76 | C189: -1 | D189: =LOOKUP(C189,MassDataLink!$A$4:$A$3649,MassDataLink!$B$4:$B$3649) ->  | E189: =LOOKUP(C189,MassDataLink!$A$4:$A$3649,MassDataLink!$C$4:$C$3649) ->  | F189: =LOOKUP(C189,MassDataLink!$A$4:$A$3649,MassDataLink!$D$4:$D$3649) ->  | G189: =LOOKUP(C189,MassDataLink!$A$4:$A$3649,MassDataLink!$E$4:$E$3649) ->  | H189: =LOOKUP(C189,MassDataLink!$A$4:$A$3649,MassDataLink!$F$4:$F$3649) ->  | J189: 76 | K189: - - - | L189: - - -
B190: 77 | C190: -1 | D190: =LOOKUP(C190,MassDataLink!$A$4:$A$3649,MassDataLink!$B$4:$B$3649) ->  | E190: =LOOKUP(C190,MassDataLink!$A$4:$A$3649,MassDataLink!$C$4:$C$3649) ->  | F190: =LOOKUP(C190,MassDataLink!$A$4:$A$3649,MassDataLink!$D$4:$D$3649) ->  | G190: =LOOKUP(C190,MassDataLink!$A$4:$A$3649,MassDataLink!$E$4:$E$3649) ->  | H190: =LOOKUP(C190,MassDataLink!$A$4:$A$3649,MassDataLink!$F$4:$F$3649) ->  | J190: 77 | K190: - - - | L190: - - -
B191: 78 | C191: -1 | D191: =LOOKUP(C191,MassDataLink!$A$4:$A$3649,MassDataLink!$B$4:$B$3649) ->  | E191: =LOOKUP(C191,MassDataLink!$A$4:$A$3649,MassDataLink!$C$4:$C$3649) ->  | F191: =LOOKUP(C191,MassDataLink!$A$4:$A$3649,MassDataLink!$D$4:$D$3649) ->  | G191: =LOOKUP(C191,MassDataLink!$A$4:$A$3649,MassDataLink!$E$4:$E$3649) ->  | H191: =LOOKUP(C191,MassDataLink!$A$4:$A$3649,MassDataLink!$F$4:$F$3649) ->  | J191: 78 | K191: - - - | L191: - - -
B192: 79 | C192: -1 | D192: =LOOKUP(C192,MassDataLink!$A$4:$A$3649,MassDataLink!$B$4:$B$3649) ->  | E192: =LOOKUP(C192,MassDataLink!$A$4:$A$3649,MassDataLink!$C$4:$C$3649) ->  | F192: =LOOKUP(C192,MassDataLink!$A$4:$A$3649,MassDataLink!$D$4:$D$3649) ->  | G192: =LOOKUP(C192,MassDataLink!$A$4:$A$3649,MassDataLink!$E$4:$E$3649) ->  | H192: =LOOKUP(C192,MassDataLink!$A$4:$A$3649,MassDataLink!$F$4:$F$3649) ->  | J192: 79 | K192: - - - | L192: - - -
B193: 80 | C193: -1 | D193: =LOOKUP(C193,MassDataLink!$A$4:$A$3649,MassDataLink!$B$4:$B$3649) ->  | E193: =LOOKUP(C193,MassDataLink!$A$4:$A$3649,MassDataLink!$C$4:$C$3649) ->  | F193: =LOOKUP(C193,MassDataLink!$A$4:$A$3649,MassDataLink!$D$4:$D$3649) ->  | G193: =LOOKUP(C193,MassDataLink!$A$4:$A$3649,MassDataLink!$E$4:$E$3649) ->  | H193: =LOOKUP(C193,MassDataLink!$A$4:$A$3649,MassDataLink!$F$4:$F$3649) ->  | J193: 80 | K193: - - - | L193: - - -
B194: 81 | C194: -1 | D194: =LOOKUP(C194,MassDataLink!$A$4:$A$3649,MassDataLink!$B$4:$B$3649) ->  | E194: =LOOKUP(C194,MassDataLink!$A$4:$A$3649,MassDataLink!$C$4:$C$3649) ->  | F194: =LOOKUP(C194,MassDataLink!$A$4:$A$3649,MassDataLink!$D$4:$D$3649) ->  | G194: =LOOKUP(C194,MassDataLink!$A$4:$A$3649,MassDataLink!$E$4:$E$3649) ->  | H194: =LOOKUP(C194,MassDataLink!$A$4:$A$3649,MassDataLink!$F$4:$F$3649) ->  | J194: 81 | K194: - - - | L194: - - -
B195: 82 | C195: -1 | D195: =LOOKUP(C195,MassDataLink!$A$4:$A$3649,MassDataLink!$B$4:$B$3649) ->  | E195: =LOOKUP(C195,MassDataLink!$A$4:$A$3649,MassDataLink!$C$4:$C$3649) ->  | F195: =LOOKUP(C195,MassDataLink!$A$4:$A$3649,MassDataLink!$D$4:$D$3649) ->  | G195: =LOOKUP(C195,MassDataLink!$A$4:$A$3649,MassDataLink!$E$4:$E$3649) ->  | H195: =LOOKUP(C195,MassDataLink!$A$4:$A$3649,MassDataLink!$F$4:$F$3649) ->  | J195: 82 | K195: - - - | L195: - - -
B196: 83 | C196: -1 | D196: =LOOKUP(C196,MassDataLink!$A$4:$A$3649,MassDataLink!$B$4:$B$3649) ->  | E196: =LOOKUP(C196,MassDataLink!$A$4:$A$3649,MassDataLink!$C$4:$C$3649) ->  | F196: =LOOKUP(C196,MassDataLink!$A$4:$A$3649,MassDataLink!$D$4:$D$3649) ->  | G196: =LOOKUP(C196,MassDataLink!$A$4:$A$3649,MassDataLink!$E$4:$E$3649) ->  | H196: =LOOKUP(C196,MassDataLink!$A$4:$A$3649,MassDataLink!$F$4:$F$3649) ->  | J196: 83 | K196: - - - | L196: - - -
B197: 84 | C197: -1 | D197: =LOOKUP(C197,MassDataLink!$A$4:$A$3649,MassDataLink!$B$4:$B$3649) ->  | E197: =LOOKUP(C197,MassDataLink!$A$4:$A$3649,MassDataLink!$C$4:$C$3649) ->  | F197: =LOOKUP(C197,MassDataLink!$A$4:$A$3649,MassDataLink!$D$4:$D$3649) ->  | G197: =LOOKUP(C197,MassDataLink!$A$4:$A$3649,MassDataLink!$E$4:$E$3649) ->  | H197: =LOOKUP(C197,MassDataLink!$A$4:$A$3649,MassDataLink!$F$4:$F$3649) ->  | J197: 84 | K197: - - - | L197: - - -
B198: 85 | C198: -1 | D198: =LOOKUP(C198,MassDataLink!$A$4:$A$3649,MassDataLink!$B$4:$B$3649) ->  | E198: =LOOKUP(C198,MassDataLink!$A$4:$A$3649,MassDataLink!$C$4:$C$3649) ->  | F198: =LOOKUP(C198,MassDataLink!$A$4:$A$3649,MassDataLink!$D$4:$D$3649) ->  | G198: =LOOKUP(C198,MassDataLink!$A$4:$A$3649,MassDataLink!$E$4:$E$3649) ->  | H198: =LOOKUP(C198,MassDataLink!$A$4:$A$3649,MassDataLink!$F$4:$F$3649) ->  | J198: 85 | K198: - - - | L198: - - -
B199: 86 | C199: -1 | D199: =LOOKUP(C199,MassDataLink!$A$4:$A$3649,MassDataLink!$B$4:$B$3649) ->  | E199: =LOOKUP(C199,MassDataLink!$A$4:$A$3649,MassDataLink!$C$4:$C$3649) ->  | F199: =LOOKUP(C199,MassDataLink!$A$4:$A$3649,MassDataLink!$D$4:$D$3649) ->  | G199: =LOOKUP(C199,MassDataLink!$A$4:$A$3649,MassDataLink!$E$4:$E$3649) ->  | H199: =LOOKUP(C199,MassDataLink!$A$4:$A$3649,MassDataLink!$F$4:$F$3649) ->  | J199: 86 | K199: - - - | L199: - - -
B200: 87 | C200: -1 | D200: =LOOKUP(C200,MassDataLink!$A$4:$A$3649,MassDataLink!$B$4:$B$3649) ->  | E200: =LOOKUP(C200,MassDataLink!$A$4:$A$3649,MassDataLink!$C$4:$C$3649) ->  | F200: =LOOKUP(C200,MassDataLink!$A$4:$A$3649,MassDataLink!$D$4:$D$3649) ->  | G200: =LOOKUP(C200,MassDataLink!$A$4:$A$3649,MassDataLink!$E$4:$E$3649) ->  | H200: =LOOKUP(C200,MassDataLink!$A$4:$A$3649,MassDataLink!$F$4:$F$3649) ->  | J200: 87 | K200: - - - | L200: - - -
B201: 88 | C201: -1 | D201: =LOOKUP(C201,MassDataLink!$A$4:$A$3649,MassDataLink!$B$4:$B$3649) ->  | E201: =LOOKUP(C201,MassDataLink!$A$4:$A$3649,MassDataLink!$C$4:$C$3649) ->  | F201: =LOOKUP(C201,MassDataLink!$A$4:$A$3649,MassDataLink!$D$4:$D$3649) ->  | G201: =LOOKUP(C201,MassDataLink!$A$4:$A$3649,MassDataLink!$E$4:$E$3649) ->  | H201: =LOOKUP(C201,MassDataLink!$A$4:$A$3649,MassDataLink!$F$4:$F$3649) ->  | J201: 88 | K201: - - - | L201: - - -
B202: 89 | C202: -1 | D202: =LOOKUP(C202,MassDataLink!$A$4:$A$3649,MassDataLink!$B$4:$B$3649) ->  | E202: =LOOKUP(C202,MassDataLink!$A$4:$A$3649,MassDataLink!$C$4:$C$3649) ->  | F202: =LOOKUP(C202,MassDataLink!$A$4:$A$3649,MassDataLink!$D$4:$D$3649) ->  | G202: =LOOKUP(C202,MassDataLink!$A$4:$A$3649,MassDataLink!$E$4:$E$3649) ->  | H202: =LOOKUP(C202,MassDataLink!$A$4:$A$3649,MassDataLink!$F$4:$F$3649) ->  | J202: 89 | K202: - - - | L202: - - -
B203: 90 | C203: -1 | D203: =LOOKUP(C203,MassDataLink!$A$4:$A$3649,MassDataLink!$B$4:$B$3649) ->  | E203: =LOOKUP(C203,MassDataLink!$A$4:$A$3649,MassDataLink!$C$4:$C$3649) ->  | F203: =LOOKUP(C203,MassDataLink!$A$4:$A$3649,MassDataLink!$D$4:$D$3649) ->  | G203: =LOOKUP(C203,MassDataLink!$A$4:$A$3649,MassDataLink!$E$4:$E$3649) ->  | H203: =LOOKUP(C203,MassDataLink!$A$4:$A$3649,MassDataLink!$F$4:$F$3649) ->  | J203: 90 | K203: - - - | L203: - - -
B204: 91 | C204: -1 | D204: =LOOKUP(C204,MassDataLink!$A$4:$A$3649,MassDataLink!$B$4:$B$3649) ->  | E204: =LOOKUP(C204,MassDataLink!$A$4:$A$3649,MassDataLink!$C$4:$C$3649) ->  | F204: =LOOKUP(C204,MassDataLink!$A$4:$A$3649,MassDataLink!$D$4:$D$3649) ->  | G204: =LOOKUP(C204,MassDataLink!$A$4:$A$3649,MassDataLink!$E$4:$E$3649) ->  | H204: =LOOKUP(C204,MassDataLink!$A$4:$A$3649,MassDataLink!$F$4:$F$3649) ->  | J204: 91 | K204: - - - | L204: - - -
B205: 92 | C205: -1 | D205: =LOOKUP(C205,MassDataLink!$A$4:$A$3649,MassDataLink!$B$4:$B$3649) ->  | E205: =LOOKUP(C205,MassDataLink!$A$4:$A$3649,MassDataLink!$C$4:$C$3649) ->  | F205: =LOOKUP(C205,MassDataLink!$A$4:$A$3649,MassDataLink!$D$4:$D$3649) ->  | G205: =LOOKUP(C205,MassDataLink!$A$4:$A$3649,MassDataLink!$E$4:$E$3649) ->  | H205: =LOOKUP(C205,MassDataLink!$A$4:$A$3649,MassDataLink!$F$4:$F$3649) ->  | J205: 92 | K205: - - - | L205: - - -
... 133 more rows

Sheet ModelData (hidden)
B1: 1 | C1: 6 | D1: 7 | E1: 8 | F1: 10 | G1: 11 | H1: 12 | I1: 13 | J1: 14 | K1: 15 | L1: 16 | M1: 17 | N1: 18 | O1: 19 | P1: 20 | Q1: 21 | R1: 22 | S1: 23 | T1: 24 | U1: 25 | V1: 26 | W1: 27 | X1: 28 | Y1: 29 | Z1: 30 | AA1: 31 | AB1: 32 | AC1: 33
A2: データ№ | B2: ｱｸﾁｭｴｰﾀ型式 | C2: 最小ｽﾄﾛｰｸ | D2: 最大ｽﾄﾛｰｸ | E2: 動作種別 | F2: リンク[0] | I2: リンク[1] | L2: リンク[2] | O2: リンク[3] | R2: リンク[4] | U2: リンク[5] | X2: リンク[6] | AA2: リンク[7]
A3: 0 | C3: ㎜ | D3: ㎜ | E3: 1/0:回/直 | F3: ﾘｰﾄﾞ | G3: ｽﾄﾛｰｸ | H3: 搬送負荷 | I3: ﾘｰﾄﾞ | J3: ｽﾄﾛｰｸ | K3: 搬送負荷 | L3: ﾘｰﾄﾞ | M3: ｽﾄﾛｰｸ | N3: 搬送負荷 | O3: ﾘｰﾄﾞ | P3: ｽﾄﾛｰｸ | Q3: 搬送負荷 | R3: ﾘｰﾄﾞ | S3: ｽﾄﾛｰｸ | T3: 搬送負荷 | U3: ﾘｰﾄﾞ | V3: ｽﾄﾛｰｸ | W3: 搬送負荷 | X3: ﾘｰﾄﾞ | Y3: ｽﾄﾛｰｸ | Z3: 搬送負荷 | AA3: ﾘｰﾄﾞ | AB3: ｽﾄﾛｰｸ | AC3: 搬送負荷
A4: =A3+1 -> 1 | B4: ISB-SXM-60 | C4: 100 | D4: 900 | E4: 0 | F4: =LeadData!A4 -> 1 | G4: =StrokeData!A4 -> 1 | H4: =MassDataLink!A4 -> 1 | I4: =LeadData!A5 -> 2 | J4: =StrokeData!A8 -> 5 | K4: =MassDataLink!A11 -> 8 | L4: =LeadData!A6 -> 3 | M4: =StrokeData!A12 -> 9 | N4: =MassDataLink!A18 -> 15 | O4: -1 | P4: -1 | Q4: -1 | R4: -1 | S4: -1 | T4: -1 | U4: -1 | V4: -1 | W4: -1 | X4: -1 | Y4: -1 | Z4: -1 | AA4: -1 | AB4: -1 | AC4: -1
A5: 2 | B5: ISB-MXM-100 | C5: 100 | D5: 1100 | E5: 0 | F5: =LeadData!A7 -> 4 | G5: =StrokeData!A19 -> 16 | H5: =MassDataLink!A32 -> 29 | I5: =LeadData!A8 -> 5 | J5: =StrokeData!A24 -> 21 | K5: =MassDataLink!A39 -> 36 | L5: =LeadData!A9 -> 6 | M5: =StrokeData!A29 -> 26 | N5: =MassDataLink!A46 -> 43 | O5: =LeadData!A10 -> 7 | P5: =StrokeData!A34 -> 31 | Q5: =MassDataLink!A62 -> 59 | R5: -1 | S5: -1 | T5: -1 | U5: -1 | V5: -1 | W5: -1 | X5: -1 | Y5: -1 | Z5: -1 | AA5: -1 | AB5: -1 | AC5: -1
A6: 3 | B6: ISB-MXM-200 | C6: 100 | D6: 1100 | E6: 0 | F6: =LeadData!A11 -> 8 | G6: =StrokeData!A44 -> 41 | H6: =MassDataLink!A80 -> 77 | I6: =LeadData!A12 -> 9 | J6: =StrokeData!A49 -> 46 | K6: =MassDataLink!A87 -> 84 | L6: =LeadData!A13 -> 10 | M6: =StrokeData!A58 -> 55 | N6: =MassDataLink!A94 -> 91 | O6: =LeadData!A14 -> 11 | P6: =StrokeData!A63 -> 60 | Q6: =MassDataLink!A110 -> 107 | R6: -1 | S6: -1 | T6: -1 | U6: -1 | V6: -1 | W6: -1 | X6: -1 | Y6: -1 | Z6: -1 | AA6: -1 | AB6: -1 | AC6: -1
A7: 4 | B7: ISB-LXM-200 | C7: 100 | D7: 1300 | E7: 0 | F7: =LeadData!A15 -> 12 | G7: =StrokeData!A68 -> 65 | H7: =MassDataLink!A128 -> 125 | I7: =LeadData!A16 -> 13 | J7: =StrokeData!A75 -> 72 | K7: =MassDataLink!A135 -> 132 | L7: =LeadData!A17 -> 14 | M7: =StrokeData!A82 -> 79 | N7: =MassDataLink!A151 -> 148 | O7: -1 | P7: -1 | Q7: -1 | R7: -1 | S7: -1 | T7: -1 | U7: -1 | V7: -1 | W7: -1 | X7: -1 | Y7: -1 | Z7: -1 | AA7: -1 | AB7: -1 | AC7: -1
A8: 5 | B8: ISB-LXM-400 | C8: 100 | D8: 1300 | E8: 0 | F8: =LeadData!A18 -> 15 | G8: =StrokeData!A92 -> 89 | H8: =MassDataLink!A169 -> 166 | I8: =LeadData!A19 -> 16 | J8: =StrokeData!A99 -> 96 | K8: =MassDataLink!A176 -> 173 | L8: =LeadData!A20 -> 17 | M8: =StrokeData!A107 -> 104 | N8: =MassDataLink!A192 -> 189 | O8: -1 | P8: -1 | Q8: -1 | R8: -1 | S8: -1 | T8: -1 | U8: -1 | V8: -1 | W8: -1 | X8: -1 | Y8: -1 | Z8: -1 | AA8: -1 | AB8: -1 | AC8: -1
A9: 6 | B9: ISB-SXL-60 | C9: 130 | D9: 880 | E9: 0 | F9: =LeadData!A21 -> 18 | G9: =StrokeData!A117 -> 114 | H9: =MassDataLink!A210 -> 207 | I9: =LeadData!A22 -> 19 | J9: =StrokeData!A121 -> 118 | K9: =MassDataLink!A217 -> 214 | L9: =LeadData!A23 -> 20 | M9: =StrokeData!A125 -> 122 | N9: =MassDataLink!A224 -> 221 | O9: -1 | P9: -1 | Q9: -1 | R9: -1 | S9: -1 | T9: -1 | U9: -1 | V9: -1 | W9: -1 | X9: -1 | Y9: -1 | Z9: -1 | AA9: -1 | AB9: -1 | AC9: -1
A10: 7 | B10: ISB-MXL-100 | C10: 120 | D10: 1070 | E10: 0 | F10: =LeadData!A24 -> 21 | G10: =StrokeData!A132 -> 129 | H10: =MassDataLink!A238 -> 235 | I10: =LeadData!A25 -> 22 | J10: =StrokeData!A137 -> 134 | K10: =MassDataLink!A245 -> 242 | L10: =LeadData!A26 -> 23 | M10: =StrokeData!A142 -> 139 | N10: =MassDataLink!A252 -> 249 | O10: =LeadData!A27 -> 24 | P10: =StrokeData!A147 -> 144 | Q10: =MassDataLink!A268 -> 265 | R10: -1 | S10: -1 | T10: -1 | U10: -1 | V10: -1 | W10: -1 | X10: -1 | Y10: -1 | Z10: -1 | AA10: -1 | AB10: -1 | AC10: -1
A11: 8 | B11: ISB-MXL-200 | C11: 120 | D11: 1070 | E11: 0 | F11: =LeadData!A28 -> 25 | G11: =StrokeData!A156 -> 153 | H11: =MassDataLink!A286 -> 283 | I11: =LeadData!A29 -> 26 | J11: =StrokeData!A161 -> 158 | K11: =MassDataLink!A293 -> 290 | L11: =LeadData!A30 -> 27 | M11: =StrokeData!A170 -> 167 | N11: =MassDataLink!A300 -> 297 | O11: =LeadData!A31 -> 28 | P11: =StrokeData!A175 -> 172 | Q11: =MassDataLink!A316 -> 313 | R11: -1 | S11: -1 | T11: -1 | U11: -1 | V11: -1 | W11: -1 | X11: -1 | Y11: -1 | Z11: -1 | AA11: -1 | AB11: -1 | AC11: -1
A12: 9 | B12: ISB-LXL-200 | C12: 120 | D12: 1270 | E12: 0 | F12: =LeadData!A32 -> 29 | G12: =StrokeData!A180 -> 177 | H12: =MassDataLink!A334 -> 331 | I12: =LeadData!A33 -> 30 | J12: =StrokeData!A187 -> 184 | K12: =MassDataLink!A341 -> 338 | L12: =LeadData!A34 -> 31 | M12: =StrokeData!A194 -> 191 | N12: =MassDataLink!A357 -> 354 | O12: -1 | P12: -1 | Q12: -1 | R12: -1 | S12: -1 | T12: -1 | U12: -1 | V12: -1 | W12: -1 | X12: -1 | Y12: -1 | Z12: -1 | AA12: -1 | AB12: -1 | AC12: -1
A13: 10 | B13: ISB-LXL-400 | C13: 120 | D13: 1270 | E13: 0 | F13: =LeadData!A35 -> 32 | G13: =StrokeData!A203 -> 200 | H13: =MassDataLink!A375 -> 372 | I13: =LeadData!A36 -> 33 | J13: =StrokeData!A210 -> 207 | K13: =MassDataLink!A382 -> 379 | L13: =LeadData!A37 -> 34 | M13: =StrokeData!A218 -> 215 | N13: =MassDataLink!A398 -> 395 | O13: -1 | P13: -1 | Q13: -1 | R13: -1 | S13: -1 | T13: -1 | U13: -1 | V13: -1 | W13: -1 | X13: -1 | Y13: -1 | Z13: -1 | AA13: -1 | AB13: -1 | AC13: -1
A14: =A13+1 -> 11 | B14: ISDB-S-60 | C14: 100 | D14: 800 | E14: 0 | F14: =LeadData!A38 -> 35 | G14: =StrokeData!A227 -> 224 | H14: =MassDataLink!A416 -> 413 | I14: =LeadData!A39 -> 36 | J14: =StrokeData!A234 -> 231 | K14: =MassDataLink!A423 -> 420 | L14: =LeadData!A40 -> 37 | M14: =StrokeData!A241 -> 238 | N14: =MassDataLink!A430 -> 427 | O14: -1 | P14: -1 | Q14: -1 | R14: -1 | S14: -1 | T14: -1 | U14: -1 | V14: -1 | W14: -1 | X14: -1 | Y14: -1 | Z14: -1 | AA14: -1 | AB14: -1 | AC14: -1
A15: 12 | B15: ISDB-M-100 | C15: 100 | D15: 1100 | E15: 0 | F15: =LeadData!A41 -> 38 | G15: =StrokeData!A248 -> 245 | H15: =MassDataLink!A442 -> 439 | I15: =LeadData!A42 -> 39 | J15: =StrokeData!A259 -> 256 | K15: =MassDataLink!A449 -> 446 | L15: =LeadData!A43 -> 40 | M15: =StrokeData!A270 -> 267 | N15: =MassDataLink!A456 -> 453 | O15: =LeadData!A44 -> 41 | P15: =StrokeData!A281 -> 278 | Q15: =MassDataLink!A470 -> 467 | R15: -1 | S15: -1 | T15: -1 | U15: -1 | V15: -1 | W15: -1 | X15: -1 | Y15: -1 | Z15: -1 | AA15: -1 | AB15: -1 | AC15: -1
A16: 13 | B16: ISDB-M-200 | C16: 100 | D16: 1100 | E16: 0 | F16: =LeadData!A45 -> 42 | G16: =StrokeData!A292 -> 289 | H16: =MassDataLink!A484 -> 481 | I16: =LeadData!A46 -> 43 | J16: =StrokeData!A303 -> 300 | K16: =MassDataLink!A491 -> 488 | L16: =LeadData!A47 -> 44 | M16: =StrokeData!A314 -> 311 | N16: =MassDataLink!A498 -> 495 | O16: =LeadData!A48 -> 45 | P16: =StrokeData!A325 -> 322 | Q16: =MassDataLink!A512 -> 509 | R16: -1 | S16: -1 | T16: -1 | U16: -1 | V16: -1 | W16: -1 | X16: -1 | Y16: -1 | Z16: -1 | AA16: -1 | AB16: -1 | AC16: -1
A17: 14 | B17: ISDB-L-200 | C17: 100 | D17: 1300 | E17: 0 | F17: =LeadData!A49 -> 46 | G17: =StrokeData!A339 -> 336 | H17: =MassDataLink!A526 -> 523 | I17: =LeadData!A50 -> 47 | J17: =StrokeData!A353 -> 350 | K17: =MassDataLink!A533 -> 530 | L17: =LeadData!A51 -> 48 | M17: =StrokeData!A367 -> 364 | N17: =MassDataLink!A547 -> 544 | O17: -1 | P17: -1 | Q17: -1 | R17: -1 | S17: -1 | T17: -1 | U17: -1 | V17: -1 | W17: -1 | X17: -1 | Y17: -1 | Z17: -1 | AA17: -1 | AB17: -1 | AC17: -1
A18: 15 | B18: ISDB-L-400 | C18: 100 | D18: 1300 | E18: 0 | F18: =LeadData!A52 -> 49 | G18: =StrokeData!A378 -> 375 | H18: =MassDataLink!A560 -> 557 | I18: =LeadData!A53 -> 50 | J18: =StrokeData!A392 -> 389 | K18: =MassDataLink!A567 -> 564 | L18: =LeadData!A54 -> 51 | M18: =StrokeData!A406 -> 403 | N18: =MassDataLink!A581 -> 578 | O18: -1 | P18: -1 | Q18: -1 | R18: -1 | S18: -1 | T18: -1 | U18: -1 | V18: -1 | W18: -1 | X18: -1 | Y18: -1 | Z18: -1 | AA18: -1 | AB18: -1 | AC18: -1
A19: 16 | B19: ISDBCR-S-60 | C19: 100 | D19: 800 | E19: 0 | F19: =LeadData!A55 -> 52 | G19: =StrokeData!A418 -> 415 | H19: =MassDataLink!A595 -> 592 | I19: =LeadData!A56 -> 53 | J19: =StrokeData!A425 -> 422 | K19: =MassDataLink!A602 -> 599 | L19: =LeadData!A57 -> 54 | M19: =StrokeData!A432 -> 429 | N19: =MassDataLink!A609 -> 606 | O19: -1 | P19: -1 | Q19: -1 | R19: -1 | S19: -1 | T19: -1 | U19: -1 | V19: -1 | W19: -1 | X19: -1 | Y19: -1 | Z19: -1 | AA19: -1 | AB19: -1 | AC19: -1
A20: 17 | B20: ISDBCR-M-100 | C20: 100 | D20: 1100 | E20: 0 | F20: =LeadData!A58 -> 55 | G20: =StrokeData!A439 -> 436 | H20: =MassDataLink!A621 -> 618 | I20: =LeadData!A59 -> 56 | J20: =StrokeData!A450 -> 447 | K20: =MassDataLink!A628 -> 625 | L20: =LeadData!A60 -> 57 | M20: =StrokeData!A461 -> 458 | N20: =MassDataLink!A635 -> 632 | O20: =LeadData!A61 -> 58 | P20: =StrokeData!A472 -> 469 | Q20: =MassDataLink!A649 -> 646 | R20: -1 | S20: -1 | T20: -1 | U20: -1 | V20: -1 | W20: -1 | X20: -1 | Y20: -1 | Z20: -1 | AA20: -1 | AB20: -1 | AC20: -1
A21: 18 | B21: ISDBCR-M-200 | C21: 100 | D21: 1100 | E21: 0 | F21: =LeadData!A62 -> 59 | G21: =StrokeData!A483 -> 480 | H21: =MassDataLink!A663 -> 660 | I21: =LeadData!A63 -> 60 | J21: =StrokeData!A494 -> 491 | K21: =MassDataLink!A670 -> 667 | L21: =LeadData!A64 -> 61 | M21: =StrokeData!A505 -> 502 | N21: =MassDataLink!A677 -> 674 | O21: =LeadData!A65 -> 62 | P21: =StrokeData!A516 -> 513 | Q21: =MassDataLink!A691 -> 688 | R21: -1 | S21: -1 | T21: -1 | U21: -1 | V21: -1 | W21: -1 | X21: -1 | Y21: -1 | Z21: -1 | AA21: -1 | AB21: -1 | AC21: -1
A22: =A21+1 -> 19 | B22: ISDBCR-L-200 | C22: 100 | D22: 1300 | E22: 0 | F22: =LeadData!A66 -> 63 | G22: =StrokeData!A530 -> 527 | H22: =MassDataLink!A705 -> 702 | I22: =LeadData!A67 -> 64 | J22: =StrokeData!A544 -> 541 | K22: =MassDataLink!A712 -> 709 | L22: =LeadData!A68 -> 65 | M22: =StrokeData!A558 -> 555 | N22: =MassDataLink!A726 -> 723 | O22: -1 | P22: -1 | Q22: -1 | R22: -1 | S22: -1 | T22: -1 | U22: -1 | V22: -1 | W22: -1 | X22: -1 | Y22: -1 | Z22: -1 | AA22: -1 | AB22: -1 | AC22: -1
A23: 20 | B23: ISDBCR-L-400 | C23: 100 | D23: 1300 | E23: 0 | F23: =LeadData!A69 -> 66 | G23: =StrokeData!A569 -> 566 | H23: =MassDataLink!A739 -> 736 | I23: =LeadData!A70 -> 67 | J23: =StrokeData!A583 -> 580 | K23: =MassDataLink!A746 -> 743 | L23: =LeadData!A71 -> 68 | M23: =StrokeData!A597 -> 594 | N23: =MassDataLink!A760 -> 757 | O23: -1 | P23: -1 | Q23: -1 | R23: -1 | S23: -1 | T23: -1 | U23: -1 | V23: -1 | W23: -1 | X23: -1 | Y23: -1 | Z23: -1 | AA23: -1 | AB23: -1 | AC23: -1
A24: 21 | B24: SSPA-SXM-200 | C24: 100 | D24: 1100 | E24: 0 | F24: =LeadData!A72 -> 69 | G24: =StrokeData!A609 -> 606 | H24: =MassDataLink!A774 -> 771 | I24: =LeadData!A73 -> 70 | J24: =StrokeData!A620 -> 617 | K24: =MassDataLink!A781 -> 778 | L24: =LeadData!A74 -> 71 | M24: =StrokeData!A631 -> 628 | N24: =MassDataLink!A795 -> 792 | O24: -1 | P24: -1 | Q24: -1 | R24: -1 | S24: -1 | T24: -1 | U24: -1 | V24: -1 | W24: -1 | X24: -1 | Y24: -1 | Z24: -1 | AA24: -1 | AB24: -1 | AC24: -1
A25: 22 | B25: SSPA-MXM-400 | C25: 100 | D25: 1300 | E25: 0 | F25: =LeadData!A75 -> 72 | G25: =StrokeData!A644 -> 641 | H25: =MassDataLink!A813 -> 810 | I25: =LeadData!A76 -> 73 | J25: =StrokeData!A657 -> 654 | K25: =MassDataLink!A820 -> 817 | L25: =LeadData!A77 -> 74 | M25: =StrokeData!A671 -> 668 | N25: =MassDataLink!A834 -> 831 | O25: -1 | P25: -1 | Q25: -1 | R25: -1 | S25: -1 | T25: -1 | U25: -1 | V25: -1 | W25: -1 | X25: -1 | Y25: -1 | Z25: -1 | AA25: -1 | AB25: -1 | AC25: -1
A26: 23 | B26: SSPA-LXM-750 | C26: 100 | D26: 1500 | E26: 0 | F26: =LeadData!A78 -> 75 | G26: =StrokeData!A685 -> 682 | H26: =MassDataLink!A852 -> 849 | I26: =LeadData!A79 -> 76 | J26: =StrokeData!A693 -> 690 | K26: =MassDataLink!A870 -> 867 | L26: -1 | M26: -1 | N26: -1 | O26: -1 | P26: -1 | Q26: -1 | R26: -1 | S26: -1 | T26: -1 | U26: -1 | V26: -1 | W26: -1 | X26: -1 | Y26: -1 | Z26: -1 | AA26: -1 | AB26: -1 | AC26: -1
A27: 24 | B27: SSPDACR-S-200 | C27: 100 | D27: 1100 | E27: 0 | F27: =LeadData!A80 -> 77 | G27: =StrokeData!A701 -> 698 | H27: =MassDataLink!A886 -> 883 | I27: =LeadData!A81 -> 78 | J27: =StrokeData!A713 -> 710 | K27: =MassDataLink!A893 -> 890 | L27: =LeadData!A82 -> 79 | M27: =StrokeData!A725 -> 722 | N27: =MassDataLink!A907 -> 904 | O27: -1 | P27: -1 | Q27: -1 | R27: -1 | S27: -1 | T27: -1 | U27: -1 | V27: -1 | W27: -1 | X27: -1 | Y27: -1 | Z27: -1 | AA27: -1 | AB27: -1 | AC27: -1
A28: 25 | B28: SSPDACR-M-400 | C28: 100 | D28: 1300 | E28: 0 | F28: =LeadData!A83 -> 80 | G28: =StrokeData!A738 -> 735 | H28: =MassDataLink!A925 -> 922 | I28: =LeadData!A84 -> 81 | J28: =StrokeData!A753 -> 750 | K28: =MassDataLink!A932 -> 929 | L28: =LeadData!A85 -> 82 | M28: =StrokeData!A768 -> 765 | N28: =MassDataLink!A946 -> 943 | O28: -1 | P28: -1 | Q28: -1 | R28: -1 | S28: -1 | T28: -1 | U28: -1 | V28: -1 | W28: -1 | X28: -1 | Y28: -1 | Z28: -1 | AA28: -1 | AB28: -1 | AC28: -1
A29: 26 | B29: SSPDACR-L-750 | C29: 100 | D29: 1500 | E29: 0 | F29: =LeadData!A86 -> 83 | G29: =StrokeData!A780 -> 777 | H29: =MassDataLink!A964 -> 961 | I29: =LeadData!A87 -> 84 | J29: =StrokeData!A788 -> 785 | K29: =MassDataLink!A982 -> 979 | L29: -1 | M29: -1 | N29: -1 | O29: -1 | P29: -1 | Q29: -1 | R29: -1 | S29: -1 | T29: -1 | U29: -1 | V29: -1 | W29: -1 | X29: -1 | Y29: -1 | Z29: -1 | AA29: -1 | AB29: -1 | AC29: -1
A30: =A29+1 -> 27 | B30: RCS3-SA8C-100 | C30: 50 | D30: 1100 | E30: 0 | F30: =LeadData!A88 -> 85 | G30: =StrokeData!A795 -> 792 | H30: =MassDataLink!A998 -> 995 | I30: =LeadData!A89 -> 86 | J30: =StrokeData!A805 -> 802 | K30: =MassDataLink!A1002 -> 999 | L30: =LeadData!A90 -> 87 | M30: =StrokeData!A815 -> 812 | N30: =MassDataLink!A1008 -> 1005 | O30: =LeadData!A91 -> 88 | P30: =StrokeData!A826 -> 823 | Q30: =MassDataLink!A1018 -> 1015 | R30: -1 | S30: -1 | T30: -1 | U30: -1 | V30: -1 | W30: -1 | X30: -1 | Y30: -1 | Z30: -1 | AA30: -1 | AB30: -1 | AC30: -1
A31: 28 | B31: RCS3-SA8C-150 | C31: 50 | D31: 1100 | E31: 0 | F31: =LeadData!A92 -> 89 | G31: =StrokeData!A837 -> 834 | H31: =MassDataLink!A1031 -> 1028 | I31: =LeadData!A93 -> 90 | J31: =StrokeData!A847 -> 844 | K31: =MassDataLink!A1037 -> 1034 | L31: =LeadData!A94 -> 91 | M31: =StrokeData!A858 -> 855 | N31: =MassDataLink!A1047 -> 1044 | O31: -1 | P31: -1 | Q31: -1 | R31: -1 | S31: -1 | T31: -1 | U31: -1 | V31: -1 | W31: -1 | X31: -1 | Y31: -1 | Z31: -1 | AA31: -1 | AB31: -1 | AC31: -1
A32: 29 | B32: RCS3-SS8C-100 | C32: 50 | D32: 1000 | E32: 0 | F32: =LeadData!A95 -> 92 | G32: =StrokeData!A869 -> 866 | H32: =MassDataLink!A1060 -> 1057 | I32: =LeadData!A96 -> 93 | J32: =StrokeData!A878 -> 875 | K32: =MassDataLink!A1064 -> 1061 | L32: =LeadData!A97 -> 94 | M32: =StrokeData!A887 -> 884 | N32: =MassDataLink!A1070 -> 1067 | O32: =LeadData!A98 -> 95 | P32: =StrokeData!A897 -> 894 | Q32: =MassDataLink!A1080 -> 1077 | R32: -1 | S32: -1 | T32: -1 | U32: -1 | V32: -1 | W32: -1 | X32: -1 | Y32: -1 | Z32: -1 | AA32: -1 | AB32: -1 | AC32: -1
A33: 30 | B33: RCS3-SS8C-150 | C33: 50 | D33: 1000 | E33: 0 | F33: =LeadData!A99 -> 96 | G33: =StrokeData!A907 -> 904 | H33: =MassDataLink!A1093 -> 1090 | I33: =LeadData!A100 -> 97 | J33: =StrokeData!A916 -> 913 | K33: =MassDataLink!A1099 -> 1096 | L33: =LeadData!A101 -> 98 | M33: =StrokeData!A928 -> 925 | N33: =MassDataLink!A1109 -> 1106 | O33: -1 | P33: -1 | Q33: -1 | R33: -1 | S33: -1 | T33: -1 | U33: -1 | V33: -1 | W33: -1 | X33: -1 | Y33: -1 | Z33: -1 | AA33: -1 | AB33: -1 | AC33: -1
A34: 31 | B34: RCS3CR-SA8C-100 | C34: 50 | D34: 1100 | E34: 0 | F34: =LeadData!A102 -> 99 | G34: =StrokeData!A938 -> 935 | H34: =MassDataLink!A1122 -> 1119 | I34: =LeadData!A103 -> 100 | J34: =StrokeData!A948 -> 945 | K34: =MassDataLink!A1126 -> 1123 | L34: =LeadData!A104 -> 101 | M34: =StrokeData!A958 -> 955 | N34: =MassDataLink!A1132 -> 1129 | O34: =LeadData!A105 -> 102 | P34: =StrokeData!A969 -> 966 | Q34: =MassDataLink!A1142 -> 1139 | R34: -1 | S34: -1 | T34: -1 | U34: -1 | V34: -1 | W34: -1 | X34: -1 | Y34: -1 | Z34: -1 | AA34: -1 | AB34: -1 | AC34: -1
A35: 32 | B35: RCS3CR-SA8C-150 | C35: 50 | D35: 1100 | E35: 0 | F35: =LeadData!A106 -> 103 | G35: =StrokeData!A979 -> 976 | H35: =MassDataLink!A1155 -> 1152 | I35: =LeadData!A107 -> 104 | J35: =StrokeData!A989 -> 986 | K35: =MassDataLink!A1161 -> 1158 | L35: =LeadData!A108 -> 105 | M35: =StrokeData!A999 -> 996 | N35: =MassDataLink!A1171 -> 1168 | O35: -1 | P35: -1 | Q35: -1 | R35: -1 | S35: -1 | T35: -1 | U35: -1 | V35: -1 | W35: -1 | X35: -1 | Y35: -1 | Z35: -1 | AA35: -1 | AB35: -1 | AC35: -1
A36: 33 | B36: RCS3CR-SS8C-100 | C36: 50 | D36: 1000 | E36: 0 | F36: =LeadData!A109 -> 106 | G36: =StrokeData!A1010 -> 1007 | H36: =MassDataLink!A1184 -> 1181 | I36: =LeadData!A110 -> 107 | J36: =StrokeData!A1019 -> 1016 | K36: =MassDataLink!A1188 -> 1185 | L36: =LeadData!A111 -> 108 | M36: =StrokeData!A1028 -> 1025 | N36: =MassDataLink!A1194 -> 1191 | O36: =LeadData!A112 -> 109 | P36: =StrokeData!A1037 -> 1034 | Q36: =MassDataLink!A1204 -> 1201 | R36: -1 | S36: -1 | T36: -1 | U36: -1 | V36: -1 | W36: -1 | X36: -1 | Y36: -1 | Z36: -1 | AA36: -1 | AB36: -1 | AC36: -1
A37: 34 | B37: RCS3CR-SS8C-150 | C37: 50 | D37: 1000 | E37: 0 | F37: =LeadData!A113 -> 110 | G37: =StrokeData!A1046 -> 1043 | H37: =MassDataLink!A1217 -> 1214 | I37: =LeadData!A114 -> 111 | J37: =StrokeData!A1055 -> 1052 | K37: =MassDataLink!A1223 -> 1220 | L37: =LeadData!A115 -> 112 | M37: =StrokeData!A1066 -> 1063 | N37: =MassDataLink!A1233 -> 1230 | O37: -1 | P37: -1 | Q37: -1 | R37: -1 | S37: -1 | T37: -1 | U37: -1 | V37: -1 | W37: -1 | X37: -1 | Y37: -1 | Z37: -1 | AA37: -1 | AB37: -1 | AC37: -1
A38: 35 | B38: RCS3-SA8R-100 | C38: 50 | D38: 1100 | E38: 0 | F38: =LeadData!A116 -> 113 | G38: =StrokeData!A1075 -> 1072 | H38: =MassDataLink!A1246 -> 1243 | I38: =LeadData!A117 -> 114 | J38: =StrokeData!A1085 -> 1082 | K38: =MassDataLink!A1250 -> 1247 | L38: =LeadData!A118 -> 115 | M38: =StrokeData!A1095 -> 1092 | N38: =MassDataLink!A1256 -> 1253 | O38: =LeadData!A119 -> 116 | P38: =StrokeData!A1106 -> 1103 | Q38: =MassDataLink!A1266 -> 1263 | R38: -1 | S38: -1 | T38: -1 | U38: -1 | V38: -1 | W38: -1 | X38: -1 | Y38: -1 | Z38: -1 | AA38: -1 | AB38: -1 | AC38: -1
A39: 36 | B39: RCS3-SA8R-150 | C39: 50 | D39: 1100 | E39: 0 | F39: =LeadData!A120 -> 117 | G39: =StrokeData!A1116 -> 1113 | H39: =MassDataLink!A1279 -> 1276 | I39: =LeadData!A121 -> 118 | J39: =StrokeData!A1126 -> 1123 | K39: =MassDataLink!A1285 -> 1282 | L39: =LeadData!A122 -> 119 | M39: =StrokeData!A1136 -> 1133 | N39: =MassDataLink!A1295 -> 1292 | O39: -1 | P39: -1 | Q39: -1 | R39: -1 | S39: -1 | T39: -1 | U39: -1 | V39: -1 | W39: -1 | X39: -1 | Y39: -1 | Z39: -1 | AA39: -1 | AB39: -1 | AC39: -1
A40: 37 | B40: RCS3-SS8R-100 | C40: 50 | D40: 1000 | E40: 0 | F40: =LeadData!A123 -> 120 | G40: =StrokeData!A1147 -> 1144 | H40: =MassDataLink!A1308 -> 1305 | I40: =LeadData!A124 -> 121 | J40: =StrokeData!A1156 -> 1153 | K40: =MassDataLink!A1312 -> 1309 | L40: =LeadData!A125 -> 122 | M40: =StrokeData!A1165 -> 1162 | N40: =MassDataLink!A1318 -> 1315 | O40: =LeadData!A126 -> 123 | P40: =StrokeData!A1174 -> 1171 | Q40: =MassDataLink!A1328 -> 1325 | R40: -1 | S40: -1 | T40: -1 | U40: -1 | V40: -1 | W40: -1 | X40: -1 | Y40: -1 | Z40: -1 | AA40: -1 | AB40: -1 | AC40: -1
A41: 38 | B41: RCS3-SS8R-150 | C41: 50 | D41: 1000 | E41: 0 | F41: =LeadData!A127 -> 124 | G41: =StrokeData!A1183 -> 1180 | H41: =MassDataLink!A1341 -> 1338 | I41: =LeadData!A128 -> 125 | J41: =StrokeData!A1192 -> 1189 | K41: =MassDataLink!A1347 -> 1344 | L41: =LeadData!A129 -> 126 | M41: =StrokeData!A1203 -> 1200 | N41: =MassDataLink!A1357 -> 1354 | O41: -1 | P41: -1 | Q41: -1 | R41: -1 | S41: -1 | T41: -1 | U41: -1 | V41: -1 | W41: -1 | X41: -1 | Y41: -1 | Z41: -1 | AA41: -1 | AB41: -1 | AC41: -1
A42: 39 | B42: RCS2-SA4C-20 | C42: 50 | D42: 400 | E42: 0 | F42: =LeadData!A130 -> 127 | G42: =StrokeData!A1212 -> 1209 | H42: =MassDataLink!A1370 -> 1367 | I42: =LeadData!A131 -> 128 | J42: =StrokeData!A1213 -> 1210 | K42: =MassDataLink!A1372 -> 1369 | L42: =LeadData!A132 -> 129 | M42: =StrokeData!A1214 -> 1211 | N42: =MassDataLink!A1374 -> 1371 | O42: =LeadData!A133 -> 130 | P42: =StrokeData!A1215 -> 1212 | Q42: =MassDataLink!A1376 -> 1373 | R42: -1 | S42: -1 | T42: -1 | U42: -1 | V42: -1 | W42: -1 | X42: -1 | Y42: -1 | Z42: -1 | AA42: -1 | AB42: -1 | AC42: -1
A43: 40 | B43: RCS2-SA5C-20 | C43: 50 | D43: 500 | E43: 0 | F43: =LeadData!A134 -> 131 | G43: =StrokeData!A1216 -> 1213 | H43: =MassDataLink!A1378 -> 1375 | I43: =LeadData!A135 -> 132 | J43: =StrokeData!A1218 -> 1215 | K43: =MassDataLink!A1380 -> 1377 | L43: =LeadData!A136 -> 133 | M43: =StrokeData!A1220 -> 1217 | N43: =MassDataLink!A1382 -> 1379 | O43: =LeadData!A137 -> 134 | P43: =StrokeData!A1223 -> 1220 | Q43: =MassDataLink!A1384 -> 1381 | R43: -1 | S43: -1 | T43: -1 | U43: -1 | V43: -1 | W43: -1 | X43: -1 | Y43: -1 | Z43: -1 | AA43: -1 | AB43: -1 | AC43: -1
A44: 41 | B44: RCS2-SA6C-30 | C44: 50 | D44: 600 | E44: 0 | F44: =LeadData!A138 -> 135 | G44: =StrokeData!A1225 -> 1222 | H44: =MassDataLink!A1386 -> 1383 | I44: =LeadData!A139 -> 136 | J44: =StrokeData!A1229 -> 1226 | K44: =MassDataLink!A1388 -> 1385 | L44: =LeadData!A140 -> 137 | M44: =StrokeData!A1233 -> 1230 | N44: =MassDataLink!A1390 -> 1387 | O44: =LeadData!A141 -> 138 | P44: =StrokeData!A1238 -> 1235 | Q44: =MassDataLink!A1392 -> 1389 | R44: -1 | S44: -1 | T44: -1 | U44: -1 | V44: -1 | W44: -1 | X44: -1 | Y44: -1 | Z44: -1 | AA44: -1 | AB44: -1 | AC44: -1
A45: 42 | B45: RCS2-SA7C-60 | C45: 50 | D45: 800 | E45: 0 | F45: =LeadData!A142 -> 139 | G45: =StrokeData!A1244 -> 1241 | H45: =MassDataLink!A1394 -> 1391 | I45: =LeadData!A143 -> 140 | J45: =StrokeData!A1247 -> 1244 | K45: =MassDataLink!A1396 -> 1393 | L45: =LeadData!A144 -> 141 | M45: =StrokeData!A1250 -> 1247 | N45: =MassDataLink!A1398 -> 1395 | O45: =LeadData!A145 -> 142 | P45: =StrokeData!A1254 -> 1251 | Q45: =MassDataLink!A1400 -> 1397 | R45: -1 | S45: -1 | T45: -1 | U45: -1 | V45: -1 | W45: -1 | X45: -1 | Y45: -1 | Z45: -1 | AA45: -1 | AB45: -1 | AC45: -1
A46: =A45+1 -> 43 | B46: RCS2-SS7C-60 | C46: 50 | D46: 600 | E46: 0 | F46: =LeadData!A146 -> 143 | G46: =StrokeData!A1261 -> 1258 | H46: =MassDataLink!A1402 -> 1399 | I46: =LeadData!A147 -> 144 | J46: =StrokeData!A1263 -> 1260 | K46: =MassDataLink!A1404 -> 1401 | L46: =LeadData!A148 -> 145 | M46: =StrokeData!A1266 -> 1263 | N46: =MassDataLink!A1406 -> 1403 | O46: -1 | P46: -1 | Q46: -1 | R46: -1 | S46: -1 | T46: -1 | U46: -1 | V46: -1 | W46: -1 | X46: -1 | Y46: -1 | Z46: -1 | AA46: -1 | AB46: -1 | AC46: -1
A47: 44 | B47: RCS2CR-SA4C-20 | C47: 50 | D47: 400 | E47: 0 | F47: =LeadData!A149 -> 146 | G47: =StrokeData!A1271 -> 1268 | H47: =MassDataLink!A1408 -> 1405 | I47: =LeadData!A150 -> 147 | J47: =StrokeData!A1272 -> 1269 | K47: =MassDataLink!A1410 -> 1407 | L47: =LeadData!A151 -> 148 | M47: =StrokeData!A1273 -> 1270 | N47: =MassDataLink!A1412 -> 1409 | O47: =LeadData!A152 -> 149 | P47: =StrokeData!A1274 -> 1271 | Q47: =MassDataLink!A1414 -> 1411 | R47: -1 | S47: -1 | T47: -1 | U47: -1 | V47: -1 | W47: -1 | X47: -1 | Y47: -1 | Z47: -1 | AA47: -1 | AB47: -1 | AC47: -1
A48: 45 | B48: RCS2CR-SA5C-20 | C48: 50 | D48: 500 | E48: 0 | F48: =LeadData!A153 -> 150 | G48: =StrokeData!A1275 -> 1272 | H48: =MassDataLink!A1416 -> 1413 | I48: =LeadData!A154 -> 151 | J48: =StrokeData!A1277 -> 1274 | K48: =MassDataLink!A1418 -> 1415 | L48: =LeadData!A155 -> 152 | M48: =StrokeData!A1279 -> 1276 | N48: =MassDataLink!A1420 -> 1417 | O48: =LeadData!A156 -> 153 | P48: =StrokeData!A1281 -> 1278 | Q48: =MassDataLink!A1422 -> 1419 | R48: -1 | S48: -1 | T48: -1 | U48: -1 | V48: -1 | W48: -1 | X48: -1 | Y48: -1 | Z48: -1 | AA48: -1 | AB48: -1 | AC48: -1
A49: 46 | B49: RCS2CR-SA6C-30 | C49: 50 | D49: 600 | E49: 0 | F49: =LeadData!A157 -> 154 | G49: =StrokeData!A1282 -> 1279 | H49: =MassDataLink!A1424 -> 1421 | I49: =LeadData!A158 -> 155 | J49: =StrokeData!A1286 -> 1283 | K49: =MassDataLink!A1426 -> 1423 | L49: =LeadData!A159 -> 156 | M49: =StrokeData!A1290 -> 1287 | N49: =MassDataLink!A1428 -> 1425 | O49: =LeadData!A160 -> 157 | P49: =StrokeData!A1294 -> 1291 | Q49: =MassDataLink!A1430 -> 1427 | R49: -1 | S49: -1 | T49: -1 | U49: -1 | V49: -1 | W49: -1 | X49: -1 | Y49: -1 | Z49: -1 | AA49: -1 | AB49: -1 | AC49: -1
A50: 47 | B50: RCS2CR-SA7C-60 | C50: 50 | D50: 800 | E50: 0 | F50: =LeadData!A161 -> 158 | G50: =StrokeData!A1299 -> 1296 | H50: =MassDataLink!A1432 -> 1429 | I50: =LeadData!A162 -> 159 | J50: =StrokeData!A1302 -> 1299 | K50: =MassDataLink!A1434 -> 1431 | L50: =LeadData!A163 -> 160 | M50: =StrokeData!A1305 -> 1302 | N50: =MassDataLink!A1436 -> 1433 | O50: =LeadData!A164 -> 161 | P50: =StrokeData!A1308 -> 1305 | Q50: =MassDataLink!A1438 -> 1435 | R50: -1 | S50: -1 | T50: -1 | U50: -1 | V50: -1 | W50: -1 | X50: -1 | Y50: -1 | Z50: -1 | AA50: -1 | AB50: -1 | AC50: -1
A51: 48 | B51: RCS2CR-SS7C-60 | C51: 50 | D51: 600 | E51: 0 | F51: =LeadData!A165 -> 162 | G51: =StrokeData!A1314 -> 1311 | H51: =MassDataLink!A1440 -> 1437 | I51: =LeadData!A166 -> 163 | J51: =StrokeData!A1316 -> 1313 | K51: =MassDataLink!A1442 -> 1439 | L51: =LeadData!A167 -> 164 | M51: =StrokeData!A1318 -> 1315 | N51: =MassDataLink!A1444 -> 1441 | O51: -1 | P51: -1 | Q51: -1 | R51: -1 | S51: -1 | T51: -1 | U51: -1 | V51: -1 | W51: -1 | X51: -1 | Y51: -1 | Z51: -1 | AA51: -1 | AB51: -1 | AC51: -1
A52: 49 | B52: RCS2-SA4D-20 | C52: 50 | D52: 300 | E52: 0 | F52: =LeadData!A168 -> 165 | G52: =StrokeData!A1322 -> 1319 | H52: =MassDataLink!A1446 -> 1443 | I52: =LeadData!A169 -> 166 | J52: =StrokeData!A1323 -> 1320 | K52: =MassDataLink!A1448 -> 1445 | L52: =LeadData!A170 -> 167 | M52: =StrokeData!A1324 -> 1321 | N52: =MassDataLink!A1450 -> 1447 | O52: -1 | P52: -1 | Q52: -1 | R52: -1 | S52: -1 | T52: -1 | U52: -1 | V52: -1 | W52: -1 | X52: -1 | Y52: -1 | Z52: -1 | AA52: -1 | AB52: -1 | AC52: -1
A53: =A52+1 -> 50 | B53: RCS2-SA5D-20 | C53: 50 | D53: 500 | E53: 0 | F53: =LeadData!A171 -> 168 | G53: =StrokeData!A1325 -> 1322 | H53: =MassDataLink!A1452 -> 1449 | I53: =LeadData!A172 -> 169 | J53: =StrokeData!A1327 -> 1324 | K53: =MassDataLink!A1454 -> 1451 | L53: =LeadData!A173 -> 170 | M53: =StrokeData!A1329 -> 1326 | N53: =MassDataLink!A1456 -> 1453 | O53: -1 | P53: -1 | Q53: -1 | R53: -1 | S53: -1 | T53: -1 | U53: -1 | V53: -1 | W53: -1 | X53: -1 | Y53: -1 | Z53: -1 | AA53: -1 | AB53: -1 | AC53: -1
A54: 51 | B54: RCS2-SA6D-30 | C54: 50 | D54: 600 | E54: 0 | F54: =LeadData!A174 -> 171 | G54: =StrokeData!A1331 -> 1328 | H54: =MassDataLink!A1458 -> 1455 | I54: =LeadData!A175 -> 172 | J54: =StrokeData!A1335 -> 1332 | K54: =MassDataLink!A1460 -> 1457 | L54: =LeadData!A176 -> 173 | M54: =StrokeData!A1339 -> 1336 | N54: =MassDataLink!A1462 -> 1459 | O54: -1 | P54: -1 | Q54: -1 | R54: -1 | S54: -1 | T54: -1 | U54: -1 | V54: -1 | W54: -1 | X54: -1 | Y54: -1 | Z54: -1 | AA54: -1 | AB54: -1 | AC54: -1
A55: 52 | B55: RCS2CR-SA5D-20 | C55: 50 | D55: 500 | E55: 0 | F55: =LeadData!A177 -> 174 | G55: =StrokeData!A1345 -> 1342 | H55: =MassDataLink!A1464 -> 1461 | I55: =LeadData!A178 -> 175 | J55: =StrokeData!A1347 -> 1344 | K55: =MassDataLink!A1466 -> 1463 | L55: =LeadData!A179 -> 176 | M55: =StrokeData!A1349 -> 1346 | N55: =MassDataLink!A1468 -> 1465 | O55: -1 | P55: -1 | Q55: -1 | R55: -1 | S55: -1 | T55: -1 | U55: -1 | V55: -1 | W55: -1 | X55: -1 | Y55: -1 | Z55: -1 | AA55: -1 | AB55: -1 | AC55: -1
A56: 53 | B56: RCS2CR-SA6D-30 | C56: 50 | D56: 600 | E56: 0 | F56: =LeadData!A180 -> 177 | G56: =StrokeData!A1351 -> 1348 | H56: =MassDataLink!A1470 -> 1467 | I56: =LeadData!A181 -> 178 | J56: =StrokeData!A1355 -> 1352 | K56: =MassDataLink!A1472 -> 1469 | L56: =LeadData!A182 -> 179 | M56: =StrokeData!A1359 -> 1356 | N56: =MassDataLink!A1474 -> 1471 | O56: -1 | P56: -1 | Q56: -1 | R56: -1 | S56: -1 | T56: -1 | U56: -1 | V56: -1 | W56: -1 | X56: -1 | Y56: -1 | Z56: -1 | AA56: -1 | AB56: -1 | AC56: -1
A57: 54 | B57: RCS2-SA4R-20 | C57: 50 | D57: 400 | E57: 0 | F57: =LeadData!A183 -> 180 | G57: =StrokeData!A1365 -> 1362 | H57: =MassDataLink!A1476 -> 1473 | I57: =LeadData!A184 -> 181 | J57: =StrokeData!A1366 -> 1363 | K57: =MassDataLink!A1478 -> 1475 | L57: =LeadData!A185 -> 182 | M57: =StrokeData!A1367 -> 1364 | N57: =MassDataLink!A1480 -> 1477 | O57: -1 | P57: -1 | Q57: -1 | R57: -1 | S57: -1 | T57: -1 | U57: -1 | V57: -1 | W57: -1 | X57: -1 | Y57: -1 | Z57: -1 | AA57: -1 | AB57: -1 | AC57: -1
A58: 55 | B58: RCS2-SA5R-20 | C58: 50 | D58: 500 | E58: 0 | F58: =LeadData!A186 -> 183 | G58: =StrokeData!A1368 -> 1365 | H58: =MassDataLink!A1482 -> 1479 | I58: =LeadData!A187 -> 184 | J58: =StrokeData!A1370 -> 1367 | K58: =MassDataLink!A1484 -> 1481 | L58: =LeadData!A188 -> 185 | M58: =StrokeData!A1372 -> 1369 | N58: =MassDataLink!A1486 -> 1483 | O58: -1 | P58: -1 | Q58: -1 | R58: -1 | S58: -1 | T58: -1 | U58: -1 | V58: -1 | W58: -1 | X58: -1 | Y58: -1 | Z58: -1 | AA58: -1 | AB58: -1 | AC58: -1
A59: 56 | B59: RCS2-SA6R-30 | C59: 50 | D59: 600 | E59: 0 | F59: =LeadData!A189 -> 186 | G59: =StrokeData!A1374 -> 1371 | H59: =MassDataLink!A1488 -> 1485 | I59: =LeadData!A190 -> 187 | J59: =StrokeData!A1378 -> 1375 | K59: =MassDataLink!A1490 -> 1487 | L59: =LeadData!A191 -> 188 | M59: =StrokeData!A1382 -> 1379 | N59: =MassDataLink!A1492 -> 1489 | O59: -1 | P59: -1 | Q59: -1 | R59: -1 | S59: -1 | T59: -1 | U59: -1 | V59: -1 | W59: -1 | X59: -1 | Y59: -1 | Z59: -1 | AA59: -1 | AB59: -1 | AC59: -1
A60: 57 | B60: RCS2-SA7R-60 | C60: 50 | D60: 800 | E60: 0 | F60: =LeadData!A192 -> 189 | G60: =StrokeData!A1388 -> 1385 | H60: =MassDataLink!A1494 -> 1491 | I60: =LeadData!A193 -> 190 | J60: =StrokeData!A1391 -> 1388 | K60: =MassDataLink!A1496 -> 1493 | L60: =LeadData!A194 -> 191 | M60: =StrokeData!A1394 -> 1391 | N60: =MassDataLink!A1498 -> 1495 | O60: -1 | P60: -1 | Q60: -1 | R60: -1 | S60: -1 | T60: -1 | U60: -1 | V60: -1 | W60: -1 | X60: -1 | Y60: -1 | Z60: -1 | AA60: -1 | AB60: -1 | AC60: -1
A61: 58 | B61: RCS2-SS7R-60 | C61: 50 | D61: 600 | E61: 0 | F61: =LeadData!A195 -> 192 | G61: =StrokeData!A1397 -> 1394 | H61: =MassDataLink!A1500 -> 1497 | I61: =LeadData!A196 -> 193 | J61: =StrokeData!A1399 -> 1396 | K61: =MassDataLink!A1502 -> 1499 | L61: -1 | M61: -1 | N61: -1 | O61: -1 | P61: -1 | Q61: -1 | R61: -1 | S61: -1 | T61: -1 | U61: -1 | V61: -1 | W61: -1 | X61: -1 | Y61: -1 | Z61: -1 | AA61: -1 | AB61: -1 | AC61: -1
A62: 59 | B62: RCS2-RA4C-20 | C62: 50 | D62: 300 | E62: 0 | F62: =LeadData!A197 -> 194 | G62: =StrokeData!A1401 -> 1398 | H62: =MassDataLink!A1504 -> 1501 | I62: =LeadData!A198 -> 195 | J62: =StrokeData!A1402 -> 1399 | K62: =MassDataLink!A1506 -> 1503 | L62: =LeadData!A199 -> 196 | M62: =StrokeData!A1403 -> 1400 | N62: =MassDataLink!A1508 -> 1505 | O62: -1 | P62: -1 | Q62: -1 | R62: -1 | S62: -1 | T62: -1 | U62: -1 | V62: -1 | W62: -1 | X62: -1 | Y62: -1 | Z62: -1 | AA62: -1 | AB62: -1 | AC62: -1
A63: 60 | B63: RCS2-RA4C-30 | C63: 50 | D63: 300 | E63: 0 | F63: =LeadData!A200 -> 197 | G63: =StrokeData!A1404 -> 1401 | H63: =MassDataLink!A1510 -> 1507 | I63: =LeadData!A201 -> 198 | J63: =StrokeData!A1405 -> 1402 | K63: =MassDataLink!A1512 -> 1509 | L63: =LeadData!A202 -> 199 | M63: =StrokeData!A1406 -> 1403 | N63: =MassDataLink!A1514 -> 1511 | O63: -1 | P63: -1 | Q63: -1 | R63: -1 | S63: -1 | T63: -1 | U63: -1 | V63: -1 | W63: -1 | X63: -1 | Y63: -1 | Z63: -1 | AA63: -1 | AB63: -1 | AC63: -1
A64: 61 | B64: RCS2-RA5C-60 | C64: 50 | D64: 300 | E64: 0 | F64: =LeadData!A203 -> 200 | G64: =StrokeData!A1407 -> 1404 | H64: =MassDataLink!A1516 -> 1513 | I64: =LeadData!A204 -> 201 | J64: =StrokeData!A1409 -> 1406 | K64: =MassDataLink!A1518 -> 1515 | L64: =LeadData!A205 -> 202 | M64: =StrokeData!A1411 -> 1408 | N64: =MassDataLink!A1520 -> 1517 | O64: -1 | P64: -1 | Q64: -1 | R64: -1 | S64: -1 | T64: -1 | U64: -1 | V64: -1 | W64: -1 | X64: -1 | Y64: -1 | Z64: -1 | AA64: -1 | AB64: -1 | AC64: -1
A65: 62 | B65: RCS2-RA5C-100 | C65: 50 | D65: 300 | E65: 0 | F65: =LeadData!A206 -> 203 | G65: =StrokeData!A1413 -> 1410 | H65: =MassDataLink!A1522 -> 1519 | I65: =LeadData!A207 -> 204 | J65: =StrokeData!A1415 -> 1412 | K65: =MassDataLink!A1524 -> 1521 | L65: =LeadData!A208 -> 205 | M65: =StrokeData!A1419 -> 1416 | N65: =MassDataLink!A1526 -> 1523 | O65: -1 | P65: -1 | Q65: -1 | R65: -1 | S65: -1 | T65: -1 | U65: -1 | V65: -1 | W65: -1 | X65: -1 | Y65: -1 | Z65: -1 | AA65: -1 | AB65: -1 | AC65: -1
A66: =A65+1 -> 63 | B66: ISB-MXMX-200 | C66: 800 | D66: 2000 | E66: 0 | F66: =LeadData!A209 -> 206 | G66: =StrokeData!A1421 -> 1418 | H66: =MassDataLink!A1528 -> 1525 | I66: =LeadData!A210 -> 207 | J66: =StrokeData!A1431 -> 1428 | K66: =MassDataLink!A1529 -> 1526 | L66: -1 | M66: -1 | N66: -1 | O66: -1 | P66: -1 | Q66: -1 | R66: -1 | S66: -1 | T66: -1 | U66: -1 | V66: -1 | W66: -1 | X66: -1 | Y66: -1 | Z66: -1 | AA66: -1 | AB66: -1 | AC66: -1
A67: 64 | B67: ISB-LXMX-200 | C67: 1000 | D67: 2500 | E67: 0 | F67: =LeadData!A211 -> 208 | G67: =StrokeData!A1441 -> 1438 | H67: =MassDataLink!A1530 -> 1527 | I67: -1 | J67: -1 | K67: -1 | L67: -1 | M67: -1 | N67: -1 | O67: -1 | P67: -1 | Q67: -1 | R67: -1 | S67: -1 | T67: -1 | U67: -1 | V67: -1 | W67: -1 | X67: -1 | Y67: -1 | Z67: -1 | AA67: -1 | AB67: -1 | AC67: -1
A68: 65 | B68: ISB-LXMX-400 | C68: 1000 | D68: 2500 | E68: 0 | F68: =LeadData!A212 -> 209 | G68: =StrokeData!A1455 -> 1452 | H68: =MassDataLink!A1531 -> 1528 | I68: =LeadData!A213 -> 210 | J68: =StrokeData!A1469 -> 1466 | K68: =MassDataLink!A1532 -> 1529 | L68: -1 | M68: -1 | N68: -1 | O68: -1 | P68: -1 | Q68: -1 | R68: -1 | S68: -1 | T68: -1 | U68: -1 | V68: -1 | W68: -1 | X68: -1 | Y68: -1 | Z68: -1 | AA68: -1 | AB68: -1 | AC68: -1
A69: 66 | B69: ISB-LXUWX-200 | C69: 1000 | D69: 2500 | E69: 0 | F69: =LeadData!A214 -> 211 | G69: =StrokeData!A1483 -> 1480 | H69: =MassDataLink!A1533 -> 1530 | I69: -1 | J69: -1 | K69: -1 | L69: -1 | M69: -1 | N69: -1 | O69: -1 | P69: -1 | Q69: -1 | R69: -1 | S69: -1 | T69: -1 | U69: -1 | V69: -1 | W69: -1 | X69: -1 | Y69: -1 | Z69: -1 | AA69: -1 | AB69: -1 | AC69: -1
A70: 67 | B70: ISB-LXUWX-400 | C70: 1000 | D70: 2500 | E70: 0 | F70: =LeadData!A215 -> 212 | G70: =StrokeData!A1497 -> 1494 | H70: =MassDataLink!A1534 -> 1531 | I70: =LeadData!A216 -> 213 | J70: =StrokeData!A1511 -> 1508 | K70: =MassDataLink!A1535 -> 1532 | L70: -1 | M70: -1 | N70: -1 | O70: -1 | P70: -1 | Q70: -1 | R70: -1 | S70: -1 | T70: -1 | U70: -1 | V70: -1 | W70: -1 | X70: -1 | Y70: -1 | Z70: -1 | AA70: -1 | AB70: -1 | AC70: -1
A71: 68 | B71: ISDB-MX-200 | C71: 800 | D71: 1600 | E71: 0 | F71: =LeadData!A217 -> 214 | G71: =StrokeData!A1525 -> 1522 | H71: =MassDataLink!A1536 -> 1533 | I71: =LeadData!A218 -> 215 | J71: =StrokeData!A1531 -> 1528 | K71: =MassDataLink!A1537 -> 1534 | L71: -1 | M71: -1 | N71: -1 | O71: -1 | P71: -1 | Q71: -1 | R71: -1 | S71: -1 | T71: -1 | U71: -1 | V71: -1 | W71: -1 | X71: -1 | Y71: -1 | Z71: -1 | AA71: -1 | AB71: -1 | AC71: -1
A72: 69 | B72: ISDB-LX-200 | C72: 1000 | D72: 1600 | E72: 0 | F72: =LeadData!A219 -> 216 | G72: =StrokeData!A1537 -> 1534 | H72: =MassDataLink!A1538 -> 1535 | I72: =LeadData!A220 -> 217 | J72: =StrokeData!A1542 -> 1539 | K72: =MassDataLink!A1539 -> 1536 | L72: -1 | M72: -1 | N72: -1 | O72: -1 | P72: -1 | Q72: -1 | R72: -1 | S72: -1 | T72: -1 | U72: -1 | V72: -1 | W72: -1 | X72: -1 | Y72: -1 | Z72: -1 | AA72: -1 | AB72: -1 | AC72: -1
A73: 70 | B73: ISDB-LX-400 | C73: 1000 | D73: 1600 | E73: 0 | F73: =LeadData!A221 -> 218 | G73: =StrokeData!A1544 -> 1541 | H73: =MassDataLink!A1540 -> 1537 | I73: =LeadData!A222 -> 219 | J73: =StrokeData!A1549 -> 1546 | K73: =MassDataLink!A1541 -> 1538 | L73: -1 | M73: -1 | N73: -1 | O73: -1 | P73: -1 | Q73: -1 | R73: -1 | S73: -1 | T73: -1 | U73: -1 | V73: -1 | W73: -1 | X73: -1 | Y73: -1 | Z73: -1 | AA73: -1 | AB73: -1 | AC73: -1
A74: 71 | B74: ISDBCR-MX-200 | C74: 800 | D74: 2000 | E74: 0 | F74: =LeadData!A223 -> 220 | G74: =StrokeData!A1551 -> 1548 | H74: =MassDataLink!A1542 -> 1539 | I74: =LeadData!A224 -> 221 | J74: =StrokeData!A1561 -> 1558 | K74: =MassDataLink!A1543 -> 1540 | L74: -1 | M74: -1 | N74: -1 | O74: -1 | P74: -1 | Q74: -1 | R74: -1 | S74: -1 | T74: -1 | U74: -1 | V74: -1 | W74: -1 | X74: -1 | Y74: -1 | Z74: -1 | AA74: -1 | AB74: -1 | AC74: -1
A75: 72 | B75: ISDBCR-LX-200 | C75: 1000 | D75: 2500 | E75: 0 | F75: =LeadData!A225 -> 222 | G75: =StrokeData!A1571 -> 1568 | H75: =MassDataLink!A1544 -> 1541 | I75: =LeadData!A226 -> 223 | J75: =StrokeData!A1585 -> 1582 | K75: =MassDataLink!A1545 -> 1542 | L75: -1 | M75: -1 | N75: -1 | O75: -1 | P75: -1 | Q75: -1 | R75: -1 | S75: -1 | T75: -1 | U75: -1 | V75: -1 | W75: -1 | X75: -1 | Y75: -1 | Z75: -1 | AA75: -1 | AB75: -1 | AC75: -1
A76: 73 | B76: ISDBCR-LX-400 | C76: 1000 | D76: 2500 | E76: 0 | F76: =LeadData!A227 -> 224 | G76: =StrokeData!A1596 -> 1593 | H76: =MassDataLink!A1546 -> 1543 | I76: =LeadData!A228 -> 225 | J76: =StrokeData!A1610 -> 1607 | K76: =MassDataLink!A1547 -> 1544 | L76: -1 | M76: -1 | N76: -1 | O76: -1 | P76: -1 | Q76: -1 | R76: -1 | S76: -1 | T76: -1 | U76: -1 | V76: -1 | W76: -1 | X76: -1 | Y76: -1 | Z76: -1 | AA76: -1 | AB76: -1 | AC76: -1
A77: 74 | B77: ISB-SXM-100 | C77: 100 | D77: 1100 | E77: 0 | F77: =LeadData!A229 -> 226 | G77: =StrokeData!A1621 -> 1618 | H77: =MassDataLink!A1548 -> 1545 | I77: -1 | J77: -1 | K77: -1 | L77: -1 | M77: -1 | N77: -1 | O77: -1 | P77: -1 | Q77: -1 | R77: -1 | S77: -1 | T77: -1 | U77: -1 | V77: -1 | W77: -1 | X77: -1 | Y77: -1 | Z77: -1 | AA77: -1 | AB77: -1 | AC77: -1
A78: 75 | B78: ISB-MXM-400 | C78: 100 | D78: 1300 | E78: 0 | F78: =LeadData!A230 -> 227 | G78: =StrokeData!A1633 -> 1630 | H78: =MassDataLink!A1566 -> 1563 | I78: -1 | J78: -1 | K78: -1 | L78: -1 | M78: -1 | N78: -1 | O78: -1 | P78: -1 | Q78: -1 | R78: -1 | S78: -1 | T78: -1 | U78: -1 | V78: -1 | W78: -1 | X78: -1 | Y78: -1 | Z78: -1 | AA78: -1 | AB78: -1 | AC78: -1
A79: 76 | B79: ISB-SXL-100 | C79: 130 | D79: 1080 | E79: 0 | F79: =LeadData!A231 -> 228 | G79: =StrokeData!A1646 -> 1643 | H79: =MassDataLink!A1584 -> 1581 | I79: -1 | J79: -1 | K79: -1 | L79: -1 | M79: -1 | N79: -1 | O79: -1 | P79: -1 | Q79: -1 | R79: -1 | S79: -1 | T79: -1 | U79: -1 | V79: -1 | W79: -1 | X79: -1 | Y79: -1 | Z79: -1 | AA79: -1 | AB79: -1 | AC79: -1
A80: 77 | B80: ISB-MXL-400 | C80: 120 | D80: 1270 | E80: 0 | F80: =LeadData!A232 -> 229 | G80: =StrokeData!A1658 -> 1655 | H80: =MassDataLink!A1602 -> 1599 | I80: -1 | J80: -1 | K80: -1 | L80: -1 | M80: -1 | N80: -1 | O80: -1 | P80: -1 | Q80: -1 | R80: -1 | S80: -1 | T80: -1 | U80: -1 | V80: -1 | W80: -1 | X80: -1 | Y80: -1 | Z80: -1 | AA80: -1 | AB80: -1 | AC80: -1
A81: 78 | B81: ISDB-S-100 | C81: 100 | D81: 800 | E81: 0 | F81: =LeadData!A233 -> 230 | G81: =StrokeData!A1671 -> 1668 | H81: =MassDataLink!A1620 -> 1617 | I81: -1 | J81: -1 | K81: -1 | L81: -1 | M81: -1 | N81: -1 | O81: -1 | P81: -1 | Q81: -1 | R81: -1 | S81: -1 | T81: -1 | U81: -1 | V81: -1 | W81: -1 | X81: -1 | Y81: -1 | Z81: -1 | AA81: -1 | AB81: -1 | AC81: -1
A82: 79 | B82: ISDB-M-400 | C82: 100 | D82: 1100 | E82: 0 | F82: =LeadData!A234 -> 231 | G82: =StrokeData!A1677 -> 1674 | H82: =MassDataLink!A1636 -> 1633 | I82: -1 | J82: -1 | K82: -1 | L82: -1 | M82: -1 | N82: -1 | O82: -1 | P82: -1 | Q82: -1 | R82: -1 | S82: -1 | T82: -1 | U82: -1 | V82: -1 | W82: -1 | X82: -1 | Y82: -1 | Z82: -1 | AA82: -1 | AB82: -1 | AC82: -1
A83: 80 | B83: ISB-MXMX-400 | C83: 800 | D83: 2000 | E83: 0 | F83: =LeadData!A235 -> 232 | G83: =StrokeData!A1686 -> 1683 | H83: =MassDataLink!A1652 -> 1649 | I83: -1 | J83: -1 | K83: -1 | L83: -1 | M83: -1 | N83: -1 | O83: -1 | P83: -1 | Q83: -1 | R83: -1 | S83: -1 | T83: -1 | U83: -1 | V83: -1 | W83: -1 | X83: -1 | Y83: -1 | Z83: -1 | AA83: -1 | AB83: -1 | AC83: -1
A84: 81 | B84: ISDB-MX-400 | C84: 800 | D84: 1600 | E84: 0 | F84: =LeadData!A236 -> 233 | G84: =StrokeData!A1701 -> 1698 | H84: =MassDataLink!A1653 -> 1650 | I84: -1 | J84: -1 | K84: -1 | L84: -1 | M84: -1 | N84: -1 | O84: -1 | P84: -1 | Q84: -1 | R84: -1 | S84: -1 | T84: -1 | U84: -1 | V84: -1 | W84: -1 | X84: -1 | Y84: -1 | Z84: -1 | AA84: -1 | AB84: -1 | AC84: -1
A85: 82 | B85: RCS4-RA4C-60 | C85: 50 | D85: 200 | E85: 0 | F85: =LeadData!A237 -> 234 | G85: =+StrokeData!A1708 -> 1705 | H85: =MassDataLink!A1654 -> 1651 | I85: =LeadData!A238 -> 235 | J85: =+StrokeData!A1709 -> 1706 | K85: =+MassDataLink!A1657 -> 1654 | L85: =LeadData!A239 -> 236 | M85: =+StrokeData!A1710 -> 1707 | N85: =+MassDataLink!A1661 -> 1658 | O85: =LeadData!A240 -> 237 | P85: =+StrokeData!A1711 -> 1708 | Q85: =+MassDataLink!A1667 -> 1664 | R85: -1 | S85: -1 | T85: -1 | U85: -1 | V85: -1 | W85: -1 | X85: -1 | Y85: -1 | Z85: -1 | AA85: -1 | AB85: -1 | AC85: -1
A86: 83 | B86: RCS4-RA6C-100 | C86: 50 | D86: 300 | E86: 0 | F86: =LeadData!A241 -> 238 | G86: =+StrokeData!A1712 -> 1709 | H86: =MassDataLink!A1673 -> 1670 | I86: =LeadData!A242 -> 239 | J86: =+StrokeData!A1713 -> 1710 | K86: =MassDataLink!A1677 -> 1674 | L86: =LeadData!A243 -> 240 | M86: =+StrokeData!A1714 -> 1711 | N86: =MassDataLink!A1684 -> 1681 | O86: =LeadData!A244 -> 241 | P86: =+StrokeData!A1715 -> 1712 | Q86: =MassDataLink!A1690 -> 1687 | R86: -1 | S86: -1 | T86: -1 | U86: -1 | V86: -1 | W86: -1 | X86: -1 | Y86: -1 | Z86: -1 | AA86: -1 | AB86: -1 | AC86: -1
A87: 84 | B87: RCS4-RA7C-200 | C87: 50 | D87: 300 | E87: 0 | F87: =LeadData!A245 -> 242 | G87: =+StrokeData!A1716 -> 1713 | H87: =MassDataLink!A1698 -> 1695 | I87: =LeadData!A246 -> 243 | J87: =+StrokeData!A1717 -> 1714 | K87: =MassDataLink!A1703 -> 1700 | L87: =LeadData!A247 -> 244 | M87: =+StrokeData!A1718 -> 1715 | N87: =MassDataLink!A1708 -> 1705 | O87: =LeadData!A248 -> 245 | P87: =+StrokeData!A1719 -> 1716 | Q87: =MassDataLink!A1716 -> 1713 | R87: -1 | S87: -1 | T87: -1 | U87: -1 | V87: -1 | W87: -1 | X87: -1 | Y87: -1 | Z87: -1 | AA87: -1 | AB87: -1 | AC87: -1
A88: 85 | B88: RCS4-RA8C-400 | C88: 50 | D88: 300 | E88: 0 | F88: =LeadData!A249 -> 246 | G88: =+StrokeData!A1720 -> 1717 | H88: =MassDataLink!A1722 -> 1719 | I88: =LeadData!A250 -> 247 | J88: =+StrokeData!A1721 -> 1718 | K88: =MassDataLink!A1729 -> 1726 | L88: =LeadData!A251 -> 248 | M88: =+StrokeData!A1722 -> 1719 | N88: =MassDataLink!A1735 -> 1732 | O88: -1 | P88: -1 | Q88: -1 | R88: -1 | S88: -1 | T88: -1 | U88: -1 | V88: -1 | W88: -1 | X88: -1 | Y88: -1 | Z88: -1 | AA88: -1 | AB88: -1 | AC88: -1
A89: 86 | B89: RCS4-SA4C-60 | C89: 50 | D89: 500 | E89: 0 | F89: =LeadData!A252 -> 249 | G89: =+StrokeData!A1723 -> 1720 | H89: =MassDataLink!A1743 -> 1740 | I89: =LeadData!A253 -> 250 | J89: =+StrokeData!A1725 -> 1722 | K89: =MassDataLink!A1746 -> 1743 | L89: =LeadData!A254 -> 251 | M89: =+StrokeData!A1727 -> 1724 | N89: =MassDataLink!A1750 -> 1747 | O89: =LeadData!A255 -> 252 | P89: =+StrokeData!A1729 -> 1726 | Q89: =MassDataLink!A1757 -> 1754 | R89: -1 | S89: -1 | T89: -1 | U89: -1 | V89: -1 | W89: -1 | X89: -1 | Y89: -1 | Z89: -1 | AA89: -1 | AB89: -1 | AC89: -1
A90: 87 | B90: RCS4-SA6C-100 | C90: 50 | D90: 800 | E90: 0 | F90: =LeadData!A256 -> 253 | G90: =+StrokeData!A1731 -> 1728 | H90: =MassDataLink!A1764 -> 1761 | I90: =LeadData!A257 -> 254 | J90: =+StrokeData!A1738 -> 1735 | K90: =MassDataLink!A1770 -> 1767 | L90: =LeadData!A258 -> 255 | M90: =+StrokeData!A1745 -> 1742 | N90: =MassDataLink!A1774 -> 1771 | O90: =LeadData!A259 -> 256 | P90: =+StrokeData!A1752 -> 1749 | Q90: =MassDataLink!A1781 -> 1778 | R90: =LeadData!A260 -> 257 | S90: =+StrokeData!A1759 -> 1756 | T90: =MassDataLink!A1790 -> 1787 | U90: -1 | V90: -1 | W90: -1 | X90: -1 | Y90: -1 | Z90: -1 | AA90: -1 | AB90: -1 | AC90: -1
A91: 88 | B91: RCS4-SA7C-200 | C91: 50 | D91: 800 | E91: 0 | F91: =LeadData!A261 -> 258 | G91: =+StrokeData!A1765 -> 1762 | H91: =MassDataLink!A1797 -> 1794 | I91: =LeadData!A262 -> 259 | J91: =+StrokeData!A1772 -> 1769 | K91: =MassDataLink!A1801 -> 1798 | L91: =LeadData!A263 -> 260 | M91: =+StrokeData!A1779 -> 1776 | N91: =MassDataLink!A1806 -> 1803 | O91: =LeadData!A264 -> 261 | P91: =+StrokeData!A1786 -> 1783 | Q91: =MassDataLink!A1813 -> 1810 | R91: =LeadData!A265 -> 262 | S91: =+StrokeData!A1793 -> 1790 | T91: =MassDataLink!A1822 -> 1819 | U91: -1 | V91: -1 | W91: -1 | X91: -1 | Y91: -1 | Z91: -1 | AA91: -1 | AB91: -1 | AC91: -1
A92: 89 | B92: RCS4-SA8C-400 | C92: 50 | D92: 1100 | E92: 0 | F92: =LeadData!A266 -> 263 | G92: =+StrokeData!A1798 -> 1795 | H92: =MassDataLink!A1829 -> 1826 | I92: =LeadData!A267 -> 264 | J92: =+StrokeData!A1809 -> 1806 | K92: =MassDataLink!A1833 -> 1830 | L92: =LeadData!A268 -> 265 | M92: =+StrokeData!A1820 -> 1817 | N92: =MassDataLink!A1838 -> 1835 | O92: =LeadData!A269 -> 266 | P92: =+StrokeData!A1831 -> 1828 | Q92: =MassDataLink!A1847 -> 1844 | R92: =LeadData!A270 -> 267 | S92: =+StrokeData!A1842 -> 1839 | T92: =MassDataLink!A1856 -> 1853 | U92: -1 | V92: -1 | W92: -1 | X92: -1 | Y92: -1 | Z92: -1 | AA92: -1 | AB92: -1 | AC92: -1
A93: 90 | B93: RCS4-WSA10C-60 | C93: 50 | D93: 500 | E93: 0 | F93: =LeadData!A271 -> 268 | G93: =+StrokeData!A1851 -> 1848 | H93: =MassDataLink!A1860 -> 1857 | I93: =LeadData!A272 -> 269 | J93: =+StrokeData!A1855 -> 1852 | K93: =MassDataLink!A1865 -> 1862 | L93: =LeadData!A273 -> 270 | M93: =+StrokeData!A1859 -> 1856 | N93: =MassDataLink!A1869 -> 1866 | O93: =LeadData!A274 -> 271 | P93: =+StrokeData!A1863 -> 1860 | Q93: =MassDataLink!A1874 -> 1871 | R93: -1 | S93: -1 | T93: -1 | U93: -1 | V93: -1 | W93: -1 | X93: -1 | Y93: -1 | Z93: -1 | AA93: -1 | AB93: -1 | AC93: -1
A94: 91 | B94: RCS4-WSA12C-100 | C94: 50 | D94: 800 | E94: 0 | F94: =LeadData!A275 -> 272 | G94: =+StrokeData!A1867 -> 1864 | H94: =MassDataLink!A1878 -> 1875 | I94: =LeadData!A276 -> 273 | J94: =+StrokeData!A1875 -> 1872 | K94: =MassDataLink!A1884 -> 1881 | L94: =LeadData!A277 -> 274 | M94: =+StrokeData!A1883 -> 1880 | N94: =MassDataLink!A1891 -> 1888 | O94: =LeadData!A278 -> 275 | P94: =+StrokeData!A1891 -> 1888 | Q94: =MassDataLink!A1896 -> 1893 | R94: =LeadData!A279 -> 276 | S94: =+StrokeData!A1899 -> 1896 | T94: =MassDataLink!A1903 -> 1900 | U94: -1 | V94: -1 | W94: -1 | X94: -1 | Y94: -1 | Z94: -1 | AA94: -1 | AB94: -1 | AC94: -1
A95: 92 | B95: RCS4-WSA14C-200 | C95: 50 | D95: 800 | E95: 0 | F95: =LeadData!A280 -> 277 | G95: =+StrokeData!A1906 -> 1903 | H95: =MassDataLink!A1906 -> 1903 | I95: =LeadData!A281 -> 278 | J95: =+StrokeData!A1914 -> 1911 | K95: =MassDataLink!A1912 -> 1909 | L95: =LeadData!A282 -> 279 | M95: =+StrokeData!A1922 -> 1919 | N95: =MassDataLink!A1916 -> 1913 | O95: =LeadData!A283 -> 280 | P95: =+StrokeData!A1930 -> 1927 | Q95: =MassDataLink!A1921 -> 1918 | R95: =LeadData!A284 -> 281 | S95: =+StrokeData!A1938 -> 1935 | T95: =MassDataLink!A1926 -> 1923 | U95: -1 | V95: -1 | W95: -1 | X95: -1 | Y95: -1 | Z95: -1 | AA95: -1 | AB95: -1 | AC95: -1
A96: 93 | B96: RCS4-WSA16C-400 | C96: 50 | D96: 1100 | E96: 0 | F96: =LeadData!A285 -> 282 | G96: =+StrokeData!A1944 -> 1941 | H96: =MassDataLink!A1930 -> 1927 | I96: =LeadData!A286 -> 283 | J96: =+StrokeData!A1956 -> 1953 | K96: =MassDataLink!A1935 -> 1932 | L96: =LeadData!A287 -> 284 | M96: =+StrokeData!A1968 -> 1965 | N96: =MassDataLink!A1940 -> 1937 | O96: =LeadData!A288 -> 285 | P96: =+StrokeData!A1980 -> 1977 | Q96: =MassDataLink!A1949 -> 1946 | R96: -1 | S96: -1 | T96: -1 | U96: -1 | V96: -1 | W96: -1 | X96: -1 | Y96: -1 | Z96: -1 | AA96: -1 | AB96: -1 | AC96: -1
A97: 94 | B97: RCS4-TA4C(SB)-60 | C97: 25 | D97: 150 | E97: 0 | F97: =LeadData!A289 -> 286 | G97: =+StrokeData!A1992 -> 1989 | H97: =MassDataLink!A1957 -> 1954 | I97: =LeadData!A290 -> 287 | J97: =+StrokeData!A1993 -> 1990 | K97: =MassDataLink!A1959 -> 1956 | L97: =LeadData!A291 -> 288 | M97: =+StrokeData!A1994 -> 1991 | N97: =MassDataLink!A1961 -> 1958 | O97: =LeadData!A292 -> 289 | P97: =+StrokeData!A1995 -> 1992 | Q97: =MassDataLink!A1963 -> 1960 | R97: -1 | S97: -1 | T97: -1 | U97: -1 | V97: -1 | W97: -1 | X97: -1 | Y97: -1 | Z97: -1 | AA97: -1 | AB97: -1 | AC97: -1
A98: 95 | B98: RCS4-TA6C(SB)-100 | C98: 25 | D98: 200 | E98: 0 | F98: =LeadData!A293 -> 290 | G98: =+StrokeData!A1996 -> 1993 | H98: =MassDataLink!A1966 -> 1963 | I98: =LeadData!A294 -> 291 | J98: =+StrokeData!A1997 -> 1994 | K98: =MassDataLink!A1968 -> 1965 | L98: =LeadData!A295 -> 292 | M98: =+StrokeData!A1998 -> 1995 | N98: =MassDataLink!A1970 -> 1967 | O98: =LeadData!A296 -> 293 | P98: =+StrokeData!A1999 -> 1996 | Q98: =MassDataLink!A1972 -> 1969 | R98: -1 | S98: -1 | T98: -1 | U98: -1 | V98: -1 | W98: -1 | X98: -1 | Y98: -1 | Z98: -1 | AA98: -1 | AB98: -1 | AC98: -1
A99: 96 | B99: RCS4-TA7C(SB)-200 | C99: 25 | D99: 300 | E99: 0 | F99: =LeadData!A297 -> 294 | G99: =+StrokeData!A2000 -> 1997 | H99: =MassDataLink!A1978 -> 1975 | I99: =LeadData!A298 -> 295 | J99: =+StrokeData!A2001 -> 1998 | K99: =MassDataLink!A1980 -> 1977 | L99: =LeadData!A299 -> 296 | M99: =+StrokeData!A2002 -> 1999 | N99: =MassDataLink!A1982 -> 1979 | O99: =LeadData!A300 -> 297 | P99: =+StrokeData!A2003 -> 2000 | Q99: =MassDataLink!A1986 -> 1983 | R99: -1 | S99: -1 | T99: -1 | U99: -1 | V99: -1 | W99: -1 | X99: -1 | Y99: -1 | Z99: -1 | AA99: -1 | AB99: -1 | AC99: -1
A100: 97 | B100: RCS4-TA4C(DB)-60 | C100: 40 | D100: 240 | E100: 0 | F100: =LeadData!A301 -> 298 | G100: =+StrokeData!A2004 -> 2001 | H100: =MassDataLink!A1992 -> 1989 | I100: =LeadData!A302 -> 299 | J100: =+StrokeData!A2005 -> 2002 | K100: =MassDataLink!A1994 -> 1991 | L100: =LeadData!A303 -> 300 | M100: =+StrokeData!A2006 -> 2003 | N100: =MassDataLink!A1997 -> 1994 | O100: -1 | P100: -1 | Q100: -1 | R100: -1 | S100: -1 | T100: -1 | U100: -1 | V100: -1 | W100: -1 | X100: -1 | Y100: -1 | Z100: -1 | AA100: -1 | AB100: -1 | AC100: -1
A101: 98 | B101: RCS4-TA6C(DB)-100 | C101: 45 | D101: 320 | E101: 0 | F101: =LeadData!A304 -> 301 | G101: =+StrokeData!A2007 -> 2004 | H101: =MassDataLink!A2001 -> 1998 | I101: =LeadData!A305 -> 302 | J101: =+StrokeData!A2009 -> 2006 | K101: =MassDataLink!A2003 -> 2000 | L101: =LeadData!A306 -> 303 | M101: =+StrokeData!A2011 -> 2008 | N101: =MassDataLink!A2005 -> 2002 | O101: -1 | P101: -1 | Q101: -1 | R101: -1 | S101: -1 | T101: -1 | U101: -1 | V101: -1 | W101: -1 | X101: -1 | Y101: -1 | Z101: -1 | AA101: -1 | AB101: -1 | AC101: -1
A102: 99 | B102: RCS4-TA7C(DB)-200 | C102: 40 | D102: 390 | E102: 0 | F102: =LeadData!A307 -> 304 | G102: =+StrokeData!A2013 -> 2010 | H102: =MassDataLink!A2008 -> 2005 | I102: =LeadData!A308 -> 305 | J102: =+StrokeData!A2016 -> 2013 | K102: =MassDataLink!A2010 -> 2007 | L102: =LeadData!A309 -> 306 | M102: =+StrokeData!A2019 -> 2016 | N102: =MassDataLink!A2013 -> 2010 | O102: -1 | P102: -1 | Q102: -1 | R102: -1 | S102: -1 | T102: -1 | U102: -1 | V102: -1 | W102: -1 | X102: -1 | Y102: -1 | Z102: -1 | AA102: -1 | AB102: -1 | AC102: -1
A103: 100 | B103: RCS4-RRA4C-60 | C103: 60 | D103: 410 | E103: 0 | F103: =LeadData!A310 -> 307 | G103: =+StrokeData!$A2022 -> 2019 | H103: =MassDataLink!A2018 -> 2015 | I103: =LeadData!A311 -> 308 | J103: =+StrokeData!$A2023 -> 2020 | K103: =MassDataLink!A2021 -> 2018 | L103: =LeadData!A312 -> 309 | M103: =+StrokeData!$A2024 -> 2021 | N103: =MassDataLink!A2025 -> 2022 | O103: =LeadData!A313 -> 310 | P103: =+StrokeData!$A2025 -> 2022 | Q103: =MassDataLink!A2031 -> 2028 | R103: -1 | S103: -1 | T103: -1 | U103: -1 | V103: -1 | W103: -1 | X103: -1 | Y103: -1 | Z103: -1 | AA103: -1 | AB103: -1 | AC103: -1
A104: 101 | B104: RCS4-RRA6C-100 | C104: 65 | D104: 415 | E104: 0 | F104: =LeadData!A314 -> 311 | G104: =+StrokeData!$A2026 -> 2023 | H104: =MassDataLink!A2037 -> 2034 | I104: =LeadData!A315 -> 312 | J104: =+StrokeData!$A2027 -> 2024 | K104: =MassDataLink!A2041 -> 2038 | L104: =LeadData!A316 -> 313 | M104: =+StrokeData!$A2028 -> 2025 | N104: =MassDataLink!A2048 -> 2045 | O104: =LeadData!A317 -> 314 | P104: =+StrokeData!$A2029 -> 2026 | Q104: =MassDataLink!A2054 -> 2051 | R104: -1 | S104: -1 | T104: -1 | U104: -1 | V104: -1 | W104: -1 | X104: -1 | Y104: -1 | Z104: -1 | AA104: -1 | AB104: -1 | AC104: -1
A105: 102 | B105: RCS4-RRA7C-200 | C105: 70 | D105: 520 | E105: 0 | F105: =LeadData!A318 -> 315 | G105: =+StrokeData!$A2030 -> 2027 | H105: =MassDataLink!A2062 -> 2059 | I105: =LeadData!A319 -> 316 | J105: =+StrokeData!$A2031 -> 2028 | K105: =MassDataLink!A2067 -> 2064 | L105: =LeadData!A320 -> 317 | M105: =+StrokeData!$A2032 -> 2029 | N105: =MassDataLink!A2072 -> 2069 | O105: =LeadData!A321 -> 318 | P105: =+StrokeData!$A2033 -> 2030 | Q105: =MassDataLink!A2080 -> 2077 | R105: -1 | S105: -1 | T105: -1 | U105: -1 | V105: -1 | W105: -1 | X105: -1 | Y105: -1 | Z105: -1 | AA105: -1 | AB105: -1 | AC105: -1
A106: 103 | B106: RCS4-RRA8C-400 | C106: 50 | D106: 700 | E106: 0 | F106: =LeadData!A322 -> 319 | G106: =+StrokeData!$A2034 -> 2031 | H106: =MassDataLink!A2086 -> 2083 | I106: =LeadData!A323 -> 320 | J106: =+StrokeData!$A2044 -> 2041 | K106: =MassDataLink!A2093 -> 2090 | L106: =LeadData!A324 -> 321 | M106: =+StrokeData!$A2054 -> 2051 | N106: =MassDataLink!A2099 -> 2096 | O106: =LeadData!A325 -> 322 | P106: =+StrokeData!$A2064 -> 2061 | Q106: =MassDataLink!A2107 -> 2104 | R106: -1 | S106: -1 | T106: -1 | U106: -1 | V106: -1 | W106: -1 | X106: -1 | Y106: -1 | Z106: -1 | AA106: -1 | AB106: -1 | AC106: -1
A107: 104 | B107: RCS4-WRA10C-60 | C107: 50 | D107: 500 | E107: 0 | F107: =LeadData!A326 -> 323 | G107: =+StrokeData!$A2073 -> 2070 | H107: =MassDataLink!A2114 -> 2111 | I107: =LeadData!A327 -> 324 | J107: =+StrokeData!$A2076 -> 2073 | K107: =MassDataLink!A2119 -> 2116 | L107: =LeadData!A328 -> 325 | M107: =+StrokeData!$A2079 -> 2076 | N107: =MassDataLink!A2124 -> 2121 | O107: =LeadData!A329 -> 326 | P107: =+StrokeData!$A2082 -> 2079 | Q107: =MassDataLink!A2131 -> 2128 | R107: -1 | S107: -1 | T107: -1 | U107: -1 | V107: -1 | W107: -1 | X107: -1 | Y107: -1 | Z107: -1 | AA107: -1 | AB107: -1 | AC107: -1
A108: 105 | B108: RCS4-WRA12C-100 | C108: 50 | D108: 500 | E108: 0 | F108: =LeadData!A330 -> 327 | G108: =+StrokeData!$A2084 -> 2081 | H108: =MassDataLink!A2135 -> 2132 | I108: =LeadData!A331 -> 328 | J108: =+StrokeData!$A2085 -> 2082 | K108: =MassDataLink!A2139 -> 2136 | L108: =LeadData!A332 -> 329 | M108: =+StrokeData!$A2086 -> 2083 | N108: =MassDataLink!A2144 -> 2141 | O108: =LeadData!A333 -> 330 | P108: =+StrokeData!$A2087 -> 2084 | Q108: =MassDataLink!A2149 -> 2146 | R108: -1 | S108: -1 | T108: -1 | U108: -1 | V108: -1 | W108: -1 | X108: -1 | Y108: -1 | Z108: -1 | AA108: -1 | AB108: -1 | AC108: -1
A109: 106 | B109: RCS4-WRA14C-200 | C109: 50 | D109: 600 | E109: 0 | F109: =LeadData!A334 -> 331 | G109: =+StrokeData!$A2088 -> 2085 | H109: =MassDataLink!A2157 -> 2154 | I109: =LeadData!A335 -> 332 | J109: =+StrokeData!$A2091 -> 2088 | K109: =MassDataLink!A2161 -> 2158 | L109: =LeadData!A336 -> 333 | M109: =+StrokeData!$A2094 -> 2091 | N109: =MassDataLink!A2165 -> 2162 | O109: =LeadData!A337 -> 334 | P109: =+StrokeData!$A2095 -> 2092 | Q109: =MassDataLink!A2173 -> 2170 | R109: -1 | S109: -1 | T109: -1 | U109: -1 | V109: -1 | W109: -1 | X109: -1 | Y109: -1 | Z109: -1 | AA109: -1 | AB109: -1 | AC109: -1
A110: 107 | B110: RCS4-WRA16C-400 | C110: 50 | D110: 800 | E110: 0 | F110: =LeadData!A338 -> 335 | G110: =+StrokeData!$A2096 -> 2093 | H110: =MassDataLink!A2180 -> 2177 | I110: =LeadData!A339 -> 336 | J110: =+StrokeData!$A2108 -> 2105 | K110: =MassDataLink!A2186 -> 2183 | L110: =LeadData!A340 -> 337 | M110: =+StrokeData!$A2120 -> 2117 | N110: =MassDataLink!A2191 -> 2188 | O110: =LeadData!A341 -> 338 | P110: =+StrokeData!$A2132 -> 2129 | Q110: =MassDataLink!A2199 -> 2196 | R110: -1 | S110: -1 | T110: -1 | U110: -1 | V110: -1 | W110: -1 | X110: -1 | Y110: -1 | Z110: -1 | AA110: -1 | AB110: -1 | AC110: -1
A111: 108 | B111: RCS4-RA4R-60 | C111: 50 | D111: 200 | E111: 0 | F111: =LeadData!A342 -> 339 | G111: =StrokeData!A2143 -> 2140 | H111: =MassDataLink!A2209 -> 2206 | I111: =LeadData!A343 -> 340 | J111: =StrokeData!A2144 -> 2141 | K111: =MassDataLink!A2212 -> 2209 | L111: =LeadData!A344 -> 341 | M111: =StrokeData!A2145 -> 2142 | N111: =MassDataLink!A2216 -> 2213 | O111: =LeadData!A345 -> 342 | P111: =StrokeData!A2146 -> 2143 | Q111: =MassDataLink!A2220 -> 2217 | R111: -1 | S111: -1 | T111: -1 | U111: -1 | V111: -1 | W111: -1 | X111: -1 | Y111: -1 | Z111: -1 | AA111: -1 | AB111: -1 | AC111: -1
A112: 109 | B112: RCS4-RA6R-100 | C112: 50 | D112: 300 | E112: 0 | F112: =LeadData!A346 -> 343 | G112: =StrokeData!A2147 -> 2144 | H112: =MassDataLink!A2224 -> 2221 | I112: =LeadData!A347 -> 344 | J112: =StrokeData!A2148 -> 2145 | K112: =MassDataLink!A2228 -> 2225 | L112: =LeadData!A348 -> 345 | M112: =StrokeData!A2149 -> 2146 | N112: =MassDataLink!A2235 -> 2232 | O112: =LeadData!A349 -> 346 | P112: =StrokeData!A2150 -> 2147 | Q112: =MassDataLink!A2241 -> 2238 | R112: -1 | S112: -1 | T112: -1 | U112: -1 | V112: -1 | W112: -1 | X112: -1 | Y112: -1 | Z112: -1 | AA112: -1 | AB112: -1 | AC112: -1
A113: 110 | B113: RCS4-RA7R-200 | C113: 50 | D113: 300 | E113: 0 | F113: =LeadData!A350 -> 347 | G113: =StrokeData!A2151 -> 2148 | H113: =MassDataLink!A2247 -> 2244 | I113: =LeadData!A351 -> 348 | J113: =StrokeData!A2152 -> 2149 | K113: =MassDataLink!A2252 -> 2249 | L113: =LeadData!A352 -> 349 | M113: =StrokeData!A2153 -> 2150 | N113: =MassDataLink!A2257 -> 2254 | O113: =LeadData!A353 -> 350 | P113: =StrokeData!A2154 -> 2151 | Q113: =MassDataLink!A2264 -> 2261 | R113: -1 | S113: -1 | T113: -1 | U113: -1 | V113: -1 | W113: -1 | X113: -1 | Y113: -1 | Z113: -1 | AA113: -1 | AB113: -1 | AC113: -1
A114: 111 | B114: RCS4-RA8R-400 | C114: 50 | D114: 300 | E114: 0 | F114: =LeadData!A354 -> 351 | G114: =StrokeData!A2155 -> 2152 | H114: =MassDataLink!A2269 -> 2266 | I114: =LeadData!A355 -> 352 | J114: =StrokeData!A2156 -> 2153 | K114: =MassDataLink!A2276 -> 2273 | L114: =LeadData!A356 -> 353 | M114: =StrokeData!A2157 -> 2154 | N114: =MassDataLink!A2282 -> 2279 | O114: -1 | P114: -1 | Q114: -1 | R114: -1 | S114: -1 | T114: -1 | U114: -1 | V114: -1 | W114: -1 | X114: -1 | Y114: -1 | Z114: -1 | AA114: -1 | AB114: -1 | AC114: -1
A115: 112 | B115: RCS4-SA4R-60 | C115: 50 | D115: 500 | E115: 0 | F115: =LeadData!A357 -> 354 | G115: =StrokeData!A2158 -> 2155 | H115: =MassDataLink!A2289 -> 2286 | I115: =LeadData!A358 -> 355 | J115: =StrokeData!A2166 -> 2163 | K115: =MassDataLink!A2292 -> 2289 | L115: =LeadData!A359 -> 356 | M115: =StrokeData!A2174 -> 2171 | N115: =MassDataLink!A2297 -> 2294 | O115: =LeadData!A360 -> 357 | P115: =StrokeData!A2182 -> 2179 | Q115: =MassDataLink!A2302 -> 2299 | R115: -1 | S115: -1 | T115: -1 | U115: -1 | V115: -1 | W115: -1 | X115: -1 | Y115: -1 | Z115: -1 | AA115: -1 | AB115: -1 | AC115: -1
A116: 113 | B116: RCS4-SA6R-100 | C116: 50 | D116: 800 | E116: 0 | F116: =LeadData!A361 -> 358 | G116: =StrokeData!A2190 -> 2187 | H116: =MassDataLink!A2307 -> 2304 | I116: =LeadData!A362 -> 359 | J116: =StrokeData!A2197 -> 2194 | K116: =MassDataLink!A2313 -> 2310 | L116: =LeadData!A363 -> 360 | M116: =StrokeData!A2204 -> 2201 | N116: =MassDataLink!A2317 -> 2314 | O116: =LeadData!A364 -> 361 | P116: =StrokeData!A2211 -> 2208 | Q116: =MassDataLink!A2323 -> 2320 | R116: =LeadData!A365 -> 362 | S116: =StrokeData!A2218 -> 2215 | T116: =MassDataLink!A2329 -> 2326 | U116: -1 | V116: -1 | W116: -1 | X116: -1 | Y116: -1 | Z116: -1 | AA116: -1 | AB116: -1 | AC116: -1
A117: 114 | B117: RCS4-SA7R-200 | C117: 50 | D117: 800 | E117: 0 | F117: =LeadData!A366 -> 363 | G117: =StrokeData!A2224 -> 2221 | H117: =MassDataLink!A2335 -> 2332 | I117: =LeadData!A367 -> 364 | J117: =StrokeData!A2231 -> 2228 | K117: =MassDataLink!A2339 -> 2336 | L117: =LeadData!A368 -> 365 | M117: =StrokeData!A2238 -> 2235 | N117: =MassDataLink!A2344 -> 2341 | O117: =LeadData!A369 -> 366 | P117: =StrokeData!A2245 -> 2242 | Q117: =MassDataLink!A2350 -> 2347 | R117: =LeadData!A370 -> 367 | S117: =StrokeData!A2252 -> 2249 | T117: =MassDataLink!A2356 -> 2353 | U117: -1 | V117: -1 | W117: -1 | X117: -1 | Y117: -1 | Z117: -1 | AA117: -1 | AB117: -1 | AC117: -1
A118: 115 | B118: RCS4-SA8R-400 | C118: 50 | D118: 1100 | E118: 0 | F118: =LeadData!A371 -> 368 | G118: =StrokeData!A2257 -> 2254 | H118: =MassDataLink!A2362 -> 2359 | I118: =LeadData!A372 -> 369 | J118: =StrokeData!A2268 -> 2265 | K118: =MassDataLink!A2366 -> 2363 | L118: =LeadData!A373 -> 370 | M118: =StrokeData!A2279 -> 2276 | N118: =MassDataLink!A2371 -> 2368 | O118: =LeadData!A374 -> 371 | P118: =StrokeData!A2290 -> 2287 | Q118: =MassDataLink!A2378 -> 2375 | R118: =LeadData!A375 -> 372 | S118: =StrokeData!A2301 -> 2298 | T118: =MassDataLink!A2385 -> 2382 | U118: -1 | V118: -1 | W118: -1 | X118: -1 | Y118: -1 | Z118: -1 | AA118: -1 | AB118: -1 | AC118: -1
A119: 116 | B119: RCS4-WSA10R-60 | C119: 50 | D119: 500 | E119: 0 | F119: =LeadData!A376 -> 373 | G119: =StrokeData!A2309 -> 2306 | H119: =MassDataLink!A2388 -> 2385 | I119: =LeadData!A377 -> 374 | J119: =StrokeData!A2313 -> 2310 | K119: =MassDataLink!A2393 -> 2390 | L119: =LeadData!A378 -> 375 | M119: =StrokeData!A2317 -> 2314 | N119: =MassDataLink!A2397 -> 2394 | O119: =LeadData!A379 -> 376 | P119: =StrokeData!A2321 -> 2318 | Q119: =MassDataLink!A2400 -> 2397 | R119: -1 | S119: -1 | T119: -1 | U119: -1 | V119: -1 | W119: -1 | X119: -1 | Y119: -1 | Z119: -1 | AA119: -1 | AB119: -1 | AC119: -1
A120: 117 | B120: RCS4-WSA12R-100 | C120: 50 | D120: 800 | E120: 0 | F120: =LeadData!A380 -> 377 | G120: =StrokeData!A2325 -> 2322 | H120: =MassDataLink!A2403 -> 2400 | I120: =LeadData!A381 -> 378 | J120: =StrokeData!A2333 -> 2330 | K120: =MassDataLink!A2409 -> 2406 | L120: =LeadData!A382 -> 379 | M120: =StrokeData!A2341 -> 2338 | N120: =MassDataLink!A2416 -> 2413 | O120: =LeadData!A383 -> 380 | P120: =StrokeData!A2349 -> 2346 | Q120: =MassDataLink!A2421 -> 2418 | R120: =LeadData!A384 -> 381 | S120: =StrokeData!A2357 -> 2354 | T120: =MassDataLink!A2427 -> 2424 | U120: -1 | V120: -1 | W120: -1 | X120: -1 | Y120: -1 | Z120: -1 | AA120: -1 | AB120: -1 | AC120: -1
A121: 118 | B121: RCS4-WSA14R-200 | C121: 50 | D121: 800 | E121: 0 | F121: =LeadData!A385 -> 382 | G121: =StrokeData!A2364 -> 2361 | H121: =MassDataLink!A2429 -> 2426 | I121: =LeadData!A386 -> 383 | J121: =StrokeData!A2372 -> 2369 | K121: =MassDataLink!A2435 -> 2432 | L121: =LeadData!A387 -> 384 | M121: =StrokeData!A2380 -> 2377 | N121: =MassDataLink!A2439 -> 2436 | O121: =LeadData!A388 -> 385 | P121: =StrokeData!A2388 -> 2385 | Q121: =MassDataLink!A2443 -> 2440 | R121: =LeadData!A389 -> 386 | S121: =StrokeData!A2396 -> 2393 | T121: =MassDataLink!A2447 -> 2444 | U121: -1 | V121: -1 | W121: -1 | X121: -1 | Y121: -1 | Z121: -1 | AA121: -1 | AB121: -1 | AC121: -1
A122: 119 | B122: RCS4-WSA16R-400 | C122: 50 | D122: 1100 | E122: 0 | F122: =LeadData!A390 -> 387 | G122: =StrokeData!A2402 -> 2399 | H122: =MassDataLink!A2450 -> 2447 | I122: =LeadData!A391 -> 388 | J122: =StrokeData!A2414 -> 2411 | K122: =MassDataLink!A2455 -> 2452 | L122: =LeadData!A392 -> 389 | M122: =StrokeData!A2426 -> 2423 | N122: =MassDataLink!A2460 -> 2457 | O122: =LeadData!A393 -> 390 | P122: =StrokeData!A2438 -> 2435 | Q122: =MassDataLink!A2467 -> 2464 | R122: -1 | S122: -1 | T122: -1 | U122: -1 | V122: -1 | W122: -1 | X122: -1 | Y122: -1 | Z122: -1 | AA122: -1 | AB122: -1 | AC122: -1
A123: 120 | B123: RCS4-TA4R(SB)-60 | C123: 25 | D123: 150 | E123: 0 | F123: =LeadData!A394 -> 391 | G123: =StrokeData!A2450 -> 2447 | H123: =MassDataLink!A2473 -> 2470 | I123: =LeadData!A395 -> 392 | J123: =StrokeData!A2451 -> 2448 | K123: =MassDataLink!A2475 -> 2472 | L123: =LeadData!A396 -> 393 | M123: =StrokeData!A2452 -> 2449 | N123: =MassDataLink!A2477 -> 2474 | O123: =LeadData!A397 -> 394 | P123: =StrokeData!A2453 -> 2450 | Q123: =MassDataLink!A2479 -> 2476 | R123: -1 | S123: -1 | T123: -1 | U123: -1 | V123: -1 | W123: -1 | X123: -1 | Y123: -1 | Z123: -1 | AA123: -1 | AB123: -1 | AC123: -1
A124: 121 | B124: RCS4-TA6R(SB)-100 | C124: 25 | D124: 200 | E124: 0 | F124: =LeadData!A398 -> 395 | G124: =StrokeData!A2454 -> 2451 | H124: =MassDataLink!A2481 -> 2478 | I124: =LeadData!A399 -> 396 | J124: =StrokeData!A2455 -> 2452 | K124: =MassDataLink!A2485 -> 2482 | L124: =LeadData!A400 -> 397 | M124: =StrokeData!A2456 -> 2453 | N124: =MassDataLink!A2488 -> 2485 | O124: =LeadData!A401 -> 398 | P124: =StrokeData!A2457 -> 2454 | Q124: =MassDataLink!A2490 -> 2487 | R124: -1 | S124: -1 | T124: -1 | U124: -1 | V124: -1 | W124: -1 | X124: -1 | Y124: -1 | Z124: -1 | AA124: -1 | AB124: -1 | AC124: -1
A125: 122 | B125: RCS4-TA7R(SB)-200 | C125: 25 | D125: 300 | E125: 0 | F125: =LeadData!A402 -> 399 | G125: =StrokeData!A2458 -> 2455 | H125: =MassDataLink!A2494 -> 2491 | I125: =LeadData!A403 -> 400 | J125: =StrokeData!A2459 -> 2456 | K125: =MassDataLink!A2496 -> 2493 | L125: =LeadData!A404 -> 401 | M125: =StrokeData!A2460 -> 2457 | N125: =MassDataLink!A2498 -> 2495 | O125: =LeadData!A405 -> 402 | P125: =StrokeData!A2461 -> 2458 | Q125: =MassDataLink!A2501 -> 2498 | R125: -1 | S125: -1 | T125: -1 | U125: -1 | V125: -1 | W125: -1 | X125: -1 | Y125: -1 | Z125: -1 | AA125: -1 | AB125: -1 | AC125: -1
A126: 123 | B126: RCS4-TA4R(DB)-60 | C126: 40 | D126: 240 | E126: 0 | F126: =LeadData!A406 -> 403 | G126: =StrokeData!A2462 -> 2459 | H126: =MassDataLink!A2505 -> 2502 | I126: =LeadData!A407 -> 404 | J126: =StrokeData!A2463 -> 2460 | K126: =MassDataLink!A2507 -> 2504 | L126: =LeadData!A408 -> 405 | M126: =StrokeData!A2464 -> 2461 | N126: =MassDataLink!A2510 -> 2507 | O126: -1 | P126: -1 | Q126: -1 | R126: -1 | S126: -1 | T126: -1 | U126: -1 | V126: -1 | W126: -1 | X126: -1 | Y126: -1 | Z126: -1 | AA126: -1 | AB126: -1 | AC126: -1
A127: 124 | B127: RCS4-TA6R(DB)-100 | C127: 45 | D127: 320 | E127: 0 | F127: =LeadData!A409 -> 406 | G127: =StrokeData!A2465 -> 2462 | H127: =MassDataLink!A2513 -> 2510 | I127: =LeadData!A410 -> 407 | J127: =StrokeData!A2468 -> 2465 | K127: =MassDataLink!A2515 -> 2512 | L127: =LeadData!A411 -> 408 | M127: =StrokeData!A2471 -> 2468 | N127: =MassDataLink!A2517 -> 2514 | O127: -1 | P127: -1 | Q127: -1 | R127: -1 | S127: -1 | T127: -1 | U127: -1 | V127: -1 | W127: -1 | X127: -1 | Y127: -1 | Z127: -1 | AA127: -1 | AB127: -1 | AC127: -1
A128: 125 | B128: RCS4-TA7R(DB)-200 | C128: 40 | D128: 390 | E128: 0 | F128: =LeadData!A412 -> 409 | G128: =StrokeData!A2474 -> 2471 | H128: =MassDataLink!A2519 -> 2516 | I128: =LeadData!A413 -> 410 | J128: =StrokeData!A2479 -> 2476 | K128: =MassDataLink!A2521 -> 2518 | L128: =LeadData!A414 -> 411 | M128: =StrokeData!A2484 -> 2481 | N128: =MassDataLink!A2524 -> 2521 | O128: -1 | P128: -1 | Q128: -1 | R128: -1 | S128: -1 | T128: -1 | U128: -1 | V128: -1 | W128: -1 | X128: -1 | Y128: -1 | Z128: -1 | AA128: -1 | AB128: -1 | AC128: -1
A129: 126 | B129: RCS4-RRA4R-60 | C129: 60 | D129: 410 | E129: 0 | F129: =LeadData!A415 -> 412 | G129: =StrokeData!A2488 -> 2485 | H129: =MassDataLink!A2527 -> 2524 | I129: =LeadData!A416 -> 413 | J129: =StrokeData!A2489 -> 2486 | K129: =MassDataLink!A2530 -> 2527 | L129: =LeadData!A417 -> 414 | M129: =StrokeData!A2490 -> 2487 | N129: =MassDataLink!A2534 -> 2531 | O129: =LeadData!A418 -> 415 | P129: =StrokeData!A2491 -> 2488 | Q129: =MassDataLink!A2538 -> 2535 | R129: -1 | S129: -1 | T129: -1 | U129: -1 | V129: -1 | W129: -1 | X129: -1 | Y129: -1 | Z129: -1 | AA129: -1 | AB129: -1 | AC129: -1
A130: =A129+1 -> 127 | B130: RCS4-RRA6R-100 | C130: 65 | D130: 415 | E130: 0 | F130: =LeadData!A419 -> 416 | G130: =StrokeData!A2492 -> 2489 | H130: =MassDataLink!A2542 -> 2539 | I130: =LeadData!A420 -> 417 | J130: =StrokeData!A2493 -> 2490 | K130: =MassDataLink!A2546 -> 2543 | L130: =LeadData!A421 -> 418 | M130: =StrokeData!A2494 -> 2491 | N130: =MassDataLink!A2553 -> 2550 | O130: =LeadData!A422 -> 419 | P130: =StrokeData!A2495 -> 2492 | Q130: =MassDataLink!A2559 -> 2556 | R130: -1 | S130: -1 | T130: -1 | U130: -1 | V130: -1 | W130: -1 | X130: -1 | Y130: -1 | Z130: -1 | AA130: -1 | AB130: -1 | AC130: -1
A131: 128 | B131: RCS4-RRA7R-200 | C131: 70 | D131: 520 | E131: 0 | F131: =LeadData!A423 -> 420 | G131: =StrokeData!A2496 -> 2493 | H131: =MassDataLink!A2565 -> 2562 | I131: =LeadData!A424 -> 421 | J131: =StrokeData!A2497 -> 2494 | K131: =MassDataLink!A2570 -> 2567 | L131: =LeadData!A425 -> 422 | M131: =StrokeData!A2498 -> 2495 | N131: =MassDataLink!A2575 -> 2572 | O131: =LeadData!A426 -> 423 | P131: =StrokeData!A2499 -> 2496 | Q131: =MassDataLink!A2582 -> 2579 | R131: -1 | S131: -1 | T131: -1 | U131: -1 | V131: -1 | W131: -1 | X131: -1 | Y131: -1 | Z131: -1 | AA131: -1 | AB131: -1 | AC131: -1
A132: 129 | B132: RCS4-RRA8R-400 | C132: 50 | D132: 700 | E132: 0 | F132: =LeadData!A427 -> 424 | G132: =StrokeData!A2500 -> 2497 | H132: =MassDataLink!A2587 -> 2584 | I132: =LeadData!A428 -> 425 | J132: =StrokeData!A2510 -> 2507 | K132: =MassDataLink!A2594 -> 2591 | L132: =LeadData!A429 -> 426 | M132: =StrokeData!A2520 -> 2517 | N132: =MassDataLink!A2600 -> 2597 | O132: =LeadData!A430 -> 427 | P132: =StrokeData!A2529 -> 2526 | Q132: =MassDataLink!A2607 -> 2604 | R132: -1 | S132: -1 | T132: -1 | U132: -1 | V132: -1 | W132: -1 | X132: -1 | Y132: -1 | Z132: -1 | AA132: -1 | AB132: -1 | AC132: -1
A133: 130 | B133: RCS4-WRA10R-60 | C133: 50 | D133: 500 | E133: 0 | F133: =LeadData!A431 -> 428 | G133: =StrokeData!A2538 -> 2535 | H133: =MassDataLink!A2613 -> 2610 | I133: =LeadData!A432 -> 429 | J133: =StrokeData!A2541 -> 2538 | K133: =MassDataLink!A2618 -> 2615 | L133: =LeadData!A433 -> 430 | M133: =StrokeData!A2544 -> 2541 | N133: =MassDataLink!A2623 -> 2620 | O133: =LeadData!A434 -> 431 | P133: =StrokeData!A2547 -> 2544 | Q133: =MassDataLink!A2628 -> 2625 | R133: -1 | S133: -1 | T133: -1 | U133: -1 | V133: -1 | W133: -1 | X133: -1 | Y133: -1 | Z133: -1 | AA133: -1 | AB133: -1 | AC133: -1
A134: 131 | B134: RCS4-WRA12R-100 | C134: 50 | D134: 500 | E134: 0 | F134: =LeadData!A435 -> 432 | G134: =StrokeData!A2549 -> 2546 | H134: =MassDataLink!A2631 -> 2628 | I134: =LeadData!A436 -> 433 | J134: =StrokeData!A2550 -> 2547 | K134: =MassDataLink!A2635 -> 2632 | L134: =LeadData!A437 -> 434 | M134: =StrokeData!A2551 -> 2548 | N134: =MassDataLink!A2640 -> 2637 | O134: =LeadData!A438 -> 435 | P134: =StrokeData!A2552 -> 2549 | Q134: =MassDataLink!A2645 -> 2642 | R134: -1 | S134: -1 | T134: -1 | U134: -1 | V134: -1 | W134: -1 | X134: -1 | Y134: -1 | Z134: -1 | AA134: -1 | AB134: -1 | AC134: -1
A135: 132 | B135: RCS4-WRA14R-200 | C135: 50 | D135: 600 | E135: 0 | F135: =LeadData!A439 -> 436 | G135: =StrokeData!A2553 -> 2550 | H135: =MassDataLink!A2651 -> 2648 | I135: =LeadData!A440 -> 437 | J135: =StrokeData!A2556 -> 2553 | K135: =MassDataLink!A2655 -> 2652 | L135: =LeadData!A441 -> 438 | M135: =StrokeData!A2559 -> 2556 | N135: =MassDataLink!A2659 -> 2656 | O135: =LeadData!A442 -> 439 | P135: =StrokeData!A2560 -> 2557 | Q135: =MassDataLink!A2665 -> 2662 | R135: -1 | S135: -1 | T135: -1 | U135: -1 | V135: -1 | W135: -1 | X135: -1 | Y135: -1 | Z135: -1 | AA135: -1 | AB135: -1 | AC135: -1
A136: 133 | B136: RCS4-WRA16R-400 | C136: 50 | D136: 800 | E136: 0 | F136: =LeadData!A443 -> 440 | G136: =StrokeData!A2561 -> 2558 | H136: =MassDataLink!A2671 -> 2668 | I136: =LeadData!A444 -> 441 | J136: =StrokeData!A2573 -> 2570 | K136: =MassDataLink!A2677 -> 2674 | L136: =LeadData!A445 -> 442 | M136: =StrokeData!A2585 -> 2582 | N136: =MassDataLink!A2682 -> 2679 | O136: =LeadData!A446 -> 443 | P136: =StrokeData!A2597 -> 2594 | Q136: =MassDataLink!A2688 -> 2685 | R136: -1 | S136: -1 | T136: -1 | U136: -1 | V136: -1 | W136: -1 | X136: -1 | Y136: -1 | Z136: -1 | AA136: -1 | AB136: -1 | AC136: -1
A137: 134 | B137: ISB-WXM-750 | C137: 100 | D137: 1300 | E137: 0 | F137: 444 | G137: 2605 | H137: 3210 | I137: 445 | J137: 2611 | K137: 3217 | L137: 446 | M137: 2616 | N137: 3234 | O137: -1 | P137: -1 | Q137: -1 | R137: -1 | S137: -1 | T137: -1 | U137: -1 | V137: -1 | W137: -1 | X137: -1 | Y137: -1 | Z137: -1 | AA137: -1 | AB137: -1 | AC137: -1 | AD137: ↓ Ver3.12 ISB-WXM/WXMXは垂直搬送重量変更の為上書き | AE137: 134 | AF137: ISB-WXM-750 | AG137: 100 | AH137: 1300 | AI137: 0 | AJ137: 444 | AK137: 2605 | AL137: 3210 | AM137: 445 | AN137: 2611 | AO137: 3217 | AP137: 446 | AQ137: 2616 | AR137: 3234 | AS137: -1 | AT137: -1 | AU137: -1 | AV137: -1 | AW137: -1 | AX137: -1 | AY137: -1 | AZ137: -1 | BA137: -1 | BB137: -1 | BC137: -1 | BD137: -1 | BE137: -1 | BF137: -1 | BG137: -1
A138: 135 | B138: ISPB-WXM-750-HLA | C138: 100 | D138: 1300 | E138: 0 | F138: 447 | G138: 2621 | H138: 3249 | I138: -1 | J138: -1 | K138: -1 | L138: -1 | M138: -1 | N138: -1 | O138: -1 | P138: -1 | Q138: -1 | R138: -1 | S138: -1 | T138: -1 | U138: -1 | V138: -1 | W138: -1 | X138: -1 | Y138: -1 | Z138: -1 | AA138: -1 | AB138: -1 | AC138: -1 | AE138: 135 | AF138: ISPB-WXM-750-HLA | AG138: 100 | AH138: 1300 | AI138: 0 | AJ138: 447 | AK138: 2621 | AL138: 3249 | AM138: -1 | AN138: -1 | AO138: -1 | AP138: -1 | AQ138: -1 | AR138: -1 | AS138: -1 | AT138: -1 | AU138: -1 | AV138: -1 | AW138: -1 | AX138: -1 | AY138: -1 | AZ138: -1 | BA138: -1 | BB138: -1 | BC138: -1 | BD138: -1 | BE138: -1 | BF138: -1 | BG138: -1
A139: 136 | B139: ISB-WXMX-750 | C139: 900 | D139: 3000 | E139: 0 | F139: 448 | G139: 2627 | H139: 3257 | I139: 449 | J139: 2628 | K139: 3270 | L139: -1 | M139: -1 | N139: -1 | O139: -1 | P139: -1 | Q139: -1 | R139: -1 | S139: -1 | T139: -1 | U139: -1 | V139: -1 | W139: -1 | X139: -1 | Y139: -1 | Z139: -1 | AA139: -1 | AB139: -1 | AC139: -1 | AE139: 136 | AF139: ISB-WXMX-750 | AG139: 900 | AH139: 3000 | AI139: 0 | AJ139: 448 | AK139: 2627 | AL139: 3257 | AM139: 449 | AN139: 2628 | AO139: 3270 | AP139: -1 | AQ139: -1 | AR139: -1 | AS139: -1 | AT139: -1 | AU139: -1 | AV139: -1 | AW139: -1 | AX139: -1 | AY139: -1 | AZ139: -1 | BA139: -1 | BB139: -1 | BC139: -1 | BD139: -1 | BE139: -1 | BF139: -1 | BG139: -1
A140: 137 | B140: ISB-WXM-750-W | C140: 100 | D140: 1300 | E140: 0 | F140: 450 | G140: 2629 | H140: 3286 | I140: 451 | J140: 2635 | K140: 3293 | L140: 452 | M140: 2640 | N140: 3311 | O140: -1 | P140: -1 | Q140: -1 | R140: -1 | S140: -1 | T140: -1 | U140: -1 | V140: -1 | W140: -1 | X140: -1 | Y140: -1 | Z140: -1 | AA140: -1 | AB140: -1 | AC140: -1 | AE140: 137 | AF140: ISB-WXM-750-W | AG140: 100 | AH140: 1300 | AI140: 0 | AJ140: 450 | AK140: 2629 | AL140: 3286 | AM140: 451 | AN140: 2635 | AO140: 3293 | AP140: 452 | AQ140: 2640 | AR140: 3311 | AS140: -1 | AT140: -1 | AU140: -1 | AV140: -1 | AW140: -1 | AX140: -1 | AY140: -1 | AZ140: -1 | BA140: -1 | BB140: -1 | BC140: -1 | BD140: -1 | BE140: -1 | BF140: -1 | BG140: -1
A141: 138 | B141: ISPB-WXM-750-HLA-W | C141: 100 | D141: 1300 | E141: 0 | F141: 453 | G141: 2645 | H141: 3329 | I141: -1 | J141: -1 | K141: -1 | L141: -1 | M141: -1 | N141: -1 | O141: -1 | P141: -1 | Q141: -1 | R141: -1 | S141: -1 | T141: -1 | U141: -1 | V141: -1 | W141: -1 | X141: -1 | Y141: -1 | Z141: -1 | AA141: -1 | AB141: -1 | AC141: -1 | AE141: 138 | AF141: ISPB-WXM-750-HLA-W | AG141: 100 | AH141: 1300 | AI141: 0 | AJ141: 453 | AK141: 2645 | AL141: 3329 | AM141: -1 | AN141: -1 | AO141: -1 | AP141: -1 | AQ141: -1 | AR141: -1 | AS141: -1 | AT141: -1 | AU141: -1 | AV141: -1 | AW141: -1 | AX141: -1 | AY141: -1 | AZ141: -1 | BA141: -1 | BB141: -1 | BC141: -1 | BD141: -1 | BE141: -1 | BF141: -1 | BG141: -1
A142: 139 | B142: ISB-WXMX-750-W | C142: 900 | D142: 3000 | E142: 0 | F142: 454 | G142: 2651 | H142: 3337 | I142: 455 | J142: 2652 | K142: 3351 | L142: -1 | M142: -1 | N142: -1 | O142: -1 | P142: -1 | Q142: -1 | R142: -1 | S142: -1 | T142: -1 | U142: -1 | V142: -1 | W142: -1 | X142: -1 | Y142: -1 | Z142: -1 | AA142: -1 | AB142: -1 | AC142: -1 | AE142: 139 | AF142: ISB-WXMX-750-W | AG142: 900 | AH142: 3000 | AI142: 0 | AJ142: 454 | AK142: 2651 | AL142: 3337 | AM142: 455 | AN142: 2652 | AO142: 3351 | AP142: -1 | AQ142: -1 | AR142: -1 | AS142: -1 | AT142: -1 | AU142: -1 | AV142: -1 | AW142: -1 | AX142: -1 | AY142: -1 | AZ142: -1 | BA142: -1 | BB142: -1 | BC142: -1 | BD142: -1 | BE142: -1 | BF142: -1 | BG142: -1
A143: 140 | B143: EC-S10L | C143: 100 | D143: 1100 | E143: 0 | F143: 456 | G143: 2653 | H143: 2831 | I143: -1 | J143: -1 | K143: -1 | L143: -1 | M143: -1 | N143: -1 | O143: -1 | P143: -1 | Q143: -1 | R143: -1 | S143: -1 | T143: -1 | U143: -1 | V143: -1 | W143: -1 | X143: -1 | Y143: -1 | Z143: -1 | AA143: -1 | AB143: -1 | AC143: -1
A144: 141 | B144: EC-S10M | C144: 100 | D144: 1100 | E144: 0 | F144: 457 | G144: 2662 | H144: 2833 | I144: -1 | J144: -1 | K144: -1 | L144: -1 | M144: -1 | N144: -1 | O144: -1 | P144: -1 | Q144: -1 | R144: -1 | S144: -1 | T144: -1 | U144: -1 | V144: -1 | W144: -1 | X144: -1 | Y144: -1 | Z144: -1 | AA144: -1 | AB144: -1 | AC144: -1
A145: 142 | B145: EC-S10H | C145: 100 | D145: 1100 | E145: 0 | F145: 458 | G145: 2671 | H145: 2838 | I145: -1 | J145: -1 | K145: -1 | L145: -1 | M145: -1 | N145: -1 | O145: -1 | P145: -1 | Q145: -1 | R145: -1 | S145: -1 | T145: -1 | U145: -1 | V145: -1 | W145: -1 | X145: -1 | Y145: -1 | Z145: -1 | AA145: -1 | AB145: -1 | AC145: -1
A146: 143 | B146: EC-S10S | C146: 100 | D146: 1100 | E146: 0 | F146: 459 | G146: 2680 | H146: 2845 | I146: -1 | J146: -1 | K146: -1 | L146: -1 | M146: -1 | N146: -1 | O146: -1 | P146: -1 | Q146: -1 | R146: -1 | S146: -1 | T146: -1 | U146: -1 | V146: -1 | W146: -1 | X146: -1 | Y146: -1 | Z146: -1 | AA146: -1 | AB146: -1 | AC146: -1
A147: 144 | B147: EC-S10XL | C147: 700 | D147: 2000 | E147: 0 | F147: 460 | G147: 2695 | H147: 2850 | I147: -1 | J147: -1 | K147: -1 | L147: -1 | M147: -1 | N147: -1 | O147: -1 | P147: -1 | Q147: -1 | R147: -1 | S147: -1 | T147: -1 | U147: -1 | V147: -1 | W147: -1 | X147: -1 | Y147: -1 | Z147: -1 | AA147: -1 | AB147: -1 | AC147: -1
A148: 145 | B148: EC-S10XM | C148: 700 | D148: 2000 | E148: 0 | F148: 461 | G148: 2711 | H148: 2852 | I148: -1 | J148: -1 | K148: -1 | L148: -1 | M148: -1 | N148: -1 | O148: -1 | P148: -1 | Q148: -1 | R148: -1 | S148: -1 | T148: -1 | U148: -1 | V148: -1 | W148: -1 | X148: -1 | Y148: -1 | Z148: -1 | AA148: -1 | AB148: -1 | AC148: -1
A149: 146 | B149: EC-S10XH | C149: 700 | D149: 2000 | E149: 0 | F149: 462 | G149: 2731 | H149: 2857 | I149: -1 | J149: -1 | K149: -1 | L149: -1 | M149: -1 | N149: -1 | O149: -1 | P149: -1 | Q149: -1 | R149: -1 | S149: -1 | T149: -1 | U149: -1 | V149: -1 | W149: -1 | X149: -1 | Y149: -1 | Z149: -1 | AA149: -1 | AB149: -1 | AC149: -1
A150: 147 | B150: EC-S10XS | C150: 700 | D150: 2000 | E150: 0 | F150: 463 | G150: 2747 | H150: 2864 | I150: -1 | J150: -1 | K150: -1 | L150: -1 | M150: -1 | N150: -1 | O150: -1 | P150: -1 | Q150: -1 | R150: -1 | S150: -1 | T150: -1 | U150: -1 | V150: -1 | W150: -1 | X150: -1 | Y150: -1 | Z150: -1 | AA150: -1 | AB150: -1 | AC150: -1
A151: 148 | B151: EC-S13L | C151: 100 | D151: 1100 | E151: 0 | F151: 464 | G151: 2763 | H151: 2869 | I151: -1 | J151: -1 | K151: -1 | L151: -1 | M151: -1 | N151: -1 | O151: -1 | P151: -1 | Q151: -1 | R151: -1 | S151: -1 | T151: -1 | U151: -1 | V151: -1 | W151: -1 | X151: -1 | Y151: -1 | Z151: -1 | AA151: -1 | AB151: -1 | AC151: -1
A152: 149 | B152: EC-S13M | C152: 100 | D152: 1100 | E152: 0 | F152: 465 | G152: 2773 | H152: 2872 | I152: -1 | J152: -1 | K152: -1 | L152: -1 | M152: -1 | N152: -1 | O152: -1 | P152: -1 | Q152: -1 | R152: -1 | S152: -1 | T152: -1 | U152: -1 | V152: -1 | W152: -1 | X152: -1 | Y152: -1 | Z152: -1 | AA152: -1 | AB152: -1 | AC152: -1
A153: 150 | B153: EC-S13H | C153: 100 | D153: 1100 | E153: 0 | F153: 466 | G153: 2787 | H153: 2877 | I153: -1 | J153: -1 | K153: -1 | L153: -1 | M153: -1 | N153: -1 | O153: -1 | P153: -1 | Q153: -1 | R153: -1 | S153: -1 | T153: -1 | U153: -1 | V153: -1 | W153: -1 | X153: -1 | Y153: -1 | Z153: -1 | AA153: -1 | AB153: -1 | AC153: -1
A154: 151 | B154: EC-S13S | C154: 100 | D154: 1100 | E154: 0 | F154: 467 | G154: 2801 | H154: 2884 | I154: -1 | J154: -1 | K154: -1 | L154: -1 | M154: -1 | N154: -1 | O154: -1 | P154: -1 | Q154: -1 | R154: -1 | S154: -1 | T154: -1 | U154: -1 | V154: -1 | W154: -1 | X154: -1 | Y154: -1 | Z154: -1 | AA154: -1 | AB154: -1 | AC154: -1
A155: 152 | B155: EC-S13XL | C155: 800 | D155: 2000 | E155: 0 | F155: 468 | G155: 2816 | H155: 2891 | I155: -1 | J155: -1 | K155: -1 | L155: -1 | M155: -1 | N155: -1 | O155: -1 | P155: -1 | Q155: -1 | R155: -1 | S155: -1 | T155: -1 | U155: -1 | V155: -1 | W155: -1 | X155: -1 | Y155: -1 | Z155: -1 | AA155: -1 | AB155: -1 | AC155: -1
A156: 153 | B156: EC-S13XM | C156: 800 | D156: 2000 | E156: 0 | F156: 469 | G156: 2827 | H156: 2894 | I156: -1 | J156: -1 | K156: -1 | L156: -1 | M156: -1 | N156: -1 | O156: -1 | P156: -1 | Q156: -1 | R156: -1 | S156: -1 | T156: -1 | U156: -1 | V156: -1 | W156: -1 | X156: -1 | Y156: -1 | Z156: -1 | AA156: -1 | AB156: -1 | AC156: -1
A157: 154 | B157: EC-S13XH | C157: 800 | D157: 2000 | E157: 0 | F157: 470 | G157: 2838 | H157: 2899 | I157: -1 | J157: -1 | K157: -1 | L157: -1 | M157: -1 | N157: -1 | O157: -1 | P157: -1 | Q157: -1 | R157: -1 | S157: -1 | T157: -1 | U157: -1 | V157: -1 | W157: -1 | X157: -1 | Y157: -1 | Z157: -1 | AA157: -1 | AB157: -1 | AC157: -1
A158: 155 | B158: EC-S13XS | C158: 800 | D158: 2000 | E158: 0 | F158: 471 | G158: 2850 | H158: 2906 | I158: -1 | J158: -1 | K158: -1 | L158: -1 | M158: -1 | N158: -1 | O158: -1 | P158: -1 | Q158: -1 | R158: -1 | S158: -1 | T158: -1 | U158: -1 | V158: -1 | W158: -1 | X158: -1 | Y158: -1 | Z158: -1 | AA158: -1 | AB158: -1 | AC158: -1
A159: 156 | B159: EC-S15L | C159: 100 | D159: 1300 | E159: 0 | F159: 472 | G159: 2862 | H159: 2913 | I159: -1 | J159: -1 | K159: -1 | L159: -1 | M159: -1 | N159: -1 | O159: -1 | P159: -1 | Q159: -1 | R159: -1 | S159: -1 | T159: -1 | U159: -1 | V159: -1 | W159: -1 | X159: -1 | Y159: -1 | Z159: -1 | AA159: -1 | AB159: -1 | AC159: -1
A160: 157 | B160: EC-S15M | C160: 100 | D160: 1300 | E160: 0 | F160: 473 | G160: 2875 | H160: 2918 | I160: -1 | J160: -1 | K160: -1 | L160: -1 | M160: -1 | N160: -1 | O160: -1 | P160: -1 | Q160: -1 | R160: -1 | S160: -1 | T160: -1 | U160: -1 | V160: -1 | W160: -1 | X160: -1 | Y160: -1 | Z160: -1 | AA160: -1 | AB160: -1 | AC160: -1
A161: 158 | B161: EC-S15H | C161: 100 | D161: 1300 | E161: 0 | F161: 474 | G161: 2888 | H161: 2925 | I161: -1 | J161: -1 | K161: -1 | L161: -1 | M161: -1 | N161: -1 | O161: -1 | P161: -1 | Q161: -1 | R161: -1 | S161: -1 | T161: -1 | U161: -1 | V161: -1 | W161: -1 | X161: -1 | Y161: -1 | Z161: -1 | AA161: -1 | AB161: -1 | AC161: -1
A162: 159 | B162: EC-S15XL | C162: 1000 | D162: 2500 | E162: 0 | F162: 475 | G162: 2903 | H162: 2932 | I162: -1 | J162: -1 | K162: -1 | L162: -1 | M162: -1 | N162: -1 | O162: -1 | P162: -1 | Q162: -1 | R162: -1 | S162: -1 | T162: -1 | U162: -1 | V162: -1 | W162: -1 | X162: -1 | Y162: -1 | Z162: -1 | AA162: -1 | AB162: -1 | AC162: -1
A163: 160 | B163: EC-S15XM | C163: 1000 | D163: 2500 | E163: 0 | F163: 476 | G163: 2922 | H163: 2937 | I163: -1 | J163: -1 | K163: -1 | L163: -1 | M163: -1 | N163: -1 | O163: -1 | P163: -1 | Q163: -1 | R163: -1 | S163: -1 | T163: -1 | U163: -1 | V163: -1 | W163: -1 | X163: -1 | Y163: -1 | Z163: -1 | AA163: -1 | AB163: -1 | AC163: -1
A164: 161 | B164: EC-S15XH | C164: 1000 | D164: 2500 | E164: 0 | F164: 477 | G164: 2940 | H164: 2944 | I164: -1 | J164: -1 | K164: -1 | L164: -1 | M164: -1 | N164: -1 | O164: -1 | P164: -1 | Q164: -1 | R164: -1 | S164: -1 | T164: -1 | U164: -1 | V164: -1 | W164: -1 | X164: -1 | Y164: -1 | Z164: -1 | AA164: -1 | AB164: -1 | AC164: -1
A165: 162 | B165: EC-S10L-W | C165: 250 | D165: 1100 | E165: 0 | F165: 478 | G165: 2958 | H165: 2951 | I165: -1 | J165: -1 | K165: -1 | L165: -1 | M165: -1 | N165: -1 | O165: -1 | P165: -1 | Q165: -1 | R165: -1 | S165: -1 | T165: -1 | U165: -1 | V165: -1 | W165: -1 | X165: -1 | Y165: -1 | Z165: -1 | AA165: -1 | AB165: -1 | AC165: -1
A166: 163 | B166: EC-S10M-W | C166: 250 | D166: 1100 | E166: 0 | F166: 479 | G166: 2967 | H166: 2953 | I166: -1 | J166: -1 | K166: -1 | L166: -1 | M166: -1 | N166: -1 | O166: -1 | P166: -1 | Q166: -1 | R166: -1 | S166: -1 | T166: -1 | U166: -1 | V166: -1 | W166: -1 | X166: -1 | Y166: -1 | Z166: -1 | AA166: -1 | AB166: -1 | AC166: -1
A167: 164 | B167: EC-S10H-W | C167: 250 | D167: 1100 | E167: 0 | F167: 480 | G167: 2976 | H167: 2958 | I167: -1 | J167: -1 | K167: -1 | L167: -1 | M167: -1 | N167: -1 | O167: -1 | P167: -1 | Q167: -1 | R167: -1 | S167: -1 | T167: -1 | U167: -1 | V167: -1 | W167: -1 | X167: -1 | Y167: -1 | Z167: -1 | AA167: -1 | AB167: -1 | AC167: -1
A168: 165 | B168: EC-S10S-W | C168: 250 | D168: 1100 | E168: 0 | F168: 481 | G168: 2985 | H168: 2962 | I168: -1 | J168: -1 | K168: -1 | L168: -1 | M168: -1 | N168: -1 | O168: -1 | P168: -1 | Q168: -1 | R168: -1 | S168: -1 | T168: -1 | U168: -1 | V168: -1 | W168: -1 | X168: -1 | Y168: -1 | Z168: -1 | AA168: -1 | AB168: -1 | AC168: -1
A169: 166 | B169: EC-S10XL-W | C169: 700 | D169: 2000 | E169: 0 | F169: 482 | G169: 2998 | H169: 2965 | I169: -1 | J169: -1 | K169: -1 | L169: -1 | M169: -1 | N169: -1 | O169: -1 | P169: -1 | Q169: -1 | R169: -1 | S169: -1 | T169: -1 | U169: -1 | V169: -1 | W169: -1 | X169: -1 | Y169: -1 | Z169: -1 | AA169: -1 | AB169: -1 | AC169: -1
A170: 167 | B170: EC-S10XM-W | C170: 700 | D170: 2000 | E170: 0 | F170: 483 | G170: 3014 | H170: 2967 | I170: -1 | J170: -1 | K170: -1 | L170: -1 | M170: -1 | N170: -1 | O170: -1 | P170: -1 | Q170: -1 | R170: -1 | S170: -1 | T170: -1 | U170: -1 | V170: -1 | W170: -1 | X170: -1 | Y170: -1 | Z170: -1 | AA170: -1 | AB170: -1 | AC170: -1
A171: 168 | B171: EC-S10XH-W | C171: 700 | D171: 2000 | E171: 0 | F171: 484 | G171: 3034 | H171: 2972 | I171: -1 | J171: -1 | K171: -1 | L171: -1 | M171: -1 | N171: -1 | O171: -1 | P171: -1 | Q171: -1 | R171: -1 | S171: -1 | T171: -1 | U171: -1 | V171: -1 | W171: -1 | X171: -1 | Y171: -1 | Z171: -1 | AA171: -1 | AB171: -1 | AC171: -1
A172: 169 | B172: EC-S10XS-W | C172: 700 | D172: 2000 | E172: 0 | F172: 485 | G172: 3050 | H172: 2976 | I172: -1 | J172: -1 | K172: -1 | L172: -1 | M172: -1 | N172: -1 | O172: -1 | P172: -1 | Q172: -1 | R172: -1 | S172: -1 | T172: -1 | U172: -1 | V172: -1 | W172: -1 | X172: -1 | Y172: -1 | Z172: -1 | AA172: -1 | AB172: -1 | AC172: -1
A173: 170 | B173: EC-S13L-W | C173: 300 | D173: 1100 | E173: 0 | F173: 486 | G173: 3066 | H173: 2979 | I173: -1 | J173: -1 | K173: -1 | L173: -1 | M173: -1 | N173: -1 | O173: -1 | P173: -1 | Q173: -1 | R173: -1 | S173: -1 | T173: -1 | U173: -1 | V173: -1 | W173: -1 | X173: -1 | Y173: -1 | Z173: -1 | AA173: -1 | AB173: -1 | AC173: -1
A174: 171 | B174: EC-S13M-W | C174: 300 | D174: 1100 | E174: 0 | F174: 487 | G174: 3076 | H174: 2982 | I174: -1 | J174: -1 | K174: -1 | L174: -1 | M174: -1 | N174: -1 | O174: -1 | P174: -1 | Q174: -1 | R174: -1 | S174: -1 | T174: -1 | U174: -1 | V174: -1 | W174: -1 | X174: -1 | Y174: -1 | Z174: -1 | AA174: -1 | AB174: -1 | AC174: -1
A175: 172 | B175: EC-S13H-W | C175: 300 | D175: 1100 | E175: 0 | F175: 488 | G175: 3090 | H175: 2987 | I175: -1 | J175: -1 | K175: -1 | L175: -1 | M175: -1 | N175: -1 | O175: -1 | P175: -1 | Q175: -1 | R175: -1 | S175: -1 | T175: -1 | U175: -1 | V175: -1 | W175: -1 | X175: -1 | Y175: -1 | Z175: -1 | AA175: -1 | AB175: -1 | AC175: -1
A176: 173 | B176: EC-S13S-W | C176: 300 | D176: 1100 | E176: 0 | F176: 489 | G176: 3103 | H176: 2993 | I176: -1 | J176: -1 | K176: -1 | L176: -1 | M176: -1 | N176: -1 | O176: -1 | P176: -1 | Q176: -1 | R176: -1 | S176: -1 | T176: -1 | U176: -1 | V176: -1 | W176: -1 | X176: -1 | Y176: -1 | Z176: -1 | AA176: -1 | AB176: -1 | AC176: -1
A177: 174 | B177: EC-S13XL-W | C177: 800 | D177: 2000 | E177: 0 | F177: 490 | G177: 3116 | H177: 2997 | I177: -1 | J177: -1 | K177: -1 | L177: -1 | M177: -1 | N177: -1 | O177: -1 | P177: -1 | Q177: -1 | R177: -1 | S177: -1 | T177: -1 | U177: -1 | V177: -1 | W177: -1 | X177: -1 | Y177: -1 | Z177: -1 | AA177: -1 | AB177: -1 | AC177: -1
A178: 175 | B178: EC-S13XM-W | C178: 800 | D178: 2000 | E178: 0 | F178: 491 | G178: 3127 | H178: 3000 | I178: -1 | J178: -1 | K178: -1 | L178: -1 | M178: -1 | N178: -1 | O178: -1 | P178: -1 | Q178: -1 | R178: -1 | S178: -1 | T178: -1 | U178: -1 | V178: -1 | W178: -1 | X178: -1 | Y178: -1 | Z178: -1 | AA178: -1 | AB178: -1 | AC178: -1
A179: 176 | B179: EC-S13XH-W | C179: 800 | D179: 2000 | E179: 0 | F179: 492 | G179: 3138 | H179: 3005 | I179: -1 | J179: -1 | K179: -1 | L179: -1 | M179: -1 | N179: -1 | O179: -1 | P179: -1 | Q179: -1 | R179: -1 | S179: -1 | T179: -1 | U179: -1 | V179: -1 | W179: -1 | X179: -1 | Y179: -1 | Z179: -1 | AA179: -1 | AB179: -1 | AC179: -1
A180: 177 | B180: EC-S13XS-W | C180: 800 | D180: 2000 | E180: 0 | F180: 493 | G180: 3150 | H180: 3011 | I180: -1 | J180: -1 | K180: -1 | L180: -1 | M180: -1 | N180: -1 | O180: -1 | P180: -1 | Q180: -1 | R180: -1 | S180: -1 | T180: -1 | U180: -1 | V180: -1 | W180: -1 | X180: -1 | Y180: -1 | Z180: -1 | AA180: -1 | AB180: -1 | AC180: -1
A181: 178 | B181: EC-S15L-W | C181: 300 | D181: 1300 | E181: 0 | F181: 494 | G181: 3162 | H181: 3015 | I181: -1 | J181: -1 | K181: -1 | L181: -1 | M181: -1 | N181: -1 | O181: -1 | P181: -1 | Q181: -1 | R181: -1 | S181: -1 | T181: -1 | U181: -1 | V181: -1 | W181: -1 | X181: -1 | Y181: -1 | Z181: -1 | AA181: -1 | AB181: -1 | AC181: -1
A182: 179 | B182: EC-S15M-W | C182: 300 | D182: 1300 | E182: 0 | F182: 495 | G182: 3175 | H182: 3020 | I182: -1 | J182: -1 | K182: -1 | L182: -1 | M182: -1 | N182: -1 | O182: -1 | P182: -1 | Q182: -1 | R182: -1 | S182: -1 | T182: -1 | U182: -1 | V182: -1 | W182: -1 | X182: -1 | Y182: -1 | Z182: -1 | AA182: -1 | AB182: -1 | AC182: -1
A183: 180 | B183: EC-S15H-W | C183: 300 | D183: 1300 | E183: 0 | F183: 496 | G183: 3187 | H183: 3027 | I183: -1 | J183: -1 | K183: -1 | L183: -1 | M183: -1 | N183: -1 | O183: -1 | P183: -1 | Q183: -1 | R183: -1 | S183: -1 | T183: -1 | U183: -1 | V183: -1 | W183: -1 | X183: -1 | Y183: -1 | Z183: -1 | AA183: -1 | AB183: -1 | AC183: -1
A184: 181 | B184: EC-S15XL-W | C184: 1000 | D184: 2500 | E184: 0 | F184: 497 | G184: 3201 | H184: 3033 | I184: -1 | J184: -1 | K184: -1 | L184: -1 | M184: -1 | N184: -1 | O184: -1 | P184: -1 | Q184: -1 | R184: -1 | S184: -1 | T184: -1 | U184: -1 | V184: -1 | W184: -1 | X184: -1 | Y184: -1 | Z184: -1 | AA184: -1 | AB184: -1 | AC184: -1
A185: 182 | B185: EC-S15XM-W | C185: 1000 | D185: 2500 | E185: 0 | F185: 498 | G185: 3220 | H185: 3038 | I185: -1 | J185: -1 | K185: -1 | L185: -1 | M185: -1 | N185: -1 | O185: -1 | P185: -1 | Q185: -1 | R185: -1 | S185: -1 | T185: -1 | U185: -1 | V185: -1 | W185: -1 | X185: -1 | Y185: -1 | Z185: -1 | AA185: -1 | AB185: -1 | AC185: -1
A186: 183 | B186: EC-S15XH-W | C186: 1000 | D186: 2500 | E186: 0 | F186: 499 | G186: 3238 | H186: 3045 | I186: -1 | J186: -1 | K186: -1 | L186: -1 | M186: -1 | N186: -1 | O186: -1 | P186: -1 | Q186: -1 | R186: -1 | S186: -1 | T186: -1 | U186: -1 | V186: -1 | W186: -1 | X186: -1 | Y186: -1 | Z186: -1 | AA186: -1 | AB186: -1 | AC186: -1 | AD186: ↑ Ver3.12
A187: 184 | B187: IFA-SA-100(-1450st) | C187: 200 | D187: 1450 | E187: 0 | F187: 500 | G187: 3256 | H187: 3051 | I187: -1 | J187: -1 | K187: -1 | L187: -1 | M187: -1 | N187: -1 | O187: -1 | P187: -1 | Q187: -1 | R187: -1 | S187: -1 | T187: -1 | U187: -1 | V187: -1 | W187: -1 | X187: -1 | Y187: -1 | Z187: -1 | AA187: -1 | AB187: -1 | AC187: -1 | AD187: ↓ Ver3.13
A188: 185 | B188: IFA-SA-100(1500st-) | C188: 1500 | D188: 2600 | E188: 0 | F188: 501 | G188: 3257 | H188: 3069 | I188: -1 | J188: -1 | K188: -1 | L188: -1 | M188: -1 | N188: -1 | O188: -1 | P188: -1 | Q188: -1 | R188: -1 | S188: -1 | T188: -1 | U188: -1 | V188: -1 | W188: -1 | X188: -1 | Y188: -1 | Z188: -1 | AA188: -1 | AB188: -1 | AC188: -1
A189: 186 | B189: IFA-MA-200 | C189: 200 | D189: 3200 | E189: 0 | F189: 502 | G189: 3258 | H189: 3086 | I189: -1 | J189: -1 | K189: -1 | L189: -1 | M189: -1 | N189: -1 | O189: -1 | P189: -1 | Q189: -1 | R189: -1 | S189: -1 | T189: -1 | U189: -1 | V189: -1 | W189: -1 | X189: -1 | Y189: -1 | Z189: -1 | AA189: -1 | AB189: -1 | AC189: -1
A190: 187 | B190: IFA-MA-400 | C190: 200 | D190: 3200 | E190: 0 | F190: 503 | G190: 3259 | H190: 3104 | I190: -1 | J190: -1 | K190: -1 | L190: -1 | M190: -1 | N190: -1 | O190: -1 | P190: -1 | Q190: -1 | R190: -1 | S190: -1 | T190: -1 | U190: -1 | V190: -1 | W190: -1 | X190: -1 | Y190: -1 | Z190: -1 | AA190: -1 | AB190: -1 | AC190: -1
A191: 188 | B191: IFA-MA-200-AC100V | C191: 200 | D191: 3200 | E191: 0 | F191: 504 | G191: 3260 | H191: 3122 | I191: -1 | J191: -1 | K191: -1 | L191: -1 | M191: -1 | N191: -1 | O191: -1 | P191: -1 | Q191: -1 | R191: -1 | S191: -1 | T191: -1 | U191: -1 | V191: -1 | W191: -1 | X191: -1 | Y191: -1 | Z191: -1 | AA191: -1 | AB191: -1 | AC191: -1
A192: 189 | B192: IFA-SA-100-W(-1450st) | C192: 200 | D192: 1450 | E192: 0 | F192: 505 | G192: 3261 | H192: 3140 | I192: -1 | J192: -1 | K192: -1 | L192: -1 | M192: -1 | N192: -1 | O192: -1 | P192: -1 | Q192: -1 | R192: -1 | S192: -1 | T192: -1 | U192: -1 | V192: -1 | W192: -1 | X192: -1 | Y192: -1 | Z192: -1 | AA192: -1 | AB192: -1 | AC192: -1
A193: 190 | B193: IFA-SA-100-W(1500st-) | C193: 1500 | D193: 2600 | E193: 0 | F193: 506 | G193: 3262 | H193: 3158 | I193: -1 | J193: -1 | K193: -1 | L193: -1 | M193: -1 | N193: -1 | O193: -1 | P193: -1 | Q193: -1 | R193: -1 | S193: -1 | T193: -1 | U193: -1 | V193: -1 | W193: -1 | X193: -1 | Y193: -1 | Z193: -1 | AA193: -1 | AB193: -1 | AC193: -1
A194: 191 | B194: IFA-MA-200-W | C194: 200 | D194: 3200 | E194: 0 | F194: 507 | G194: 3263 | H194: 3175 | I194: -1 | J194: -1 | K194: -1 | L194: -1 | M194: -1 | N194: -1 | O194: -1 | P194: -1 | Q194: -1 | R194: -1 | S194: -1 | T194: -1 | U194: -1 | V194: -1 | W194: -1 | X194: -1 | Y194: -1 | Z194: -1 | AA194: -1 | AB194: -1 | AC194: -1
A195: 192 | B195: IFA-MA-400-W | C195: 200 | D195: 3200 | E195: 0 | F195: 508 | G195: 3264 | H195: 3185 | I195: -1 | J195: -1 | K195: -1 | L195: -1 | M195: -1 | N195: -1 | O195: -1 | P195: -1 | Q195: -1 | R195: -1 | S195: -1 | T195: -1 | U195: -1 | V195: -1 | W195: -1 | X195: -1 | Y195: -1 | Z195: -1 | AA195: -1 | AB195: -1 | AC195: -1
A196: 193 | B196: IFA-MA-200-W-AC100V | C196: 200 | D196: 3200 | E196: 0 | F196: 509 | G196: 3265 | H196: 3203 | I196: -1 | J196: -1 | K196: -1 | L196: -1 | M196: -1 | N196: -1 | O196: -1 | P196: -1 | Q196: -1 | R196: -1 | S196: -1 | T196: -1 | U196: -1 | V196: -1 | W196: -1 | X196: -1 | Y196: -1 | Z196: -1 | AA196: -1 | AB196: -1 | AC196: -1 | AD196: ↑ Ver3.13
A197: 194 | B197: EC-S18L (～1350st) | C197: 100 | D197: 1350 | E197: 0 | F197: 510 | G197: 3266 | H197: 3365 | I197: -1 | J197: -1 | K197: -1 | L197: -1 | M197: -1 | N197: -1 | O197: -1 | P197: -1 | Q197: -1 | R197: -1 | S197: -1 | T197: -1 | U197: -1 | V197: -1 | W197: -1 | X197: -1 | Y197: -1 | Z197: -1 | AA197: -1 | AB197: -1 | AC197: -1 | AD197: ↓ Ver.3.15
A198: 195 | B198: EC-S18L (1400st～) | C198: 1400 | D198: 1600 | E198: 0 | F198: 511 | G198: 3286 | H198: 3370 | I198: -1 | J198: -1 | K198: -1 | L198: -1 | M198: -1 | N198: -1 | O198: -1 | P198: -1 | Q198: -1 | R198: -1 | S198: -1 | T198: -1 | U198: -1 | V198: -1 | W198: -1 | X198: -1 | Y198: -1 | Z198: -1 | AA198: -1 | AB198: -1 | AC198: -1
A199: 196 | B199: EC-S18M (～1350st) | C199: 100 | D199: 1350 | E199: 0 | F199: 512 | G199: 3291 | H199: 3375 | I199: -1 | J199: -1 | K199: -1 | L199: -1 | M199: -1 | N199: -1 | O199: -1 | P199: -1 | Q199: -1 | R199: -1 | S199: -1 | T199: -1 | U199: -1 | V199: -1 | W199: -1 | X199: -1 | Y199: -1 | Z199: -1 | AA199: -1 | AB199: -1 | AC199: -1
A200: 197 | B200: EC-S18M (1400st～) | C200: 1400 | D200: 1600 | E200: 0 | F200: 513 | G200: 3311 | H200: 3382 | I200: -1 | J200: -1 | K200: -1 | L200: -1 | M200: -1 | N200: -1 | O200: -1 | P200: -1 | Q200: -1 | R200: -1 | S200: -1 | T200: -1 | U200: -1 | V200: -1 | W200: -1 | X200: -1 | Y200: -1 | Z200: -1 | AA200: -1 | AB200: -1 | AC200: -1
... 33 more rows

Sheet LeadData (hidden)
A1: 9.80665 | B1: 1 | C1: 3 | D1: 4 | E1: 5 | F1: 6 | G1: 10 | H1: 11 | I1: 14 | J1: 15
A2: データ№ | B2: ﾘｰﾄﾞ長 | C2: 水平定格加速度 | D2: 垂直定格加速度 | E2: 水平最大加速度 | F2: 垂直最大加速度 | G2: ｷﾞｱ比分子 | H2: ｷﾞｱ比分母 | I2: ｽﾄﾛｰｸ刻み | J2: 位置決め幅 初期値 | K2: 備考
A3: =ModelData!A3 -> 0 | B3: 0.001㎜ | C3: 0.001mm/s^2 | D3: 0.001mm/s^2 | E3: 0.001mm/s^2 | F3: 0.001mm/s^2 | I3: mm | J3: mm
A4: =A3+1 -> 1 | B4: 4000 | C4: =0.2*$A$1*1000*1000 -> 1961330 | D4: =0.2*$A$1*1000*1000 -> 1961330 | E4: =0.5*$A$1*1000*1000 -> 4903325 | F4: =0.4*$A$1*1000*1000 -> 3922660 | G4: 1 | H4: 1 | I4: 50 | J4: 0.1 | K4: ISB-SXM-60
A5: 2 | B5: 8000 | C5: =0.4*$A$1*1000*1000 -> 3922660 | D5: =0.4*$A$1*1000*1000 -> 3922660 | E5: =0.7*$A$1*1000*1000 -> 6864655 | F5: =0.6*$A$1*1000*1000 -> 5883990 | G5: 1 | H5: 1 | I5: 50 | J5: 0.1
A6: 3 | B6: 16000 | C6: =0.4*$A$1*1000*1000 -> 3922660 | D6: =0.4*$A$1*1000*1000 -> 3922660 | E6: =1.2*$A$1*1000*1000 -> 11767980 | F6: =0.8*$A$1*1000*1000 -> 7845320 | G6: 1 | H6: 1 | I6: 50 | J6: 0.1
A7: 4 | B7: 5000 | C7: =0.2*$A$1*1000*1000 -> 1961330 | D7: =0.2*$A$1*1000*1000 -> 1961330 | E7: =0.5*$A$1*1000*1000 -> 4903325 | F7: =0.4*$A$1*1000*1000 -> 3922660 | G7: 1 | H7: 1 | I7: 50 | J7: 0.1 | K7: ISB-MXM-100
A8: 5 | B8: 10000 | C8: =0.4*$A$1*1000*1000 -> 3922660 | D8: 3922660 | E8: =0.7*$A$1*1000*1000 -> 6864655 | F8: =0.6*$A$1*1000*1000 -> 5883990 | G8: 1 | H8: 1 | I8: 50 | J8: 0.1
A9: 6 | B9: 20000 | C9: 3922660 | D9: 3922660 | E9: =1.2*$A$1*1000*1000 -> 11767980 | F9: =1*$A$1*1000*1000 -> 9806650 | G9: 1 | H9: 1 | I9: 50 | J9: 0.1
A10: 7 | B10: 30000 | C10: 3922660 | D10: 3922660 | E10: =1.2*$A$1*1000*1000 -> 11767980 | F10: =1.2*$A$1*1000*1000 -> 11767980 | G10: 1 | H10: 1 | I10: 50 | J10: 0.1
A11: 8 | B11: 5000 | C11: =0.2*$A$1*1000*1000 -> 1961330 | D11: =0.2*$A$1*1000*1000 -> 1961330 | E11: =0.5*$A$1*1000*1000 -> 4903325 | F11: =0.4*$A$1*1000*1000 -> 3922660 | G11: 1 | H11: 1 | I11: 50 | J11: 0.1 | K11: ISB-MXM-200
A12: 9 | B12: 10000 | C12: =0.4*$A$1*1000*1000 -> 3922660 | D12: =0.4*$A$1*1000*1000 -> 3922660 | E12: =0.7*$A$1*1000*1000 -> 6864655 | F12: =0.6*$A$1*1000*1000 -> 5883990 | G12: 1 | H12: 1 | I12: 50 | J12: 0.1
A13: 10 | B13: 20000 | C13: =0.4*$A$1*1000*1000 -> 3922660 | D13: =0.4*$A$1*1000*1000 -> 3922660 | E13: =1.2*$A$1*1000*1000 -> 11767980 | F13: =1*$A$1*1000*1000 -> 9806650 | G13: 1 | H13: 1 | I13: 50 | J13: 0.1
A14: 11 | B14: 30000 | C14: 3922660 | D14: =0.4*$A$1*1000*1000 -> 3922660 | E14: =1.2*$A$1*1000*1000 -> 11767980 | F14: =1.2*$A$1*1000*1000 -> 11767980 | G14: 1 | H14: 1 | I14: 50 | J14: 0.1
A15: 12 | B15: 10000 | C15: 3922660 | D15: 3922660 | E15: =0.7*$A$1*1000*1000 -> 6864655 | F15: =0.6*$A$1*1000*1000 -> 5883990 | G15: 1 | H15: 1 | I15: 50 | J15: 0.1 | K15: ISB-LXM-200
A16: 13 | B16: 20000 | C16: 3922660 | D16: 3922660 | E16: =1.2*$A$1*1000*1000 -> 11767980 | F16: =1*$A$1*1000*1000 -> 9806650 | G16: 1 | H16: 1 | I16: 50 | J16: 0.1
A17: 14 | B17: 40000 | C17: =0.4*$A$1*1000*1000 -> 3922660 | D17: =0.4*$A$1*1000*1000 -> 3922660 | E17: =1.2*$A$1*1000*1000 -> 11767980 | F17: =1.2*$A$1*1000*1000 -> 11767980 | G17: 1 | H17: 1 | I17: 50 | J17: 0.1
A18: 15 | B18: 10000 | C18: 3922660 | D18: 3922660 | E18: =0.7*$A$1*1000*1000 -> 6864655 | F18: =0.6*$A$1*1000*1000 -> 5883990 | G18: 1 | H18: 1 | I18: 50 | J18: 0.1 | K18: ISB-LXM-400
A19: 16 | B19: 20000 | C19: 3922660 | D19: 3922660 | E19: =1.2*$A$1*1000*1000 -> 11767980 | F19: =1*$A$1*1000*1000 -> 9806650 | G19: 1 | H19: 1 | I19: 50 | J19: 0.1
A20: 17 | B20: 40000 | C20: =0.4*$A$1*1000*1000 -> 3922660 | D20: =0.4*$A$1*1000*1000 -> 3922660 | E20: =1.2*$A$1*1000*1000 -> 11767980 | F20: =1.2*$A$1*1000*1000 -> 11767980 | G20: 1 | H20: 1 | I20: 50 | J20: 0.1
A21: 18 | B21: 4000 | C21: =0.2*$A$1*1000*1000 -> 1961330 | D21: =0.2*$A$1*1000*1000 -> 1961330 | E21: =0.5*$A$1*1000*1000 -> 4903325 | F21: =0.4*$A$1*1000*1000 -> 3922660 | G21: 1 | H21: 1 | I21: 50 | J21: 0.1 | K21: ISB-SXL-60
A22: 19 | B22: 8000 | C22: =0.4*$A$1*1000*1000 -> 3922660 | D22: =0.4*$A$1*1000*1000 -> 3922660 | E22: =0.7*$A$1*1000*1000 -> 6864655 | F22: =0.6*$A$1*1000*1000 -> 5883990 | G22: 1 | H22: 1 | I22: 50 | J22: 0.1
A23: 20 | B23: 16000 | C23: =0.4*$A$1*1000*1000 -> 3922660 | D23: =0.4*$A$1*1000*1000 -> 3922660 | E23: =1.2*$A$1*1000*1000 -> 11767980 | F23: =0.8*$A$1*1000*1000 -> 7845320 | G23: 1 | H23: 1 | I23: 50 | J23: 0.1
A24: 21 | B24: 5000 | C24: =0.2*$A$1*1000*1000 -> 1961330 | D24: =0.2*$A$1*1000*1000 -> 1961330 | E24: =0.5*$A$1*1000*1000 -> 4903325 | F24: =0.4*$A$1*1000*1000 -> 3922660 | G24: 1 | H24: 1 | I24: 50 | J24: 0.1 | K24: ISB-MXL-100
A25: 22 | B25: 10000 | C25: =0.4*$A$1*1000*1000 -> 3922660 | D25: 3922660 | E25: =0.7*$A$1*1000*1000 -> 6864655 | F25: =0.6*$A$1*1000*1000 -> 5883990 | G25: 1 | H25: 1 | I25: 50 | J25: 0.1
A26: 23 | B26: 20000 | C26: 3922660 | D26: 3922660 | E26: =1.2*$A$1*1000*1000 -> 11767980 | F26: =1*$A$1*1000*1000 -> 9806650 | G26: 1 | H26: 1 | I26: 50 | J26: 0.1
A27: 24 | B27: 30000 | C27: 3922660 | D27: 3922660 | E27: =1.2*$A$1*1000*1000 -> 11767980 | F27: =1.2*$A$1*1000*1000 -> 11767980 | G27: 1 | H27: 1 | I27: 50 | J27: 0.1
A28: 25 | B28: 5000 | C28: =0.2*$A$1*1000*1000 -> 1961330 | D28: =0.2*$A$1*1000*1000 -> 1961330 | E28: =0.5*$A$1*1000*1000 -> 4903325 | F28: =0.4*$A$1*1000*1000 -> 3922660 | G28: 1 | H28: 1 | I28: 50 | J28: 0.1 | K28: ISB-MXL-200
A29: 26 | B29: 10000 | C29: =0.4*$A$1*1000*1000 -> 3922660 | D29: =0.4*$A$1*1000*1000 -> 3922660 | E29: =0.7*$A$1*1000*1000 -> 6864655 | F29: =0.6*$A$1*1000*1000 -> 5883990 | G29: 1 | H29: 1 | I29: 50 | J29: 0.1
A30: 27 | B30: 20000 | C30: =0.4*$A$1*1000*1000 -> 3922660 | D30: =0.4*$A$1*1000*1000 -> 3922660 | E30: =1.2*$A$1*1000*1000 -> 11767980 | F30: =1*$A$1*1000*1000 -> 9806650 | G30: 1 | H30: 1 | I30: 50 | J30: 0.1
A31: 28 | B31: 30000 | C31: 3922660 | D31: =0.4*$A$1*1000*1000 -> 3922660 | E31: =1.2*$A$1*1000*1000 -> 11767980 | F31: =1.2*$A$1*1000*1000 -> 11767980 | G31: 1 | H31: 1 | I31: 50 | J31: 0.1
A32: 29 | B32: 10000 | C32: 3922660 | D32: 3922660 | E32: =0.7*$A$1*1000*1000 -> 6864655 | F32: =0.6*$A$1*1000*1000 -> 5883990 | G32: 1 | H32: 1 | I32: 50 | J32: 0.1 | K32: ISB-LXL-200
A33: 30 | B33: 20000 | C33: 3922660 | D33: =0.4*$A$1*1000*1000 -> 3922660 | E33: =1.2*$A$1*1000*1000 -> 11767980 | F33: =1*$A$1*1000*1000 -> 9806650 | G33: 1 | H33: 1 | I33: 50 | J33: 0.1
A34: 31 | B34: 40000 | C34: 3922660 | D34: =0.4*$A$1*1000*1000 -> 3922660 | E34: =1.2*$A$1*1000*1000 -> 11767980 | F34: =1.2*$A$1*1000*1000 -> 11767980 | G34: 1 | H34: 1 | I34: 50 | J34: 0.1
A35: 32 | B35: 10000 | C35: 3922660 | D35: 3922660 | E35: =0.7*$A$1*1000*1000 -> 6864655 | F35: =0.6*$A$1*1000*1000 -> 5883990 | G35: 1 | H35: 1 | I35: 50 | J35: 0.1 | K35: ISB-LXL-400
A36: 33 | B36: 20000 | C36: 3922660 | D36: =0.4*$A$1*1000*1000 -> 3922660 | E36: =1.2*$A$1*1000*1000 -> 11767980 | F36: =1*$A$1*1000*1000 -> 9806650 | G36: 1 | H36: 1 | I36: 50 | J36: 0.1
A37: 34 | B37: 40000 | C37: 3922660 | D37: =0.4*$A$1*1000*1000 -> 3922660 | E37: =1.2*$A$1*1000*1000 -> 11767980 | F37: =1.2*$A$1*1000*1000 -> 11767980 | G37: 1 | H37: 1 | I37: 50 | J37: 0.1
A38: 35 | B38: 4000 | C38: =0.2*$A$1*1000*1000 -> 1961330 | D38: =0.2*$A$1*1000*1000 -> 1961330 | E38: =0.5*$A$1*1000*1000 -> 4903325 | F38: =0.4*$A$1*1000*1000 -> 3922660 | G38: 1 | H38: 1 | I38: 50 | J38: 0.1 | K38: ISDB-S-60
A39: 36 | B39: 8000 | C39: =0.4*$A$1*1000*1000 -> 3922660 | D39: =0.4*$A$1*1000*1000 -> 3922660 | E39: =0.7*$A$1*1000*1000 -> 6864655 | F39: =0.6*$A$1*1000*1000 -> 5883990 | G39: 1 | H39: 1 | I39: 50 | J39: 0.1
A40: 37 | B40: 16000 | C40: =0.4*$A$1*1000*1000 -> 3922660 | D40: =0.4*$A$1*1000*1000 -> 3922660 | E40: =1*$A$1*1000*1000 -> 9806650 | F40: =0.8*$A$1*1000*1000 -> 7845320 | G40: 1 | H40: 1 | I40: 50 | J40: 0.1
A41: 38 | B41: 5000 | C41: =0.2*$A$1*1000*1000 -> 1961330 | D41: =0.2*$A$1*1000*1000 -> 1961330 | E41: =0.5*$A$1*1000*1000 -> 4903325 | F41: =0.4*$A$1*1000*1000 -> 3922660 | G41: 1 | H41: 1 | I41: 50 | J41: 0.1 | K41: ISDB-M-100
A42: 39 | B42: 10000 | C42: =0.4*$A$1*1000*1000 -> 3922660 | D42: 3922660 | E42: =0.7*$A$1*1000*1000 -> 6864655 | F42: =0.6*$A$1*1000*1000 -> 5883990 | G42: 1 | H42: 1 | I42: 50 | J42: 0.1
A43: 40 | B43: 20000 | C43: 3922660 | D43: 3922660 | E43: =1*$A$1*1000*1000 -> 9806650 | F43: =1*$A$1*1000*1000 -> 9806650 | G43: 1 | H43: 1 | I43: 50 | J43: 0.1
A44: 41 | B44: 30000 | C44: 3922660 | D44: 3922660 | E44: =1*$A$1*1000*1000 -> 9806650 | F44: =1*$A$1*1000*1000 -> 9806650 | G44: 1 | H44: 1 | I44: 50 | J44: 0.1
A45: 42 | B45: 5000 | C45: =0.2*$A$1*1000*1000 -> 1961330 | D45: =0.2*$A$1*1000*1000 -> 1961330 | E45: =0.5*$A$1*1000*1000 -> 4903325 | F45: =0.4*$A$1*1000*1000 -> 3922660 | G45: 1 | H45: 1 | I45: 50 | J45: 0.1 | K45: ISDB-M-200
A46: 43 | B46: 10000 | C46: =0.4*$A$1*1000*1000 -> 3922660 | D46: =0.4*$A$1*1000*1000 -> 3922660 | E46: =0.7*$A$1*1000*1000 -> 6864655 | F46: =0.6*$A$1*1000*1000 -> 5883990 | G46: 1 | H46: 1 | I46: 50 | J46: 0.1
A47: 44 | B47: 20000 | C47: =0.4*$A$1*1000*1000 -> 3922660 | D47: =0.4*$A$1*1000*1000 -> 3922660 | E47: =1*$A$1*1000*1000 -> 9806650 | F47: =1*$A$1*1000*1000 -> 9806650 | G47: 1 | H47: 1 | I47: 50 | J47: 0.1
A48: 45 | B48: 30000 | C48: 3922660 | D48: =0.4*$A$1*1000*1000 -> 3922660 | E48: =1*$A$1*1000*1000 -> 9806650 | F48: =1*$A$1*1000*1000 -> 9806650 | G48: 1 | H48: 1 | I48: 50 | J48: 0.1
A49: 46 | B49: 10000 | C49: 3922660 | D49: 3922660 | E49: =0.7*$A$1*1000*1000 -> 6864655 | F49: =0.6*$A$1*1000*1000 -> 5883990 | G49: 1 | H49: 1 | I49: 50 | J49: 0.1 | K49: ISDB-L-200
A50: 47 | B50: 20000 | C50: 3922660 | D50: =0.4*$A$1*1000*1000 -> 3922660 | E50: =1*$A$1*1000*1000 -> 9806650 | F50: =1*$A$1*1000*1000 -> 9806650 | G50: 1 | H50: 1 | I50: 50 | J50: 0.1
A51: 48 | B51: 40000 | C51: 3922660 | D51: =0.4*$A$1*1000*1000 -> 3922660 | E51: =1*$A$1*1000*1000 -> 9806650 | F51: =1*$A$1*1000*1000 -> 9806650 | G51: 1 | H51: 1 | I51: 50 | J51: 0.1
A52: 49 | B52: 10000 | C52: 3922660 | D52: 3922660 | E52: =0.7*$A$1*1000*1000 -> 6864655 | F52: =0.6*$A$1*1000*1000 -> 5883990 | G52: 1 | H52: 1 | I52: 50 | J52: 0.1 | K52: ISDB-L-400
A53: 50 | B53: 20000 | C53: 3922660 | D53: =0.4*$A$1*1000*1000 -> 3922660 | E53: =1*$A$1*1000*1000 -> 9806650 | F53: =1*$A$1*1000*1000 -> 9806650 | G53: 1 | H53: 1 | I53: 50 | J53: 0.1
A54: 51 | B54: 40000 | C54: 3922660 | D54: =0.4*$A$1*1000*1000 -> 3922660 | E54: =1*$A$1*1000*1000 -> 9806650 | F54: =1*$A$1*1000*1000 -> 9806650 | G54: 1 | H54: 1 | I54: 50 | J54: 0.1
A55: 52 | B55: 4000 | C55: =0.2*$A$1*1000*1000 -> 1961330 | D55: =0.2*$A$1*1000*1000 -> 1961330 | E55: =0.5*$A$1*1000*1000 -> 4903325 | F55: =0.4*$A$1*1000*1000 -> 3922660 | G55: 1 | H55: 1 | I55: 50 | J55: 0.1 | K55: ISDBCR-S-60
A56: 53 | B56: 8000 | C56: =0.4*$A$1*1000*1000 -> 3922660 | D56: =0.4*$A$1*1000*1000 -> 3922660 | E56: =0.7*$A$1*1000*1000 -> 6864655 | F56: =0.6*$A$1*1000*1000 -> 5883990 | G56: 1 | H56: 1 | I56: 50 | J56: 0.1
A57: 54 | B57: 16000 | C57: =0.4*$A$1*1000*1000 -> 3922660 | D57: =0.4*$A$1*1000*1000 -> 3922660 | E57: =1*$A$1*1000*1000 -> 9806650 | F57: =0.8*$A$1*1000*1000 -> 7845320 | G57: 1 | H57: 1 | I57: 50 | J57: 0.1
A58: 55 | B58: 5000 | C58: =0.2*$A$1*1000*1000 -> 1961330 | D58: =0.2*$A$1*1000*1000 -> 1961330 | E58: =0.5*$A$1*1000*1000 -> 4903325 | F58: =0.4*$A$1*1000*1000 -> 3922660 | G58: 1 | H58: 1 | I58: 50 | J58: 0.1 | K58: ISDBCR-M-100
A59: 56 | B59: 10000 | C59: =0.4*$A$1*1000*1000 -> 3922660 | D59: 3922660 | E59: =0.7*$A$1*1000*1000 -> 6864655 | F59: =0.6*$A$1*1000*1000 -> 5883990 | G59: 1 | H59: 1 | I59: 50 | J59: 0.1
A60: 57 | B60: 20000 | C60: 3922660 | D60: 3922660 | E60: =1*$A$1*1000*1000 -> 9806650 | F60: =1*$A$1*1000*1000 -> 9806650 | G60: 1 | H60: 1 | I60: 50 | J60: 0.1
A61: 58 | B61: 30000 | C61: 3922660 | D61: 3922660 | E61: =1*$A$1*1000*1000 -> 9806650 | F61: =1*$A$1*1000*1000 -> 9806650 | G61: 1 | H61: 1 | I61: 50 | J61: 0.1
A62: 59 | B62: 5000 | C62: =0.2*$A$1*1000*1000 -> 1961330 | D62: =0.2*$A$1*1000*1000 -> 1961330 | E62: =0.5*$A$1*1000*1000 -> 4903325 | F62: =0.4*$A$1*1000*1000 -> 3922660 | G62: 1 | H62: 1 | I62: 50 | J62: 0.1 | K62: ISDBCR-M-200
A63: 60 | B63: 10000 | C63: =0.4*$A$1*1000*1000 -> 3922660 | D63: =0.4*$A$1*1000*1000 -> 3922660 | E63: =0.7*$A$1*1000*1000 -> 6864655 | F63: =0.6*$A$1*1000*1000 -> 5883990 | G63: 1 | H63: 1 | I63: 50 | J63: 0.1
A64: 61 | B64: 20000 | C64: =0.4*$A$1*1000*1000 -> 3922660 | D64: =0.4*$A$1*1000*1000 -> 3922660 | E64: =1*$A$1*1000*1000 -> 9806650 | F64: =1*$A$1*1000*1000 -> 9806650 | G64: 1 | H64: 1 | I64: 50 | J64: 0.1
A65: 62 | B65: 30000 | C65: =0.4*$A$1*1000*1000 -> 3922660 | D65: =0.4*$A$1*1000*1000 -> 3922660 | E65: =1*$A$1*1000*1000 -> 9806650 | F65: =1*$A$1*1000*1000 -> 9806650 | G65: 1 | H65: 1 | I65: 50 | J65: 0.1
A66: 63 | B66: 10000 | C66: 3922660 | D66: 3922660 | E66: =0.7*$A$1*1000*1000 -> 6864655 | F66: =0.6*$A$1*1000*1000 -> 5883990 | G66: 1 | H66: 1 | I66: 50 | J66: 0.1 | K66: ISDBCR-L-200
A67: 64 | B67: 20000 | C67: 3922660 | D67: 3922660 | E67: =1*$A$1*1000*1000 -> 9806650 | F67: =1*$A$1*1000*1000 -> 9806650 | G67: 1 | H67: 1 | I67: 50 | J67: 0.1
A68: =A67+1 -> 65 | B68: 40000 | C68: =0.4*$A$1*1000*1000 -> 3922660 | D68: =0.4*$A$1*1000*1000 -> 3922660 | E68: =1*$A$1*1000*1000 -> 9806650 | F68: =1*$A$1*1000*1000 -> 9806650 | G68: 1 | H68: 1 | I68: 50 | J68: 0.1
A69: 66 | B69: 10000 | C69: 3922660 | D69: 3922660 | E69: =0.7*$A$1*1000*1000 -> 6864655 | F69: =0.6*$A$1*1000*1000 -> 5883990 | G69: 1 | H69: 1 | I69: 50 | J69: 0.1 | K69: ISDBCR-L-400
A70: 67 | B70: 20000 | C70: 3922660 | D70: 3922660 | E70: =1*$A$1*1000*1000 -> 9806650 | F70: =1*$A$1*1000*1000 -> 9806650 | G70: 1 | H70: 1 | I70: 50 | J70: 0.1
A71: 68 | B71: 40000 | C71: =0.4*$A$1*1000*1000 -> 3922660 | D71: =0.4*$A$1*1000*1000 -> 3922660 | E71: =1*$A$1*1000*1000 -> 9806650 | F71: =1*$A$1*1000*1000 -> 9806650 | G71: 1 | H71: 1 | I71: 50 | J71: 0.1
A72: 69 | B72: 10000 | C72: =0.4*$A$1*1000*1000 -> 3922660 | D72: =0.4*$A$1*1000*1000 -> 3922660 | E72: =0.7*$A$1*1000*1000 -> 6864655 | F72: =0.6*$A$1*1000*1000 -> 5883990 | G72: 1 | H72: 1 | I72: 50 | J72: 0.1 | K72: SSPA-SXM-200
A73: 70 | B73: 20000 | C73: =0.4*$A$1*1000*1000 -> 3922660 | D73: =0.4*$A$1*1000*1000 -> 3922660 | E73: =1*$A$1*1000*1000 -> 9806650 | F73: =1*$A$1*1000*1000 -> 9806650 | G73: 1 | H73: 1 | I73: 50 | J73: 0.1
A74: 71 | B74: 30000 | C74: 3922660 | D74: 3922660 | E74: =1.2*$A$1*1000*1000 -> 11767980 | F74: =1.2*$A$1*1000*1000 -> 11767980 | G74: 1 | H74: 1 | I74: 50 | J74: 0.1
A75: 72 | B75: 10000 | C75: =0.4*$A$1*1000*1000 -> 3922660 | D75: 3922660 | E75: =0.7*$A$1*1000*1000 -> 6864655 | F75: =0.6*$A$1*1000*1000 -> 5883990 | G75: 1 | H75: 1 | I75: 50 | J75: 0.1 | K75: SSPA-MXM-400
A76: 73 | B76: 20000 | C76: 3922660 | D76: 3922660 | E76: =1*$A$1*1000*1000 -> 9806650 | F76: =1*$A$1*1000*1000 -> 9806650 | G76: 1 | H76: 1 | I76: 50 | J76: 0.1
A77: 74 | B77: 40000 | C77: 3922660 | D77: 3922660 | E77: =1.2*$A$1*1000*1000 -> 11767980 | F77: 11767980 | G77: 1 | H77: 1 | I77: 50 | J77: 0.1
A78: 75 | B78: 25000 | C78: =0.4*$A$1*1000*1000 -> 3922660 | D78: 3922660 | E78: 11767980 | F78: 11767980 | G78: 1 | H78: 1 | I78: 50 | J78: 0.1 | K78: SSPA-LXM-750
A79: 76 | B79: 50000 | C79: 3922660 | D79: 3922660 | E79: 11767980 | F79: 11767980 | G79: 1 | H79: 1 | I79: 50 | J79: 0.1
A80: 77 | B80: 10000 | C80: =0.4*$A$1*1000*1000 -> 3922660 | D80: 3922660 | E80: =0.7*$A$1*1000*1000 -> 6864655 | F80: =0.6*$A$1*1000*1000 -> 5883990 | G80: 1 | H80: 1 | I80: 50 | J80: 0.1 | K80: SSPDACR-S-200
A81: 78 | B81: 20000 | C81: 3922660 | D81: 3922660 | E81: =1*$A$1*1000*1000 -> 9806650 | F81: =1*$A$1*1000*1000 -> 9806650 | G81: 1 | H81: 1 | I81: 50 | J81: 0.1
A82: 79 | B82: 30000 | C82: 3922660 | D82: 3922660 | E82: =1.2*$A$1*1000*1000 -> 11767980 | F82: =1.2*$A$1*1000*1000 -> 11767980 | G82: 1 | H82: 1 | I82: 50 | J82: 0.1
A83: 80 | B83: 10000 | C83: 3922660 | D83: 3922660 | E83: =0.7*$A$1*1000*1000 -> 6864655 | F83: =0.6*$A$1*1000*1000 -> 5883990 | G83: 1 | H83: 1 | I83: 50 | J83: 0.1 | K83: SSPDACR-M-400
A84: 81 | B84: 20000 | C84: 3922660 | D84: 3922660 | E84: =1*$A$1*1000*1000 -> 9806650 | F84: =1*$A$1*1000*1000 -> 9806650 | G84: 1 | H84: 1 | I84: 50 | J84: 0.1
A85: 82 | B85: 40000 | C85: 3922660 | D85: 3922660 | E85: =1.2*$A$1*1000*1000 -> 11767980 | F85: 11767980 | G85: 1 | H85: 1 | I85: 50 | J85: 0.1
A86: 83 | B86: 25000 | C86: 3922660 | D86: 3922660 | E86: 11767980 | F86: 11767980 | G86: 1 | H86: 1 | I86: 50 | J86: 0.1 | K86: SSPDACR-L-750
A87: 84 | B87: 50000 | C87: 3922660 | D87: 3922660 | E87: 11767980 | F87: 11767980 | G87: 1 | H87: 1 | I87: 50 | J87: 0.1
A88: 85 | B88: 5000 | C88: =0.2*$A$1*1000*1000 -> 1961330 | D88: =0.2*$A$1*1000*1000 -> 1961330 | E88: =0.3*$A$1*1000*1000 -> 2941995 | F88: =0.3*$A$1*1000*1000 -> 2941995 | G88: 1 | H88: 1 | I88: 50 | J88: 0.1 | K88: RCS3-SA8C-100
A89: 86 | B89: 10000 | C89: =0.3*$A$1*1000*1000 -> 2941995 | D89: 1961330 | E89: =0.5*$A$1*1000*1000 -> 4903325 | F89: =0.5*$A$1*1000*1000 -> 4903325 | G89: 1 | H89: 1 | I89: 50 | J89: 0.1
A90: 87 | B90: 20000 | C90: =0.3*$A$1*1000*1000 -> 2941995 | D90: 1961330 | E90: =0.7*$A$1*1000*1000 -> 6864655 | F90: =0.7*$A$1*1000*1000 -> 6864655 | G90: 1 | H90: 1 | I90: 50 | J90: 0.1
A91: 88 | B91: 30000 | C91: =0.3*$A$1*1000*1000 -> 2941995 | D91: 1961330 | E91: =1*$A$1*1000*1000 -> 9806650 | F91: =0.7*$A$1*1000*1000 -> 6864655 | G91: 1 | H91: 1 | I91: 50 | J91: 0.1
A92: 89 | B92: 10000 | C92: =0.3*$A$1*1000*1000 -> 2941995 | D92: 1961330 | E92: =0.5*$A$1*1000*1000 -> 4903325 | F92: =0.5*$A$1*1000*1000 -> 4903325 | G92: 1 | H92: 1 | I92: 50 | J92: 0.1 | K92: RCS3-SA8C-150
A93: 90 | B93: 20000 | C93: 2941995 | D93: 1961330 | E93: =0.7*$A$1*1000*1000 -> 6864655 | F93: =0.7*$A$1*1000*1000 -> 6864655 | G93: 1 | H93: 1 | I93: 50 | J93: 0.1
A94: 91 | B94: 30000 | C94: 2941995 | D94: 1961330 | E94: =1*$A$1*1000*1000 -> 9806650 | F94: =0.7*$A$1*1000*1000 -> 6864655 | G94: 1 | H94: 1 | I94: 50 | J94: 0.1
A95: 92 | B95: 5000 | C95: =0.2*$A$1*1000*1000 -> 1961330 | D95: =0.2*$A$1*1000*1000 -> 1961330 | E95: =0.3*$A$1*1000*1000 -> 2941995 | F95: =0.3*$A$1*1000*1000 -> 2941995 | G95: 1 | H95: 1 | I95: 50 | J95: 0.1 | K95: RCS3-SS8C-100
A96: 93 | B96: 10000 | C96: 2941995 | D96: 1961330 | E96: =0.5*$A$1*1000*1000 -> 4903325 | F96: =0.5*$A$1*1000*1000 -> 4903325 | G96: 1 | H96: 1 | I96: 50 | J96: 0.1
A97: 94 | B97: 20000 | C97: 2941995 | D97: 1961330 | E97: =0.7*$A$1*1000*1000 -> 6864655 | F97: =0.7*$A$1*1000*1000 -> 6864655 | G97: 1 | H97: 1 | I97: 50 | J97: 0.1
A98: 95 | B98: 30000 | C98: 2941995 | D98: 1961330 | E98: =1*$A$1*1000*1000 -> 9806650 | F98: =0.7*$A$1*1000*1000 -> 6864655 | G98: 1 | H98: 1 | I98: 50 | J98: 0.1
A99: 96 | B99: 10000 | C99: 2941995 | D99: 1961330 | E99: =0.5*$A$1*1000*1000 -> 4903325 | F99: =0.5*$A$1*1000*1000 -> 4903325 | G99: 1 | H99: 1 | I99: 50 | J99: 0.1 | K99: RCS3-SS8C-150
A100: 97 | B100: 20000 | C100: 2941995 | D100: 1961330 | E100: =0.7*$A$1*1000*1000 -> 6864655 | F100: =0.7*$A$1*1000*1000 -> 6864655 | G100: 1 | H100: 1 | I100: 50 | J100: 0.1
A101: 98 | B101: 30000 | C101: 2941995 | D101: 1961330 | E101: =1*$A$1*1000*1000 -> 9806650 | F101: =0.7*$A$1*1000*1000 -> 6864655 | G101: 1 | H101: 1 | I101: 50 | J101: 0.1
A102: 99 | B102: 5000 | C102: =0.2*$A$1*1000*1000 -> 1961330 | D102: 1961330 | E102: =0.3*$A$1*1000*1000 -> 2941995 | F102: =0.3*$A$1*1000*1000 -> 2941995 | G102: 1 | H102: 1 | I102: 50 | J102: 0.1 | K102: RCS3CR-SA8C-100
A103: 100 | B103: 10000 | C103: 2941995 | D103: 1961330 | E103: =0.5*$A$1*1000*1000 -> 4903325 | F103: =0.5*$A$1*1000*1000 -> 4903325 | G103: 1 | H103: 1 | I103: 50 | J103: 0.1
A104: 101 | B104: 20000 | C104: 2941995 | D104: 1961330 | E104: =0.7*$A$1*1000*1000 -> 6864655 | F104: =0.7*$A$1*1000*1000 -> 6864655 | G104: 1 | H104: 1 | I104: 50 | J104: 0.1
A105: 102 | B105: 30000 | C105: 2941995 | D105: 1961330 | E105: =1*$A$1*1000*1000 -> 9806650 | F105: =0.7*$A$1*1000*1000 -> 6864655 | G105: 1 | H105: 1 | I105: 50 | J105: 0.1
A106: 103 | B106: 10000 | C106: 2941995 | D106: 1961330 | E106: =0.5*$A$1*1000*1000 -> 4903325 | F106: =0.5*$A$1*1000*1000 -> 4903325 | G106: 1 | H106: 1 | I106: 50 | J106: 0.1 | K106: RCS3CR-SA8C-150
A107: 104 | B107: 20000 | C107: 2941995 | D107: 1961330 | E107: =0.7*$A$1*1000*1000 -> 6864655 | F107: =0.7*$A$1*1000*1000 -> 6864655 | G107: 1 | H107: 1 | I107: 50 | J107: 0.1
A108: 105 | B108: 30000 | C108: 2941995 | D108: 1961330 | E108: =1*$A$1*1000*1000 -> 9806650 | F108: =0.7*$A$1*1000*1000 -> 6864655 | G108: 1 | H108: 1 | I108: 50 | J108: 0.1
A109: 106 | B109: 5000 | C109: =0.2*$A$1*1000*1000 -> 1961330 | D109: 1961330 | E109: =0.3*$A$1*1000*1000 -> 2941995 | F109: =0.3*$A$1*1000*1000 -> 2941995 | G109: 1 | H109: 1 | I109: 50 | J109: 0.1 | K109: RCS3CR-SS8C-100
A110: 107 | B110: 10000 | C110: 2941995 | D110: 1961330 | E110: =0.5*$A$1*1000*1000 -> 4903325 | F110: =0.5*$A$1*1000*1000 -> 4903325 | G110: 1 | H110: 1 | I110: 50 | J110: 0.1
A111: 108 | B111: 20000 | C111: 2941995 | D111: 1961330 | E111: =0.7*$A$1*1000*1000 -> 6864655 | F111: =0.7*$A$1*1000*1000 -> 6864655 | G111: 1 | H111: 1 | I111: 50 | J111: 0.1
A112: 109 | B112: 30000 | C112: 2941995 | D112: 1961330 | E112: =1*$A$1*1000*1000 -> 9806650 | F112: =0.7*$A$1*1000*1000 -> 6864655 | G112: 1 | H112: 1 | I112: 50 | J112: 0.1
A113: 110 | B113: 10000 | C113: 2941995 | D113: 1961330 | E113: =0.5*$A$1*1000*1000 -> 4903325 | F113: =0.5*$A$1*1000*1000 -> 4903325 | G113: 1 | H113: 1 | I113: 50 | J113: 0.1 | K113: RCS3CR-SS8C-150
A114: 111 | B114: 20000 | C114: 2941995 | D114: 1961330 | E114: =0.7*$A$1*1000*1000 -> 6864655 | F114: =0.7*$A$1*1000*1000 -> 6864655 | G114: 1 | H114: 1 | I114: 50 | J114: 0.1
A115: 112 | B115: 30000 | C115: 2941995 | D115: 1961330 | E115: =1*$A$1*1000*1000 -> 9806650 | F115: =0.7*$A$1*1000*1000 -> 6864655 | G115: 1 | H115: 1 | I115: 50 | J115: 0.1
A116: 113 | B116: 5000 | C116: =0.2*$A$1*1000*1000 -> 1961330 | D116: =0.2*$A$1*1000*1000 -> 1961330 | E116: =0.3*$A$1*1000*1000 -> 2941995 | F116: =0.3*$A$1*1000*1000 -> 2941995 | G116: 1 | H116: 1 | I116: 50 | J116: 0.1 | K116: RCS3-SA8R-100
A117: 114 | B117: 10000 | C117: 2941995 | D117: =0.2*$A$1*1000*1000 -> 1961330 | E117: =0.5*$A$1*1000*1000 -> 4903325 | F117: =0.5*$A$1*1000*1000 -> 4903325 | G117: 1 | H117: 1 | I117: 50 | J117: 0.1
A118: 115 | B118: 20000 | C118: 2941995 | D118: =0.2*$A$1*1000*1000 -> 1961330 | E118: =0.7*$A$1*1000*1000 -> 6864655 | F118: =0.7*$A$1*1000*1000 -> 6864655 | G118: 1 | H118: 1 | I118: 50 | J118: 0.1
A119: 116 | B119: 30000 | C119: 2941995 | D119: =0.2*$A$1*1000*1000 -> 1961330 | E119: =1*$A$1*1000*1000 -> 9806650 | F119: =0.7*$A$1*1000*1000 -> 6864655 | G119: 1 | H119: 1 | I119: 50 | J119: 0.1
A120: 117 | B120: 10000 | C120: 2941995 | D120: =0.2*$A$1*1000*1000 -> 1961330 | E120: =0.5*$A$1*1000*1000 -> 4903325 | F120: =0.5*$A$1*1000*1000 -> 4903325 | G120: 1 | H120: 1 | I120: 50 | J120: 0.1 | K120: RCS3-SA8R-150
A121: 118 | B121: 20000 | C121: 2941995 | D121: 1961330 | E121: =0.7*$A$1*1000*1000 -> 6864655 | F121: =0.7*$A$1*1000*1000 -> 6864655 | G121: 1 | H121: 1 | I121: 50 | J121: 0.1
A122: 119 | B122: 30000 | C122: 2941995 | D122: 1961330 | E122: =1*$A$1*1000*1000 -> 9806650 | F122: =0.7*$A$1*1000*1000 -> 6864655 | G122: 1 | H122: 1 | I122: 50 | J122: 0.1
A123: 120 | B123: 5000 | C123: =0.2*$A$1*1000*1000 -> 1961330 | D123: 1961330 | E123: =0.3*$A$1*1000*1000 -> 2941995 | F123: =0.3*$A$1*1000*1000 -> 2941995 | G123: 1 | H123: 1 | I123: 50 | J123: 0.1 | K123: RCS3-SS8R-100
A124: 121 | B124: 10000 | C124: 2941995 | D124: 1961330 | E124: =0.5*$A$1*1000*1000 -> 4903325 | F124: =0.5*$A$1*1000*1000 -> 4903325 | G124: 1 | H124: 1 | I124: 50 | J124: 0.1
A125: 122 | B125: 20000 | C125: 2941995 | D125: 1961330 | E125: =0.7*$A$1*1000*1000 -> 6864655 | F125: =0.7*$A$1*1000*1000 -> 6864655 | G125: 1 | H125: 1 | I125: 50 | J125: 0.1
A126: 123 | B126: 30000 | C126: 2941995 | D126: 1961330 | E126: =1*$A$1*1000*1000 -> 9806650 | F126: =0.7*$A$1*1000*1000 -> 6864655 | G126: 1 | H126: 1 | I126: 50 | J126: 0.1
A127: 124 | B127: 10000 | C127: 2941995 | D127: 1961330 | E127: =0.5*$A$1*1000*1000 -> 4903325 | F127: =0.5*$A$1*1000*1000 -> 4903325 | G127: 1 | H127: 1 | I127: 50 | J127: 0.1 | K127: RCS3-SS8R-150
A128: 125 | B128: 20000 | C128: 2941995 | D128: 1961330 | E128: =0.7*$A$1*1000*1000 -> 6864655 | F128: =0.7*$A$1*1000*1000 -> 6864655 | G128: 1 | H128: 1 | I128: 50 | J128: 0.1
A129: 126 | B129: 30000 | C129: 2941995 | D129: 1961330 | E129: =1*$A$1*1000*1000 -> 9806650 | F129: =0.7*$A$1*1000*1000 -> 6864655 | G129: 1 | H129: 1 | I129: 50 | J129: 0.1
A130: 127 | B130: 2500 | C130: =0.2*$A$1*1000*1000 -> 1961330 | D130: =0.2*$A$1*1000*1000 -> 1961330 | E130: =0.2*$A$1*1000*1000 -> 1961330 | F130: =0.2*$A$1*1000*1000 -> 1961330 | G130: 1 | H130: 1 | I130: 50 | J130: 0.1 | K130: RCS2-SA4C-20
A131: 128 | B131: 5000 | C131: =0.3*$A$1*1000*1000 -> 2941995 | D131: =0.3*$A$1*1000*1000 -> 2941995 | E131: =0.3*$A$1*1000*1000 -> 2941995 | F131: 2941995 | G131: 1 | H131: 1 | I131: 50 | J131: 0.1
A132: =A131+1 -> 129 | B132: 10000 | C132: 2941995 | D132: 2941995 | E132: 2941995 | F132: 2941995 | G132: 1 | H132: 1 | I132: 50 | J132: 0.1
A133: 130 | B133: 16000 | C133: 2941995 | D133: 2941995 | E133: 2941995 | F133: 2941995 | G133: 1 | H133: 1 | I133: 50 | J133: 0.1
A134: 131 | B134: 3000 | C134: =0.2*$A$1*1000*1000 -> 1961330 | D134: =0.2*$A$1*1000*1000 -> 1961330 | E134: =0.2*$A$1*1000*1000 -> 1961330 | F134: =0.2*$A$1*1000*1000 -> 1961330 | G134: 1 | H134: 1 | I134: 50 | J134: 0.1 | K134: RCS2-SA5C-20
A135: 132 | B135: 6000 | C135: =0.3*$A$1*1000*1000 -> 2941995 | D135: =0.3*$A$1*1000*1000 -> 2941995 | E135: =0.3*$A$1*1000*1000 -> 2941995 | F135: 2941995 | G135: 1 | H135: 1 | I135: 50 | J135: 0.1
A136: 133 | B136: 12000 | C136: 2941995 | D136: 2941995 | E136: 2941995 | F136: 2941995 | G136: 1 | H136: 1 | I136: 50 | J136: 0.1
A137: 134 | B137: 20000 | C137: 2941995 | D137: =0.3*$A$1*1000*1000 -> 2941995 | E137: 2941995 | F137: 2941995 | G137: 1 | H137: 1 | I137: 50 | J137: 0.1
A138: 135 | B138: 3000 | C138: =0.2*$A$1*1000*1000 -> 1961330 | D138: =0.2*$A$1*1000*1000 -> 1961330 | E138: =0.2*$A$1*1000*1000 -> 1961330 | F138: =0.2*$A$1*1000*1000 -> 1961330 | G138: 1 | H138: 1 | I138: 50 | J138: 0.1 | K138: RCS2-SA6C-30
A139: 136 | B139: 6000 | C139: =0.3*$A$1*1000*1000 -> 2941995 | D139: 2941995 | E139: =0.3*$A$1*1000*1000 -> 2941995 | F139: 2941995 | G139: 1 | H139: 1 | I139: 50 | J139: 0.1
A140: 137 | B140: 12000 | C140: 2941995 | D140: 2941995 | E140: 2941995 | F140: 2941995 | G140: 1 | H140: 1 | I140: 50 | J140: 0.1
A141: 138 | B141: 20000 | C141: 2941995 | D141: 2941995 | E141: 2941995 | F141: 2941995 | G141: 1 | H141: 1 | I141: 50 | J141: 0.1
A142: 139 | B142: 4000 | C142: =0.2*$A$1*1000*1000 -> 1961330 | D142: =0.2*$A$1*1000*1000 -> 1961330 | E142: =0.2*$A$1*1000*1000 -> 1961330 | F142: =0.2*$A$1*1000*1000 -> 1961330 | G142: 1 | H142: 1 | I142: 50 | J142: 0.1 | K142: RCS2-SA7C-60
A143: 140 | B143: 8000 | C143: =0.3*$A$1*1000*1000 -> 2941995 | D143: =0.3*$A$1*1000*1000 -> 2941995 | E143: =0.3*$A$1*1000*1000 -> 2941995 | F143: 2941995 | G143: 1 | H143: 1 | I143: 50 | J143: 0.1
A144: 141 | B144: 16000 | C144: 2941995 | D144: 2941995 | E144: 2941995 | F144: 2941995 | G144: 1 | H144: 1 | I144: 50 | J144: 0.1
A145: 142 | B145: 24000 | C145: 2941995 | D145: 2941995 | E145: 2941995 | F145: 2941995 | G145: 1 | H145: 1 | I145: 50 | J145: 0.1
A146: 143 | B146: 6000 | C146: 2941995 | D146: =0.3*$A$1*1000*1000 -> 2941995 | E146: =0.3*$A$1*1000*1000 -> 2941995 | F146: 2941995 | G146: 1 | H146: 1 | I146: 50 | J146: 0.1 | K146: RCS2-SS7C-60
A147: 144 | B147: 12000 | C147: 2941995 | D147: 2941995 | E147: 2941995 | F147: 2941995 | G147: 1 | H147: 1 | I147: 50 | J147: 0.1
A148: 145 | B148: 20000 | C148: 2941995 | D148: 2941995 | E148: 2941995 | F148: 2941995 | G148: 1 | H148: 1 | I148: 50 | J148: 0.1
A149: 146 | B149: 2500 | C149: =0.2*$A$1*1000*1000 -> 1961330 | D149: =0.2*$A$1*1000*1000 -> 1961330 | E149: =0.2*$A$1*1000*1000 -> 1961330 | F149: =0.2*$A$1*1000*1000 -> 1961330 | G149: 1 | H149: 1 | I149: 50 | J149: 0.1 | K149: RCS2CR-SA4C-20
A150: 147 | B150: 5000 | C150: =0.3*$A$1*1000*1000 -> 2941995 | D150: =0.3*$A$1*1000*1000 -> 2941995 | E150: =0.3*$A$1*1000*1000 -> 2941995 | F150: =0.3*$A$1*1000*1000 -> 2941995 | G150: 1 | H150: 1 | I150: 50 | J150: 0.1
A151: 148 | B151: 10000 | C151: =0.3*$A$1*1000*1000 -> 2941995 | D151: =0.3*$A$1*1000*1000 -> 2941995 | E151: 2941995 | F151: 2941995 | G151: 1 | H151: 1 | I151: 50 | J151: 0.1
A152: 149 | B152: 16000 | C152: =0.3*$A$1*1000*1000 -> 2941995 | D152: 2941995 | E152: 2941995 | F152: 2941995 | G152: 1 | H152: 1 | I152: 50 | J152: 0.1
A153: 150 | B153: 3000 | C153: =0.2*$A$1*1000*1000 -> 1961330 | D153: =0.2*$A$1*1000*1000 -> 1961330 | E153: =0.2*$A$1*1000*1000 -> 1961330 | F153: =0.2*$A$1*1000*1000 -> 1961330 | G153: 1 | H153: 1 | I153: 50 | J153: 0.1 | K153: RCS2CR-SA5C-20
A154: 151 | B154: 6000 | C154: =0.3*$A$1*1000*1000 -> 2941995 | D154: =0.3*$A$1*1000*1000 -> 2941995 | E154: 2941995 | F154: 2941995 | G154: 1 | H154: 1 | I154: 50 | J154: 0.1
A155: 152 | B155: 12000 | C155: =0.3*$A$1*1000*1000 -> 2941995 | D155: 2941995 | E155: =0.3*$A$1*1000*1000 -> 2941995 | F155: =0.3*$A$1*1000*1000 -> 2941995 | G155: 1 | H155: 1 | I155: 50 | J155: 0.1
A156: 153 | B156: 20000 | C156: =0.3*$A$1*1000*1000 -> 2941995 | D156: =0.3*$A$1*1000*1000 -> 2941995 | E156: =0.3*$A$1*1000*1000 -> 2941995 | F156: =0.3*$A$1*1000*1000 -> 2941995 | G156: 1 | H156: 1 | I156: 50 | J156: 0.1
A157: 154 | B157: 3000 | C157: =0.2*$A$1*1000*1000 -> 1961330 | D157: =0.2*$A$1*1000*1000 -> 1961330 | E157: =0.2*$A$1*1000*1000 -> 1961330 | F157: =0.2*$A$1*1000*1000 -> 1961330 | G157: 1 | H157: 1 | I157: 50 | J157: 0.1 | K157: RCS2CR-SA6C-30
A158: 155 | B158: 6000 | C158: =0.3*$A$1*1000*1000 -> 2941995 | D158: 2941995 | E158: =0.3*$A$1*1000*1000 -> 2941995 | F158: 2941995 | G158: 1 | H158: 1 | I158: 50 | J158: 0.1
A159: 156 | B159: 12000 | C159: 2941995 | D159: 2941995 | E159: 2941995 | F159: 2941995 | G159: 1 | H159: 1 | I159: 50 | J159: 0.1
A160: 157 | B160: 20000 | C160: 2941995 | D160: 2941995 | E160: 2941995 | F160: 2941995 | G160: 1 | H160: 1 | I160: 50 | J160: 0.1
A161: 158 | B161: 4000 | C161: =0.2*$A$1*1000*1000 -> 1961330 | D161: =0.2*$A$1*1000*1000 -> 1961330 | E161: =0.2*$A$1*1000*1000 -> 1961330 | F161: =0.2*$A$1*1000*1000 -> 1961330 | G161: 1 | H161: 1 | I161: 50 | J161: 0.1 | K161: RCS2CR-SA7C-60
A162: 159 | B162: 8000 | C162: =0.3*$A$1*1000*1000 -> 2941995 | D162: =0.3*$A$1*1000*1000 -> 2941995 | E162: =0.3*$A$1*1000*1000 -> 2941995 | F162: 2941995 | G162: 1 | H162: 1 | I162: 50 | J162: 0.1
A163: 160 | B163: 16000 | C163: 2941995 | D163: 2941995 | E163: 2941995 | F163: 2941995 | G163: 1 | H163: 1 | I163: 50 | J163: 0.1
A164: 161 | B164: 24000 | C164: 2941995 | D164: 2941995 | E164: 2941995 | F164: 2941995 | G164: 1 | H164: 1 | I164: 50 | J164: 0.1
A165: 162 | B165: 6000 | C165: 2941995 | D165: =0.3*$A$1*1000*1000 -> 2941995 | E165: =0.3*$A$1*1000*1000 -> 2941995 | F165: 2941995 | G165: 1 | H165: 1 | I165: 50 | J165: 0.1 | K165: RCS2CR-SS7C-60
A166: 163 | B166: 12000 | C166: 2941995 | D166: 2941995 | E166: 2941995 | F166: 2941995 | G166: 1 | H166: 1 | I166: 50 | J166: 0.1
A167: 164 | B167: 20000 | C167: 2941995 | D167: 2941995 | E167: 2941995 | F167: 2941995 | G167: 1 | H167: 1 | I167: 50 | J167: 0.1
A168: 165 | B168: 2500 | C168: =0.2*$A$1*1000*1000 -> 1961330 | D168: =0.2*$A$1*1000*1000 -> 1961330 | E168: =0.2*$A$1*1000*1000 -> 1961330 | F168: =0.2*$A$1*1000*1000 -> 1961330 | G168: 1 | H168: 1 | I168: 50 | J168: 0.1 | K168: RCS2-SA4D-20
A169: 166 | B169: 5000 | C169: =0.3*$A$1*1000*1000 -> 2941995 | D169: 2941995 | E169: 2941995 | F169: 2941995 | G169: 1 | H169: 1 | I169: 50 | J169: 0.1
A170: 167 | B170: 10000 | C170: 2941995 | D170: 2941995 | E170: 2941995 | F170: 2941995 | G170: 1 | H170: 1 | I170: 50 | J170: 0.1
A171: 168 | B171: 3000 | C171: =0.2*$A$1*1000*1000 -> 1961330 | D171: =0.2*$A$1*1000*1000 -> 1961330 | E171: =0.2*$A$1*1000*1000 -> 1961330 | F171: =0.2*$A$1*1000*1000 -> 1961330 | G171: 1 | H171: 1 | I171: 50 | J171: 0.1 | K171: RCS2-SA5D-20
A172: 169 | B172: 6000 | C172: =0.3*$A$1*1000*1000 -> 2941995 | D172: 2941995 | E172: 2941995 | F172: 2941995 | G172: 1 | H172: 1 | I172: 50 | J172: 0.1
A173: 170 | B173: 12000 | C173: 2941995 | D173: 2941995 | E173: 2941995 | F173: 2941995 | G173: 1 | H173: 1 | I173: 50 | J173: 0.1
A174: 171 | B174: 3000 | C174: =0.2*$A$1*1000*1000 -> 1961330 | D174: =0.2*$A$1*1000*1000 -> 1961330 | E174: =0.2*$A$1*1000*1000 -> 1961330 | F174: =0.2*$A$1*1000*1000 -> 1961330 | G174: 1 | H174: 1 | I174: 50 | J174: 0.1 | K174: RCS2-SA6D-30
A175: 172 | B175: 6000 | C175: =0.3*$A$1*1000*1000 -> 2941995 | D175: 2941995 | E175: 2941995 | F175: 2941995 | G175: 1 | H175: 1 | I175: 50 | J175: 0.1
A176: 173 | B176: 12000 | C176: 2941995 | D176: 2941995 | E176: 2941995 | F176: 2941995 | G176: 1 | H176: 1 | I176: 50 | J176: 0.1
A177: 174 | B177: 3000 | C177: =0.2*$A$1*1000*1000 -> 1961330 | D177: =0.2*$A$1*1000*1000 -> 1961330 | E177: =0.2*$A$1*1000*1000 -> 1961330 | F177: =0.2*$A$1*1000*1000 -> 1961330 | G177: 1 | H177: 1 | I177: 50 | J177: 0.1 | K177: RCS2CR-SA5D-20
A178: 175 | B178: 6000 | C178: =0.3*$A$1*1000*1000 -> 2941995 | D178: 2941995 | E178: 2941995 | F178: 2941995 | G178: 1 | H178: 1 | I178: 50 | J178: 0.1
A179: 176 | B179: 12000 | C179: 2941995 | D179: 2941995 | E179: 2941995 | F179: 2941995 | G179: 1 | H179: 1 | I179: 50 | J179: 0.1
A180: 177 | B180: 3000 | C180: =0.2*$A$1*1000*1000 -> 1961330 | D180: =0.2*$A$1*1000*1000 -> 1961330 | E180: =0.2*$A$1*1000*1000 -> 1961330 | F180: =0.2*$A$1*1000*1000 -> 1961330 | G180: 1 | H180: 1 | I180: 50 | J180: 0.1 | K180: RCS2CR-SA6D-30
A181: 178 | B181: 6000 | C181: =0.3*$A$1*1000*1000 -> 2941995 | D181: 2941995 | E181: 2941995 | F181: 2941995 | G181: 1 | H181: 1 | I181: 50 | J181: 0.1
A182: 179 | B182: 12000 | C182: 2941995 | D182: 2941995 | E182: 2941995 | F182: 2941995 | G182: 1 | H182: 1 | I182: 50 | J182: 0.1
A183: 180 | B183: 2500 | C183: =0.2*$A$1*1000*1000 -> 1961330 | D183: =0.2*$A$1*1000*1000 -> 1961330 | E183: =0.2*$A$1*1000*1000 -> 1961330 | F183: =0.2*$A$1*1000*1000 -> 1961330 | G183: 1 | H183: 1 | I183: 50 | J183: 0.1 | K183: RCS2-SA4R-20
A184: 181 | B184: 5000 | C184: =0.3*$A$1*1000*1000 -> 2941995 | D184: 2941995 | E184: 2941995 | F184: 2941995 | G184: 1 | H184: 1 | I184: 50 | J184: 0.1
A185: 182 | B185: 10000 | C185: 2941995 | D185: 2941995 | E185: 2941995 | F185: 2941995 | G185: 1 | H185: 1 | I185: 50 | J185: 0.1
A186: 183 | B186: 3000 | C186: =0.2*$A$1*1000*1000 -> 1961330 | D186: =0.2*$A$1*1000*1000 -> 1961330 | E186: =0.2*$A$1*1000*1000 -> 1961330 | F186: =0.2*$A$1*1000*1000 -> 1961330 | G186: 1 | H186: 1 | I186: 50 | J186: 0.1 | K186: RCS2-SA5R-20
A187: 184 | B187: 6000 | C187: =0.3*$A$1*1000*1000 -> 2941995 | D187: 2941995 | E187: 2941995 | F187: 2941995 | G187: 1 | H187: 1 | I187: 50 | J187: 0.1
A188: 185 | B188: 12000 | C188: 2941995 | D188: 2941995 | E188: 2941995 | F188: 2941995 | G188: 1 | H188: 1 | I188: 50 | J188: 0.1
A189: 186 | B189: 3000 | C189: =0.2*$A$1*1000*1000 -> 1961330 | D189: =0.2*$A$1*1000*1000 -> 1961330 | E189: =0.2*$A$1*1000*1000 -> 1961330 | F189: =0.2*$A$1*1000*1000 -> 1961330 | G189: 1 | H189: 1 | I189: 50 | J189: 0.1 | K189: RCS2-SA6R-30
A190: 187 | B190: 6000 | C190: =0.3*$A$1*1000*1000 -> 2941995 | D190: 2941995 | E190: 2941995 | F190: 2941995 | G190: 1 | H190: 1 | I190: 50 | J190: 0.1
A191: 188 | B191: 12000 | C191: 2941995 | D191: 2941995 | E191: 2941995 | F191: 2941995 | G191: 1 | H191: 1 | I191: 50 | J191: 0.1
A192: 189 | B192: 4000 | C192: =0.2*$A$1*1000*1000 -> 1961330 | D192: =0.2*$A$1*1000*1000 -> 1961330 | E192: =0.2*$A$1*1000*1000 -> 1961330 | F192: =0.2*$A$1*1000*1000 -> 1961330 | G192: 1 | H192: 1 | I192: 50 | J192: 0.1 | K192: RCS2-SA7R-60
A193: 190 | B193: 8000 | C193: =0.3*$A$1*1000*1000 -> 2941995 | D193: =0.3*$A$1*1000*1000 -> 2941995 | E193: =0.3*$A$1*1000*1000 -> 2941995 | F193: =0.3*$A$1*1000*1000 -> 2941995 | G193: 1 | H193: 1 | I193: 50 | J193: 0.1
A194: 191 | B194: 16000 | C194: 2941995 | D194: 2941995 | E194: =0.3*$A$1*1000*1000 -> 2941995 | F194: 2941995 | G194: 1 | H194: 1 | I194: 50 | J194: 0.1
A195: 192 | B195: 6000 | C195: 2941995 | D195: =0.3*$A$1*1000*1000 -> 2941995 | E195: 2941995 | F195: 2941995 | G195: 1 | H195: 1 | I195: 50 | J195: 0.1 | K195: RCS2-SS7R-60
A196: =A195+1 -> 193 | B196: 12000 | C196: 2941995 | D196: 2941995 | E196: 2941995 | F196: 2941995 | G196: 1 | H196: 1 | I196: 50 | J196: 0.1
A197: 194 | B197: 3000 | C197: =0.2*$A$1*1000*1000 -> 1961330 | D197: =0.2*$A$1*1000*1000 -> 1961330 | E197: =0.2*$A$1*1000*1000 -> 1961330 | F197: =0.2*$A$1*1000*1000 -> 1961330 | G197: 1 | H197: 1 | I197: 50 | J197: 0.1 | K197: RCS2-RA4C-20
A198: 195 | B198: 6000 | C198: =0.3*$A$1*1000*1000 -> 2941995 | D198: 2941995 | E198: 2941995 | F198: 2941995 | G198: 1 | H198: 1 | I198: 50 | J198: 0.1
A199: 196 | B199: 12000 | C199: 2941995 | D199: 2941995 | E199: 2941995 | F199: 2941995 | G199: 1 | H199: 1 | I199: 50 | J199: 0.1
A200: 197 | B200: 3000 | C200: =0.2*$A$1*1000*1000 -> 1961330 | D200: =0.2*$A$1*1000*1000 -> 1961330 | E200: =0.2*$A$1*1000*1000 -> 1961330 | F200: =0.2*$A$1*1000*1000 -> 1961330 | G200: 1 | H200: 1 | I200: 50 | J200: 0.1 | K200: RCS2-RA4C-30
... 359 more rows

Sheet StrokeData (hidden)
B1: 1 | C1: 2 | D1: 4 | E1: 5 | F1: 6 | G1: 7 | H1: 8 | I1: 9 | J1: 10 | K1: 17 | L1: 18 | N1: =COUNTIF(N4:N1420,"つなぎまちがい") -> 0 | O1: =COUNTIF(O4:O1420,"つなぎまちがい") -> 0
A2: ﾃﾞｰﾀ№ | B2: ｽﾄﾛｰｸ長 | C2: 有効ｽﾄﾛｰｸ補正 | D2: 基準ｹﾞｲﾝ用搬送質量 | E2: 水平可搬質量 | F2: 垂直可搬質量 | G2: 最大速度 | H2: 位置ｹﾞｲﾝ | I2: FFｹﾞｲﾝ | J2: 速度制御帯域 | K2: 前ﾃﾞｰﾀ№ | L2: 次ﾃﾞｰﾀ№ | M2: 備考 | N2: ﾚｺｰﾄﾞﾘﾝｸのﾁｪｯｸ
A3: =ModelData!A3 -> 0 | B3: ㎜ | C3: ㎜ | D3: 1g | E3: 1g | F3: 1g | G3: ㎜/s | H3: 1/s | I3: % | J3: rad/s | N3: 前ﾃﾞｰﾀ | O3: 次ﾃﾞｰﾀ
A4: =A3+1 -> 1 | B4: 600 | C4: 0 | D4: 55000 | E4: =D4 -> 55000 | F4: 14000 | G4: 240 | H4: 30 | I4: 0 | J4: 120 | K4: -1 | L4: =A5 -> 2 | M4: ISB-SXM-60-4 | N4: =IF(K4=A3,"○",IF(M4<>0,"先頭","つなぎまちがい")) -> 先頭 | O4: =IF(L4=A5,"○",IF(L4<>K5,"つなぎまちがい","終端")) -> ○
A5: 2 | B5: 700 | C5: 0 | D5: 55000 | E5: =D5 -> 55000 | F5: 14000 | G5: 165 | H5: 30 | I5: 0 | J5: 120 | K5: =A4 -> 1 | L5: =A6 -> 3 | N5: ○ | O5: ○
A6: 3 | B6: 800 | C6: 0 | D6: 55000 | E6: =D6 -> 55000 | F6: 14000 | G6: 130 | H6: 30 | I6: 0 | J6: 120 | K6: =A5 -> 2 | L6: =A7 -> 4 | N6: ○ | O6: ○
A7: 4 | B7: 900 | C7: 0 | D7: 55000 | E7: =D7 -> 55000 | F7: 14000 | G7: 100 | H7: 30 | I7: 0 | J7: 120 | K7: =A6 -> 3 | L7: -1 | N7: ○ | O7: 終端
A8: 5 | B8: 600 | C8: 0 | D8: 27500 | E8: =27*1000 -> 27000 | F8: 7000 | G8: 480 | H8: 35 | I8: 0 | J8: 93 | K8: -1 | L8: =A9 -> 6 | M8: ISB-SXM-60-8 | N8: 先頭 | O8: ○
A9: 6 | B9: 700 | C9: 0 | D9: 27500 | E9: =27*1000 -> 27000 | F9: 7000 | G9: 330 | H9: 35 | I9: 0 | J9: 93 | K9: =A8 -> 5 | L9: =A10 -> 7 | N9: ○ | O9: ○
A10: 7 | B10: 800 | C10: 0 | D10: 27500 | E10: =27*1000 -> 27000 | F10: 7000 | G10: 260 | H10: 35 | I10: 0 | J10: 93 | K10: =A9 -> 6 | L10: =A11 -> 8 | N10: ○ | O10: ○
A11: 8 | B11: 900 | C11: 0 | D11: 27500 | E11: =27*1000 -> 27000 | F11: 7000 | G11: 210 | H11: 35 | I11: 0 | J11: 93 | K11: =A10 -> 7 | L11: -1 | N11: ○ | O11: 終端
A12: 9 | B12: 300 | C12: 0 | D12: 13000 | E12: =D12 -> 13000 | F12: 3500 | G12: 960 | H12: 30 | I12: 0 | J12: 85 | K12: -1 | L12: =A13 -> 10 | M12: ISB-SXM-60-16 | N12: 先頭 | O12: ○
A13: 10 | B13: 400 | C13: 0 | D13: 13000 | E13: 13000 | F13: 3500 | G13: 960 | H13: 30 | I13: 0 | J13: 85 | K13: =A12 -> 9 | L13: 11 | N13: ○ | O13: ○
A14: 11 | B14: 500 | C14: 0 | D14: 13000 | E14: 13000 | F14: 3500 | G14: 960 | H14: 30 | I14: 0 | J14: 85 | K14: 10 | L14: 12 | N14: ○ | O14: ○
A15: 12 | B15: 600 | C15: 0 | D15: 13000 | E15: 13000 | F15: 3500 | G15: 960 | H15: 30 | I15: 0 | J15: 85 | K15: 11 | L15: 13 | N15: ○ | O15: ○
A16: 13 | B16: 700 | C16: 0 | D16: 13000 | E16: 13000 | F16: 3500 | G16: 655 | H16: 20 | I16: 0 | J16: 120 | K16: 12 | L16: 14 | N16: ○ | O16: ○
A17: 14 | B17: 800 | C17: 0 | D17: 13000 | E17: 13000 | F17: 3500 | G17: 515 | H17: 20 | I17: 0 | J17: 120 | K17: 13 | L17: 15 | N17: ○ | O17: ○
A18: 15 | B18: 900 | C18: 0 | D18: 13000 | E18: 13000 | F18: 3500 | G18: 415 | H18: 20 | I18: 0 | J18: 120 | K18: 14 | L18: -1 | N18: ○ | O18: 終端
A19: 16 | B19: 700 | C19: 0 | D19: 85000 | E19: =D19 -> 85000 | F19: 20000 | G19: 300 | H19: 30 | I19: 0 | J19: 120 | K19: -1 | L19: =A20 -> 17 | M19: ISB-MXM-100-5 | N19: 先頭 | O19: ○
A20: 17 | B20: 800 | C20: 0 | D20: 85000 | E20: 85000 | F20: 20000 | G20: 215 | H20: 30 | I20: 0 | J20: 120 | K20: =A19 -> 16 | L20: =A21 -> 18 | N20: ○ | O20: ○
A21: 18 | B21: 900 | C21: 0 | D21: 85000 | E21: 85000 | F21: 20000 | G21: 170 | H21: 30 | I21: 0 | J21: 120 | K21: =A20 -> 17 | L21: =A22 -> 19 | N21: ○ | O21: ○
A22: 19 | B22: 1000 | C22: 0 | D22: 85000 | E22: 85000 | F22: 20000 | G22: 140 | H22: 30 | I22: 0 | J22: 120 | K22: =A21 -> 18 | L22: =A23 -> 20 | N22: ○ | O22: ○
A23: 20 | B23: 1100 | C23: 0 | D23: 85000 | E23: 85000 | F23: 20000 | G23: 115 | H23: 30 | I23: 0 | J23: 120 | K23: =A22 -> 19 | L23: -1 | N23: ○ | O23: 終端
A24: 21 | B24: 700 | C24: 0 | D24: 45000 | E24: 45000 | F24: 10000 | G24: 600 | H24: 35 | I24: 0 | J24: 93 | K24: -1 | L24: =A25 -> 22 | M24: ISB-MXM-100-10 | N24: 先頭 | O24: ○
A25: 22 | B25: 800 | C25: 0 | D25: 45000 | E25: 45000 | F25: 10000 | G25: 430 | H25: 35 | I25: 0 | J25: 93 | K25: =A24 -> 21 | L25: =A26 -> 23 | N25: ○ | O25: ○
A26: 23 | B26: 900 | C26: 0 | D26: 45000 | E26: 45000 | F26: 10000 | G26: 345 | H26: 35 | I26: 0 | J26: 93 | K26: =A25 -> 22 | L26: =A27 -> 24 | N26: ○ | O26: ○
A27: 24 | B27: 1000 | C27: 0 | D27: 45000 | E27: 45000 | F27: 10000 | G27: 280 | H27: 35 | I27: 0 | J27: 93 | K27: =A26 -> 23 | L27: =A28 -> 25 | N27: ○ | O27: ○
A28: 25 | B28: 1100 | C28: 0 | D28: 45000 | E28: 45000 | F28: 10000 | G28: 230 | H28: 35 | I28: 0 | J28: 93 | K28: =A27 -> 24 | L28: -1 | N28: ○ | O28: 終端
A29: 26 | B29: 700 | C29: 0 | D29: 23000 | E29: 23000 | F29: =5*1000 -> 5000 | G29: 1200 | H29: 35 | I29: 0 | J29: 93 | K29: -1 | L29: =A30 -> 27 | M29: ISB-MXM-100-20 | N29: 先頭 | O29: ○
A30: 27 | B30: 800 | C30: 0 | D30: 23000 | E30: 23000 | F30: =5*1000 -> 5000 | G30: 860 | H30: 30 | I30: 0 | J30: 85 | K30: =A29 -> 26 | L30: =A31 -> 28 | N30: ○ | O30: ○
A31: 28 | B31: 900 | C31: 0 | D31: 23000 | E31: 23000 | F31: =5*1000 -> 5000 | G31: 695 | H31: 30 | I31: 0 | J31: 85 | K31: =A30 -> 27 | L31: =A32 -> 29 | N31: ○ | O31: ○
A32: 29 | B32: 1000 | C32: 0 | D32: 23000 | E32: 23000 | F32: =5*1000 -> 5000 | G32: 570 | H32: 30 | I32: 0 | J32: 85 | K32: =A31 -> 28 | L32: =A33 -> 30 | N32: ○ | O32: ○
A33: 30 | B33: 1100 | C33: 0 | D33: 23000 | E33: 23000 | F33: =5*1000 -> 5000 | G33: 460 | H33: 30 | I33: 0 | J33: 85 | K33: =A32 -> 29 | L33: -1 | N33: ○ | O33: 終端
A34: 31 | B34: 100 | C34: 0 | D34: 15000 | E34: =D34 -> 15000 | F34: =2.5*1000 -> 2500 | G34: 1800 | H34: 30 | I34: 0 | J34: 100 | K34: -1 | L34: =A35 -> 32 | M34: ISB-MXM-100-30 | N34: 先頭 | O34: ○
A35: 32 | B35: 200 | C35: 0 | D35: 15000 | E35: 15000 | F35: 2500 | G35: 1800 | H35: 30 | I35: 0 | J35: 100 | K35: =A34 -> 31 | L35: 33 | N35: ○ | O35: ○
A36: 33 | B36: 400 | C36: 0 | D36: 15000 | E36: 15000 | F36: 2500 | G36: 1800 | H36: 30 | I36: 0 | J36: 100 | K36: 32 | L36: 34 | N36: ○ | O36: ○
A37: 34 | B37: 500 | C37: 0 | D37: 15000 | E37: 15000 | F37: 2500 | G37: 1800 | H37: 30 | I37: 0 | J37: 100 | K37: 33 | L37: 35 | N37: ○ | O37: ○
A38: 35 | B38: 600 | C38: 0 | D38: 15000 | E38: 15000 | F38: 2500 | G38: 1800 | H38: 30 | I38: 0 | J38: 100 | K38: 34 | L38: 36 | N38: ○ | O38: ○
A39: 36 | B39: 700 | C39: 0 | D39: 15000 | E39: 15000 | F39: 2500 | G39: 1800 | H39: 30 | I39: 0 | J39: 100 | K39: 35 | L39: 37 | N39: ○ | O39: ○
A40: 37 | B40: 800 | C40: 0 | D40: 15000 | E40: 15000 | F40: 2500 | G40: 1290 | H40: 30 | I40: 0 | J40: 100 | K40: 36 | L40: 38 | N40: ○ | O40: ○
A41: 38 | B41: 900 | C41: 0 | D41: 15000 | E41: 15000 | F41: 2500 | G41: 1045 | H41: 30 | I41: 0 | J41: 100 | K41: 37 | L41: 39 | N41: ○ | O41: ○
A42: 39 | B42: 1000 | C42: 0 | D42: 15000 | E42: 15000 | F42: 2500 | G42: 860 | H42: 30 | I42: 0 | J42: 100 | K42: 38 | L42: 40 | N42: ○ | O42: ○
A43: 40 | B43: 1100 | C43: 0 | D43: 15000 | E43: 15000 | F43: 2500 | G43: 690 | H43: 30 | I43: 0 | J43: 100 | K43: 39 | L43: -1 | N43: ○ | O43: 終端
A44: 41 | B44: 700 | C44: 0 | D44: 110000 | E44: =D44 -> 110000 | F44: 40000 | G44: 300 | H44: 30 | I44: 0 | J44: 120 | K44: -1 | L44: =A45 -> 42 | M44: ISB-MXM-200-5 | N44: 先頭 | O44: ○
A45: 42 | B45: 800 | C45: 0 | D45: 110000 | E45: =D45 -> 110000 | F45: 40000 | G45: 215 | H45: 30 | I45: 0 | J45: 120 | K45: =A44 -> 41 | L45: =A46 -> 43 | N45: ○ | O45: ○
A46: 43 | B46: 900 | C46: 0 | D46: 110000 | E46: =D46 -> 110000 | F46: 40000 | G46: 170 | H46: 30 | I46: 0 | J46: 120 | K46: =A45 -> 42 | L46: =A47 -> 44 | N46: ○ | O46: ○
A47: 44 | B47: 1000 | C47: 0 | D47: 110000 | E47: =D47 -> 110000 | F47: 40000 | G47: 140 | H47: 30 | I47: 0 | J47: 120 | K47: =A46 -> 43 | L47: =A48 -> 45 | N47: ○ | O47: ○
A48: 45 | B48: 1100 | C48: 0 | D48: 110000 | E48: =D48 -> 110000 | F48: 40000 | G48: 115 | H48: 30 | I48: 0 | J48: 120 | K48: =A47 -> 44 | L48: -1 | N48: ○ | O48: 終端
A49: 46 | B49: 300 | C49: 0 | D49: 90000 | E49: =D49 -> 90000 | F49: 20000 | G49: 600 | H49: 30 | I49: 0 | J49: 85 | K49: -1 | L49: =A50 -> 47 | M49: ISB-MXM-200-10 | N49: 先頭 | O49: ○
A50: 47 | B50: 400 | C50: 0 | D50: 90000 | E50: 90000 | F50: 20000 | G50: 600 | H50: 30 | I50: 0 | J50: 85 | K50: =A49 -> 46 | L50: 48 | N50: ○ | O50: ○
A51: 48 | B51: 500 | C51: 0 | D51: 90000 | E51: 90000 | F51: 20000 | G51: 600 | H51: 30 | I51: 0 | J51: 85 | K51: 47 | L51: 49 | N51: ○ | O51: ○
A52: 49 | B52: 600 | C52: 0 | D52: 90000 | E52: 90000 | F52: 20000 | G52: 600 | H52: 30 | I52: 0 | J52: 85 | K52: 48 | L52: 50 | N52: ○ | O52: ○
A53: 50 | B53: 700 | C53: 0 | D53: 90000 | E53: 90000 | F53: 20000 | G53: 600 | H53: 30 | I53: 0 | J53: 85 | K53: 49 | L53: 51 | N53: ○ | O53: ○
A54: 51 | B54: 800 | C54: 0 | D54: 90000 | E54: 90000 | F54: 20000 | G54: 430 | H54: 30 | I54: 0 | J54: 85 | K54: 50 | L54: 52 | N54: ○ | O54: ○
A55: 52 | B55: 900 | C55: 0 | D55: 90000 | E55: 90000 | F55: 20000 | G55: 345 | H55: 30 | I55: 0 | J55: 85 | K55: 51 | L55: 53 | N55: ○ | O55: ○
A56: 53 | B56: 1000 | C56: 0 | D56: 90000 | E56: 90000 | F56: 20000 | G56: 280 | H56: 30 | I56: 0 | J56: 85 | K56: 52 | L56: 54 | N56: ○ | O56: ○
A57: 54 | B57: 1100 | C57: 0 | D57: 90000 | E57: 90000 | F57: 20000 | G57: 230 | H57: 30 | I57: 0 | J57: 85 | K57: 53 | L57: -1 | N57: ○ | O57: 終端
A58: 55 | B58: 700 | C58: 0 | D58: 45000 | E58: =D58 -> 45000 | F58: =10*1000 -> 10000 | G58: 1200 | H58: 30 | I58: 0 | J58: 85 | K58: -1 | L58: =A59 -> 56 | M58: ISB-MXM-200-20 | N58: 先頭 | O58: ○
A59: 56 | B59: 800 | C59: 0 | D59: 45000 | E59: 45000 | F59: =10*1000 -> 10000 | G59: 860 | H59: 30 | I59: 0 | J59: 85 | K59: =A58 -> 55 | L59: =A60 -> 57 | N59: ○ | O59: ○
A60: 57 | B60: 900 | C60: 0 | D60: 45000 | E60: 45000 | F60: =10*1000 -> 10000 | G60: 695 | H60: 30 | I60: 0 | J60: 85 | K60: =A59 -> 56 | L60: =A61 -> 58 | N60: ○ | O60: ○
A61: 58 | B61: 1000 | C61: 0 | D61: 45000 | E61: 45000 | F61: =10*1000 -> 10000 | G61: 570 | H61: 30 | I61: 0 | J61: 85 | K61: =A60 -> 57 | L61: =A62 -> 59 | N61: ○ | O61: ○
A62: 59 | B62: 1100 | C62: 0 | D62: 45000 | E62: 45000 | F62: =10*1000 -> 10000 | G62: 460 | H62: 30 | I62: 0 | J62: 85 | K62: =A61 -> 58 | L62: -1 | N62: ○ | O62: 終端
A63: 60 | B63: 700 | C63: 0 | D63: 30000 | E63: 30000 | F63: =6*1000 -> 6000 | G63: 1800 | H63: 30 | I63: 0 | J63: 80 | K63: -1 | L63: =A64 -> 61 | M63: ISB-MXM-200-30 | N63: 先頭 | O63: ○
A64: 61 | B64: 800 | C64: 0 | D64: 30000 | E64: 30000 | F64: =6*1000 -> 6000 | G64: 1290 | H64: 30 | I64: 0 | J64: 80 | K64: =A63 -> 60 | L64: =A65 -> 62 | N64: ○ | O64: ○
A65: 62 | B65: 900 | C65: 0 | D65: 30000 | E65: 30000 | F65: =6*1000 -> 6000 | G65: 1045 | H65: 30 | I65: 0 | J65: 80 | K65: =A64 -> 61 | L65: =A66 -> 63 | N65: ○ | O65: ○
A66: 63 | B66: 1000 | C66: 0 | D66: 30000 | E66: 30000 | F66: =6*1000 -> 6000 | G66: 860 | H66: 30 | I66: 0 | J66: 80 | K66: =A65 -> 62 | L66: =A67 -> 64 | N66: ○ | O66: ○
A67: 64 | B67: 1100 | C67: 0 | D67: 30000 | E67: 30000 | F67: =6*1000 -> 6000 | G67: 690 | H67: 30 | I67: 0 | J67: 80 | K67: =A66 -> 63 | L67: -1 | N67: ○ | O67: 終端
A68: =A67+1 -> 65 | B68: 600 | C68: 0 | D68: 90000 | E68: =D68 -> 90000 | F68: 20000 | G68: 600 | H68: 35 | I68: 0 | J68: 93 | K68: -1 | L68: =A69 -> 66 | M68: ISB-LXM-200-10 | N68: =IF(K68=A67,"○",IF(M68<>0,"先頭","つなぎまちがい")) -> 先頭 | O68: =IF(L68=A69,"○",IF(L68<>K69,"つなぎまちがい","終端")) -> ○
A69: 66 | B69: 800 | C69: 0 | D69: 90000 | E69: 90000 | F69: 20000 | G69: 600 | H69: 35 | I69: 0 | J69: 93 | K69: =A68 -> 65 | L69: 67 | N69: ○ | O69: ○
A70: 67 | B70: 900 | C70: 0 | D70: 90000 | E70: 90000 | F70: 20000 | G70: 460 | H70: 35 | I70: 0 | J70: 93 | K70: 66 | L70: 68 | N70: ○ | O70: ○
A71: 68 | B71: 1000 | C71: 0 | D71: 90000 | E71: 90000 | F71: 20000 | G71: 380 | H71: 35 | I71: 0 | J71: 93 | K71: 67 | L71: 69 | N71: ○ | O71: ○
A72: 69 | B72: 1100 | C72: 0 | D72: 90000 | E72: 90000 | F72: 20000 | G72: 320 | H72: 35 | I72: 0 | J72: 93 | K72: 68 | L72: 70 | N72: ○ | O72: ○
A73: 70 | B73: 1200 | C73: 0 | D73: 90000 | E73: 90000 | F73: 20000 | G73: 270 | H73: 35 | I73: 0 | J73: 93 | K73: 69 | L73: 71 | N73: ○ | O73: ○
A74: 71 | B74: 1300 | C74: 0 | D74: 90000 | E74: 90000 | F74: 20000 | G74: 220 | H74: 35 | I74: 0 | J74: 93 | K74: 70 | L74: -1 | N74: ○ | O74: 終端
A75: 72 | B75: 500 | C75: 0 | D75: 45000 | E75: =D75 -> 45000 | F75: 10000 | G75: 1200 | H75: 35 | I75: 0 | J75: 93 | K75: -1 | L75: =A76 -> 73 | M75: ISB-LXM-200-20 | N75: 先頭 | O75: ○
A76: 73 | B76: 800 | C76: 0 | D76: 45000 | E76: 45000 | F76: 10000 | G76: 1200 | H76: 35 | I76: 0 | J76: 93 | K76: =A75 -> 72 | L76: 74 | N76: ○ | O76: ○
A77: 74 | B77: 900 | C77: 0 | D77: 45000 | E77: 45000 | F77: 10000 | G77: 920 | H77: 35 | I77: 0 | J77: 93 | K77: 73 | L77: 75 | N77: ○ | O77: ○
A78: 75 | B78: 1000 | C78: 0 | D78: 45000 | E78: 45000 | F78: 10000 | G78: 765 | H78: 35 | I78: 0 | J78: 93 | K78: 74 | L78: 76 | N78: ○ | O78: ○
A79: 76 | B79: 1100 | C79: 0 | D79: 45000 | E79: 45000 | F79: 10000 | G79: 645 | H79: 35 | I79: 0 | J79: 93 | K79: 75 | L79: 77 | N79: ○ | O79: ○
A80: 77 | B80: 1200 | C80: 0 | D80: 45000 | E80: 45000 | F80: 10000 | G80: 550 | H80: 35 | I80: 0 | J80: 93 | K80: 76 | L80: 78 | N80: ○ | O80: ○
A81: 78 | B81: 1300 | C81: 0 | D81: 45000 | E81: 45000 | F81: 10000 | G81: 440 | H81: 35 | I81: 0 | J81: 93 | K81: 77 | L81: -1 | N81: ○ | O81: 終端
A82: 79 | B82: 100 | C82: 0 | D82: 15000 | E82: =D82 -> 15000 | F82: =4*1000 -> 4000 | G82: 2400 | H82: 30 | I82: 0 | J82: 80 | K82: -1 | L82: =A83 -> 80 | M82: ISB-LXM-200-40 | N82: 先頭 | O82: ○
A83: 80 | B83: 300 | C83: 0 | D83: 15000 | E83: 15000 | F83: 4000 | G83: 2400 | H83: 30 | I83: 0 | J83: 80 | K83: =A82 -> 79 | L83: 81 | N83: ○ | O83: ○
A84: 81 | B84: 500 | C84: 0 | D84: 15000 | E84: 15000 | F84: 4000 | G84: 2400 | H84: 30 | I84: 0 | J84: 80 | K84: 80 | L84: 82 | N84: ○ | O84: ○
A85: 82 | B85: 700 | C85: 0 | D85: 15000 | E85: 15000 | F85: 4000 | G85: 2400 | H85: 30 | I85: 0 | J85: 80 | K85: 81 | L85: 83 | N85: ○ | O85: ○
A86: 83 | B86: 800 | C86: 0 | D86: 15000 | E86: 15000 | F86: 4000 | G86: 2400 | H86: 30 | I86: 0 | J86: 80 | K86: 82 | L86: 84 | N86: ○ | O86: ○
A87: 84 | B87: 900 | C87: 0 | D87: 15000 | E87: 15000 | F87: 4000 | G87: 1840 | H87: 30 | I87: 0 | J87: 80 | K87: 83 | L87: 85 | N87: ○ | O87: ○
A88: 85 | B88: 1000 | C88: 0 | D88: 15000 | E88: 15000 | F88: 4000 | G88: 1530 | H88: 30 | I88: 0 | J88: 80 | K88: 84 | L88: 86 | N88: ○ | O88: ○
A89: 86 | B89: 1100 | C89: 0 | D89: 15000 | E89: 15000 | F89: 4000 | G89: 1290 | H89: 30 | I89: 0 | J89: 80 | K89: 85 | L89: 87 | N89: ○ | O89: ○
A90: 87 | B90: 1200 | C90: 0 | D90: 15000 | E90: 15000 | F90: 4000 | G90: 1100 | H90: 30 | I90: 0 | J90: 80 | K90: 86 | L90: 88 | N90: ○ | O90: ○
A91: 88 | B91: 1300 | C91: 0 | D91: 15000 | E91: 15000 | F91: 4000 | G91: 880 | H91: 30 | I91: 0 | J91: 80 | K91: 87 | L91: -1 | N91: ○ | O91: 終端
A92: 89 | B92: 500 | C92: 0 | D92: 120000 | E92: =D92 -> 120000 | F92: 40000 | G92: 600 | H92: 25 | I92: 0 | J92: 120 | K92: -1 | L92: =A93 -> 90 | M92: ISB-LXM-400-10 | N92: 先頭 | O92: ○
A93: 90 | B93: 800 | C93: 0 | D93: 120000 | E93: 120000 | F93: 40000 | G93: 600 | H93: 25 | I93: 0 | J93: 120 | K93: =A92 -> 89 | L93: 91 | N93: ○ | O93: ○
A94: 91 | B94: 900 | C94: 0 | D94: 120000 | E94: 120000 | F94: 40000 | G94: 460 | H94: 25 | I94: 0 | J94: 120 | K94: 90 | L94: 92 | N94: ○ | O94: ○
A95: 92 | B95: 1000 | C95: 0 | D95: 120000 | E95: 120000 | F95: 40000 | G95: 380 | H95: 25 | I95: 0 | J95: 120 | K95: 91 | L95: 93 | N95: ○ | O95: ○
A96: 93 | B96: 1100 | C96: 0 | D96: 120000 | E96: 120000 | F96: 40000 | G96: 320 | H96: 25 | I96: 0 | J96: 120 | K96: 92 | L96: 94 | N96: ○ | O96: ○
A97: 94 | B97: 1200 | C97: 0 | D97: 120000 | E97: 120000 | F97: 40000 | G97: 270 | H97: 25 | I97: 0 | J97: 120 | K97: 93 | L97: 95 | N97: ○ | O97: ○
A98: 95 | B98: 1300 | C98: 0 | D98: 120000 | E98: 120000 | F98: 40000 | G98: 220 | H98: 25 | I98: 0 | J98: 120 | K98: 94 | L98: -1 | N98: ○ | O98: 終端
A99: 96 | B99: 500 | C99: 0 | D99: 90000 | E99: =D99 -> 90000 | F99: 20000 | G99: 1200 | H99: 25 | I99: 0 | J99: 120 | K99: -1 | L99: =A100 -> 97 | M99: ISB-LXM-400-20 | N99: 先頭 | O99: ○
A100: 97 | B100: 700 | C100: 0 | D100: 90000 | E100: 90000 | F100: 20000 | G100: 1200 | H100: 25 | I100: 0 | J100: 120 | K100: =A99 -> 96 | L100: 98 | N100: ○ | O100: ○
A101: 98 | B101: 800 | C101: 0 | D101: 90000 | E101: 90000 | F101: 20000 | G101: 1200 | H101: 25 | I101: 0 | J101: 120 | K101: 97 | L101: 99 | N101: ○ | O101: ○
A102: 99 | B102: 900 | C102: 0 | D102: 90000 | E102: 90000 | F102: 20000 | G102: 920 | H102: 25 | I102: 0 | J102: 120 | K102: 98 | L102: 100 | N102: ○ | O102: ○
A103: 100 | B103: 1000 | C103: 0 | D103: 90000 | E103: 90000 | F103: 20000 | G103: 765 | H103: 25 | I103: 0 | J103: 120 | K103: 99 | L103: 101 | N103: ○ | O103: ○
A104: 101 | B104: 1100 | C104: 0 | D104: 90000 | E104: 90000 | F104: 20000 | G104: 645 | H104: 25 | I104: 0 | J104: 120 | K104: 100 | L104: 102 | N104: ○ | O104: ○
A105: 102 | B105: 1200 | C105: 0 | D105: 90000 | E105: 90000 | F105: 20000 | G105: 550 | H105: 25 | I105: 0 | J105: 120 | K105: 101 | L105: 103 | N105: ○ | O105: ○
A106: 103 | B106: 1300 | C106: 0 | D106: 90000 | E106: 90000 | F106: 20000 | G106: 440 | H106: 25 | I106: 0 | J106: 120 | K106: 102 | L106: -1 | N106: ○ | O106: 終端
A107: 104 | B107: 100 | C107: 0 | D107: 40000 | E107: =D107 -> 40000 | F107: =10*1000 -> 10000 | G107: 2400 | H107: 30 | I107: 0 | J107: 80 | K107: -1 | L107: =A108 -> 105 | M107: ISB-LXM-400-40 | N107: 先頭 | O107: ○
A108: 105 | B108: 300 | C108: 0 | D108: 40000 | E108: 40000 | F108: 10000 | G108: 2400 | H108: 30 | I108: 0 | J108: 80 | K108: =A107 -> 104 | L108: 106 | N108: ○ | O108: ○
A109: 106 | B109: 500 | C109: 0 | D109: 40000 | E109: 40000 | F109: 10000 | G109: 2400 | H109: 30 | I109: 0 | J109: 80 | K109: 105 | L109: 107 | N109: ○ | O109: ○
A110: 107 | B110: 700 | C110: 0 | D110: 40000 | E110: 40000 | F110: 10000 | G110: 2400 | H110: 30 | I110: 0 | J110: 80 | K110: 106 | L110: 108 | N110: ○ | O110: ○
A111: 108 | B111: 800 | C111: 0 | D111: 40000 | E111: 40000 | F111: 10000 | G111: 2400 | H111: 30 | I111: 0 | J111: 80 | K111: 107 | L111: 109 | N111: ○ | O111: ○
A112: 109 | B112: 900 | C112: 0 | D112: 40000 | E112: 40000 | F112: 10000 | G112: 1840 | H112: 30 | I112: 0 | J112: 80 | K112: 108 | L112: 110 | N112: ○ | O112: ○
A113: 110 | B113: 1000 | C113: 0 | D113: 40000 | E113: 40000 | F113: 10000 | G113: 1530 | H113: 30 | I113: 0 | J113: 80 | K113: 109 | L113: 111 | N113: ○ | O113: ○
A114: 111 | B114: 1100 | C114: 0 | D114: 40000 | E114: 40000 | F114: 10000 | G114: 1290 | H114: 30 | I114: 0 | J114: 80 | K114: 110 | L114: 112 | N114: ○ | O114: ○
A115: 112 | B115: 1200 | C115: 0 | D115: 40000 | E115: 40000 | F115: 10000 | G115: 1100 | H115: 30 | I115: 0 | J115: 80 | K115: 111 | L115: 113 | N115: ○ | O115: ○
A116: 113 | B116: 1300 | C116: 0 | D116: 40000 | E116: 40000 | F116: 10000 | G116: 880 | H116: 30 | I116: 0 | J116: 80 | K116: 112 | L116: -1 | N116: ○ | O116: 終端
A117: 114 | B117: 580 | C117: 0 | D117: 55000 | E117: =D117 -> 55000 | F117: 14000 | G117: 240 | H117: 30 | I117: 0 | J117: 120 | K117: -1 | L117: =A118 -> 115 | M117: ISB-SXL-60-4 | N117: 先頭 | O117: ○
A118: 115 | B118: 680 | C118: 0 | D118: 55000 | E118: =D118 -> 55000 | F118: 14000 | G118: 165 | H118: 30 | I118: 0 | J118: 120 | K118: =A117 -> 114 | L118: =A119 -> 116 | N118: ○ | O118: ○
A119: 116 | B119: 780 | C119: 0 | D119: 55000 | E119: =D119 -> 55000 | F119: 14000 | G119: 130 | H119: 30 | I119: 0 | J119: 120 | K119: =A118 -> 115 | L119: =A120 -> 117 | N119: ○ | O119: ○
A120: 117 | B120: 880 | C120: 0 | D120: 55000 | E120: =D120 -> 55000 | F120: 14000 | G120: 100 | H120: 30 | I120: 0 | J120: 120 | K120: =A119 -> 116 | L120: -1 | N120: ○ | O120: 終端
A121: 118 | B121: 580 | C121: 0 | D121: 27500 | E121: =27*1000 -> 27000 | F121: 7000 | G121: 480 | H121: 35 | I121: 0 | J121: 93 | K121: -1 | L121: =A122 -> 119 | M121: ISB-SXL-60-8 | N121: 先頭 | O121: ○
A122: 119 | B122: 680 | C122: 0 | D122: 27500 | E122: =27*1000 -> 27000 | F122: 7000 | G122: 330 | H122: 35 | I122: 0 | J122: 93 | K122: =A121 -> 118 | L122: =A123 -> 120 | N122: ○ | O122: ○
A123: 120 | B123: 780 | C123: 0 | D123: 27500 | E123: =27*1000 -> 27000 | F123: 7000 | G123: 260 | H123: 35 | I123: 0 | J123: 93 | K123: =A122 -> 119 | L123: =A124 -> 121 | N123: ○ | O123: ○
A124: 121 | B124: 880 | C124: 0 | D124: 27500 | E124: =27*1000 -> 27000 | F124: 7000 | G124: 210 | H124: 35 | I124: 0 | J124: 93 | K124: =A123 -> 120 | L124: -1 | N124: ○ | O124: 終端
A125: 122 | B125: 280 | C125: 0 | D125: 13000 | E125: =D125 -> 13000 | F125: 3500 | G125: 960 | H125: 30 | I125: 0 | J125: 85 | K125: -1 | L125: =A126 -> 123 | M125: ISB-SXL-60-16 | N125: 先頭 | O125: ○
A126: 123 | B126: 380 | C126: 0 | D126: 13000 | E126: 13000 | F126: 3500 | G126: 960 | H126: 30 | I126: 0 | J126: 85 | K126: =A125 -> 122 | L126: 124 | N126: ○ | O126: ○
A127: 124 | B127: 480 | C127: 0 | D127: 13000 | E127: 13000 | F127: 3500 | G127: 960 | H127: 30 | I127: 0 | J127: 85 | K127: 123 | L127: 125 | N127: ○ | O127: ○
A128: 125 | B128: 580 | C128: 0 | D128: 13000 | E128: 13000 | F128: 3500 | G128: 960 | H128: 30 | I128: 0 | J128: 85 | K128: 124 | L128: 126 | N128: ○ | O128: ○
A129: 126 | B129: 680 | C129: 0 | D129: 13000 | E129: 13000 | F129: 3500 | G129: 655 | H129: 20 | I129: 0 | J129: 120 | K129: 125 | L129: 127 | N129: ○ | O129: ○
